Workbook

Sheet 1.Background & Instructions
B1: Electronics Environmental Benefits Calculator -- Version 3.1
K2: 2012-07-24
B3: Note, to begin calculations, proceed to Sheet 3a: "User Input-Purchasing."
B4: Background
B5: The Electronics Environmental Benefits Calculator is intended to assist institutional purchasers in quantifying the benefits of environmentally sound management of electronic equipment. The calculator estimates the environmental and economic benefits of purchasing environmentally preferable (including EPEAT registered) products, in addition to making improvements in equipment operation and end-of-life management practices.
B6: Best electronic stewardship practices specify product design criteria and management activities based on environmental attributes (e.g., the elimination of toxic chemicals, the use of recycled materials, power consumption) or product management activity (e.g., power management, equipment reuse and recycling). This calculator translates attributes and activities into environmental benefits, including:
B7: ♦ Savings in energy use;
B8: ♦ Savings in virgin material use (increase in recycled materials);
B9: ♦ Savings in CO2/Greenhouse gas emissions;
B10: ♦ Savings in air emissions;
B11: ♦ Savings in water emissions;
B12: ♦ Savings in toxic materials;
B13: ♦ Savings in municipal solid waste generation;
B14: ♦ Savings in hazardous waste generation;
B15: ♦ Savings in cost.
B17: BELOW ARE EXPLANATIONS OF THE REMAINING SHEETS IN THIS WORKBOOK:
C18: Sheet 2: | D18: "Flow chart of life cycle" provides an overview of the life-cycle of a desktop computer as an example. Along with the major processes, superimposed on various processes within the life-cycle are what parts of the calculator apply to each.
C19: Sheet 3a: | D19: "User input-Purchasing" is where the user begins by providing information for product(s) purchased. Currently, up to 3 different computer products can be entered. The calculator can be used for purchases only, or combined with data entry for product use and end-of-life (see Sheet 3b).
C20: Sheet 3b: Use&EOL | D20: "User input-Use&EOL" allows for use and end-of-life (EOL) data to be entered for computers, monitors, mobile telephones, and mixed electronics. Sheet 3b can be used in conjunction with Sheet 3a (purchases), or separately.
C21: Sheet 3c: | D21: "Alt user input-Purchasing" allows customization of EPEAT registration data on products selected for purchase in Sheet 3a.
C22: Sheet 4: | D22: "Data comparisons" provides a list of all data associated with products selected and as defined by the user in the User Input sheets (3a, 3b, and 3c). Also lists baseline comparison data alongside user selected product data.
C23: Sheet 5a: | D23: "RESULTS-Savings" provides the values for the environmental savings for each inventory metric as defined above (e.g., energy savings, CO2/greenhouse gas emissions).
C24: Sheet 5b: | D24: "RESULTS-Explanations" provides a description for each of the savings calculated in Sheet 5a.
C25: Sheet 6: | D25: "GRAPHICAL RESULTS-savings" provides a graphical representation of the savings in Sheet 5a.
C26: Sheet 7: | D26: "Equivalents" puts each metric into perspective using common references or comparisons.
C27: Sheet 8a: | D27: "Assumptions-Baseline" provides data and assumptions for the baseline products (e.g., non-EPEAT registered) which are compared to the user defined products to calculate environmental benefits.
C28: Sheet 8b1: | D28: "Assumptions-EPEATFECdefault" provides the assumptions for all EPEAT-registered products and management practices.
C29: Sheet 8b2: | D29: "Assumptions-EPEAT tiers" provides the assumptions for Bronze, Silver and Gold registered products if data not specified in Sheet 3c.
C30: Sheet 8c: | D30: "Assumptions-Calculations" provides miscellaneous supporting data and assumptions for calculations in the calculator.
C31: Sheet 8d: | D31: "EnergyStar CPU-calcs" provides the assumptions and calculations from the ENERGY STAR website calculator and is used to calculate CPU unit energy consumption values.
C32: Sheet 8e: | D32: "EnergyStar monitor-calcs" provides the assumptions and calculations from the ENERGY STAR website calculator and is used to calculate monitor unit energy consumption values.
C33: Sheet 8f: | D33: "EnergyStar notebook-calcs" provides the assumptions and calculations used to calculate notebook unit energy consumption values.
C34: Sheet 9: | D34: "Revisions" lists the changes that have been made from Version 2.0 to Version 3.0, and Version 3.0 and 3.1.
C42: Calculator Development:
C43: Version 1.0 of the EEBC Calculator (released December 2006) was co-developed by Maria Leet Socolof of Abt Associates, Inc. and Patricia Dillon of Dillon Environmental Associates, in coordination with Jack Geibig of the University of Tennessee (UT) Center for Clean Products and Clean Technologies. Abt Associates and Dillon Environmental Associates were subcontracted by UT who was funded through a grant from the U.S. EPA Region 10 to develop the calculator. Version 1.1 (released April 2007) was developed through a contract between U.S. EPA and the Eastern Research Group (ERG), with subcontracts to Abt Associates, Inc. and Dillon Environmental Associates. Version 2.0 (released March 2009) was developed under a contract between U.S. EPA and Abt Associates, Inc., with subcontracts to Dillon Environmental Associates and UT. Version 3.0 (released April 2012) was developed by the U.S. EPA. Version 3.1 (released July 2012) was developed under a contract between U.S. EPA and ERG. EEBC Version 3.1 Copyright © July 2012

Sheet 2.Flow chart of life cycle
B1: BACKGROUND INFORMATION
B2: Example schematic showing where the product characteristics and management practices (yellow ovals) fall within the life-cycle of a computer system.

Sheet 3a.User input-Purchasing
A2: USER INPUT - GENERAL PURCHASING
A3: INSTRUCTIONS:
A4: Enter information on computer product purchases to calculate the environmental benefits of an EPEAT-registered product compared to a nonregistered product. If more than one product type is purchased, enter information for up to 3 products (i.e., Product 1, Product 2, etc., as designated below). To clear entered data, click the "RESET" button. More specific purchasing data may optionally be entered in Sheet 3c. This calculator can also calculate the environmental benefits of equipment use and end-of-life options by entering data in Sheet 3b. Additional navigation options are provided at the bottom of this Sheet.
A5: Yellow cells indicate mandatory data inputs for each product.
A6: White cells indicate optional data inputs for each product.
A8: PURCHASING INFORMATION | G8: Note: To completely re-set calculator, be sure Sheet 3b and 3c are also reset.
A9: User Input | B9: Ref | C9: Type | D9: Input data or click answer | H9: Values used | I9: Units
A10: Product 1: Enter a product ID, if desired:
A11: Choose product type
A12: Number of products purchased | H12: =IF(ISNUMBER(D12),D12,1) -> 1 | I12: =IF(ISBLANK(H11),"",H11) -> 
A13: Is the product EPEAT registered? | B13: EPEAT
A14: If yes, which EPEAT registration tier? | B14: EPEAT
A16: Product 2: Enter a product ID, if desired:
A17: Choose product type
A18: Number of products purchased | H18: =IF(ISNUMBER(D18),D18,1) -> 1 | I18: =IF(ISBLANK(H17),"",H17) -> 
A19: Is the product EPEAT registered? | B19: EPEAT
A20: If yes, which EPEAT registration tier? | B20: EPEAT | G20: =IF(AND(OR(H19="Not EPEAT Registered",H19="Not applicable to EPEAT"),OR(H20="bronze",H20="silver",H20="gold")),"inconsistent answer, defaults to tier selection","") -> 
A22: Product 3: Enter a product ID, if desired:
A23: Choose product type
A24: Number of products purchased | H24: =IF(ISNUMBER(D24),D24,1) -> 1 | I24: =IF(ISBLANK(H23),"",H23) -> 
A25: Is the product EPEAT registered? | B25: EPEAT
A26: If yes, which EPEAT registration tier? | B26: EPEAT | G26: =IF(AND(OR(H25="Not EPEAT Registered",H25="Not applicable to EPEAT"),OR(H26="bronze",H26="silver",H26="gold")),"inconsistent answer, defaults to tier selection","") -> 
F33: 0
F34: 0
F35: 1
F36: 0
F40: 0
F41: 0

Sheet 3b.User Input-Use&EOL
A2: USER INPUT - USE AND END-OF-LIFE MANAGEMENT
A3: INSTRUCTIONS:
A4: This sheet is OPTIONAL. Enter information on computers and monitors in use, power management practices, and extending the lifespan to calculate the benefits of enabling power management over the default percentage or extending the life of equipment beyond the default lifespan. Enter information on the reuse and recycling of computers, monitors, cell phones and mixed loads of electronics to calculate the environmental benefit of reusing and recycling. For this optional data analysis, enter data into the white fields below. To clear entered data, click the "RESET" button. Purchasing data may be entered in Sheet 3a (general) and Sheet 3c (specific). Additional navigation options are provided at the bottom of this Sheet.
A6: USE AND END-OF-LIFE INFORMATION | J6: Note: To completely re-set calculator, be sure Sheet 3a and Sheet 3c are also reset.
A7: User Input | B7: Ref | C7: Type | D7: Input data | K7: Values used | L7: Units
A8: Use: | D8: Total number of ENERGY STAR® 4.* units | E8: Total number of ENERGY STAR® 5.* units | F8: Percentage of COMPUTERS with power management features enabled (%) | G8: Percentage of DISPLAYS with power management features enabled (%) | H8: Average lifespan of units (Months) | K8: Products as % of total units | M8: Computer enabling rate | N8: Display enabling rate | O8: Average lifespan (Months)
A9: Desktop computers (CPUs) | B9: FEC | K9: =IF(OR(ISNUMBER(D9),ISNUMBER(E9)),SUM(D9:E9)/$D$13,IF(ISNUMBER($D$13),0,"no input")) -> no input | M9: =IF(OR(ISNUMBER(D9),ISNUMBER(E9)),IF(ISNUMBER(F9),F9,0),0) -> 0 | O9: =IF(ISNUMBER(H9),H9,'8a. Assumptions-Baseline'!D39) -> 51
A10: Cathode ray tube monitors (CRTs) | B10: FEC | K10: =IF(OR(ISNUMBER(D10),ISNUMBER(E10)),SUM(D10:E10)/$D$13,IF(ISNUMBER($D$13),0,"no input")) -> no input | N10: =IF(ISNUMBER(D10),IF(ISNUMBER(G10),G10,0),0) -> 0 | O10: =IF(ISNUMBER(H10),H10,'8a. Assumptions-Baseline'!D83) -> 51
A11: Liquid crystal display monitors (LCDs) | B11: FEC | K11: =IF(OR(ISNUMBER(D11),ISNUMBER(E11)),SUM(D11:E11)/$D$13,IF(ISNUMBER($D$13),0,"no input")) -> no input | N11: =IF(OR(ISNUMBER(D11),ISNUMBER(E11)),IF(ISNUMBER(G11),G11,0),0) -> 0 | O11: =IF(ISNUMBER(H11),H11,'8a. Assumptions-Baseline'!D128) -> 51
A12: Notebook computers | B12: FEC | K12: =IF(OR(ISNUMBER(D12),ISNUMBER(E12)),SUM(D12:E12)/$D$13,IF(ISNUMBER($D$13),0,"no input")) -> no input | M12: =IF(OR(ISNUMBER(D12),ISNUMBER(E12)),IF(ISNUMBER(F12),F12,0),0) -> 0 | N12: =IF(OR(ISNUMBER(D12),ISNUMBER(E12)),IF(ISNUMBER(G12),G12,0),0) -> 0 | O12: =IF(ISNUMBER(H12),H12,'8a. Assumptions-Baseline'!D174) -> 38
A13: Total number of units in service (4.* and 5.*) | B13: FEC | D13: =IF(SUM(D9:E12)>0,SUM(D9:E12),"") ->  | K13: =IF(ISNUMBER(D13),D13,"no input") -> no input | N13: Weighted average lifespan: | O13: =IF(ISNUMBER(D13),K9*O9+K10*O10+K11*O11+K12*O12,'8c.Assumptions-Calculations'!B14*O9+'8c.Assumptions-Calculations'!B15*O10+'8c.Assumptions-Calculations'!B16*O11+'8c.Assumptions-Calculations'!B17*O12) -> 48.32783894
A15: End-of-Life: | D15: Total number of units | F15: =IF(OR(AND(ISNUMBER(F9),AND(ISBLANK(D9),ISBLANK(E9))),AND(ISNUMBER(G10),ISBLANK(D10)),AND(ISNUMBER(G11),AND(ISBLANK(D11),ISBLANK(E11))),AND(OR(ISNUMBER(F12),ISNUMBER(G12)),AND(ISBLANK(D12),ISBLANK(E12)))),"Please enter total number of units","") -> 
A16: Reused: | F16: =IF(OR(F9>1,F12>1,G10>1,G11>1,G12>1),"Enabling rate cannot be greater than 100%. The calculator will not calculate benefits for the applicable product type if not changed.","") -> 
A17: Desktop computers (CPUs) | B17: FEC | K17: =IF(ISNUMBER(D17),D17,"no input") -> no input
A18: Cathode ray tube monitors (CRTs) | B18: FEC | K18: =IF(ISNUMBER(D18),D18,"no input") -> no input
A19: Liquid crystal display monitors (LCDs) | B19: FEC | K19: =IF(ISNUMBER(D19),D19,"no input") -> no input
A20: Notebook computers | B20: FEC | K20: =IF(ISNUMBER(D20),D20,"no input") -> no input
A21: Mobile telephones | B21: FEC | K21: =IF(ISNUMBER(D21),D21,"no input") -> no input
A22: Total number of units reused | D22: =IF(SUM(D17:D21)>0,SUM(D17:D21),"") -> 
A23: Recycled:
A24: Desktop computers (CPUs) | B24: FEC | K24: =IF(ISNUMBER(D24),D24,"no input") -> no input
A25: Cathode ray tube monitors (CRTs) | B25: FEC | K25: no input
A26: Liquid crystal display monitors (LCDs) | B26: FEC | K26: no input
A27: Notebook computers | B27: FEC | K27: no input
A28: Mobile telephones | B28: FEC | K28: no input
A29: Weight (kg) of mixed office electronics | B29: FEC | K29: no input
A30: Total number of units recycled (excluding mixed electronics) | D30: =IF(SUM(D24:D28)>0,SUM(D24:D28),"") -> 
A31: Conversions: 1 ton = 907 kg; 1 metric ton (MT)=1000 kg; 1 kg=2.205 lb

Sheet 3c.Alt user input-Purchasing
A1: USER INPUT - SPECIFIC PURCHASING
A2: INSTRUCTIONS:
A3: This data sheet is OPTIONAL. It allows the user to customize EPEAT registration data (i.e., override default values used to calculate benefits from Sheet 3a) for products. To clear entered data, click the "RESET" button. More general purchasing data must be entered in Sheet 3a to use this Sheet. This calculator can also calculate the environmental benefits of equipment use and end-of-life options by entering data in Sheet 3b. Additional navigation options are provided at the bottom of this Sheet.
A5: ADDITIONAL PURCHASING INFORMATION | H5: Note: To completely re-set calculator, be sure Sheet 3a and Sheet 3b are also reset.
A6: User Input | B6: Ref | C6: Type | D6: Input data or click answer | E6: Units | I6: Values used | J6: Units
A7: Product 1 (Must be selected in Sheet 3a) | D7: =IF(ISTEXT('3a.User input-Purchasing'!H11),'3a.User input-Purchasing'!H11,"Please provide in Sheet 3a") -> Please provide in Sheet 3a | F7: =IF(ISBLANK('3a.User input-Purchasing'!D10),"",'3a.User input-Purchasing'!D10) ->  | I7: =D7 -> Please provide in Sheet 3a
A8: Number of products purchased | H8: =IF(AND(ISNUMBER(D8),NOT(I8='3a.User input-Purchasing'!$H$12)),"Inconsistent with Sheet 3a; defaults to entered value","") ->  | I8: =IF(ISNUMBER(D8),D8,'3a.User input-Purchasing'!H12) -> 1 | J8: =IF(ISBLANK(I7),'3a.User input-Purchasing'!H11,I7) -> Please provide in Sheet 3a
A9: Initial cost per unit | F9: US$ | I9: =IF(ISNUMBER(D9),D9,IF(I7="CPU",'8c.Assumptions-Calculations'!$B$7,IF(I7="Notebook",'8c.Assumptions-Calculations'!$B$10,IF(I7="CRT",'8c.Assumptions-Calculations'!$B$8,IF(I7="LCD",'8c.Assumptions-Calculations'!$B$9,0))))) -> 0 | J9: US$
A10: Unit energy cost | F10: $/kWh | I10: =IF(ISNUMBER(D10),D10,'8c.Assumptions-Calculations'!$B$23) -> 0.1019085986 | J10: =IF(ISTEXT(F10),F10,"default") -> $/kWh
A11: EPEAT REGISTRATION CRITERIA (Note: Not all criteria are specified below)
A12: EPEAT registration tier | D12: =IF(ISTEXT('3a.User input-Purchasing'!H14),'3a.User input-Purchasing'!H14,"Please provide in Sheet 3a") -> Please provide in Sheet 3a | I12: =D12 -> Please provide in Sheet 3a
A13: Reduced Toxicity
A14: Compliance with provisions of European RoHS Directive | B14: E 4.1.1.1 | C14: E-Req | H14: =IF(AND(I14="non-RoHS",'3a.User input-Purchasing'!H13="EPEAT registered"),"Inconsistent with Sheet 3a; assuming does not meet RoHS","") -> 
A15: Reporting on amount of mercury used in light sources (Enter number of lamps with Hg) | B15: E 4.1.3.1 | C15: E-Req | F15: lamps | H15: =IF(AND(ISNUMBER(D15),OR($D$7="CPU",$D$7="CRT")),"Inconsistent with product entered, no benefit calculated","") ->  | I15: =IF(ISNUMBER(D15),ROUND(D15,0),"not given") -> not given | J15: =IF(ISNUMBER(D15),F15,"") -> 
A16: Reporting on amount of mercury used in light sources (Enter maximum average Hg content per lamp) | B16: E 4.1.3.1 | C16: E-Req | F16: mg Hg/lamp | H16: =IF(AND(ISNUMBER(D16),OR($D$7="CPU",$D$7="CRT")),"Inconsistent with product entered, no benefit calculated","") ->  | I16: =IF(ISNUMBER(D16),D16/1000,"not given") -> not given | J16: =IF(ISNUMBER(D16),"g Hg/lamp","") -> 
A17: Low threshold for amount of mercury used in light sources (Max average of 3 mg Hg/lamp) | B17: E 4.1.3.2 | C17: E-Opt | H17: =IF(ISBLANK(I18),IF(I16="not given","",IF(AND(I17="max 3 mg",I16>0.003),"Inconsistent with earlier entry; assuming 3 mg","")),"") -> 
A18: Elimination of intentionally added mercury used in light sources | B18: E 4.1.3.3 | C18: E-Opt | H18: =IF(AND(OR(I15="not given",I15=0),OR(I16="not given",I16=0)),"",IF(AND(I18="hg-free",I16>0),"Inconsistent with earlier entry; assuming Hg-free","")) -> 
A19: Material Use
A20: Declaration of postconsumer recycled plastic content | B20: E 4.2.1.1 | C20: E-Req
A21: Enter manufacturer's declared percent recycled content for product | B21: E 4.2.1.1 | C21: E-Req | F21: percentage | H21: =IF(AND(ISBLANK(I23),ISBLANK(I22)),IF(AND(ISNUMBER(I21),I20="no"),"Inconsistent with earlier entry; defaults to entered value",""),"") ->  | I21: =IF(ISNUMBER(D21),D21,"not given") -> not given
A22: Minimum content of postconsumer recycled plastic (>=10%) | B22: E 4.2.1.2 | C22: E-Opt | H22: =IF(ISBLANK(I23),IF(AND(I22=10%,I21<10%),"Inconsistent with earlier entry; assuming 10%",IF(AND(ISNUMBER(I22),ISNUMBER(I21),I22<I21),"Using higher amount entered above","")),"") -> 
A23: Higher content of postconsumer recycled plastic (>=25%) | B23: E 4.2.1.3 | C23: E-Opt | H23: =IF(AND(I23=25%,I21<25%),"Inconsistent with earlier entry; assuming 25%",IF(AND(ISNUMBER(I23),ISNUMBER(I21),I23<I21),"Using higher amount entered above","")) -> 
A24: Declaration of renewable/bio-based plastic materials content | B24: E 4.2.2.1 | C24: E-Req
A25: Enter manufacturer's declared percent biobased content for product | B25: E 4.2.2.1 | C25: E-Req | F25: percentage | H25: =IF(AND(ISNUMBER(I25),I24="no"),"Inconsistent with earlier entry; defaults to entered value","") ->  | I25: =IF(ISNUMBER(D25),D25,"not given") -> not given
A26: Minimum content of renewable/bio-based plastic material (>=10%) | B26: E 4.2.2.2 | C26: E-Opt | H26: =IF(AND(I26=10%,I25<10%),"Inconsistent with earlier entry; assuming 10%",IF(AND(ISNUMBER(I26),ISNUMBER(I25),I26<I25),"Using higher amount entered above","")) -> 
A27: Declaration of product weight (1 kilogram = 2.205 lb) | B27: E 4.2.3.1 | C27: E-Req | F27: kilograms | I27: =IF(ISNUMBER(D27),D27,"not given") -> not given | J27: =IF(ISNUMBER(D27),F27,"") -> 
A28: Energy
A29: ENERGY STAR® version | B29: E 4.5.1.1 | C29: E-Req | H29: =IF(AND(I29=3,'3a.User input-Purchasing'!H13="EPEAT registered"),"Inconsistent with Sheet 3a; assuming ES 4.0/4.1","") -> 
A30: Early adoption of new ENERGY STAR® specification | B30: E 4.5.1.2 | C30: E-Opt
A31: Percentage of computers with power management enabled | F31: percentage | H31: =IF(AND(ISNUMBER(D31),OR($D$7="LCD",$D$7="CRT")),"Inconsistent with product entered, no benefit calculated","") ->  | I31: =IF(ISNUMBER(D31),D31,IF(I7="CPU",'8c.Assumptions-Calculations'!$C$37,IF(I7="Notebook",'8c.Assumptions-Calculations'!$G$37,IF(I7="CRT","NA",IF(I7="LCD","NA","not given"))))) -> not given
A32: Percentage of displays with power management enabled | F32: percentage | H32: =IF(AND(ISNUMBER(D32),$D$7="CPU"),"Inconsistent with product entered, no benefit calculated","") ->  | I32: =IF(ISNUMBER(D32),D32,IF(I7="CPU","NA",IF(I7="Notebook",'8c.Assumptions-Calculations'!$F$37,IF(I7="CRT",'8c.Assumptions-Calculations'!$D$37,IF(I7="LCD",'8c.Assumptions-Calculations'!$E$37,"not given"))))) -> not given
A33: Packaging
A34: Declaration of recycled content in packaging Enter range of % recycled content for corrugated/paper fiber packaging | B34: E 4.8.3.1 | C34: E-Req | E34: to | H34: =IF(OR(AND(ISNUMBER(D34),ISBLANK(F34)),AND(ISBLANK(D34),ISNUMBER(F34))),"Please enter a number in both boxes","") ->  | I34: =IF(AND(ISNUMBER(D34),ISNUMBER(F34)),AVERAGE(D34,F34),"not given") -> not given
A35: Declaration of recycled content in packaging Enter range of % recycled content for plastic/foam/resin packaging | B35: E 4.8.3.1 | C35: E-Req | E35: to | H35: =IF(OR(AND(ISNUMBER(D35),ISBLANK(F35)),AND(ISBLANK(D35),ISNUMBER(F35))),"Please enter a number in both boxes","") ->  | I35: =IF(AND(ISNUMBER(D35),ISNUMBER(F35)),AVERAGE(D35,F35),"not given") -> not given
A36: Declaration of recycled content in packaging Enter range of % recycled content for other or additional packaging types | B36: E 4.8.3.1 | C36: E-Req | E36: to | H36: =IF(OR(AND(ISNUMBER(D36),ISBLANK(F36)),AND(ISBLANK(D36),ISNUMBER(F36))),"Please enter a number in both boxes","") ->  | I36: =IF(AND(ISNUMBER(D36),ISNUMBER(F36)),AVERAGE(D36,F36),"not given") -> not given
A37: Minimum postconsumer content guidelines (CPG) (Recycled content of corrugated packaging >=25% ) | B37: E 4.8.3.2 | C37: E-Opt | H37: =IF(I37="","",IF(I34="not given","",IF(I37>I34,"Inconsistent with earlier entry; assuming 25%",IF(I37<I34,"Assuming higher amount entered above","")))) -> 
A38: Reusable packaging | B38: E 4.8.5.1 | C38: E-Opt
A40: Product 2 (Must be selected in Sheet 3a) | D40: =IF(ISTEXT('3a.User input-Purchasing'!H17),'3a.User input-Purchasing'!H17,"Please provide in Sheet 3a") -> Please provide in Sheet 3a | F40: =IF(ISBLANK('3a.User input-Purchasing'!D16),"",'3a.User input-Purchasing'!D16) ->  | I40: =D40 -> Please provide in Sheet 3a
A41: Number of products purchased | H41: =IF(AND(ISNUMBER(D41),NOT(I41='3a.User input-Purchasing'!H$18)),"Inconsistent with Sheet 3a; defaults to entered value","") ->  | I41: =IF(ISNUMBER(D41),D41,'3a.User input-Purchasing'!$H$18) -> 1 | J41: =IF(ISBLANK(I40),'3a.User input-Purchasing'!H17,I40) -> Please provide in Sheet 3a
A42: Initial cost per unit | F42: US$ | I42: =IF(ISNUMBER(D42),D42,IF(I40="CPU",'8c.Assumptions-Calculations'!$B$7,IF(I40="Notebook",'8c.Assumptions-Calculations'!$B$10,IF(I40="CRT",'8c.Assumptions-Calculations'!$B$8,IF(I40="LCD",'8c.Assumptions-Calculations'!$B$9,0))))) -> 0 | J42: US$
A43: Unit energy cost | F43: $/kWh | I43: =IF(ISNUMBER(D43),D43,'8c.Assumptions-Calculations'!$B$23) -> 0.1019085986 | J43: =IF(ISTEXT(F43),F43,"default") -> $/kWh
A44: EPEAT REGISTRATION CRITERIA (Note: Not all criteria are specified below)
A45: EPEAT registration tier | D45: =IF(ISTEXT('3a.User input-Purchasing'!H20),'3a.User input-Purchasing'!H20,"Please provide in Sheet 3a") -> Please provide in Sheet 3a | I45: =D45 -> Please provide in Sheet 3a
A46: Reduced Toxicity
A47: Compliance with provisions of European RoHS Directive | B47: E 4.1.1.1 | C47: E-Req | H47: =IF(AND(I47="non-RoHS",'3a.User input-Purchasing'!H19="EPEAT registered"),"Inconsistent with Sheet 3a; assuming does not meet RoHS","") -> 
A48: Reporting on amount of mercury used in light sources (Enter number of lamps with Hg) | B48: E 4.1.3.1 | C48: E-Req | F48: lamps | H48: =IF(AND(ISNUMBER(D48),OR($D$40="CPU",$D$40="CRT")),"Inconsistent with product entered, no benefit calculated","") ->  | I48: =IF(ISNUMBER(D48),ROUND(D48,0),"not given") -> not given | J48: =IF(ISNUMBER(D48),F48,"") -> 
A49: Reporting on amount of mercury used in light sources (Enter maximum average Hg content per lamp) | B49: E 4.1.3.1 | C49: E-Req | F49: mg Hg/lamp | H49: =IF(AND(ISNUMBER(D49),OR($D$40="CPU",$D$40="CRT")),"Inconsistent with product entered, no benefit calculated","") ->  | I49: =IF(ISNUMBER(D49),D49/1000,"not given") -> not given | J49: =IF(ISNUMBER(D49),"g Hg/lamp","") -> 
A50: Low threshold for amount of mercury used in light sources (Max average of 3 mg Hg/lamp) | B50: E 4.1.3.2 | C50: E-Opt | H50: =IF(ISBLANK(I51),IF(I49="not given","",IF(AND(I50="max 3 mg",I49>0.003),"Inconsistent with earlier entry; assuming 3 mg","")),"") -> 
A51: Elimination of intentionally added mercury used in light sources | B51: E 4.1.3.3 | C51: E-Opt | H51: =IF(AND(OR(I48="not given",I48=0),OR(I49="not given",I49=0)),"",IF(AND(I51="hg-free",I49>0),"Inconsistent with earlier entry, assuming Hg-free","")) -> 
A52: Material Use
A53: Declaration of postconsumer recycled plastic content | B53: E 4.2.1.1 | C53: E-Req
A54: Enter manufacturer's declared percent recycled content for product | B54: E 4.2.1.1 | C54: E-Req | F54: percentage | H54: =IF(AND(ISBLANK(I56),ISBLANK(I55)),IF(AND(ISNUMBER(I54),I53="no"),"Inconsistent with earlier entry; defaults to entered value",""),"") ->  | I54: =IF(ISNUMBER(D54),D54,"not given") -> not given
A55: Minimum content of postconsumer recycled plastic (>=10%) | B55: E 4.2.1.2 | C55: E-Opt | H55: =IF(ISBLANK(I56),IF(AND(I55=10%,I54<10%),"Inconsistent with earlier entry; assuming 10%",IF(AND(ISNUMBER(I55),ISNUMBER(I54),I55<I54),"Using higher amount entered above","")),"") -> 
A56: Higher content of postconsumer recycled plastic (>=25%) | B56: E 4.2.1.3 | C56: E-Opt | H56: =IF(AND(I56=25%,I54<25%),"Inconsistent with earlier entry; assuming 25%",IF(AND(ISNUMBER(I56),ISNUMBER(I54),I56<I54),"Using higher amount entered above","")) -> 
A57: Declaration of renewable/bio-based plastic materials content | B57: E 4.2.2.1 | C57: E-Req
A58: Enter manufacturer's declared percent biobased content for product | B58: E 4.2.2.1 | C58: E-Req | F58: percentage | H58: =IF(ISBLANK(I59),IF(AND(ISNUMBER(I58),I57="no"),"Inconsistent with earlier entry; defaults to entered value",""),"") ->  | I58: =IF(ISNUMBER(D58),D58,"not given") -> not given
A59: Minimum content of renewable/bio-based plastic material (>=10%) | B59: E 4.2.2.2 | C59: E-Opt | H59: =IF(AND(I59=10%,I58<10%),"Inconsistent with earlier entry; assuming 10%",IF(AND(ISNUMBER(I59),ISNUMBER(I58),I59<I58),"Using higher amount entered above","")) -> 
A60: Declaration of product weight (1 kilogram = 2.205 lb) | B60: E 4.2.3.1 | C60: E-Req | F60: kilograms | I60: =IF(ISNUMBER(D60),D60,"not given") -> not given | J60: =IF(ISNUMBER(D60),F60,"") -> 
A61: Energy
A62: ENERGY STAR® version | B62: E 4.5.1.1 | C62: E-Req | H62: =IF(AND(I62=3,'3a.User input-Purchasing'!H19="EPEAT registered"),"Inconsistent with Sheet 3a; assuming ES 4.0/4.1","") -> 
A63: Early adoption of new ENERGY STAR® specification | B63: E 4.5.1.2 | C63: E-Opt
A64: Percentage of computers with power management enabled | F64: percentage | H64: =IF(AND(ISNUMBER(D64),OR($D$40="LCD",$D$40="CRT")),"Inconsistent with product entered, no benefit calculated","") ->  | I64: =IF(ISNUMBER(D64),D64,IF(I40="CPU",'8c.Assumptions-Calculations'!$C$37,IF(I40="Notebook",'8c.Assumptions-Calculations'!$G$37,IF(I40="CRT","NA",IF(I40="LCD","NA","not given"))))) -> not given
A65: Percentage of displays with power management enabled | F65: percentage | H65: =IF(AND(ISNUMBER(D65),$D$40="CPU"),"Inconsistent with product entered, no benefit calculated","") ->  | I65: =IF(ISNUMBER(D65),D65,IF(I40="CPU","NA",IF(I40="Notebook",'8c.Assumptions-Calculations'!$F$37,IF(I40="CRT",'8c.Assumptions-Calculations'!$D$37,IF(I40="LCD",'8c.Assumptions-Calculations'!$E$37,"not given"))))) -> not given
A66: Packaging
A67: Declaration of recycled content in packaging Enter range of % recycled content for corrugated/paper fiber packaging | B67: E 4.8.3.1 | C67: E-Req | E67: to | H67: =IF(OR(AND(ISNUMBER(D67),ISBLANK(F67)),AND(ISBLANK(D67),ISNUMBER(F67))),"Please enter a number in both boxes","") ->  | I67: =IF(AND(ISNUMBER(D67),ISNUMBER(F67)),AVERAGE(D67,F67),"not given") -> not given
A68: Declaration of recycled content in packaging Enter range of % recycled content for plastic/foam/resin packaging | B68: E 4.8.3.1 | C68: E-Req | E68: to | H68: =IF(OR(AND(ISNUMBER(D68),ISBLANK(F68)),AND(ISBLANK(D68),ISNUMBER(F68))),"Please enter a number in both boxes","") ->  | I68: =IF(AND(ISNUMBER(D68),ISNUMBER(F68)),AVERAGE(D68,F68),"not given") -> not given
A69: Declaration of recycled content in packaging Enter range of % recycled content for other or additional packaging types | B69: E 4.8.3.1 | C69: E-Req | E69: to | H69: =IF(OR(AND(ISNUMBER(D69),ISBLANK(F69)),AND(ISBLANK(D69),ISNUMBER(F69))),"Please enter a number in both boxes","") ->  | I69: =IF(AND(ISNUMBER(D69),ISNUMBER(F69)),AVERAGE(D69,F69),"not given") -> not given
A70: Minimum postconsumer content guidelines (CPG) (Recycled content of corrugated packaging >=25% ) | B70: E 4.8.3.2 | C70: E-Opt | H70: =IF(I70="","",IF(I67="not given","",IF(I70>I67,"Inconsistent with earlier entry; assuming 25%",IF(I70<I67,"Assuming higher amount entered above","")))) -> 
A71: Reusable packaging | B71: E 4.8.5.1 | C71: E-Opt
A73: Product 3 (Must be selected in Sheet 3a) | D73: =IF(ISTEXT('3a.User input-Purchasing'!H23),'3a.User input-Purchasing'!H23,"Please provide in Sheet 3a") -> Please provide in Sheet 3a | F73: =IF(ISBLANK('3a.User input-Purchasing'!D22),"",'3a.User input-Purchasing'!D22) ->  | I73: =D73 -> Please provide in Sheet 3a
A74: Number of products purchased | H74: =IF(AND(ISNUMBER(D74),NOT(I74='3a.User input-Purchasing'!H$18)),"Inconsistent with Sheet 3a; defaults to entered value","") ->  | I74: =IF(ISNUMBER(D74),D74,'3a.User input-Purchasing'!$H$24) -> 1 | J74: =IF(ISBLANK(I73),'3a.User input-Purchasing'!$H$23,I73) -> Please provide in Sheet 3a
A75: Initial cost per unit | F75: US$ | I75: =IF(ISNUMBER(D75),D75,IF(I73="CPU",'8c.Assumptions-Calculations'!$B$7,IF(I73="Notebook",'8c.Assumptions-Calculations'!$B$10,IF(I73="CRT",'8c.Assumptions-Calculations'!$B$8,IF(I73="LCD",'8c.Assumptions-Calculations'!$B$9,0))))) -> 0 | J75: US$
A76: Unit energy cost | F76: $/kWh | I76: =IF(ISNUMBER(D76),D76,'8c.Assumptions-Calculations'!$B$23) -> 0.1019085986 | J76: =IF(ISTEXT(F76),F76,"default") -> $/kWh
A77: EPEAT REGISTRATION CRITERIA (Note: Not all criteria are specified below)
A78: EPEAT registration tier | D78: =IF(ISTEXT('3a.User input-Purchasing'!H26),'3a.User input-Purchasing'!H26,"Please provide in Sheet 3a") -> Please provide in Sheet 3a | I78: =D78 -> Please provide in Sheet 3a
A79: Reduced Toxicity
A80: Compliance with provisions of European RoHS Directive | B80: E 4.1.1.1 | C80: E-Req | H80: =IF(AND(I80="non-RoHS",'3a.User input-Purchasing'!H25="EPEAT registered"),"Inconsistent with Sheet 3a, assuming does not meet RoHS","") -> 
A81: Reporting on amount of mercury used in light sources (Enter number of lamps with Hg) | B81: E 4.1.3.1 | C81: E-Req | F81: lamps | H81: =IF(AND(ISNUMBER(D81),OR($D$73="CPU",$D$73="CRT")),"Inconsistent with product entered, no benefit calculated","") ->  | I81: =IF(ISNUMBER(D81),ROUND(D81,0),"not given") -> not given | J81: =IF(ISNUMBER(D81),F81,"") -> 
A82: Reporting on amount of mercury used in light sources (Enter maximum average Hg content per lamp) | B82: E 4.1.3.1 | C82: E-Req | F82: mg Hg/lamp | H82: =IF(AND(ISNUMBER(D82),OR($D$73="CPU",$D$73="CRT")),"Inconsistent with product entered, no benefit calculated","") ->  | I82: =IF(ISNUMBER(D82),D82/1000,"not given") -> not given | J82: =IF(ISNUMBER(D82),"g Hg/lamp","") -> 
A83: Low threshold for amount of mercury used in light sources (Max average of 3 mg Hg/lamp) | B83: E 4.1.3.2 | C83: E-Opt | H83: =IF(ISBLANK(I84),IF(I82="not given","",IF(AND(I83="max 3 mg",I82>0.003),"Inconsistent with earlier entry; assuming 3 mg","")),"") -> 
A84: Elimination of intentionally added mercury used in light sources | B84: E 4.1.3.3 | C84: E-Opt | H84: =IF(AND(OR(I81="not given",I81=0),OR(I82="not given",I82=0)),"",IF(AND(I84="hg-free",I82>0),"Inconsistent with earlier entry, assuming Hg-free","")) -> 
A85: Material Use
A86: Declaration of postconsumer recycled plastic content | B86: E 4.2.1.1 | C86: E-Req
A87: Enter manufacturer's declared percent recycled content for product | B87: E 4.2.1.1 | C87: E-Req | F87: percentage | H87: =IF(AND(ISBLANK(I89),ISBLANK(I88)),IF(AND(ISNUMBER(I87),I86="no"),"Inconsistent with earlier entry; defaults to entered value",""),"") ->  | I87: =IF(ISNUMBER(D87),D87,"not given") -> not given
A88: Minimum content of postconsumer recycled plastic (>=10%) | B88: E 4.2.1.2 | C88: E-Opt | H88: =IF(ISBLANK(I89),IF(AND(I88=10%,I87<10%),"Inconsistent with earlier entry; assuming 10%",IF(AND(ISNUMBER(I88),ISNUMBER(I87),I88<I87),"Using higher amount entered above","")),"") -> 
A89: Higher content of postconsumer recycled plastic (>=25%) | B89: E 4.2.1.3 | C89: E-Opt | H89: =IF(AND(I89=25%,I87<25%),"Inconsistent with earlier entry; assuming 25%",IF(AND(ISNUMBER(I89),ISNUMBER(I87),I89<I87),"Using higher amount entered above","")) -> 
A90: Declaration of renewable/bio-based plastic materials content | B90: E 4.2.2.1 | C90: E-Req
A91: Enter manufacturer's declared percent biobased content for product | B91: E 4.2.2.1 | C91: E-Req | F91: percentage | H91: =IF(ISBLANK(I92),IF(AND(ISNUMBER(I91),I90="no"),"Inconsistent with earlier entry; defaults to entered value",""),"") ->  | I91: =IF(ISNUMBER(D91),D91,"not given") -> not given
A92: Minimum content of renewable/bio-based plastic material (>=10%) | B92: E 4.2.2.2 | C92: E-Opt | H92: =IF(AND(I92=10%,I91<10%),"Inconsistent with earlier entry; assuming 10%",IF(AND(ISNUMBER(I92),ISNUMBER(I91),I92<I91),"Using higher amount entered above","")) -> 
A93: Declaration of product weight (1 kilogram = 2.205 lb) | B93: E 4.2.3.1 | C93: E-Req | F93: kilograms | I93: =IF(ISNUMBER(D93),D93,"not given") -> not given | J93: =IF(ISNUMBER(D93),F93,"") -> 
A94: Energy
A95: ENERGY STAR® version | B95: E 4.5.1.1 | C95: E-Req | H95: =IF(AND(I95=3,'3a.User input-Purchasing'!H25="EPEAT registered"),"Inconsistent with Sheet 3a; assuming ES 4.0/4.1","") -> 
A96: Early adoption of new ENERGY STAR® specification | B96: E 4.5.1.2 | C96: E-Opt
A97: Percentage of computers with power management enabled | H97: =IF(AND(ISNUMBER(D97),OR($D$73="LCD",$D$73="CRT")),"Inconsistent with product entered, no benefit calculated","") ->  | I97: =IF(ISNUMBER(D97),D97,IF(I73="CPU",'8c.Assumptions-Calculations'!$C$37,IF(I73="Notebook",'8c.Assumptions-Calculations'!$G$37,IF(I73="CRT","NA",IF(I73="LCD","NA","not given"))))) -> not given
A98: Percentage of displays with power management enabled | H98: =IF(AND(ISNUMBER(D98),$D$73="CPU"),"Inconsistent with product entered, no benefit calculated","") ->  | I98: =IF(ISNUMBER(D98),D98,IF(I73="CPU","NA",IF(I73="Notebook",'8c.Assumptions-Calculations'!$F$37,IF(I73="CRT",'8c.Assumptions-Calculations'!$D$37,IF(I73="LCD",'8c.Assumptions-Calculations'!$E$37,"not given"))))) -> not given
A99: Packaging
A100: Declaration of recycled content in packaging Enter range of % recycled content for corrugated/paper fiber packaging | B100: E 4.8.3.1 | C100: E-Req | E100: to | H100: =IF(OR(AND(ISNUMBER(D100),ISBLANK(F100)),AND(ISBLANK(D100),ISNUMBER(F100))),"Please enter a number in both boxes","") ->  | I100: =IF(AND(ISNUMBER(D100),ISNUMBER(F100)),AVERAGE(D100,F100),"not given") -> not given
A101: Declaration of recycled content in packaging Enter range of % recycled content for plastic/foam/resin packaging | B101: E 4.8.3.1 | C101: E-Req | E101: to | H101: =IF(OR(AND(ISNUMBER(D101),ISBLANK(F101)),AND(ISBLANK(D101),ISNUMBER(F101))),"Please enter a number in both boxes","") ->  | I101: =IF(AND(ISNUMBER(D101),ISNUMBER(F101)),AVERAGE(D101,F101),"not given") -> not given
A102: Declaration of recycled content in packaging Enter range of % recycled content for other or additional packaging types | B102: E 4.8.3.1 | C102: E-Req | E102: to | H102: =IF(OR(AND(ISNUMBER(D102),ISBLANK(F102)),AND(ISBLANK(D102),ISNUMBER(F102))),"Please enter a number in both boxes","") ->  | I102: =IF(AND(ISNUMBER(D102),ISNUMBER(F102)),AVERAGE(D102,F102),"not given") -> not given
A103: Minimum postconsumer content guidelines (CPG) (Recycled content of corrugated packaging >=25% ) | B103: E 4.8.3.2 | C103: E-Opt | H103: =IF(I103="","",IF(I100="not given","",IF(I103>I100,"Inconsistent with earlier entry; assuming 25%",IF(I103<I100,"Assuming higher amount entered above","")))) -> 
A104: Reusable packaging | B104: E 4.8.5.1 | C104: E-Opt

Sheet 4.Data comparisons
A1: DATA COMPARISONS
A2: These tables display the data used by the calculator to calculate benefits. Data for products and activities entered by the user are displayed in the orange table on the left. Data for product and activity baselines are displayed in the blue table on the right. Information in these tables can not be edited.
F3: REFERENCE ONLY (LINKED TO DATA IN SHEETS 8A, 8B AND 8C)
A4: DATA FROM USER INPUT | E4: Selected product: | F4: DATA FROM BASELINES
A5: Ref | B5: Criteria/Attribute | C5: Quantity | D5: Units
B6: Purchasing, Product 1 | C6: =IF(ISTEXT('3c.Alt user input-Purchasing'!$I$7),'3c.Alt user input-Purchasing'!$I$7,IF(ISTEXT('3a.User input-Purchasing'!$H$11),'3a.User input-Purchasing'!$H$11, "no input given")) -> Please provide in Sheet 3a | F6: Quantity | G6: Units | H6: Quantity | I6: Units | J6: Quantity | K6: Units | L6: Quantity | M6: Units | N6: Quantity | O6: Units | Q6: INTERIM CALCULATIONS
B7: Reduced Toxicity | E7: =IF($C$6="Please provide in Sheet 3a","no input",$C$6) -> no input | F7: CPU | H7: CRT | J7: LCD | L7: Notebook | N7: Mobile phone
A8: E 4.1.1.1 | B8: Mass of Pb | C8: =IF(C6="Please provide in Sheet 3a","no input",IF(OR(AND('3a.User input-Purchasing'!$H$13="EPEAT registered",'3c.Alt user input-Purchasing'!$I$14=""),'3c.Alt user input-Purchasing'!$I$14="RoHS"),'8b1.Assumptions-EPEATFECdefault'!$C$9,IF(C6="CPU",F8,IF(C6="CRT",H8,IF(C6="LCD",J8,IF(C6="Notebook",L8,"error")))))) -> no input | D8: =IF(ISNONTEXT(C8),"g"," ") ->  | F8: ='8a. Assumptions-Baseline'!$D$8 -> 47.3 | G8: ='8a. Assumptions-Baseline'!$E$8 -> g | H8: ='8a. Assumptions-Baseline'!$D$52 -> 30.7 | I8: ='8a. Assumptions-Baseline'!$E$52 -> g | J8: ='8a. Assumptions-Baseline'!$D$96 -> 25.2 | K8: ='8a. Assumptions-Baseline'!$E$96 -> g | L8: ='8a. Assumptions-Baseline'!$D$141 -> 8.71 | M8: ='8a. Assumptions-Baseline'!$E$141 -> g | N8: n/a | S8: Number of lamps
A9: E 4.1.1.1 | B9: Mass of Hg | C9: =IF(C6="Please provide in Sheet 3a","no input",IF(OR(AND('3a.User input-Purchasing'!$H$13="EPEAT registered",'3c.Alt user input-Purchasing'!$I$14=""),'3c.Alt user input-Purchasing'!$I$14="RoHS"),'8b1.Assumptions-EPEATFECdefault'!$C$10/1000,IF(C6="CPU",F9,IF(C6="CRT",H9,IF(C6="LCD",J9,IF(C6="Notebook",L9,"error")))))) -> no input | D9: =IF(ISNONTEXT(C9),"g"," ") ->  | F9: ='8a. Assumptions-Baseline'!$D$9 -> 0 | G9: ='8a. Assumptions-Baseline'!$E$9 -> g | H9: ='8a. Assumptions-Baseline'!$D$53 -> 0 | I9: ='8a. Assumptions-Baseline'!$E$53 -> g | J9: ='8a. Assumptions-Baseline'!$D$97 -> 0 | K9: ='8a. Assumptions-Baseline'!$E$97 -> g | L9: ='8a. Assumptions-Baseline'!$D$142 -> 0 | M9: ='8a. Assumptions-Baseline'!$E$142 -> g | N9: n/a | R9: Mercury in lamps: | S9: Bronze | T9: Silver | U9: Gold
A10: E 4.1.3.1 | B10: Number of lamps | C10: =IF(C6="Please provide in Sheet 3a","no input",IF(ISNUMBER('3c.Alt user input-Purchasing'!$I$15),'3c.Alt user input-Purchasing'!$I$15,V12)) -> no input | D10: =IF(ISNONTEXT(C10),"lamps"," ") ->  | F10: ='8a. Assumptions-Baseline'!$D$10 -> n/a | H10: ='8a. Assumptions-Baseline'!$D$54 -> n/a | J10: ='8a. Assumptions-Baseline'!$D$99 -> 4 | K10: ='8a. Assumptions-Baseline'!$E$99 -> lamps | L10: ='8a. Assumptions-Baseline'!$D$144 -> 2 | M10: ='8a. Assumptions-Baseline'!$E$144 -> lamp | N10: n/a | R10: LCD | S10: =IF(C6="LCD",IF(AND(ISNUMBER('8b2.Assumption-EPEAT tiers'!$E$8),'3c.Alt user input-Purchasing'!$I$12="Bronze"),'8b2.Assumption-EPEAT tiers'!$E$8,"n/a"),"n/a") -> n/a | T10: =IF(C6="LCD",IF(AND(ISNUMBER('8b2.Assumption-EPEAT tiers'!$I$8),'3c.Alt user input-Purchasing'!$I$12="Silver"),'8b2.Assumption-EPEAT tiers'!$I$8,"n/a"),"n/a") -> n/a | U10: =IF(C6="LCD",IF(AND(ISNUMBER('8b2.Assumption-EPEAT tiers'!$M$8),'3c.Alt user input-Purchasing'!$I$12="Gold"),'8b2.Assumption-EPEAT tiers'!$M$8,"n/a"),"n/a") -> n/a
A11: E 4.1.3.1-3 | B11: Mass of Hg/lamp | C11: =IF(C6="Please provide in Sheet 3a","no input",IF('3c.Alt user input-Purchasing'!$I$18="hg-free",0,IF(AND('3c.Alt user input-Purchasing'!$I$16>0.003,'3c.Alt user input-Purchasing'!$I$17="max 3 mg"),0.003,IF(ISNUMBER('3c.Alt user input-Purchasing'!$I$16),'3c.Alt user input-Purchasing'!$I$16,V17)))) -> no input | D11: =IF(ISNONTEXT(C11),"g"," ") ->  | F11: ='8a. Assumptions-Baseline'!$D$11 -> n/a | H11: ='8a. Assumptions-Baseline'!$D$55 -> n/a | J11: ='8a. Assumptions-Baseline'!$D$100 -> 0.0035 | K11: ='8a. Assumptions-Baseline'!$E$100 -> g | L11: ='8a. Assumptions-Baseline'!$D$145 -> 0.003 | M11: ='8a. Assumptions-Baseline'!$E$145 -> g | N11: n/a | R11: Notebook | S11: =IF(C6="Notebook",IF(AND(ISNUMBER('8b2.Assumption-EPEAT tiers'!$F$8),'3c.Alt user input-Purchasing'!$I$12="Bronze"),'8b2.Assumption-EPEAT tiers'!$F$8,"n/a"),"n/a") -> n/a | T11: =IF(C6="Notebook",IF(AND(ISNUMBER('8b2.Assumption-EPEAT tiers'!$J$8),'3c.Alt user input-Purchasing'!$I$12="Silver"),'8b2.Assumption-EPEAT tiers'!$J$8,"n/a"),"n/a") -> n/a | U11: =IF(C6="Notebook",IF(AND(ISNUMBER('8b2.Assumption-EPEAT tiers'!$N$8),'3c.Alt user input-Purchasing'!$I$12="Gold"),'8b2.Assumption-EPEAT tiers'!$N$8,"n/a"),"n/a") -> n/a
A12: E 4.1.3.1-3 | B12: Total mass of Hg in lamps | C12: =IF(C6="Please provide in Sheet 3a","no input",IF(AND(ISNUMBER(C10),ISNUMBER(C11)),C10*C11,"n/a")) -> no input | F12: n/a | H12: n/a | J12: ='8a. Assumptions-Baseline'!$D$98 -> 0.014 | K12: ='8a. Assumptions-Baseline'!$E$98 -> g | L12: ='8a. Assumptions-Baseline'!$D$143 -> 0.006 | M12: ='8a. Assumptions-Baseline'!$E$143 -> g | N12: n/a | R12: MAX | S12: =IF(AND(S10="n/a",S11="n/a"),"n/a",MAX(S10:S11)) -> n/a | T12: =IF(AND(T10="n/a",T11="n/a"),"n/a",MAX(T10:T11)) -> n/a | U12: =IF(AND(U10="n/a",U11="n/a"),"n/a",MAX(U10:U11)) -> n/a | V12: =IF(AND(S12="n/a",T12="n/a",U12="n/a"),IF(C6="LCD",J10,IF(C6="Notebook",L10, "n/a")),MAX(S12:U12)) -> n/a
A13: E 4.1.1.1 | B13: Mass of Cd | C13: =IF(C6="Please provide in Sheet 3a","no input",IF(OR(AND('3a.User input-Purchasing'!$H$13="EPEAT registered",'3c.Alt user input-Purchasing'!$I$14=""),'3c.Alt user input-Purchasing'!$I$14="RoHS"),'8b1.Assumptions-EPEATFECdefault'!$C$14/1000,IF(C6="CPU",F13,IF(C6="CRT",H13,IF(C6="LCD",J13,IF(C6="Notebook",L13,"error")))))) -> no input | F13: ='8a. Assumptions-Baseline'!$D$12 -> 0 | G13: ='8a. Assumptions-Baseline'!$E$12 -> g | H13: ='8a. Assumptions-Baseline'!$D$56 -> 0.05876 | I13: ='8a. Assumptions-Baseline'!$E$56 -> g | J13: ='8a. Assumptions-Baseline'!$D$101 -> 0.02871 | K13: ='8a. Assumptions-Baseline'!$E$101 -> g | L13: ='8a. Assumptions-Baseline'!$D$146 -> 0.00076 | M13: ='8a. Assumptions-Baseline'!$E$146 -> g | N13: n/a | S13: Mass of Hg (g)/lamp
A14: E4.1.1.1 | B14: Mass of Cr6+ | C14: =IF(C6="Please provide in Sheet 3a","no input",IF(OR(AND('3a.User input-Purchasing'!$H$13="EPEAT registered",'3c.Alt user input-Purchasing'!$I$14=""),'3c.Alt user input-Purchasing'!$I$14="RoHS"),'8b1.Assumptions-EPEATFECdefault'!$C$15/1000,IF(C6="CPU",F14,IF(C6="CRT",H14,IF(C6="LCD",J14,IF(C6="Notebook",L14,"error")))))) -> no input | F14: ='8a. Assumptions-Baseline'!$D$13 -> 1.3 | G14: ='8a. Assumptions-Baseline'!$E$13 -> g | H14: ='8a. Assumptions-Baseline'!$D$57 -> 0.139 | I14: ='8a. Assumptions-Baseline'!$E$57 -> g | J14: ='8a. Assumptions-Baseline'!$D$102 -> 0.53 | K14: ='8a. Assumptions-Baseline'!$E$102 -> g | L14: ='8a. Assumptions-Baseline'!$D$147 -> 0.008 | M14: ='8a. Assumptions-Baseline'!$E$147 -> g | N14: n/a | R14: Mercury in lamps: | S14: Bronze | T14: Silver | U14: Gold
A15: E 4.1.1.1 | B15: Mass of PBB | C15: =IF(C6="Please provide in Sheet 3a","no input",IF(OR(AND('3a.User input-Purchasing'!$H$13="EPEAT registered",'3c.Alt user input-Purchasing'!$I$14=""),'3c.Alt user input-Purchasing'!$I$14="RoHS"),'8b1.Assumptions-EPEATFECdefault'!$C$16/1000,IF(C6="CPU",F15,IF(C6="CRT",H15,IF(C6="LCD",J15,IF(C6="Notebook",L15,"error")))))) -> no input | F15: ='8a. Assumptions-Baseline'!$D$14 -> 0 | G15: ='8a. Assumptions-Baseline'!$E$14 -> g | H15: ='8a. Assumptions-Baseline'!$D$58 -> 0 | I15: ='8a. Assumptions-Baseline'!$E$58 -> g | J15: ='8a. Assumptions-Baseline'!$D$103 -> 0 | K15: ='8a. Assumptions-Baseline'!$E$103 -> g | L15: ='8a. Assumptions-Baseline'!$D$148 -> 0 | M15: ='8a. Assumptions-Baseline'!$E$148 -> g | N15: n/a | R15: LCD | S15: =IF(C6="LCD",IF(AND(ISNUMBER('8b2.Assumption-EPEAT tiers'!$E$9),'3c.Alt user input-Purchasing'!$I$12="Bronze"),'8b2.Assumption-EPEAT tiers'!$E$9,"n/a"),"n/a") -> n/a | T15: =IF(C6="LCD",IF(AND(ISNUMBER('8b2.Assumption-EPEAT tiers'!$I$9),'3c.Alt user input-Purchasing'!$I$12="Silver"),'8b2.Assumption-EPEAT tiers'!$I$9,"n/a"),"n/a") -> n/a | U15: =IF(C6="LCD",IF(AND(ISNUMBER('8b2.Assumption-EPEAT tiers'!$M$9),'3c.Alt user input-Purchasing'!$I$12="Gold"),'8b2.Assumption-EPEAT tiers'!$M$9,"n/a"),"n/a") -> n/a
A16: E 4.1.1.1 | B16: Mass of PBDE | C16: =IF(C6="Please provide in Sheet 3a","no input",IF(OR(AND('3a.User input-Purchasing'!$H$13="EPEAT registered",'3c.Alt user input-Purchasing'!$I$14=""),'3c.Alt user input-Purchasing'!$I$14="RoHS"),'8b1.Assumptions-EPEATFECdefault'!$C$17/1000,IF(C6="CPU",F16,IF(C6="CRT",H16,IF(C6="LCD",J16,IF(C6="Notebook",L16,"error")))))) -> no input | F16: ='8a. Assumptions-Baseline'!$D$15 -> 0 | G16: ='8a. Assumptions-Baseline'!$E$15 -> g | H16: ='8a. Assumptions-Baseline'!$D$59 -> 0 | I16: ='8a. Assumptions-Baseline'!$E$59 -> g | J16: ='8a. Assumptions-Baseline'!$D$104 -> 0 | K16: ='8a. Assumptions-Baseline'!$E$104 -> g | L16: ='8a. Assumptions-Baseline'!$D$149 -> 0 | M16: ='8a. Assumptions-Baseline'!$E$149 -> g | N16: n/a | R16: Notebook | S16: =IF(C6="Notebook",IF(AND(ISNUMBER('8b2.Assumption-EPEAT tiers'!$F$9),'3c.Alt user input-Purchasing'!$I$12="Bronze"),'8b2.Assumption-EPEAT tiers'!$F$9,"n/a"),"n/a") -> n/a | T16: =IF(C6="Notebook",IF(AND(ISNUMBER('8b2.Assumption-EPEAT tiers'!$J$9),'3c.Alt user input-Purchasing'!$I$12="Silver"),'8b2.Assumption-EPEAT tiers'!$J$9,"n/a"),"n/a") -> n/a | U16: =IF(C6="Notebook",IF(AND(ISNUMBER('8b2.Assumption-EPEAT tiers'!$N$9),'3c.Alt user input-Purchasing'!$I$12="Gold"),'8b2.Assumption-EPEAT tiers'!$N$9,"n/a"),"n/a") -> n/a
A17: E 4.1.1.1 | B17: Avg. mass of printed wire boards w/ Pb | C17: =IF(C6="Please provide in Sheet 3a","no input",IF(C8=0,0,IF(C6="CPU",F17,IF(C6="CRT",H17,IF(C6="LCD",J17,IF(C6="Notebook",L17,"error")))))) -> no input | D17: =IF(ISNONTEXT(C17),"kg"," ") ->  | F17: ='8a. Assumptions-Baseline'!$D$42 -> 1.01758 | G17: ='8a. Assumptions-Baseline'!$E$42 -> kg | H17: ='8a. Assumptions-Baseline'!$D$86 -> 1.6744 | I17: ='8a. Assumptions-Baseline'!$E$86 -> kg | J17: ='8a. Assumptions-Baseline'!$D$131 -> 0.43194 | K17: ='8a. Assumptions-Baseline'!$E$131 -> kg | L17: ='8a. Assumptions-Baseline'!$D$177 -> 0.5183 | M17: ='8a. Assumptions-Baseline'!$E$177 -> kg | N17: n/a | R17: MAX | S17: =IF(AND(S15="n/a",S16="n/a"),"n/a",MAX(S15:S16)) -> n/a | T17: =IF(AND(T15="n/a",T16="n/a"),"n/a",MAX(T15:T16)) -> n/a | U17: =IF(AND(U15="n/a",U16="n/a"),"n/a",MAX(U15:U16)) -> n/a | V17: =IF(AND(S17="n/a",T17="n/a",U17="n/a"),IF(C6="LCD",J11,IF(C6="Notebook",L11, "n/a")),MAX(S17:U17)) -> n/a
A18: E 4.1.1.1 | B18: Avg. mass of leaded glass | C18: no functionality in v.3.0 | F18: ='8a. Assumptions-Baseline'!$D$43 -> n/a | H18: ='8a. Assumptions-Baseline'!$D$87 -> 8.049448 | I18: ='8a. Assumptions-Baseline'!$E$87 -> kg | J18: ='8a. Assumptions-Baseline'!$D$132 -> n/a | L18: ='8a. Assumptions-Baseline'!$D$178 -> n/a | N18: n/a
A19: E 4.1.1.1 | B19: Avg. mass of cold cathode fluorescent lamps w/ Hg | C19: =IF(C6="Please provide in Sheet 3a","no input",IF(OR(C6="CPU",C6="CRT"),"n/a",IF(C12=0,0,IF(C6="LCD",J19,IF(C6="Notebook",L19,"error"))))) -> no input | D19: =IF(ISNONTEXT(C19),"kg"," ") ->  | F19: ='8a. Assumptions-Baseline'!$D$44 -> n/a | H19: ='8a. Assumptions-Baseline'!$D$88 -> n/a | J19: ='8a. Assumptions-Baseline'!$D$133 -> 0.006 | K19: ='8a. Assumptions-Baseline'!$E$133 -> kg | L19: ='8a. Assumptions-Baseline'!$D$179 -> 0.0014 | M19: ='8a. Assumptions-Baseline'!$E$179 -> kg | N19: n/a | S19: Avg. mass of RC in plastic resin (kg)
A20: E 4.1.1.1 | B20: Avg. mass of resin in wire and cable w/ Pb | C20: =IF(C6="Please provide in Sheet 3a","no input",IF(C8=0,0,IF(C6="CPU",F20,IF(C6="CRT",H20,IF(C6="LCD",J20,IF(C6="Notebook",L20,"error")))))) -> no input | D20: =IF(ISNONTEXT(C20),"kg"," ") ->  | F20: ='8a. Assumptions-Baseline'!$D$45 -> 0.38006 | G20: ='8a. Assumptions-Baseline'!$E$45 -> kg | H20: ='8a. Assumptions-Baseline'!$D$89 -> 0.4784 | I20: ='8a. Assumptions-Baseline'!$E$89 -> kg | J20: ='8a. Assumptions-Baseline'!$D$134 -> 0.02504 | K20: ='8a. Assumptions-Baseline'!$E$134 -> kg | L20: ='8a. Assumptions-Baseline'!$D$180 -> 0.0213 | M20: ='8a. Assumptions-Baseline'!$E$180 -> kg | N20: n/a | R20: Material use: | S20: Bronze | T20: Silver | U20: Gold
B21: Material Use | E21: =IF($C$6="Please provide in Sheet 3a","no input",$C$6) -> no input | F21: CPU | H21: CRT | J21: LCD | L21: Notebook | N21: Mobile phone | R21: Declared % | S21: =IF('3c.Alt user input-Purchasing'!$I$12="Bronze",IF(C6="CPU", '8b2.Assumption-EPEAT tiers'!$C$13*C22,IF(C6="LCD", '8b2.Assumption-EPEAT tiers'!$E$13*C22,IF(C6="Notebook", '8b2.Assumption-EPEAT tiers'!$F$13*C22,"n/a"))),"n/a") -> n/a | T21: =IF('3c.Alt user input-Purchasing'!$I$12="Silver",IF(C6="CPU", '8b2.Assumption-EPEAT tiers'!$G$13*C22,IF(C6="LCD", '8b2.Assumption-EPEAT tiers'!$I$13*C22,IF(C6="Notebook", '8b2.Assumption-EPEAT tiers'!$J$13*C22,"n/a"))),"n/a") -> n/a | U21: =IF('3c.Alt user input-Purchasing'!$I$12="Gold",IF(C6="CPU", '8b2.Assumption-EPEAT tiers'!$K$13*C22,IF(C6="LCD", '8b2.Assumption-EPEAT tiers'!$M$13*C22,IF(C6="Notebook", '8b2.Assumption-EPEAT tiers'!$N$13*C22,"n/a"))),"n/a") -> n/a
A22: E 4.2.1.1-3 | B22: Avg. mass of plastic | C22: =IF(C6="CPU",F22,IF(C6="CRT",H22,IF(C6="LCD",J22,IF(C6="Notebook",L22,"no input")))) -> no input | D22: =IF(ISNONTEXT(C22),"kg"," ") ->  | F22: ='8a. Assumptions-Baseline'!$D$18 -> 0.69882 | G22: ='8a. Assumptions-Baseline'!$E$18 -> kg | H22: ='8a. Assumptions-Baseline'!$D$62 -> 3.66 | I22: ='8a. Assumptions-Baseline'!$E$62 -> kg | J22: ='8a. Assumptions-Baseline'!$D$107 -> 1.49614 | K22: ='8a. Assumptions-Baseline'!$E$107 -> kg | L22: ='8a. Assumptions-Baseline'!$D$152 -> 1.0011 | M22: ='8a. Assumptions-Baseline'!$E$152 -> kg | N22: n/a | R22: 0.1 | S22: =IF('3c.Alt user input-Purchasing'!$I$12="Bronze",IF(AND(C6="CPU",('8b2.Assumption-EPEAT tiers'!$C$14="yes")),10%*C22,IF(AND(C6="LCD",('8b2.Assumption-EPEAT tiers'!$E$14="yes")),10%*C22,IF(AND(C6="Notebook",('8b2.Assumption-EPEAT tiers'!$F$14="yes")),10%*C22,))),"n/a") -> n/a | T22: =IF('3c.Alt user input-Purchasing'!$I$12="Silver",IF(AND(C6="CPU",('8b2.Assumption-EPEAT tiers'!$G$14="yes")),10%*C22,IF(AND(C6="LCD",('8b2.Assumption-EPEAT tiers'!$I$14="yes")),10%*C22,IF(AND(C6="Notebook",('8b2.Assumption-EPEAT tiers'!$J$14="yes")),10%*C22,))),"n/a") -> n/a | U22: =IF('3c.Alt user input-Purchasing'!$I$12="Gold",IF(AND(C6="CPU",('8b2.Assumption-EPEAT tiers'!$K$14="yes")),10%*C22,IF(AND(C6="LCD",('8b2.Assumption-EPEAT tiers'!$M$14="yes")),10%*C22,IF(AND(C6="Notebook",('8b2.Assumption-EPEAT tiers'!$N$14="yes")),10%*C22,))),"n/a") -> n/a
A23: E 4.2.1.1-3 | B23: Avg. mass of recycled content in plastic resin | C23: =IF(C6="Please provide in Sheet 3a","no input",IF(OR(ISNUMBER('3c.Alt user input-Purchasing'!$I$21),ISNUMBER('3c.Alt user input-Purchasing'!$I$22),ISNUMBER('3c.Alt user input-Purchasing'!$I$23)),(MAX('3c.Alt user input-Purchasing'!$I$21,'3c.Alt user input-Purchasing'!$I$22,'3c.Alt user input-Purchasing'!$I$23)*C22),IF(ISNUMBER(V24),V24,"error"))) -> no input | D23: =IF(ISNONTEXT(C23),"kg"," ") ->  | F23: ='8a. Assumptions-Baseline'!$D$19 -> 0 | G23: ='8a. Assumptions-Baseline'!$E$19 -> kg | H23: ='8a. Assumptions-Baseline'!$D$63 -> 0 | I23: ='8a. Assumptions-Baseline'!$E$63 -> kg | J23: ='8a. Assumptions-Baseline'!$D$108 -> 0 | K23: ='8a. Assumptions-Baseline'!$E$108 -> kg | L23: ='8a. Assumptions-Baseline'!$D$153 -> 0 | M23: ='8a. Assumptions-Baseline'!$E$153 -> kg | N23: n/a | R23: 0.25 | S23: =IF('3c.Alt user input-Purchasing'!$I$12="Bronze",IF(AND(C6="CPU",('8b2.Assumption-EPEAT tiers'!$C$15="yes")),25%*C22,IF(AND(C6="LCD",('8b2.Assumption-EPEAT tiers'!$E$15="yes")),25%*C22,IF(AND(C6="Notebook",('8b2.Assumption-EPEAT tiers'!$F$15="yes")),25%*C22,))),"n/a") -> n/a | T23: =IF('3c.Alt user input-Purchasing'!$I$12="Silver",IF(AND(C6="CPU",('8b2.Assumption-EPEAT tiers'!$G$15="yes")),25%*C22,IF(AND(C6="LCD",('8b2.Assumption-EPEAT tiers'!$I$15="yes")),25%*C22,IF(AND(C6="Notebook",('8b2.Assumption-EPEAT tiers'!$J$15="yes")),25%*C22,))),"n/a") -> n/a | U23: =IF('3c.Alt user input-Purchasing'!$I$12="Gold",IF(AND(C6="CPU",('8b2.Assumption-EPEAT tiers'!$K$15="yes")),25%*C22,IF(AND(C6="LCD",('8b2.Assumption-EPEAT tiers'!$M$15="yes")),25%*C22,IF(AND(C6="Notebook",('8b2.Assumption-EPEAT tiers'!$N$15="yes")),25%*C22,))),"n/a") -> n/a
A24: E 4.2.2.1-2 | B24: Avg. mass of molded plastic parts | C24: no functionality in v.3.0 | F24: ='8a. Assumptions-Baseline'!$D$21 -> 0.69882 | G24: ='8a. Assumptions-Baseline'!$E$21 -> kg | H24: ='8a. Assumptions-Baseline'!$D$65 -> 3.66 | I24: ='8a. Assumptions-Baseline'!$E$65 -> kg | J24: ='8a. Assumptions-Baseline'!$D$110 -> 1.49614 | K24: ='8a. Assumptions-Baseline'!$E$110 -> kg | L24: ='8a. Assumptions-Baseline'!$D$155 -> 1.0011 | M24: ='8a. Assumptions-Baseline'!$E$155 -> kg | N24: n/a | R24: MAX | S24: =IF(AND(S21="n/a",S22="n/a",S23="n/a"),"n/a",MAX(S21:S23)) -> n/a | T24: =IF(AND(T21="n/a",T22="n/a",T23="n/a"),"n/a",MAX(T21:T23)) -> n/a | U24: =IF(AND(U21="n/a",U22="n/a",U23="n/a"),"n/a",MAX(U21:U23)) -> n/a | V24: =IF(AND(S24="n/a",T24="n/a",U24="n/a"),IF(C6="CPU",F23,IF(C6="CRT",H23,IF(C6="LCD",J23,IF(C6="Notebook",L23, "n/a")))),MAX(S24:U24)) -> n/a
A25: E 4.2.2.1-2 | B25: Avg. mass of renewable/biobased material in molded parts | C25: no functionality in v.3.0 | F25: ='8a. Assumptions-Baseline'!$D$22 -> 0 | G25: ='8a. Assumptions-Baseline'!$E$22 -> kg | H25: ='8a. Assumptions-Baseline'!$D$66 -> 0 | I25: ='8a. Assumptions-Baseline'!$E$66 -> kg | J25: ='8a. Assumptions-Baseline'!$D$111 -> 0 | K25: ='8a. Assumptions-Baseline'!$E$111 -> kg | L25: ='8a. Assumptions-Baseline'!$D$156 -> 0 | M25: ='8a. Assumptions-Baseline'!$E$156 -> kg | N25: n/a
B26: Packaging | E26: =IF($C$6="Please provide in Sheet 3a","no input",$C$6) -> no input | F26: CPU | H26: CRT | J26: LCD | L26: Notebook | N26: Mobile phone | S26: RC (kg)
A27: E 4.8.3.1 | B27: Avg. mass of corrugated packaging | C27: =IF(C6="CPU",F27,IF(C6="CRT",H27,IF(C6="LCD",J27,IF(C6="Notebook",L27,"no input")))) -> no input | D27: =IF(ISNONTEXT(C27),"kg"," ") ->  | F27: ='8a. Assumptions-Baseline'!$D$25 -> 1.579 | G27: ='8a. Assumptions-Baseline'!$E$25 -> kg | H27: ='8a. Assumptions-Baseline'!$D$69 -> 2.05 | I27: ='8a. Assumptions-Baseline'!$E$69 -> kg | J27: ='8a. Assumptions-Baseline'!$D$114 -> 0.958 | K27: ='8a. Assumptions-Baseline'!$E$114 -> kg | L27: ='8a. Assumptions-Baseline'!$D$159 -> 0.552 | M27: ='8a. Assumptions-Baseline'!$E$159 -> kg | N27: n/a | R27: Packaging: | S27: Baseline | T27: Bronze | U27: Silver | V27: Gold | W27: MAX
A28: E 4.8.3.1 | B28: Avg. mass of recycled content in corrugated packaging | C28: =IF(C6="Please provide in Sheet 3a","no input",IF(ISNUMBER('3c.Alt user input-Purchasing'!$I$34),'3c.Alt user input-Purchasing'!$I$34*C27,W28)) -> no input | F28: ='8a. Assumptions-Baseline'!$D$26 -> 0 | G28: ='8a. Assumptions-Baseline'!$E$26 -> kg | H28: ='8a. Assumptions-Baseline'!$D$70 -> 0 | I28: ='8a. Assumptions-Baseline'!$E$70 -> kg | J28: ='8a. Assumptions-Baseline'!$D$115 -> 0 | K28: ='8a. Assumptions-Baseline'!$E$115 -> kg | L28: ='8a. Assumptions-Baseline'!$D$160 -> 0 | M28: ='8a. Assumptions-Baseline'!$E$160 -> kg | N28: n/a | R28: Corrugated | S28: =IF(C6="CPU",F28,IF(C6="CRT",H28,IF(C6="LCD",J28,IF(C6="Notebook",L28,"no input")))) -> no input | T28: =IF('3c.Alt user input-Purchasing'!$I$12="Bronze",IF(C6="CPU",'8b2.Assumption-EPEAT tiers'!$C$23*C27, IF(C6="LCD",'8b2.Assumption-EPEAT tiers'!$E$23*C27, IF(C6="Notebook",'8b2.Assumption-EPEAT tiers'!$F$23*C27))),"n/a") -> n/a | U28: =IF('3c.Alt user input-Purchasing'!$I$12="Silver",IF(C6="CPU",'8b2.Assumption-EPEAT tiers'!$G$23*C27, IF(C6="LCD",'8b2.Assumption-EPEAT tiers'!$I$23*C27, IF(C6="Notebook",'8b2.Assumption-EPEAT tiers'!$J$23*C27))),"n/a") -> n/a | V28: =IF('3c.Alt user input-Purchasing'!$I$12="Gold",IF(C6="CPU",'8b2.Assumption-EPEAT tiers'!$K$23*C27, IF(C6="LCD",'8b2.Assumption-EPEAT tiers'!$M$23*C27, IF(C6="Notebook",'8b2.Assumption-EPEAT tiers'!$N$23*C27))),"n/a") -> n/a | W28: =IF(AND(T28="n/a",U28="n/a",V28="n/a"),S28,MAX(S28:V28)) -> no input
A29: E 4.8.3.1 | B29: Avg. mass of plastic/foam packaging | C29: =IF(C6="CPU",F29,IF(C6="CRT",H29,IF(C6="LCD",J29,IF(C6="Notebook",L29,"no input")))) -> no input | F29: ='8a. Assumptions-Baseline'!$D$28 -> 0.265 | G29: ='8a. Assumptions-Baseline'!$E$28 -> kg | H29: ='8a. Assumptions-Baseline'!$D$72 -> 0.7 | I29: ='8a. Assumptions-Baseline'!$E$72 -> kg | J29: ='8a. Assumptions-Baseline'!$D$117 -> 0.439 | K29: ='8a. Assumptions-Baseline'!$E$117 -> kg | L29: ='8a. Assumptions-Baseline'!$D$162 -> 0.184 | M29: ='8a. Assumptions-Baseline'!$E$162 -> kg | N29: n/a | R29: Plastics | S29: =IF(C6="CPU",F30,IF(C6="CRT",H30,IF(C6="LCD",J30,IF(C6="Notebook",L30,"no input")))) -> no input | T29: =IF('3c.Alt user input-Purchasing'!$I$12="Bronze",IF(C6="CPU",'8b2.Assumption-EPEAT tiers'!$C$24*C29, IF(C6="LCD",'8b2.Assumption-EPEAT tiers'!$E$24*C29, IF(C6="Notebook",'8b2.Assumption-EPEAT tiers'!$F$24*C29))),"n/a") -> n/a | U29: =IF('3c.Alt user input-Purchasing'!$I$12="Silver",IF(C6="CPU",'8b2.Assumption-EPEAT tiers'!$G$24*C29, IF(C6="LCD",'8b2.Assumption-EPEAT tiers'!$I$24*C29, IF(C6="Notebook",'8b2.Assumption-EPEAT tiers'!$J$24*C29))),"n/a") -> n/a | V29: =IF('3c.Alt user input-Purchasing'!$I$12="Gold",IF(C6="CPU",'8b2.Assumption-EPEAT tiers'!$K$24*C29, IF(C6="LCD",'8b2.Assumption-EPEAT tiers'!$M$24*C29, IF(C6="Notebook",'8b2.Assumption-EPEAT tiers'!$N$24*C29))),"n/a") -> n/a | W29: =IF(AND(T29="n/a",U29="n/a",V29="n/a"),S29,MAX(S29:V29)) -> no input
A30: E 4.8.3.1 | B30: Avg. mass of recycled content in plastic/foam packaging | C30: =IF(C6="Please provide in Sheet 3a","no input",IF(ISNUMBER('3c.Alt user input-Purchasing'!$I$35),'3c.Alt user input-Purchasing'!$I$35*C29,W29)) -> no input | F30: ='8a. Assumptions-Baseline'!$D$29 -> 0 | G30: ='8a. Assumptions-Baseline'!$E$29 -> kg | H30: ='8a. Assumptions-Baseline'!$D$73 -> 0 | I30: ='8a. Assumptions-Baseline'!$E$73 -> kg | J30: ='8a. Assumptions-Baseline'!$D$118 -> 0 | K30: ='8a. Assumptions-Baseline'!$E$118 -> kg | L30: ='8a. Assumptions-Baseline'!$D$163 -> 0 | M30: ='8a. Assumptions-Baseline'!$E$163 -> kg | N30: n/a | R30: Other | S30: =IF(C6="CPU",F32,IF(C6="CRT",H32,IF(C6="LCD",J32,IF(C6="Notebook",L32,"no input")))) -> no input | T30: =IF('3c.Alt user input-Purchasing'!$I$12="Bronze",IF(C6="CPU",'8b2.Assumption-EPEAT tiers'!$C$25*C31, IF(C6="LCD",'8b2.Assumption-EPEAT tiers'!$E$25*C31, IF(C6="Notebook",'8b2.Assumption-EPEAT tiers'!$F$25*C31))),"n/a") -> n/a | U30: =IF('3c.Alt user input-Purchasing'!$I$12="Silver",IF(C6="CPU",'8b2.Assumption-EPEAT tiers'!$G$25*C31, IF(C6="LCD",'8b2.Assumption-EPEAT tiers'!$I$25*C31, IF(C6="Notebook",'8b2.Assumption-EPEAT tiers'!$J$25*C31))),"n/a") -> n/a | V30: =IF('3c.Alt user input-Purchasing'!$I$12="Gold",IF(C6="CPU",'8b2.Assumption-EPEAT tiers'!$K$25*C31, IF(C6="LCD",'8b2.Assumption-EPEAT tiers'!$M$25*C31, IF(C6="Notebook",'8b2.Assumption-EPEAT tiers'!$N$25*C31))),"n/a") -> n/a | W30: =IF(AND(T30="n/a",U30="n/a",V30="n/a"),S30,MAX(S30:V30)) -> no input
A31: E 4.8.3.1 | B31: Avg. mass of other packaging | C31: =IF(C6="CPU",F31,IF(C6="CRT",H31,IF(C6="LCD",J31,IF(C6="Notebook",L31,"no input")))) -> no input | F31: ='8a. Assumptions-Baseline'!$D$31 -> 0 | G31: ='8a. Assumptions-Baseline'!$E$31 -> kg | H31: ='8a. Assumptions-Baseline'!$D$75 -> 0.03 | I31: ='8a. Assumptions-Baseline'!$E$75 -> kg | J31: ='8a. Assumptions-Baseline'!$D$120 -> 0 | K31: ='8a. Assumptions-Baseline'!$E$120 -> kg | L31: ='8a. Assumptions-Baseline'!$D$165 -> 0.038 | M31: ='8a. Assumptions-Baseline'!$E$165 -> kg | N31: n/a | R31: CPG | S31: =IF(C6="CPU",F33,IF(C6="CRT",H33,IF(C6="LCD",J33,IF(C6="Notebook",L33,"no input")))) -> no input | T31: =IF('3c.Alt user input-Purchasing'!$I$12="Bronze",IF(OR(AND(C6="CPU",'8b2.Assumption-EPEAT tiers'!$C$26="yes"),AND(C6="LCD",'8b2.Assumption-EPEAT tiers'!$E$26="yes"),AND(C6="Notebook",'8b2.Assumption-EPEAT tiers'!$F$26="yes")),'8b1.Assumptions-EPEATFECdefault'!$C$31*C27,0),"n/a") -> n/a | U31: =IF('3c.Alt user input-Purchasing'!$I$12="Silver",IF(OR(AND(C6="CPU",'8b2.Assumption-EPEAT tiers'!$G$26="yes"),AND(C6="LCD",'8b2.Assumption-EPEAT tiers'!$I$26="yes"),AND(C6="Notebook",'8b2.Assumption-EPEAT tiers'!$J$26="yes")),'8b1.Assumptions-EPEATFECdefault'!$C$31*C27,0),"n/a") -> n/a | V31: =IF('3c.Alt user input-Purchasing'!$I$12="Gold",IF(OR(AND(C6="CPU",'8b2.Assumption-EPEAT tiers'!$K$26="yes"),AND(C6="LCD",'8b2.Assumption-EPEAT tiers'!$M$26="yes"),AND(C6="Notebook",'8b2.Assumption-EPEAT tiers'!$N$26="yes")),'8b1.Assumptions-EPEATFECdefault'!$C$31*C27,0),"n/a") -> n/a | W31: =IF(AND(T31="n/a",U31="n/a",V31="n/a"),S31,MAX(S31:V31)) -> no input
A32: E 4.8.3.1 | B32: Avg. mass of recycled content in other packaging | C32: =IF(C6="Please provide in Sheet 3a","no input",IF(ISNUMBER('3c.Alt user input-Purchasing'!$I$36),'3c.Alt user input-Purchasing'!$I$36*C31,W30)) -> no input | F32: ='8a. Assumptions-Baseline'!$D$32 -> 0 | G32: ='8a. Assumptions-Baseline'!$E$32 -> kg | H32: ='8a. Assumptions-Baseline'!$D$76 -> 0 | I32: ='8a. Assumptions-Baseline'!$E$76 -> kg | J32: ='8a. Assumptions-Baseline'!$D$121 -> 0 | K32: ='8a. Assumptions-Baseline'!$E$121 -> kg | L32: ='8a. Assumptions-Baseline'!$D$166 -> 0 | M32: ='8a. Assumptions-Baseline'!$E$166 -> kg | N32: n/a | R32: Packaging Reuse | S32: =IF(C6="CPU",F35,IF(C6="CRT",H35,IF(C6="LCD",J35,IF(C6="Notebook",L35,"no input")))) -> no input | T32: =IF('3c.Alt user input-Purchasing'!$I$12="Bronze",IF(OR(AND(C6="CPU",'8b2.Assumption-EPEAT tiers'!$C$27="yes"),AND(C6="LCD",'8b2.Assumption-EPEAT tiers'!$E$27="yes"),AND(C6="Notebook",'8b2.Assumption-EPEAT tiers'!$F$27="yes")),'8b1.Assumptions-EPEATFECdefault'!$C$33*C34,0),"n/a") -> n/a | U32: =IF('3c.Alt user input-Purchasing'!$I$12="Silver",IF(OR(AND(C6="CPU",'8b2.Assumption-EPEAT tiers'!$G$27="yes"),AND(C6="LCD",'8b2.Assumption-EPEAT tiers'!$I$27="yes"),AND(C6="Notebook",'8b2.Assumption-EPEAT tiers'!$J$27="yes")),'8b1.Assumptions-EPEATFECdefault'!$C$33*C34,0),"n/a") -> n/a | V32: =IF('3c.Alt user input-Purchasing'!$I$12="Gold",IF(OR(AND(C6="CPU",'8b2.Assumption-EPEAT tiers'!$K$27="yes"),AND(C6="LCD",'8b2.Assumption-EPEAT tiers'!$M$27="yes"),AND(C6="Notebook",'8b2.Assumption-EPEAT tiers'!$N$27="yes")),'8b1.Assumptions-EPEATFECdefault'!$C$33*C34,0),"n/a") -> n/a | W32: =IF(AND(T32="n/a",U32="n/a",V32="n/a"),S32,MAX(S32:V32)) -> no input
A33: E 4.8.3.2 | B33: Avg. mass of corrugated packaging meeting CPG recycled content requirements | C33: =IF(C6="Please provide in Sheet 3a","no input",IF(ISNUMBER('3c.Alt user input-Purchasing'!$I$37),'3c.Alt user input-Purchasing'!$I$37*C27,W31)) -> no input | F33: ='8a. Assumptions-Baseline'!$D$26 -> 0 | G33: ='8a. Assumptions-Baseline'!$E$26 -> kg | H33: ='8a. Assumptions-Baseline'!$D$70 -> 0 | I33: ='8a. Assumptions-Baseline'!$E$70 -> kg | J33: ='8a. Assumptions-Baseline'!$D$115 -> 0 | K33: ='8a. Assumptions-Baseline'!$E$115 -> kg | L33: ='8a. Assumptions-Baseline'!$D$160 -> 0 | M33: ='8a. Assumptions-Baseline'!$E$160 -> kg | N33: n/a
A34: E 4.8.5.1 | B34: Avg. total mass of packaging per product | C34: =IF(C6="CPU",F34,IF(C6="CRT",H34,IF(C6="LCD",J34,IF(C6="Notebook",L34,"no input")))) -> no input | F34: ='8a. Assumptions-Baseline'!$D$34 -> 1.844 | G34: ='8a. Assumptions-Baseline'!$E$34 -> kg | H34: ='8a. Assumptions-Baseline'!$D$78 -> 2.78 | I34: ='8a. Assumptions-Baseline'!$E$78 -> kg | J34: ='8a. Assumptions-Baseline'!$D$123 -> 1.397 | K34: ='8a. Assumptions-Baseline'!$E$123 -> kg | L34: ='8a. Assumptions-Baseline'!$D$168 -> 0.774 | M34: ='8a. Assumptions-Baseline'!$E$168 -> kg | N34: n/a
A35: E 4.8.5.1 | B35: Packaging avoided by packaging reuse | C35: =IF(C6="Please provide in Sheet 3a","no input",IF('3c.Alt user input-Purchasing'!$I$38="reusable",'8b1.Assumptions-EPEATFECdefault'!$C$33*C34,W32)) -> no input | F35: ='8a. Assumptions-Baseline'!$D$33 -> 0 | G35: ='8a. Assumptions-Baseline'!$E$33 -> kg | H35: ='8a. Assumptions-Baseline'!$D$77 -> 0 | I35: ='8a. Assumptions-Baseline'!$E$77 -> kg | J35: ='8a. Assumptions-Baseline'!$D$122 -> 0 | K35: ='8a. Assumptions-Baseline'!$E$122 -> kg | L35: ='8a. Assumptions-Baseline'!$D$167 -> 0 | M35: ='8a. Assumptions-Baseline'!$E$167 -> kg | N35: n/a
B36: Energy | E36: =IF($C$6="Please provide in Sheet 3a","no input",$C$6) -> no input | F36: CPU | H36: CRT | J36: LCD | L36: Notebook | N36: Mobile phone
A37: E 4.5.1.1 | B37: Unit energy consumption (UEC) | C37: =IF(C6="Please provide in Sheet 3a","no input",IF(OR('3c.Alt user input-Purchasing'!$I$12="Bronze",'3c.Alt user input-Purchasing'!$I$12="Silver",'3c.Alt user input-Purchasing'!$I$12="Gold",'3c.Alt user input-Purchasing'!$I$29=5),S38,IF(C6="CPU",F37,IF(C6="CRT",H37,IF(C6="LCD",J37,IF(C6="Notebook",L37,"error")))))) -> no input | D37: =IF(ISNONTEXT(C37),"kWh/y"," ") ->  | F37: ='8d.EnergyStar CPU-Calcs'!$B$40 -> no input | G37: ='8d.EnergyStar CPU-Calcs'!$E$40 -> kWh/y | H37: n/a | J37: ='8e.EnergyStar monitor-Calcs'!$B$52 -> no input | K37: ='8e.EnergyStar monitor-Calcs'!$E$52 -> kWh/y | L37: =IF(ISNUMBER('8f.EnergyStar notebook-Calcs'!$B$67),'8f.EnergyStar notebook-Calcs'!$B$67+'8f.EnergyStar notebook-Calcs'!$B$76,'8f.EnergyStar notebook-Calcs'!$B$67) -> no input | M37: ='8f.EnergyStar notebook-Calcs'!$E$67 -> kWh/y | N37: n/a | R37: Energy: | S37: UEC (kWh/y)
A38: E 4.5.1.2 | B38: ENERGY STAR early adopter | C38: no functionality in v.3.0 | F38: ='8d.EnergyStar CPU-Calcs'!$B$40 -> no input | G38: ='8d.EnergyStar CPU-Calcs'!$E$40 -> kWh/y | H38: n/a | J38: ='8e.EnergyStar monitor-Calcs'!$B$52 -> no input | K38: ='8e.EnergyStar monitor-Calcs'!$E$52 -> kWh/y | L38: =IF(ISNUMBER('8f.EnergyStar notebook-Calcs'!$B$67),'8f.EnergyStar notebook-Calcs'!$B$67+'8f.EnergyStar notebook-Calcs'!$B$76,'8f.EnergyStar notebook-Calcs'!$B$67) -> no input | M38: ='8f.EnergyStar notebook-Calcs'!$E$67 -> kWh/y | N38: n/a | R38: ENERGY STAR 5.* UEC | S38: =IF(C6="CPU",'8d.EnergyStar CPU-Calcs'!$C$40,IF(C6="LCD",'8e.EnergyStar monitor-Calcs'!$C$52,IF(C6="Notebook",'8f.EnergyStar notebook-Calcs'!$C$67+'8f.EnergyStar notebook-Calcs'!$C$76,"no input"))) -> no input
B39: Cost Data | E39: =IF($C$6="Please provide in Sheet 3a","no input",$C$6) -> no input | F39: CPU | H39: CRT | J39: LCD | L39: Notebook | N39: Mobile phone
B40: Unit product cost | C40: no functionality in v.3.0 | F40: ='8c.Assumptions-Calculations'!$B$7 -> 779 | G40: ='8c.Assumptions-Calculations'!$C$7 -> US$ | H40: ='8c.Assumptions-Calculations'!$B$8 -> 533 | I40: ='8c.Assumptions-Calculations'!$C$8 -> US$ | J40: ='8c.Assumptions-Calculations'!$B$9 -> 383 | K40: ='8c.Assumptions-Calculations'!$C$9 -> US$ | L40: ='8c.Assumptions-Calculations'!$B$10 -> 1335 | M40: ='8c.Assumptions-Calculations'!$C$10 -> US$ | N40: n/a
B41: Unit energy cost | C41: =IF(C6="Please provide in Sheet 3a","no input",IF(ISNUMBER('3c.Alt user input-Purchasing'!$I$10),'3c.Alt user input-Purchasing'!$I$10,'8c.Assumptions-Calculations'!$B$23)) -> no input | D41: =IF(ISNUMBER(C41),"$/kWh","") ->  | F41: ='8c.Assumptions-Calculations'!$B$23 -> 0.1019085986 | G41: ='8c.Assumptions-Calculations'!$C$23 -> $/kWh | H41: ='8c.Assumptions-Calculations'!$B$23 -> 0.1019085986 | I41: ='8c.Assumptions-Calculations'!$C$23 -> $/kWh | J41: ='8c.Assumptions-Calculations'!$B$23 -> 0.1019085986 | K41: ='8c.Assumptions-Calculations'!$C$23 -> $/kWh | L41: ='8c.Assumptions-Calculations'!$B$23 -> 0.1019085986 | M41: ='8c.Assumptions-Calculations'!$C$23 -> $/kWh | N41: n/a
B43: Purchasing, Product 2 | C43: =IF(ISTEXT('3c.Alt user input-Purchasing'!$I$40),'3c.Alt user input-Purchasing'!$I$40,IF(ISTEXT('3a.User input-Purchasing'!$H$17),'3a.User input-Purchasing'!$H$17, "no input given")) -> Please provide in Sheet 3a | F43: Quantity | G43: Units | H43: Quantity | I43: Units | J43: Quantity | K43: Units | L43: Quantity | M43: Units | N43: Quantity | O43: Units | Q43: INTERIM CALCULATIONS
B44: Reduced Toxicity | E44: =IF($C$43="Please provide in Sheet 3a","no input",$C$43) -> no input | F44: CPU | H44: CRT | J44: LCD | L44: Notebook | N44: Mobile phone
A45: E 4.1.1.1 | B45: Mass of Pb | C45: =IF(C43="Please provide in Sheet 3a","no input",IF(OR(AND('3a.User input-Purchasing'!$H$19="EPEAT registered",'3c.Alt user input-Purchasing'!$I$47=""),'3c.Alt user input-Purchasing'!$I$47="RoHS"),'8b1.Assumptions-EPEATFECdefault'!$C$9,IF(C43="CPU",F45,IF(C43="CRT",H45,IF(C43="LCD",J45,IF(C43="Notebook",L45,"error")))))) -> no input | D45: =IF(ISNONTEXT(C45),"g"," ") ->  | F45: ='8a. Assumptions-Baseline'!$D$8 -> 47.3 | G45: ='8a. Assumptions-Baseline'!$E$8 -> g | H45: ='8a. Assumptions-Baseline'!$D$52 -> 30.7 | I45: ='8a. Assumptions-Baseline'!$E$52 -> g | J45: ='8a. Assumptions-Baseline'!$D$96 -> 25.2 | K45: ='8a. Assumptions-Baseline'!$E$96 -> g | L45: ='8a. Assumptions-Baseline'!$D$141 -> 8.71 | M45: ='8a. Assumptions-Baseline'!$E$141 -> g | N45: n/a | S45: Number of lamps
A46: E 4.1.1.1 | B46: Mass of Hg | C46: =IF(C43="Please provide in Sheet 3a","no input",IF(OR(AND('3a.User input-Purchasing'!$H$19="EPEAT registered",'3c.Alt user input-Purchasing'!$I$47=""),'3c.Alt user input-Purchasing'!$I$47="RoHS"),'8b1.Assumptions-EPEATFECdefault'!$C$10/1000,IF(C43="CPU",F46,IF(C43="CRT",H46,IF(C43="LCD",J46,IF(C43="Notebook",L46,"error")))))) -> no input | D46: =IF(ISNONTEXT(C46),"g"," ") ->  | F46: ='8a. Assumptions-Baseline'!$D$9 -> 0 | G46: ='8a. Assumptions-Baseline'!$E$9 -> g | H46: ='8a. Assumptions-Baseline'!$D$53 -> 0 | I46: ='8a. Assumptions-Baseline'!$E$53 -> g | J46: ='8a. Assumptions-Baseline'!$D$97 -> 0 | K46: ='8a. Assumptions-Baseline'!$E$97 -> g | L46: ='8a. Assumptions-Baseline'!$D$142 -> 0 | M46: ='8a. Assumptions-Baseline'!$E$142 -> g | N46: n/a | R46: Mercury in lamps: | S46: Bronze | T46: Silver | U46: Gold
A47: E 4.1.3.1 | B47: Number of lamps | C47: =IF(C43="Please provide in Sheet 3a","no input",IF(ISNUMBER('3c.Alt user input-Purchasing'!$I$48),'3c.Alt user input-Purchasing'!$I$48,V49)) -> no input | D47: =IF(ISNONTEXT(C47),"lamps"," ") ->  | F47: ='8a. Assumptions-Baseline'!$D$10 -> n/a | H47: ='8a. Assumptions-Baseline'!$D$54 -> n/a | J47: ='8a. Assumptions-Baseline'!$D$99 -> 4 | K47: ='8a. Assumptions-Baseline'!$E$99 -> lamps | L47: ='8a. Assumptions-Baseline'!$D$144 -> 2 | M47: ='8a. Assumptions-Baseline'!$E$144 -> lamp | N47: n/a | R47: LCD | S47: =IF(C43="LCD",IF(AND(ISNUMBER('8b2.Assumption-EPEAT tiers'!$E$8),'3c.Alt user input-Purchasing'!$I$45="Bronze"),'8b2.Assumption-EPEAT tiers'!$E$8,"n/a"),"n/a") -> n/a | T47: =IF(C43="LCD",IF(AND(ISNUMBER('8b2.Assumption-EPEAT tiers'!$I$8),'3c.Alt user input-Purchasing'!$I$45="Silver"),'8b2.Assumption-EPEAT tiers'!$I$8,"n/a"),"n/a") -> n/a | U47: =IF(C43="LCD",IF(AND(ISNUMBER('8b2.Assumption-EPEAT tiers'!$M$8),'3c.Alt user input-Purchasing'!$I$45="Gold"),'8b2.Assumption-EPEAT tiers'!$M$8,"n/a"),"n/a") -> n/a
A48: E 4.1.3.1-3 | B48: Mass of Hg/lamp | C48: =IF(C43="Please provide in Sheet 3a","no input",IF('3c.Alt user input-Purchasing'!$I$51="hg-free",0,IF(AND('3c.Alt user input-Purchasing'!$I$49>0.003,'3c.Alt user input-Purchasing'!$I$50="max 3 mg"),0.003,IF(ISNUMBER('3c.Alt user input-Purchasing'!$I$49),'3c.Alt user input-Purchasing'!$I$49,V54)))) -> no input | D48: =IF(ISNONTEXT(C48),"g"," ") ->  | F48: ='8a. Assumptions-Baseline'!$D$11 -> n/a | H48: ='8a. Assumptions-Baseline'!$D$55 -> n/a | J48: ='8a. Assumptions-Baseline'!$D$100 -> 0.0035 | K48: ='8a. Assumptions-Baseline'!$E$100 -> g | L48: ='8a. Assumptions-Baseline'!$D$145 -> 0.003 | M48: ='8a. Assumptions-Baseline'!$E$145 -> g | N48: n/a | R48: Notebook | S48: =IF(C43="Notebook",IF(AND(ISNUMBER('8b2.Assumption-EPEAT tiers'!$F$8),'3c.Alt user input-Purchasing'!$I$45="Bronze"),'8b2.Assumption-EPEAT tiers'!$F$8,"n/a"),"n/a") -> n/a | T48: =IF(C43="Notebook",IF(AND(ISNUMBER('8b2.Assumption-EPEAT tiers'!$J$8),'3c.Alt user input-Purchasing'!$I$45="Silver"),'8b2.Assumption-EPEAT tiers'!$J$8,"n/a"),"n/a") -> n/a | U48: =IF(C43="Notebook",IF(AND(ISNUMBER('8b2.Assumption-EPEAT tiers'!$N$8),'3c.Alt user input-Purchasing'!$I$45="Gold"),'8b2.Assumption-EPEAT tiers'!$N$8,"n/a"),"n/a") -> n/a
A49: E 4.1.3.1-3 | B49: Total mass of Hg in lamps | C49: =IF(C43="Please provide in Sheet 3a","no input",IF(AND(ISNUMBER(C47),ISNUMBER(C48)),C47*C48,"n/a")) -> no input | F49: n/a | H49: n/a | J49: ='8a. Assumptions-Baseline'!$D$98 -> 0.014 | K49: ='8a. Assumptions-Baseline'!$E$98 -> g | L49: ='8a. Assumptions-Baseline'!$D$143 -> 0.006 | M49: ='8a. Assumptions-Baseline'!$E$143 -> g | N49: n/a | R49: MAX | S49: =IF(AND(S47="n/a",S48="n/a"),"n/a",MAX(S47:S48)) -> n/a | T49: =IF(AND(T47="n/a",T48="n/a"),"n/a",MAX(T47:T48)) -> n/a | U49: =IF(AND(U47="n/a",U48="n/a"),"n/a",MAX(U47:U48)) -> n/a | V49: =IF(AND(S49="n/a",T49="n/a",U49="n/a"),IF(C43="LCD",J47,IF(C43="Notebook",L47, "n/a")),MAX(S49:U49)) -> n/a
A50: E 4.1.1.1 | B50: Mass of Cd | C50: =IF(C43="Please provide in Sheet 3a","no input",IF(OR(AND('3a.User input-Purchasing'!$H$19="EPEAT registered",'3c.Alt user input-Purchasing'!$I$47=""),'3c.Alt user input-Purchasing'!$I$47="RoHS"),'8b1.Assumptions-EPEATFECdefault'!$C$14/1000,IF(C43="CPU",F50,IF(C43="CRT",H50,IF(C43="LCD",J50,IF(C43="Notebook",L50,"error")))))) -> no input | F50: ='8a. Assumptions-Baseline'!$D$12 -> 0 | G50: ='8a. Assumptions-Baseline'!$E$12 -> g | H50: ='8a. Assumptions-Baseline'!$D$56 -> 0.05876 | I50: ='8a. Assumptions-Baseline'!$E$56 -> g | J50: ='8a. Assumptions-Baseline'!$D$101 -> 0.02871 | K50: ='8a. Assumptions-Baseline'!$E$101 -> g | L50: ='8a. Assumptions-Baseline'!$D$146 -> 0.00076 | M50: ='8a. Assumptions-Baseline'!$E$146 -> g | N50: n/a | S50: Mass of Hg (g)/lamp
A51: E4.1.1.1 | B51: Mass of Cr6+ | C51: =IF(C43="Please provide in Sheet 3a","no input",IF(OR(AND('3a.User input-Purchasing'!$H$19="EPEAT registered",'3c.Alt user input-Purchasing'!$I$47=""),'3c.Alt user input-Purchasing'!$I$47="RoHS"),'8b1.Assumptions-EPEATFECdefault'!$C$15/1000,IF(C43="CPU",F51,IF(C43="CRT",H51,IF(C43="LCD",J51,IF(C43="Notebook",L51,"error")))))) -> no input | F51: ='8a. Assumptions-Baseline'!$D$13 -> 1.3 | G51: ='8a. Assumptions-Baseline'!$E$13 -> g | H51: ='8a. Assumptions-Baseline'!$D$57 -> 0.139 | I51: ='8a. Assumptions-Baseline'!$E$57 -> g | J51: ='8a. Assumptions-Baseline'!$D$102 -> 0.53 | K51: ='8a. Assumptions-Baseline'!$E$102 -> g | L51: ='8a. Assumptions-Baseline'!$D$147 -> 0.008 | M51: ='8a. Assumptions-Baseline'!$E$147 -> g | N51: n/a | R51: Mercury in lamps: | S51: Bronze | T51: Silver | U51: Gold
A52: E 4.1.1.1 | B52: Mass of PBB | C52: =IF(C43="Please provide in Sheet 3a","no input",IF(OR(AND('3a.User input-Purchasing'!$H$19="EPEAT registered",'3c.Alt user input-Purchasing'!$I$47=""),'3c.Alt user input-Purchasing'!$I$47="RoHS"),'8b1.Assumptions-EPEATFECdefault'!$C$16/1000,IF(C43="CPU",F52,IF(C43="CRT",H52,IF(C43="LCD",J52,IF(C43="Notebook",L52,"error")))))) -> no input | F52: ='8a. Assumptions-Baseline'!$D$14 -> 0 | G52: ='8a. Assumptions-Baseline'!$E$14 -> g | H52: ='8a. Assumptions-Baseline'!$D$58 -> 0 | I52: ='8a. Assumptions-Baseline'!$E$58 -> g | J52: ='8a. Assumptions-Baseline'!$D$103 -> 0 | K52: ='8a. Assumptions-Baseline'!$E$103 -> g | L52: ='8a. Assumptions-Baseline'!$D$148 -> 0 | M52: ='8a. Assumptions-Baseline'!$E$148 -> g | N52: n/a | R52: LCD | S52: =IF(C43="LCD",IF(AND(ISNUMBER('8b2.Assumption-EPEAT tiers'!$E$9),'3c.Alt user input-Purchasing'!$I$45="Bronze"),'8b2.Assumption-EPEAT tiers'!$E$9,"n/a"),"n/a") -> n/a | T52: =IF(C43="LCD",IF(AND(ISNUMBER('8b2.Assumption-EPEAT tiers'!$I$9),'3c.Alt user input-Purchasing'!$I$45="Silver"),'8b2.Assumption-EPEAT tiers'!$I$9,"n/a"),"n/a") -> n/a | U52: =IF(C43="LCD",IF(AND(ISNUMBER('8b2.Assumption-EPEAT tiers'!$M$9),'3c.Alt user input-Purchasing'!$I$45="Gold"),'8b2.Assumption-EPEAT tiers'!$M$9,"n/a"),"n/a") -> n/a
A53: E 4.1.1.1 | B53: Mass of PBDE | C53: =IF(C43="Please provide in Sheet 3a","no input",IF(OR(AND('3a.User input-Purchasing'!$H$19="EPEAT registered",'3c.Alt user input-Purchasing'!$I$47=""),'3c.Alt user input-Purchasing'!$I$47="RoHS"),'8b1.Assumptions-EPEATFECdefault'!$C$17/1000,IF(C43="CPU",F53,IF(C43="CRT",H53,IF(C43="LCD",J53,IF(C43="Notebook",L53,"error")))))) -> no input | F53: ='8a. Assumptions-Baseline'!$D$15 -> 0 | G53: ='8a. Assumptions-Baseline'!$E$15 -> g | H53: ='8a. Assumptions-Baseline'!$D$59 -> 0 | I53: ='8a. Assumptions-Baseline'!$E$59 -> g | J53: ='8a. Assumptions-Baseline'!$D$104 -> 0 | K53: ='8a. Assumptions-Baseline'!$E$104 -> g | L53: ='8a. Assumptions-Baseline'!$D$149 -> 0 | M53: ='8a. Assumptions-Baseline'!$E$149 -> g | N53: n/a | R53: Notebook | S53: =IF(C43="Notebook",IF(AND(ISNUMBER('8b2.Assumption-EPEAT tiers'!$F$9),'3c.Alt user input-Purchasing'!$I$45="Bronze"),'8b2.Assumption-EPEAT tiers'!$F$9,"n/a"),"n/a") -> n/a | T53: =IF(C43="Notebook",IF(AND(ISNUMBER('8b2.Assumption-EPEAT tiers'!$J$9),'3c.Alt user input-Purchasing'!$I$45="Silver"),'8b2.Assumption-EPEAT tiers'!$J$9,"n/a"),"n/a") -> n/a | U53: =IF(C43="Notebook",IF(AND(ISNUMBER('8b2.Assumption-EPEAT tiers'!$N$9),'3c.Alt user input-Purchasing'!$I$45="Gold"),'8b2.Assumption-EPEAT tiers'!$N$9,"n/a"),"n/a") -> n/a
A54: E 4.1.1.1 | B54: Avg. mass of printed wire boards w/ Pb | C54: =IF(C43="Please provide in Sheet 3a","no input",IF(C45=0,0,IF(C43="CPU",F54,IF(C43="CRT",H54,IF(C43="LCD",J54,IF(C43="Notebook",L54,"error")))))) -> no input | D54: =IF(ISNONTEXT(C54),"kg"," ") ->  | F54: ='8a. Assumptions-Baseline'!$D$42 -> 1.01758 | G54: ='8a. Assumptions-Baseline'!$E$42 -> kg | H54: ='8a. Assumptions-Baseline'!$D$86 -> 1.6744 | I54: ='8a. Assumptions-Baseline'!$E$86 -> kg | J54: ='8a. Assumptions-Baseline'!$D$131 -> 0.43194 | K54: ='8a. Assumptions-Baseline'!$E$131 -> kg | L54: ='8a. Assumptions-Baseline'!$D$177 -> 0.5183 | M54: ='8a. Assumptions-Baseline'!$E$177 -> kg | N54: n/a | R54: MAX | S54: =IF(AND(S52="n/a",S53="n/a"),"n/a",MAX(S52:S53)) -> n/a | T54: =IF(AND(T52="n/a",T53="n/a"),"n/a",MAX(T52:T53)) -> n/a | U54: =IF(AND(U52="n/a",U53="n/a"),"n/a",MAX(U52:U53)) -> n/a | V54: =IF(AND(S54="n/a",T54="n/a",U54="n/a"),IF(C43="LCD",J48,IF(C43="Notebook",L48, "n/a")),MAX(S54:U54)) -> n/a
A55: E 4.1.1.1 | B55: Avg. mass of leaded glass | C55: no functionality in v.3.0 | F55: ='8a. Assumptions-Baseline'!$D$43 -> n/a | H55: ='8a. Assumptions-Baseline'!$D$87 -> 8.049448 | I55: ='8a. Assumptions-Baseline'!$E$87 -> kg | J55: ='8a. Assumptions-Baseline'!$D$132 -> n/a | L55: ='8a. Assumptions-Baseline'!$D$178 -> n/a | N55: n/a
A56: E 4.1.1.1 | B56: Avg. mass of cold cathode fluorescent lamps w/ Hg | C56: =IF(C43="Please provide in Sheet 3a","no input",IF(OR(C43="CPU",C43="CRT"),"n/a",IF(C49=0,0,IF(C43="LCD",J56,IF(C43="Notebook",L56,"error"))))) -> no input | D56: =IF(ISNONTEXT(C56),"kg"," ") ->  | F56: ='8a. Assumptions-Baseline'!$D$44 -> n/a | H56: ='8a. Assumptions-Baseline'!$D$88 -> n/a | J56: ='8a. Assumptions-Baseline'!$D$133 -> 0.006 | K56: ='8a. Assumptions-Baseline'!$E$133 -> kg | L56: ='8a. Assumptions-Baseline'!$D$179 -> 0.0014 | M56: ='8a. Assumptions-Baseline'!$E$179 -> kg | N56: n/a | S56: Avg. mass of RC in plastic resin (kg)
A57: E 4.1.1.1 | B57: Avg. mass of resin in wire and cable w/ Pb | C57: =IF(C43="Please provide in Sheet 3a","no input",IF(C45=0,0,IF(C43="CPU",F57,IF(C43="CRT",H57,IF(C43="LCD",J57,IF(C43="Notebook",L57,"error")))))) -> no input | D57: =IF(ISNONTEXT(C57),"kg"," ") ->  | F57: ='8a. Assumptions-Baseline'!$D$45 -> 0.38006 | G57: ='8a. Assumptions-Baseline'!$E$45 -> kg | H57: ='8a. Assumptions-Baseline'!$D$89 -> 0.4784 | I57: ='8a. Assumptions-Baseline'!$E$89 -> kg | J57: ='8a. Assumptions-Baseline'!$D$134 -> 0.02504 | K57: ='8a. Assumptions-Baseline'!$E$134 -> kg | L57: ='8a. Assumptions-Baseline'!$D$180 -> 0.0213 | M57: ='8a. Assumptions-Baseline'!$E$180 -> kg | N57: n/a | R57: Material use: | S57: Bronze | T57: Silver | U57: Gold
B58: Material Use | E58: =IF($C$43="Please provide in Sheet 3a","no input",$C$43) -> no input | F58: CPU | H58: CRT | J58: LCD | L58: Notebook | N58: Mobile phone | R58: Declared % | S58: =IF('3c.Alt user input-Purchasing'!$I$45="Bronze",IF(C43="CPU", '8b2.Assumption-EPEAT tiers'!$C$13*C59,IF(C43="LCD", '8b2.Assumption-EPEAT tiers'!$E$13*C59,IF(C43="Notebook", '8b2.Assumption-EPEAT tiers'!$F$13*C59,"n/a"))),"n/a") -> n/a | T58: =IF('3c.Alt user input-Purchasing'!$I$45="Silver",IF(C43="CPU", '8b2.Assumption-EPEAT tiers'!$G$13*C59,IF(C43="LCD", '8b2.Assumption-EPEAT tiers'!$I$13*C59,IF(C43="Notebook", '8b2.Assumption-EPEAT tiers'!$J$13*C59,"n/a"))),"n/a") -> n/a | U58: =IF('3c.Alt user input-Purchasing'!$I$45="Gold",IF(C43="CPU", '8b2.Assumption-EPEAT tiers'!$K$13*C59,IF(C43="LCD", '8b2.Assumption-EPEAT tiers'!$M$13*C59,IF(C43="Notebook", '8b2.Assumption-EPEAT tiers'!$N$13*C59,"n/a"))),"n/a") -> n/a
A59: E 4.2.1.1-3 | B59: Avg. mass of plastic | C59: =IF(C43="CPU",F59,IF(C43="CRT",H59,IF(C43="LCD",J59,IF(C43="Notebook",L59,"no input")))) -> no input | D59: =IF(ISNONTEXT(C59),"kg"," ") ->  | F59: ='8a. Assumptions-Baseline'!$D$18 -> 0.69882 | G59: ='8a. Assumptions-Baseline'!$E$18 -> kg | H59: ='8a. Assumptions-Baseline'!$D$62 -> 3.66 | I59: ='8a. Assumptions-Baseline'!$E$62 -> kg | J59: ='8a. Assumptions-Baseline'!$D$107 -> 1.49614 | K59: ='8a. Assumptions-Baseline'!$E$107 -> kg | L59: ='8a. Assumptions-Baseline'!$D$152 -> 1.0011 | M59: ='8a. Assumptions-Baseline'!$E$152 -> kg | N59: n/a | R59: 0.1 | S59: =IF('3c.Alt user input-Purchasing'!$I$45="Bronze",IF(AND(C43="CPU",('8b2.Assumption-EPEAT tiers'!$C$14="yes")),10%*C59,IF(AND(C43="LCD",('8b2.Assumption-EPEAT tiers'!$E$14="yes")),10%*C59,IF(AND(C43="Notebook",('8b2.Assumption-EPEAT tiers'!$F$14="yes")),10%*C59,))),"n/a") -> n/a | T59: =IF('3c.Alt user input-Purchasing'!$I$45="Silver",IF(AND(C43="CPU",('8b2.Assumption-EPEAT tiers'!$G$14="yes")),10%*C59,IF(AND(C43="LCD",('8b2.Assumption-EPEAT tiers'!$I$14="yes")),10%*C59,IF(AND(C43="Notebook",('8b2.Assumption-EPEAT tiers'!$J$14="yes")),10%*C59,))),"n/a") -> n/a | U59: =IF('3c.Alt user input-Purchasing'!$I$45="Gold",IF(AND(C43="CPU",('8b2.Assumption-EPEAT tiers'!$K$14="yes")),10%*C59,IF(AND(C43="LCD",('8b2.Assumption-EPEAT tiers'!$M$14="yes")),10%*C59,IF(AND(C43="Notebook",('8b2.Assumption-EPEAT tiers'!$N$14="yes")),10%*C59,))),"n/a") -> n/a
A60: E 4.2.1.1-3 | B60: Avg. mass of recycled content in plastic resin | C60: =IF(C43="Please provide in Sheet 3a","no input",IF(OR(ISNUMBER('3c.Alt user input-Purchasing'!$I$54),ISNUMBER('3c.Alt user input-Purchasing'!$I$55),ISNUMBER('3c.Alt user input-Purchasing'!$I$56)),(MAX('3c.Alt user input-Purchasing'!$I$54,'3c.Alt user input-Purchasing'!$I$55,'3c.Alt user input-Purchasing'!$I$56)*C59),IF(ISNUMBER(V61),V61,"error"))) -> no input | D60: =IF(ISNONTEXT(C60),"kg"," ") ->  | F60: ='8a. Assumptions-Baseline'!$D$19 -> 0 | G60: ='8a. Assumptions-Baseline'!$E$19 -> kg | H60: ='8a. Assumptions-Baseline'!$D$63 -> 0 | I60: ='8a. Assumptions-Baseline'!$E$63 -> kg | J60: ='8a. Assumptions-Baseline'!$D$108 -> 0 | K60: ='8a. Assumptions-Baseline'!$E$108 -> kg | L60: ='8a. Assumptions-Baseline'!$D$153 -> 0 | M60: ='8a. Assumptions-Baseline'!$E$153 -> kg | N60: n/a | R60: 0.25 | S60: =IF('3c.Alt user input-Purchasing'!$I$45="Bronze",IF(AND(C43="CPU",('8b2.Assumption-EPEAT tiers'!$C$15="yes")),25%*C59,IF(AND(C43="LCD",('8b2.Assumption-EPEAT tiers'!$E$15="yes")),25%*C59,IF(AND(C43="Notebook",('8b2.Assumption-EPEAT tiers'!$F$15="yes")),25%*C59,))),"n/a") -> n/a | T60: =IF('3c.Alt user input-Purchasing'!$I$45="Silver",IF(AND(C43="CPU",('8b2.Assumption-EPEAT tiers'!$G$15="yes")),25%*C59,IF(AND(C43="LCD",('8b2.Assumption-EPEAT tiers'!$I$15="yes")),25%*C59,IF(AND(C43="Notebook",('8b2.Assumption-EPEAT tiers'!$J$15="yes")),25%*C59,))),"n/a") -> n/a | U60: =IF('3c.Alt user input-Purchasing'!$I$45="Gold",IF(AND(C43="CPU",('8b2.Assumption-EPEAT tiers'!$K$15="yes")),25%*C59,IF(AND(C43="LCD",('8b2.Assumption-EPEAT tiers'!$M$15="yes")),25%*C59,IF(AND(C43="Notebook",('8b2.Assumption-EPEAT tiers'!$N$15="yes")),25%*C59,))),"n/a") -> n/a
A61: E 4.2.2.1-2 | B61: Avg. mass of molded plastic parts | C61: no functionality in v.2.0 | F61: ='8a. Assumptions-Baseline'!$D$21 -> 0.69882 | G61: ='8a. Assumptions-Baseline'!$E$21 -> kg | H61: ='8a. Assumptions-Baseline'!$D$65 -> 3.66 | I61: ='8a. Assumptions-Baseline'!$E$65 -> kg | J61: ='8a. Assumptions-Baseline'!$D$110 -> 1.49614 | K61: ='8a. Assumptions-Baseline'!$E$110 -> kg | L61: ='8a. Assumptions-Baseline'!$D$155 -> 1.0011 | M61: ='8a. Assumptions-Baseline'!$E$155 -> kg | N61: n/a | R61: MAX | S61: =IF(AND(S58="n/a",S59="n/a",S60="n/a"),"n/a",MAX(S58:S60)) -> n/a | T61: =IF(AND(T58="n/a",T59="n/a",T60="n/a"),"n/a",MAX(T58:T60)) -> n/a | U61: =IF(AND(U58="n/a",U59="n/a",U60="n/a"),"n/a",MAX(U58:U60)) -> n/a | V61: =IF(AND(S61="n/a",T61="n/a",U61="n/a"),IF(C43="CPU",F60,IF(C43="CRT",H60,IF(C43="LCD",J60,IF(C43="Notebook",L60, "n/a")))),MAX(S61:U61)) -> n/a
A62: E 4.2.2.1-2 | B62: Avg. mass of renewable/biobased material in molded parts | C62: no functionality in v.2.0 | F62: ='8a. Assumptions-Baseline'!$D$22 -> 0 | G62: ='8a. Assumptions-Baseline'!$E$22 -> kg | H62: ='8a. Assumptions-Baseline'!$D$66 -> 0 | I62: ='8a. Assumptions-Baseline'!$E$66 -> kg | J62: ='8a. Assumptions-Baseline'!$D$111 -> 0 | K62: ='8a. Assumptions-Baseline'!$E$111 -> kg | L62: ='8a. Assumptions-Baseline'!$D$156 -> 0 | M62: ='8a. Assumptions-Baseline'!$E$156 -> kg | N62: n/a
B63: Packaging | E63: =IF($C$43="Please provide in Sheet 3a","no input",$C$43) -> no input | F63: CPU | H63: CRT | J63: LCD | L63: Notebook | N63: Mobile phone | S63: RC (kg)
A64: E 4.8.3.1 | B64: Avg. mass of corrugated packaging | C64: =IF(C43="CPU",F64,IF(C43="CRT",H64,IF(C43="LCD",J64,IF(C43="Notebook",L64,"no input")))) -> no input | D64: =IF(ISNONTEXT(C64),"kg"," ") ->  | F64: ='8a. Assumptions-Baseline'!$D$25 -> 1.579 | G64: ='8a. Assumptions-Baseline'!$E$25 -> kg | H64: ='8a. Assumptions-Baseline'!$D$69 -> 2.05 | I64: ='8a. Assumptions-Baseline'!$E$69 -> kg | J64: ='8a. Assumptions-Baseline'!$D$114 -> 0.958 | K64: ='8a. Assumptions-Baseline'!$E$114 -> kg | L64: ='8a. Assumptions-Baseline'!$D$159 -> 0.552 | M64: ='8a. Assumptions-Baseline'!$E$159 -> kg | N64: n/a | R64: Packaging: | S64: Baseline | T64: Bronze | U64: Silver | V64: Gold | W64: MAX
A65: E 4.8.3.1 | B65: Avg. mass of recycled content in corrugated packaging | C65: =IF(C43="Please provide in Sheet 3a","no input",IF(ISNUMBER('3c.Alt user input-Purchasing'!$I$67),'3c.Alt user input-Purchasing'!$I$67*C64,W65)) -> no input | F65: ='8a. Assumptions-Baseline'!$D$26 -> 0 | G65: ='8a. Assumptions-Baseline'!$E$26 -> kg | H65: ='8a. Assumptions-Baseline'!$D$70 -> 0 | I65: ='8a. Assumptions-Baseline'!$E$70 -> kg | J65: ='8a. Assumptions-Baseline'!$D$115 -> 0 | K65: ='8a. Assumptions-Baseline'!$E$115 -> kg | L65: ='8a. Assumptions-Baseline'!$D$160 -> 0 | M65: ='8a. Assumptions-Baseline'!$E$160 -> kg | N65: n/a | R65: Corrugated | S65: =IF(C43="CPU",F65,IF(C43="CRT",H65,IF(C43="LCD",J65,IF(C43="Notebook",L65,"no input")))) -> no input | T65: =IF('3c.Alt user input-Purchasing'!$I$45="Bronze",IF(C43="CPU",'8b2.Assumption-EPEAT tiers'!$C$23*C64, IF(C43="LCD",'8b2.Assumption-EPEAT tiers'!$E$23*C64, IF(C43="Notebook",'8b2.Assumption-EPEAT tiers'!$F$23*C64))),"n/a") -> n/a | U65: =IF('3c.Alt user input-Purchasing'!$I$45="Silver",IF(C43="CPU",'8b2.Assumption-EPEAT tiers'!$G$23*C64, IF(C43="LCD",'8b2.Assumption-EPEAT tiers'!$I$23*C64, IF(C43="Notebook",'8b2.Assumption-EPEAT tiers'!$J$23*C64))),"n/a") -> n/a | V65: =IF('3c.Alt user input-Purchasing'!$I$45="Gold",IF(C43="CPU",'8b2.Assumption-EPEAT tiers'!$K$23*C64, IF(C43="LCD",'8b2.Assumption-EPEAT tiers'!$M$23*C64, IF(C43="Notebook",'8b2.Assumption-EPEAT tiers'!$N$23*C64))),"n/a") -> n/a | W65: =IF(AND(T65="n/a",U65="n/a",V65="n/a"),S65,MAX(S65:V65)) -> no input
A66: E 4.8.3.1 | B66: Avg. mass of plastic/foam packaging | C66: =IF(C43="CPU",F66,IF(C43="CRT",H66,IF(C43="LCD",J66,IF(C43="Notebook",L66,"no input")))) -> no input | F66: ='8a. Assumptions-Baseline'!$D$28 -> 0.265 | G66: ='8a. Assumptions-Baseline'!$E$28 -> kg | H66: ='8a. Assumptions-Baseline'!$D$72 -> 0.7 | I66: ='8a. Assumptions-Baseline'!$E$72 -> kg | J66: ='8a. Assumptions-Baseline'!$D$117 -> 0.439 | K66: ='8a. Assumptions-Baseline'!$E$117 -> kg | L66: ='8a. Assumptions-Baseline'!$D$162 -> 0.184 | M66: ='8a. Assumptions-Baseline'!$E$162 -> kg | N66: n/a | R66: Plastics | S66: =IF(C43="CPU",F67,IF(C43="CRT",H67,IF(C43="LCD",J67,IF(C43="Notebook",L67,"no input")))) -> no input | T66: =IF('3c.Alt user input-Purchasing'!$I$45="Bronze",IF(C43="CPU",'8b2.Assumption-EPEAT tiers'!$C$24*C66, IF(C43="LCD",'8b2.Assumption-EPEAT tiers'!$E$24*C66, IF(C43="Notebook",'8b2.Assumption-EPEAT tiers'!$F$24*C66))),"n/a") -> n/a | U66: =IF('3c.Alt user input-Purchasing'!$I$45="Silver",IF(C43="CPU",'8b2.Assumption-EPEAT tiers'!$G$24*C66, IF(C43="LCD",'8b2.Assumption-EPEAT tiers'!$I$24*C66, IF(C43="Notebook",'8b2.Assumption-EPEAT tiers'!$J$24*C66))),"n/a") -> n/a | V66: =IF('3c.Alt user input-Purchasing'!$I$45="Gold",IF(C43="CPU",'8b2.Assumption-EPEAT tiers'!$K$24*C66, IF(C43="LCD",'8b2.Assumption-EPEAT tiers'!$M$24*C66, IF(C43="Notebook",'8b2.Assumption-EPEAT tiers'!$N$24*C66))),"n/a") -> n/a | W66: =IF(AND(T66="n/a",U66="n/a",V66="n/a"),S66,MAX(S66:V66)) -> no input
A67: E 4.8.3.1 | B67: Avg. mass of recycled content in plastic/foam packaging | C67: =IF(C43="Please provide in Sheet 3a","no input",IF(ISNUMBER('3c.Alt user input-Purchasing'!$I$68),'3c.Alt user input-Purchasing'!$I$68*C66,W66)) -> no input | F67: ='8a. Assumptions-Baseline'!$D$29 -> 0 | G67: ='8a. Assumptions-Baseline'!$E$29 -> kg | H67: ='8a. Assumptions-Baseline'!$D$73 -> 0 | I67: ='8a. Assumptions-Baseline'!$E$73 -> kg | J67: ='8a. Assumptions-Baseline'!$D$118 -> 0 | K67: ='8a. Assumptions-Baseline'!$E$118 -> kg | L67: ='8a. Assumptions-Baseline'!$D$163 -> 0 | M67: ='8a. Assumptions-Baseline'!$E$163 -> kg | N67: n/a | R67: Other | S67: =IF(C43="CPU",F69,IF(C43="CRT",H69,IF(C43="LCD",J69,IF(C43="Notebook",L69,"no input")))) -> no input | T67: =IF('3c.Alt user input-Purchasing'!$I$45="Bronze",IF(C43="CPU",'8b2.Assumption-EPEAT tiers'!$C$25*C68, IF(C43="LCD",'8b2.Assumption-EPEAT tiers'!$E$25*C68, IF(C43="Notebook",'8b2.Assumption-EPEAT tiers'!$F$25*C68))),"n/a") -> n/a | U67: =IF('3c.Alt user input-Purchasing'!$I$45="Silver",IF(C43="CPU",'8b2.Assumption-EPEAT tiers'!$G$25*C68, IF(C43="LCD",'8b2.Assumption-EPEAT tiers'!$I$25*C68, IF(C43="Notebook",'8b2.Assumption-EPEAT tiers'!$J$25*C68))),"n/a") -> n/a | V67: =IF('3c.Alt user input-Purchasing'!$I$45="Gold",IF(C43="CPU",'8b2.Assumption-EPEAT tiers'!$K$25*C68, IF(C43="LCD",'8b2.Assumption-EPEAT tiers'!$M$25*C68, IF(C43="Notebook",'8b2.Assumption-EPEAT tiers'!$N$25*C68))),"n/a") -> n/a | W67: =IF(AND(T67="n/a",U67="n/a",V67="n/a"),S67,MAX(S67:V67)) -> no input
A68: E 4.8.3.1 | B68: Avg. mass of other packaging | C68: =IF(C43="CPU",F68,IF(C43="CRT",H68,IF(C43="LCD",J68,IF(C43="Notebook",L68,"no input")))) -> no input | F68: ='8a. Assumptions-Baseline'!$D$31 -> 0 | G68: ='8a. Assumptions-Baseline'!$E$31 -> kg | H68: ='8a. Assumptions-Baseline'!$D$75 -> 0.03 | I68: ='8a. Assumptions-Baseline'!$E$75 -> kg | J68: ='8a. Assumptions-Baseline'!$D$120 -> 0 | K68: ='8a. Assumptions-Baseline'!$E$120 -> kg | L68: ='8a. Assumptions-Baseline'!$D$165 -> 0.038 | M68: ='8a. Assumptions-Baseline'!$E$165 -> kg | N68: n/a | R68: CPG | S68: =IF(C43="CPU",F70,IF(C43="CRT",H70,IF(C43="LCD",J70,IF(C43="Notebook",L70,"no input")))) -> no input | T68: =IF('3c.Alt user input-Purchasing'!$I$45="Bronze",IF(OR(AND(C43="CPU",'8b2.Assumption-EPEAT tiers'!$C$26="yes"),AND(C43="LCD",'8b2.Assumption-EPEAT tiers'!$E$26="yes"),AND(C43="Notebook",'8b2.Assumption-EPEAT tiers'!$F$26="yes")),'8b1.Assumptions-EPEATFECdefault'!$C$31*C64,0),"n/a") -> n/a | U68: =IF('3c.Alt user input-Purchasing'!$I$45="Silver",IF(OR(AND(C43="CPU",'8b2.Assumption-EPEAT tiers'!$G$26="yes"),AND(C43="LCD",'8b2.Assumption-EPEAT tiers'!$I$26="yes"),AND(C43="Notebook",'8b2.Assumption-EPEAT tiers'!$J$26="yes")),'8b1.Assumptions-EPEATFECdefault'!$C$31*C64,0),"n/a") -> n/a | V68: =IF('3c.Alt user input-Purchasing'!$I$45="Gold",IF(OR(AND(C43="CPU",'8b2.Assumption-EPEAT tiers'!$K$26="yes"),AND(C43="LCD",'8b2.Assumption-EPEAT tiers'!$M$26="yes"),AND(C43="Notebook",'8b2.Assumption-EPEAT tiers'!$N$26="yes")),'8b1.Assumptions-EPEATFECdefault'!$C$31*C64,0),"n/a") -> n/a | W68: =IF(AND(T68="n/a",U68="n/a",V68="n/a"),S68,MAX(S68:V68)) -> no input
A69: E 4.8.3.1 | B69: Avg. mass of recycled content in other packaging | C69: =IF(C43="Please provide in Sheet 3a","no input",IF(ISNUMBER('3c.Alt user input-Purchasing'!$I$69),'3c.Alt user input-Purchasing'!$I$69*C68,W67)) -> no input | F69: ='8a. Assumptions-Baseline'!$D$32 -> 0 | G69: ='8a. Assumptions-Baseline'!$E$32 -> kg | H69: ='8a. Assumptions-Baseline'!$D$76 -> 0 | I69: ='8a. Assumptions-Baseline'!$E$76 -> kg | J69: ='8a. Assumptions-Baseline'!$D$121 -> 0 | K69: ='8a. Assumptions-Baseline'!$E$121 -> kg | L69: ='8a. Assumptions-Baseline'!$D$166 -> 0 | M69: ='8a. Assumptions-Baseline'!$E$166 -> kg | N69: n/a | R69: Packaging Reuse | S69: =IF(C43="CPU",F72,IF(C43="CRT",H72,IF(C43="LCD",J72,IF(C43="Notebook",L72,"no input")))) -> no input | T69: =IF('3c.Alt user input-Purchasing'!$I$45="Bronze",IF(OR(AND(C43="CPU",'8b2.Assumption-EPEAT tiers'!$C$27="yes"),AND(C43="LCD",'8b2.Assumption-EPEAT tiers'!$E$27="yes"),AND(C43="Notebook",'8b2.Assumption-EPEAT tiers'!$F$27="yes")),'8b1.Assumptions-EPEATFECdefault'!$C$33*C71,0),"n/a") -> n/a | U69: =IF('3c.Alt user input-Purchasing'!$I$45="Silver",IF(OR(AND(C43="CPU",'8b2.Assumption-EPEAT tiers'!$G$27="yes"),AND(C43="LCD",'8b2.Assumption-EPEAT tiers'!$I$27="yes"),AND(C43="Notebook",'8b2.Assumption-EPEAT tiers'!$J$27="yes")),'8b1.Assumptions-EPEATFECdefault'!$C$33*C71,0),"n/a") -> n/a | V69: =IF('3c.Alt user input-Purchasing'!$I$45="Gold",IF(OR(AND(C43="CPU",'8b2.Assumption-EPEAT tiers'!$K$27="yes"),AND(C43="LCD",'8b2.Assumption-EPEAT tiers'!$M$27="yes"),AND(C43="Notebook",'8b2.Assumption-EPEAT tiers'!$N$27="yes")),'8b1.Assumptions-EPEATFECdefault'!$C$33*C71,0),"n/a") -> n/a | W69: =IF(AND(T69="n/a",U69="n/a",V69="n/a"),S69,MAX(S69:V69)) -> no input
A70: E 4.8.3.2 | B70: Avg. mass of corrugated packaging meeting CPG recycled content requirements | C70: =IF(C43="Please provide in Sheet 3a","no input",IF(ISNUMBER('3c.Alt user input-Purchasing'!$I$70),'3c.Alt user input-Purchasing'!$I$70*C64,W68)) -> no input | F70: ='8a. Assumptions-Baseline'!$D$26 -> 0 | G70: ='8a. Assumptions-Baseline'!$E$26 -> kg | H70: ='8a. Assumptions-Baseline'!$D$70 -> 0 | I70: ='8a. Assumptions-Baseline'!$E$70 -> kg | J70: ='8a. Assumptions-Baseline'!$D$115 -> 0 | K70: ='8a. Assumptions-Baseline'!$E$115 -> kg | L70: ='8a. Assumptions-Baseline'!$D$160 -> 0 | M70: ='8a. Assumptions-Baseline'!$E$160 -> kg | N70: n/a
A71: E 4.8.5.1 | B71: Avg. total mass of packaging per product | C71: =IF(C43="CPU",F71,IF(C43="CRT",H71,IF(C43="LCD",J71,IF(C43="Notebook",L71,"no input")))) -> no input | F71: ='8a. Assumptions-Baseline'!$D$34 -> 1.844 | G71: ='8a. Assumptions-Baseline'!$E$34 -> kg | H71: ='8a. Assumptions-Baseline'!$D$78 -> 2.78 | I71: ='8a. Assumptions-Baseline'!$E$78 -> kg | J71: ='8a. Assumptions-Baseline'!$D$123 -> 1.397 | K71: ='8a. Assumptions-Baseline'!$E$123 -> kg | L71: ='8a. Assumptions-Baseline'!$D$168 -> 0.774 | M71: ='8a. Assumptions-Baseline'!$E$168 -> kg | N71: n/a
A72: E 4.8.5.1 | B72: Packaging avoided by packaging reuse | C72: =IF(C43="Please provide in Sheet 3a","no input",IF('3c.Alt user input-Purchasing'!$I$71="reusable",'8b1.Assumptions-EPEATFECdefault'!$C$33*C71,W69)) -> no input | F72: ='8a. Assumptions-Baseline'!$D$33 -> 0 | G72: ='8a. Assumptions-Baseline'!$E$33 -> kg | H72: ='8a. Assumptions-Baseline'!$D$77 -> 0 | I72: ='8a. Assumptions-Baseline'!$E$77 -> kg | J72: ='8a. Assumptions-Baseline'!$D$122 -> 0 | K72: ='8a. Assumptions-Baseline'!$E$122 -> kg | L72: ='8a. Assumptions-Baseline'!$D$167 -> 0 | M72: ='8a. Assumptions-Baseline'!$E$167 -> kg | N72: n/a
B73: Energy | E73: =IF($C$43="Please provide in Sheet 3a","no input",$C$43) -> no input | F73: CPU | H73: CRT | J73: LCD | L73: Notebook | N73: Mobile phone
A74: E 4.5.1.1 | B74: Unit energy consumption (UEC) | C74: =IF(C43="Please provide in Sheet 3a","no input",IF(OR('3c.Alt user input-Purchasing'!$I$45="Bronze",'3c.Alt user input-Purchasing'!$I$45="Silver",'3c.Alt user input-Purchasing'!$I$45="Gold",'3c.Alt user input-Purchasing'!$I$62=5),S75,IF(C43="CPU",F74,IF(C43="CRT",H74,IF(C43="LCD",J74,IF(C43="Notebook",L74,"error")))))) -> no input | D74: =IF(ISNUMBER(C74),"kWh/y","") ->  | F74: ='8d.EnergyStar CPU-Calcs'!$B$58 -> no input | G74: ='8d.EnergyStar CPU-Calcs'!$E$58 -> kWh/y | H74: NA | J74: ='8e.EnergyStar monitor-Calcs'!$B$71 -> no input | K74: ='8e.EnergyStar monitor-Calcs'!$E$71 -> kWh/y | L74: =IF(ISNUMBER('8f.EnergyStar notebook-Calcs'!$B$103),'8f.EnergyStar notebook-Calcs'!$B$103+'8f.EnergyStar notebook-Calcs'!$B$112,'8f.EnergyStar notebook-Calcs'!$B$103) -> no input | M74: ='8f.EnergyStar notebook-Calcs'!$E$103 -> kWh/y | N74: n/a | R74: Energy: | S74: UEC (kWh/y)
A75: E 4.5.1.2 | B75: ENERGY STAR early adopter | C75: no functionality in v.2.0 | F75: ='8d.EnergyStar CPU-Calcs'!$B$58 -> no input | G75: ='8d.EnergyStar CPU-Calcs'!$E$58 -> kWh/y | H75: NA | J75: ='8e.EnergyStar monitor-Calcs'!$B$71 -> no input | K75: ='8e.EnergyStar monitor-Calcs'!$E$71 -> kWh/y | L75: =IF(ISNUMBER('8f.EnergyStar notebook-Calcs'!$B$103),'8f.EnergyStar notebook-Calcs'!$B$103+'8f.EnergyStar notebook-Calcs'!$B$112,'8f.EnergyStar notebook-Calcs'!$B$103) -> no input | M75: ='8f.EnergyStar notebook-Calcs'!$E$103 -> kWh/y | N75: n/a | R75: ENERGY STAR 5.* UEC | S75: =IF(C43="CPU",'8d.EnergyStar CPU-Calcs'!$C$58,IF(C43="LCD",'8e.EnergyStar monitor-Calcs'!$C$71,IF(C43="Notebook",'8f.EnergyStar notebook-Calcs'!$C$103+'8f.EnergyStar notebook-Calcs'!$C$112,"no input"))) -> no input
B76: Cost Data | E76: =IF($C$43="Please provide in Sheet 3a","no input",$C$43) -> no input | F76: CPU | H76: CRT | J76: LCD | L76: Notebook | N76: Mobile phone
B77: Unit product cost | C77: no functionality in v.2.0 | F77: ='8c.Assumptions-Calculations'!$B$7 -> 779 | G77: ='8c.Assumptions-Calculations'!$C$7 -> US$ | H77: ='8c.Assumptions-Calculations'!$B$8 -> 533 | I77: ='8c.Assumptions-Calculations'!$C$8 -> US$ | J77: ='8c.Assumptions-Calculations'!$B$9 -> 383 | K77: ='8c.Assumptions-Calculations'!$C$9 -> US$ | L77: ='8c.Assumptions-Calculations'!$B$10 -> 1335 | M77: ='8c.Assumptions-Calculations'!$C$10 -> US$ | N77: n/a
B78: Unit energy cost | C78: =IF(C43="Please provide in Sheet 3a","no input",IF(ISNUMBER('3c.Alt user input-Purchasing'!$I$43),'3c.Alt user input-Purchasing'!$I$43,'8c.Assumptions-Calculations'!$B$23)) -> no input | D78: =IF(ISNUMBER(C78),"$/kWh","") ->  | F78: ='8c.Assumptions-Calculations'!$B$23 -> 0.1019085986 | G78: ='8c.Assumptions-Calculations'!$C$23 -> $/kWh | H78: ='8c.Assumptions-Calculations'!$B$23 -> 0.1019085986 | I78: ='8c.Assumptions-Calculations'!$C$23 -> $/kWh | J78: ='8c.Assumptions-Calculations'!$B$23 -> 0.1019085986 | K78: ='8c.Assumptions-Calculations'!$C$23 -> $/kWh | L78: ='8c.Assumptions-Calculations'!$B$23 -> 0.1019085986 | M78: ='8c.Assumptions-Calculations'!$C$23 -> $/kWh | N78: n/a
B80: Purchasing, Product 3 | C80: =IF(ISTEXT('3c.Alt user input-Purchasing'!$I$73),'3c.Alt user input-Purchasing'!$I$73,IF(ISTEXT('3a.User input-Purchasing'!$H$23),'3a.User input-Purchasing'!$H$23,"no input given")) -> Please provide in Sheet 3a | F80: Quantity | G80: Units | H80: Quantity | I80: Units | J80: Quantity | K80: Units | L80: Quantity | M80: Units | N80: Quantity | O80: Units | Q80: INTERIM CALCULATIONS
B81: Reduced Toxicity | E81: =IF($C$80="Please provide in Sheet 3a","no input",$C$80) -> no input | F81: CPU | H81: CRT | J81: LCD | L81: Notebook | N81: Mobile phone
A82: E 4.1.1.1 | B82: Mass of Pb | C82: =IF(C80="Please provide in Sheet 3a","no input",IF(OR(AND('3a.User input-Purchasing'!$H$25="EPEAT registered",'3c.Alt user input-Purchasing'!$I$80=""),'3c.Alt user input-Purchasing'!$I$80="RoHS"),'8b1.Assumptions-EPEATFECdefault'!$C$9,IF(C80="CPU",F82,IF(C80="CRT",H82,IF(C80="LCD",J82,IF(C80="Notebook",L82,"error")))))) -> no input | D82: =IF(ISNONTEXT(C82),"g"," ") ->  | F82: ='8a. Assumptions-Baseline'!$D$8 -> 47.3 | G82: ='8a. Assumptions-Baseline'!$E$8 -> g | H82: ='8a. Assumptions-Baseline'!$D$52 -> 30.7 | I82: ='8a. Assumptions-Baseline'!$E$52 -> g | J82: ='8a. Assumptions-Baseline'!$D$96 -> 25.2 | K82: ='8a. Assumptions-Baseline'!$E$96 -> g | L82: ='8a. Assumptions-Baseline'!$D$141 -> 8.71 | M82: ='8a. Assumptions-Baseline'!$E$141 -> g | N82: n/a | S82: Number of lamps
A83: E 4.1.1.1 | B83: Mass of Hg | C83: =IF(C80="Please provide in Sheet 3a","no input",IF(OR(AND('3a.User input-Purchasing'!$H$25="EPEAT registered",'3c.Alt user input-Purchasing'!$I$80=""),'3c.Alt user input-Purchasing'!$I$80="RoHS"),'8b1.Assumptions-EPEATFECdefault'!$C$10/1000,IF(C80="CPU",F83,IF(C80="CRT",H83,IF(C80="LCD",J83,IF(C80="Notebook",L83,"error")))))) -> no input | D83: =IF(ISNONTEXT(C83),"g"," ") ->  | F83: ='8a. Assumptions-Baseline'!$D$9 -> 0 | G83: ='8a. Assumptions-Baseline'!$E$9 -> g | H83: ='8a. Assumptions-Baseline'!$D$53 -> 0 | I83: ='8a. Assumptions-Baseline'!$E$53 -> g | J83: ='8a. Assumptions-Baseline'!$D$97 -> 0 | K83: ='8a. Assumptions-Baseline'!$E$97 -> g | L83: ='8a. Assumptions-Baseline'!$D$142 -> 0 | M83: ='8a. Assumptions-Baseline'!$E$142 -> g | N83: n/a | R83: Mercury in lamps: | S83: Bronze | T83: Silver | U83: Gold
A84: E 4.1.3.1 | B84: Number of lamps | C84: =IF(C80="Please provide in Sheet 3a","no input",IF(ISNUMBER('3c.Alt user input-Purchasing'!$I$81),'3c.Alt user input-Purchasing'!$I$81,V86)) -> no input | D84: =IF(ISNONTEXT(C84),"lamps"," ") ->  | F84: ='8a. Assumptions-Baseline'!$D$10 -> n/a | H84: ='8a. Assumptions-Baseline'!$D$54 -> n/a | J84: ='8a. Assumptions-Baseline'!$D$99 -> 4 | K84: ='8a. Assumptions-Baseline'!$E$99 -> lamps | L84: ='8a. Assumptions-Baseline'!$D$144 -> 2 | M84: ='8a. Assumptions-Baseline'!$E$144 -> lamp | N84: n/a | R84: LCD | S84: =IF(C80="LCD",IF(AND(ISNUMBER('8b2.Assumption-EPEAT tiers'!$E$8),'3c.Alt user input-Purchasing'!$I$78="Bronze"),'8b2.Assumption-EPEAT tiers'!$E$8,"n/a"),"n/a") -> n/a | T84: =IF(C80="LCD",IF(AND(ISNUMBER('8b2.Assumption-EPEAT tiers'!$I$8),'3c.Alt user input-Purchasing'!$I$78="Silver"),'8b2.Assumption-EPEAT tiers'!$I$8,"n/a"),"n/a") -> n/a | U84: =IF(C80="LCD",IF(AND(ISNUMBER('8b2.Assumption-EPEAT tiers'!$M$8),'3c.Alt user input-Purchasing'!$I$78="Gold"),'8b2.Assumption-EPEAT tiers'!$M$8,"n/a"),"n/a") -> n/a
A85: E 4.1.3.1-3 | B85: Mass of Hg/lamp | C85: =IF(C80="Please provide in Sheet 3a","no input",IF('3c.Alt user input-Purchasing'!$I$84="hg-free",0,IF(AND('3c.Alt user input-Purchasing'!$I$82>0.003,'3c.Alt user input-Purchasing'!$I$83="max 3 mg"),0.003,IF(ISNUMBER('3c.Alt user input-Purchasing'!$I$82),'3c.Alt user input-Purchasing'!$I$82,V91)))) -> no input | D85: =IF(ISNONTEXT(C85),"g"," ") ->  | F85: ='8a. Assumptions-Baseline'!$D$11 -> n/a | H85: ='8a. Assumptions-Baseline'!$D$55 -> n/a | J85: ='8a. Assumptions-Baseline'!$D$100 -> 0.0035 | K85: ='8a. Assumptions-Baseline'!$E$100 -> g | L85: ='8a. Assumptions-Baseline'!$D$145 -> 0.003 | M85: ='8a. Assumptions-Baseline'!$E$145 -> g | N85: n/a | R85: Notebook | S85: =IF(C80="Notebook",IF(AND(ISNUMBER('8b2.Assumption-EPEAT tiers'!$F$8),'3c.Alt user input-Purchasing'!$I$78="Bronze"),'8b2.Assumption-EPEAT tiers'!$F$8,"n/a"),"n/a") -> n/a | T85: =IF(C80="Notebook",IF(AND(ISNUMBER('8b2.Assumption-EPEAT tiers'!$J$8),'3c.Alt user input-Purchasing'!$I$78="Silver"),'8b2.Assumption-EPEAT tiers'!$J$8,"n/a"),"n/a") -> n/a | U85: =IF(C80="Notebook",IF(AND(ISNUMBER('8b2.Assumption-EPEAT tiers'!$N$8),'3c.Alt user input-Purchasing'!$I$78="Gold"),'8b2.Assumption-EPEAT tiers'!$N$8,"n/a"),"n/a") -> n/a
A86: E 4.1.3.1-3 | B86: Total mass of Hg in lamps | C86: =IF(C80="Please provide in Sheet 3a","no input",IF(AND(ISNUMBER(C84),ISNUMBER(C85)),C84*C85,"n/a")) -> no input | F86: n/a | H86: n/a | J86: ='8a. Assumptions-Baseline'!$D$98 -> 0.014 | K86: ='8a. Assumptions-Baseline'!$E$98 -> g | L86: ='8a. Assumptions-Baseline'!$D$143 -> 0.006 | M86: ='8a. Assumptions-Baseline'!$E$143 -> g | N86: n/a | R86: MAX | S86: =IF(AND(S84="n/a",S85="n/a"),"n/a",MAX(S84:S85)) -> n/a | T86: =IF(AND(T84="n/a",T85="n/a"),"n/a",MAX(T84:T85)) -> n/a | U86: =IF(AND(U84="n/a",U85="n/a"),"n/a",MAX(U84:U85)) -> n/a | V86: =IF(AND(S86="n/a",T86="n/a",U86="n/a"),IF(C80="LCD",J84,IF(C80="Notebook",L84, "n/a")),MAX(S86:U86)) -> n/a
A87: E 4.1.1.1 | B87: Mass of Cd | C87: =IF(C80="Please provide in Sheet 3a","no input",IF(OR(AND('3a.User input-Purchasing'!$H$25="EPEAT registered",'3c.Alt user input-Purchasing'!$I$80=""),'3c.Alt user input-Purchasing'!$I$80="RoHS"),'8b1.Assumptions-EPEATFECdefault'!$C$14/1000,IF(C80="CPU",F87,IF(C80="CRT",H87,IF(C80="LCD",J87,IF(C80="Notebook",L87,"error")))))) -> no input | F87: ='8a. Assumptions-Baseline'!$D$12 -> 0 | G87: ='8a. Assumptions-Baseline'!$E$12 -> g | H87: ='8a. Assumptions-Baseline'!$D$56 -> 0.05876 | I87: ='8a. Assumptions-Baseline'!$E$56 -> g | J87: ='8a. Assumptions-Baseline'!$D$101 -> 0.02871 | K87: ='8a. Assumptions-Baseline'!$E$101 -> g | L87: ='8a. Assumptions-Baseline'!$D$146 -> 0.00076 | M87: ='8a. Assumptions-Baseline'!$E$146 -> g | N87: n/a | S87: Mass of Hg (g)/lamp
A88: E4.1.1.1 | B88: Mass of Cr6+ | C88: =IF(C80="Please provide in Sheet 3a","no input",IF(OR(AND('3a.User input-Purchasing'!$H$25="EPEAT registered",'3c.Alt user input-Purchasing'!$I$80=""),'3c.Alt user input-Purchasing'!$I$80="RoHS"),'8b1.Assumptions-EPEATFECdefault'!$C$15/1000,IF(C80="CPU",F88,IF(C80="CRT",H88,IF(C80="LCD",J88,IF(C80="Notebook",L88,"error")))))) -> no input | F88: ='8a. Assumptions-Baseline'!$D$13 -> 1.3 | G88: ='8a. Assumptions-Baseline'!$E$13 -> g | H88: ='8a. Assumptions-Baseline'!$D$57 -> 0.139 | I88: ='8a. Assumptions-Baseline'!$E$57 -> g | J88: ='8a. Assumptions-Baseline'!$D$102 -> 0.53 | K88: ='8a. Assumptions-Baseline'!$E$102 -> g | L88: ='8a. Assumptions-Baseline'!$D$147 -> 0.008 | M88: ='8a. Assumptions-Baseline'!$E$147 -> g | N88: n/a | R88: Mercury in lamps: | S88: Bronze | T88: Silver | U88: Gold
A89: E 4.1.1.1 | B89: Mass of PBB | C89: =IF(C80="Please provide in Sheet 3a","no input",IF(OR(AND('3a.User input-Purchasing'!$H$25="EPEAT registered",'3c.Alt user input-Purchasing'!$I$80=""),'3c.Alt user input-Purchasing'!$I$80="RoHS"),'8b1.Assumptions-EPEATFECdefault'!$C$16/1000,IF(C80="CPU",F89,IF(C80="CRT",H89,IF(C80="LCD",J89,IF(C80="Notebook",L89,"error")))))) -> no input | F89: ='8a. Assumptions-Baseline'!$D$14 -> 0 | G89: ='8a. Assumptions-Baseline'!$E$14 -> g | H89: ='8a. Assumptions-Baseline'!$D$58 -> 0 | I89: ='8a. Assumptions-Baseline'!$E$58 -> g | J89: ='8a. Assumptions-Baseline'!$D$103 -> 0 | K89: ='8a. Assumptions-Baseline'!$E$103 -> g | L89: ='8a. Assumptions-Baseline'!$D$148 -> 0 | M89: ='8a. Assumptions-Baseline'!$E$148 -> g | N89: n/a | R89: LCD | S89: =IF(C80="LCD",IF(AND(ISNUMBER('8b2.Assumption-EPEAT tiers'!$E$9),'3c.Alt user input-Purchasing'!$I$78="Bronze"),'8b2.Assumption-EPEAT tiers'!$E$9,"n/a"),"n/a") -> n/a | T89: =IF(C80="LCD",IF(AND(ISNUMBER('8b2.Assumption-EPEAT tiers'!$I$9),'3c.Alt user input-Purchasing'!$I$78="Silver"),'8b2.Assumption-EPEAT tiers'!$I$9,"n/a"),"n/a") -> n/a | U89: =IF(C80="LCD",IF(AND(ISNUMBER('8b2.Assumption-EPEAT tiers'!$M$9),'3c.Alt user input-Purchasing'!$I$78="Gold"),'8b2.Assumption-EPEAT tiers'!$M$9,"n/a"),"n/a") -> n/a
A90: E 4.1.1.1 | B90: Mass of PBDE | C90: =IF(C80="Please provide in Sheet 3a","no input",IF(OR(AND('3a.User input-Purchasing'!$H$25="EPEAT registered",'3c.Alt user input-Purchasing'!$I$80=""),'3c.Alt user input-Purchasing'!$I$80="RoHS"),'8b1.Assumptions-EPEATFECdefault'!$C$17/1000,IF(C80="CPU",F90,IF(C80="CRT",H90,IF(C80="LCD",J90,IF(C80="Notebook",L90,"error")))))) -> no input | F90: ='8a. Assumptions-Baseline'!$D$15 -> 0 | G90: ='8a. Assumptions-Baseline'!$E$15 -> g | H90: ='8a. Assumptions-Baseline'!$D$59 -> 0 | I90: ='8a. Assumptions-Baseline'!$E$59 -> g | J90: ='8a. Assumptions-Baseline'!$D$104 -> 0 | K90: ='8a. Assumptions-Baseline'!$E$104 -> g | L90: ='8a. Assumptions-Baseline'!$D$149 -> 0 | M90: ='8a. Assumptions-Baseline'!$E$149 -> g | N90: n/a | R90: Notebook | S90: =IF(C80="Notebook",IF(AND(ISNUMBER('8b2.Assumption-EPEAT tiers'!$F$9),'3c.Alt user input-Purchasing'!$I$78="Bronze"),'8b2.Assumption-EPEAT tiers'!$F$9,"n/a"),"n/a") -> n/a | T90: =IF(C80="Notebook",IF(AND(ISNUMBER('8b2.Assumption-EPEAT tiers'!$J$9),'3c.Alt user input-Purchasing'!$I$78="Silver"),'8b2.Assumption-EPEAT tiers'!$J$9,"n/a"),"n/a") -> n/a | U90: =IF(C80="Notebook",IF(AND(ISNUMBER('8b2.Assumption-EPEAT tiers'!$N$9),'3c.Alt user input-Purchasing'!$I$78="Gold"),'8b2.Assumption-EPEAT tiers'!$N$9,"n/a"),"n/a") -> n/a
A91: E 4.1.1.1 | B91: Avg. mass of printed wire boards w/ Pb | C91: =IF(C80="Please provide in Sheet 3a","no input",IF(C82=0,0,IF(C80="CPU",F91,IF(C80="CRT",H91,IF(C80="LCD",J91,IF(C80="Notebook",L91,"error")))))) -> no input | D91: =IF(ISNONTEXT(C91),"kg"," ") ->  | F91: ='8a. Assumptions-Baseline'!$D$42 -> 1.01758 | G91: ='8a. Assumptions-Baseline'!$E$42 -> kg | H91: ='8a. Assumptions-Baseline'!$D$86 -> 1.6744 | I91: ='8a. Assumptions-Baseline'!$E$86 -> kg | J91: ='8a. Assumptions-Baseline'!$D$131 -> 0.43194 | K91: ='8a. Assumptions-Baseline'!$E$131 -> kg | L91: ='8a. Assumptions-Baseline'!$D$177 -> 0.5183 | M91: ='8a. Assumptions-Baseline'!$E$177 -> kg | N91: n/a | R91: MAX | S91: =IF(AND(S89="n/a",S90="n/a"),"n/a",MAX(S89:S90)) -> n/a | T91: =IF(AND(T89="n/a",T90="n/a"),"n/a",MAX(T89:T90)) -> n/a | U91: =IF(AND(U89="n/a",U90="n/a"),"n/a",MAX(U89:U90)) -> n/a | V91: =IF(AND(S91="n/a",T91="n/a",U91="n/a"),IF(C80="LCD",J85,IF(C80="Notebook",L85, "n/a")),MAX(S91:U91)) -> n/a
A92: E 4.1.1.1 | B92: Avg. mass of leaded glass | C92: no functionality in v.3.0 | F92: ='8a. Assumptions-Baseline'!$D$43 -> n/a | H92: ='8a. Assumptions-Baseline'!$D$87 -> 8.049448 | I92: ='8a. Assumptions-Baseline'!$E$87 -> kg | J92: ='8a. Assumptions-Baseline'!$D$132 -> n/a | L92: ='8a. Assumptions-Baseline'!$D$178 -> n/a | N92: n/a
A93: E 4.1.1.1 | B93: Avg. mass of cold cathode fluorescent lamps w/ Hg | C93: =IF(C80="Please provide in Sheet 3a","no input",IF(OR(C80="CPU",C80="CRT"),"n/a",IF(C86=0,0,IF(C80="LCD",J93,IF(C80="Notebook",L93,"error"))))) -> no input | D93: =IF(ISNONTEXT(C93),"kg"," ") ->  | F93: ='8a. Assumptions-Baseline'!$D$44 -> n/a | H93: ='8a. Assumptions-Baseline'!$D$88 -> n/a | J93: ='8a. Assumptions-Baseline'!$D$133 -> 0.006 | K93: ='8a. Assumptions-Baseline'!$E$133 -> kg | L93: ='8a. Assumptions-Baseline'!$D$179 -> 0.0014 | M93: ='8a. Assumptions-Baseline'!$E$179 -> kg | N93: n/a | S93: Avg. mass of RC in plastic resin (kg)
A94: E 4.1.1.1 | B94: Avg. mass of resin in wire and cable w/ Pb | C94: =IF(C80="Please provide in Sheet 3a","no input",IF(C82=0,0,IF(C80="CPU",F94,IF(C80="CRT",H94,IF(C80="LCD",J94,IF(C80="Notebook",L94,"error")))))) -> no input | D94: =IF(ISNONTEXT(C94),"kg"," ") ->  | F94: ='8a. Assumptions-Baseline'!$D$45 -> 0.38006 | G94: ='8a. Assumptions-Baseline'!$E$45 -> kg | H94: ='8a. Assumptions-Baseline'!$D$89 -> 0.4784 | I94: ='8a. Assumptions-Baseline'!$E$89 -> kg | J94: ='8a. Assumptions-Baseline'!$D$134 -> 0.02504 | K94: ='8a. Assumptions-Baseline'!$E$134 -> kg | L94: ='8a. Assumptions-Baseline'!$D$180 -> 0.0213 | M94: ='8a. Assumptions-Baseline'!$E$180 -> kg | N94: n/a | R94: Material use: | S94: Bronze | T94: Silver | U94: Gold
B95: Material Use | E95: =IF($C$80="Please provide in Sheet 3a","no input",$C$80) -> no input | F95: CPU | H95: CRT | J95: LCD | L95: Notebook | N95: Mobile phone | R95: Declared % | S95: =IF('3c.Alt user input-Purchasing'!$I$78="Bronze",IF(C80="CPU", '8b2.Assumption-EPEAT tiers'!$C$13*C96,IF(C80="LCD", '8b2.Assumption-EPEAT tiers'!$E$13*C96,IF(C80="Notebook", '8b2.Assumption-EPEAT tiers'!$F$13*C96,"n/a"))),"n/a") -> n/a | T95: =IF('3c.Alt user input-Purchasing'!$I$78="Silver",IF(C80="CPU", '8b2.Assumption-EPEAT tiers'!$G$13*C96,IF(C80="LCD", '8b2.Assumption-EPEAT tiers'!$I$13*C96,IF(C80="Notebook", '8b2.Assumption-EPEAT tiers'!$J$13*C96,"n/a"))),"n/a") -> n/a | U95: =IF('3c.Alt user input-Purchasing'!$I$78="Gold",IF(C80="CPU", '8b2.Assumption-EPEAT tiers'!$K$13*C96,IF(C80="LCD", '8b2.Assumption-EPEAT tiers'!$M$13*C96,IF(C80="Notebook", '8b2.Assumption-EPEAT tiers'!$N$13*C96,"n/a"))),"n/a") -> n/a
A96: E 4.2.1.1-3 | B96: Avg. mass of plastic | C96: =IF(C80="CPU",F96,IF(C80="CRT",H96,IF(C80="LCD",J96,IF(C80="Notebook",L96,"no input")))) -> no input | D96: =IF(ISNONTEXT(C96),"kg"," ") ->  | F96: ='8a. Assumptions-Baseline'!$D$18 -> 0.69882 | G96: ='8a. Assumptions-Baseline'!$E$18 -> kg | H96: ='8a. Assumptions-Baseline'!$D$62 -> 3.66 | I96: ='8a. Assumptions-Baseline'!$E$62 -> kg | J96: ='8a. Assumptions-Baseline'!$D$107 -> 1.49614 | K96: ='8a. Assumptions-Baseline'!$E$107 -> kg | L96: ='8a. Assumptions-Baseline'!$D$152 -> 1.0011 | M96: ='8a. Assumptions-Baseline'!$E$152 -> kg | N96: n/a | R96: 0.1 | S96: =IF('3c.Alt user input-Purchasing'!$I$78="Bronze",IF(AND(C80="CPU",('8b2.Assumption-EPEAT tiers'!$C$14="yes")),10%*C96,IF(AND(C80="LCD",('8b2.Assumption-EPEAT tiers'!$E$14="yes")),10%*C96,IF(AND(C80="Notebook",('8b2.Assumption-EPEAT tiers'!$F$14="yes")),10%*C96,))),"n/a") -> n/a | T96: =IF('3c.Alt user input-Purchasing'!$I$78="Silver",IF(AND(C80="CPU",('8b2.Assumption-EPEAT tiers'!$G$14="yes")),10%*C96,IF(AND(C80="LCD",('8b2.Assumption-EPEAT tiers'!$I$14="yes")),10%*C96,IF(AND(C80="Notebook",('8b2.Assumption-EPEAT tiers'!$J$14="yes")),10%*C96,))),"n/a") -> n/a | U96: =IF('3c.Alt user input-Purchasing'!$I$78="Gold",IF(AND(C80="CPU",('8b2.Assumption-EPEAT tiers'!$K$14="yes")),10%*C96,IF(AND(C80="LCD",('8b2.Assumption-EPEAT tiers'!$M$14="yes")),10%*C96,IF(AND(C80="Notebook",('8b2.Assumption-EPEAT tiers'!$N$14="yes")),10%*C96,))),"n/a") -> n/a
A97: E 4.2.1.1-3 | B97: Avg. mass of recycled content in plastic resin | C97: =IF(C80="Please provide in Sheet 3a","no input",IF(OR(ISNUMBER('3c.Alt user input-Purchasing'!$I$87),ISNUMBER('3c.Alt user input-Purchasing'!$I$88),ISNUMBER('3c.Alt user input-Purchasing'!$I$89)),(MAX('3c.Alt user input-Purchasing'!$I$87,'3c.Alt user input-Purchasing'!$I$88,'3c.Alt user input-Purchasing'!$I$89)*C96),IF(ISNUMBER(V98),V98,"error"))) -> no input | D97: =IF(ISNONTEXT(C97),"kg"," ") ->  | F97: ='8a. Assumptions-Baseline'!$D$19 -> 0 | G97: ='8a. Assumptions-Baseline'!$E$19 -> kg | H97: ='8a. Assumptions-Baseline'!$D$63 -> 0 | I97: ='8a. Assumptions-Baseline'!$E$63 -> kg | J97: ='8a. Assumptions-Baseline'!$D$108 -> 0 | K97: ='8a. Assumptions-Baseline'!$E$108 -> kg | L97: ='8a. Assumptions-Baseline'!$D$153 -> 0 | M97: ='8a. Assumptions-Baseline'!$E$153 -> kg | N97: n/a | R97: 0.25 | S97: =IF('3c.Alt user input-Purchasing'!$I$78="Bronze",IF(AND(C80="CPU",('8b2.Assumption-EPEAT tiers'!$C$15="yes")),25%*C96,IF(AND(C80="LCD",('8b2.Assumption-EPEAT tiers'!$E$15="yes")),25%*C96,IF(AND(C80="Notebook",('8b2.Assumption-EPEAT tiers'!$F$15="yes")),25%*C96,))),"n/a") -> n/a | T97: =IF('3c.Alt user input-Purchasing'!$I$78="Silver",IF(AND(C80="CPU",('8b2.Assumption-EPEAT tiers'!$G$15="yes")),25%*C96,IF(AND(C80="LCD",('8b2.Assumption-EPEAT tiers'!$I$15="yes")),25%*C96,IF(AND(C80="Notebook",('8b2.Assumption-EPEAT tiers'!$J$15="yes")),25%*C96,))),"n/a") -> n/a | U97: =IF('3c.Alt user input-Purchasing'!$I$78="Gold",IF(AND(C80="CPU",('8b2.Assumption-EPEAT tiers'!$K$15="yes")),25%*C96,IF(AND(C80="LCD",('8b2.Assumption-EPEAT tiers'!$M$15="yes")),25%*C96,IF(AND(C80="Notebook",('8b2.Assumption-EPEAT tiers'!$N$15="yes")),25%*C96,))),"n/a") -> n/a
A98: E 4.2.2.1-2 | B98: Avg. mass of molded plastic parts | C98: no functionality in v.2.0 | F98: ='8a. Assumptions-Baseline'!$D$21 -> 0.69882 | G98: ='8a. Assumptions-Baseline'!$E$21 -> kg | H98: ='8a. Assumptions-Baseline'!$D$65 -> 3.66 | I98: ='8a. Assumptions-Baseline'!$E$65 -> kg | J98: ='8a. Assumptions-Baseline'!$D$110 -> 1.49614 | K98: ='8a. Assumptions-Baseline'!$E$110 -> kg | L98: ='8a. Assumptions-Baseline'!$D$155 -> 1.0011 | M98: ='8a. Assumptions-Baseline'!$E$155 -> kg | N98: n/a | R98: MAX | S98: =IF(AND(S95="n/a",S96="n/a",S97="n/a"),"n/a",MAX(S95:S97)) -> n/a | T98: =IF(AND(T95="n/a",T96="n/a",T97="n/a"),"n/a",MAX(T95:T97)) -> n/a | U98: =IF(AND(U95="n/a",U96="n/a",U97="n/a"),"n/a",MAX(U95:U97)) -> n/a | V98: =IF(AND(S98="n/a",T98="n/a",U98="n/a"),IF(C80="CPU",F97,IF(C80="CRT",H97,IF(C80="LCD",J97,IF(C80="Notebook",L97, "n/a")))),MAX(S98:U98)) -> n/a
A99: E 4.2.2.1-2 | B99: Avg. mass of renewable/biobased material in molded parts | C99: no functionality in v.2.0 | F99: ='8a. Assumptions-Baseline'!$D$22 -> 0 | G99: ='8a. Assumptions-Baseline'!$E$22 -> kg | H99: ='8a. Assumptions-Baseline'!$D$66 -> 0 | I99: ='8a. Assumptions-Baseline'!$E$66 -> kg | J99: ='8a. Assumptions-Baseline'!$D$111 -> 0 | K99: ='8a. Assumptions-Baseline'!$E$111 -> kg | L99: ='8a. Assumptions-Baseline'!$D$156 -> 0 | M99: ='8a. Assumptions-Baseline'!$E$156 -> kg | N99: n/a
B100: Packaging | E100: =IF($C$80="Please provide in Sheet 3a","no input",$C$80) -> no input | F100: CPU | H100: CRT | J100: LCD | L100: Notebook | N100: Mobile phone | S100: RC (kg)
A101: E 4.8.3.1 | B101: Avg. mass of corrugated packaging | C101: =IF(C80="CPU",F101,IF(C80="CRT",H101,IF(C80="LCD",J101,IF(C80="Notebook",L101,"no input")))) -> no input | D101: =IF(ISNONTEXT(C101),"kg"," ") ->  | F101: ='8a. Assumptions-Baseline'!$D$25 -> 1.579 | G101: ='8a. Assumptions-Baseline'!$E$25 -> kg | H101: ='8a. Assumptions-Baseline'!$D$69 -> 2.05 | I101: ='8a. Assumptions-Baseline'!$E$69 -> kg | J101: ='8a. Assumptions-Baseline'!$D$114 -> 0.958 | K101: ='8a. Assumptions-Baseline'!$E$114 -> kg | L101: ='8a. Assumptions-Baseline'!$D$159 -> 0.552 | M101: ='8a. Assumptions-Baseline'!$E$159 -> kg | N101: n/a | R101: Packaging: | S101: Baseline | T101: Bronze | U101: Silver | V101: Gold | W101: MAX
A102: E 4.8.3.1 | B102: Avg. mass of recycled content in corrugated packaging | C102: =IF(C80="Please provide in Sheet 3a","no input",IF(ISNUMBER('3c.Alt user input-Purchasing'!$I$100),'3c.Alt user input-Purchasing'!$I$100*C101,W102)) -> no input | F102: ='8a. Assumptions-Baseline'!$D$26 -> 0 | G102: ='8a. Assumptions-Baseline'!$E$26 -> kg | H102: ='8a. Assumptions-Baseline'!$D$70 -> 0 | I102: ='8a. Assumptions-Baseline'!$E$70 -> kg | J102: ='8a. Assumptions-Baseline'!$D$115 -> 0 | K102: ='8a. Assumptions-Baseline'!$E$115 -> kg | L102: ='8a. Assumptions-Baseline'!$D$160 -> 0 | M102: ='8a. Assumptions-Baseline'!$E$160 -> kg | N102: n/a | R102: Corrugated | S102: =IF(C80="CPU",F102,IF(C80="CRT",H102,IF(C80="LCD",J102,IF(C80="Notebook",L102,"no input")))) -> no input | T102: =IF('3c.Alt user input-Purchasing'!$I$78="Bronze",IF(C80="CPU",'8b2.Assumption-EPEAT tiers'!$C$23*C101, IF(C80="LCD",'8b2.Assumption-EPEAT tiers'!$E$23*C101, IF(C80="Notebook",'8b2.Assumption-EPEAT tiers'!$F$23*C101))),"n/a") -> n/a | U102: =IF('3c.Alt user input-Purchasing'!$I$78="Silver",IF(C80="CPU",'8b2.Assumption-EPEAT tiers'!$G$23*C101, IF(C80="LCD",'8b2.Assumption-EPEAT tiers'!$I$23*C101, IF(C80="Notebook",'8b2.Assumption-EPEAT tiers'!$J$23*C101))),"n/a") -> n/a | V102: =IF('3c.Alt user input-Purchasing'!$I$78="Gold",IF(C80="CPU",'8b2.Assumption-EPEAT tiers'!$K$23*C101, IF(C80="LCD",'8b2.Assumption-EPEAT tiers'!$M$23*C101, IF(C80="Notebook",'8b2.Assumption-EPEAT tiers'!$N$23*C101))),"n/a") -> n/a | W102: =IF(AND(T102="n/a",U102="n/a",V102="n/a"),S102,MAX(S102:V102)) -> no input
A103: E 4.8.3.1 | B103: Avg. mass of plastic/foam packaging | C103: =IF(C80="CPU",F103,IF(C80="CRT",H103,IF(C80="LCD",J103,IF(C80="Notebook",L103,"no input")))) -> no input | F103: ='8a. Assumptions-Baseline'!$D$28 -> 0.265 | G103: ='8a. Assumptions-Baseline'!$E$28 -> kg | H103: ='8a. Assumptions-Baseline'!$D$72 -> 0.7 | I103: ='8a. Assumptions-Baseline'!$E$72 -> kg | J103: ='8a. Assumptions-Baseline'!$D$117 -> 0.439 | K103: ='8a. Assumptions-Baseline'!$E$117 -> kg | L103: ='8a. Assumptions-Baseline'!$D$162 -> 0.184 | M103: ='8a. Assumptions-Baseline'!$E$162 -> kg | N103: n/a | R103: Plastics | S103: =IF(C80="CPU",F104,IF(C80="CRT",H104,IF(C80="LCD",J104,IF(C80="Notebook",L104,"no input")))) -> no input | T103: =IF('3c.Alt user input-Purchasing'!$I$78="Bronze",IF(C80="CPU",'8b2.Assumption-EPEAT tiers'!$C$24*C103, IF(C80="LCD",'8b2.Assumption-EPEAT tiers'!$E$24*C103, IF(C80="Notebook",'8b2.Assumption-EPEAT tiers'!$F$24*C103))),"n/a") -> n/a | U103: =IF('3c.Alt user input-Purchasing'!$I$78="Silver",IF(C80="CPU",'8b2.Assumption-EPEAT tiers'!$G$24*C103, IF(C80="LCD",'8b2.Assumption-EPEAT tiers'!$I$24*C103, IF(C80="Notebook",'8b2.Assumption-EPEAT tiers'!$J$24*C103))),"n/a") -> n/a | V103: =IF('3c.Alt user input-Purchasing'!$I$78="Gold",IF(C80="CPU",'8b2.Assumption-EPEAT tiers'!$K$24*C103, IF(C80="LCD",'8b2.Assumption-EPEAT tiers'!$M$24*C103, IF(C80="Notebook",'8b2.Assumption-EPEAT tiers'!$N$24*C103))),"n/a") -> n/a | W103: =IF(AND(T103="n/a",U103="n/a",V103="n/a"),S103,MAX(S103:V103)) -> no input
A104: E 4.8.3.1 | B104: Avg. mass of recycled content in plastic/foam packaging | C104: =IF(C80="Please provide in Sheet 3a","no input",IF(ISNUMBER('3c.Alt user input-Purchasing'!$I$101),'3c.Alt user input-Purchasing'!$I$101*C103,W103)) -> no input | F104: ='8a. Assumptions-Baseline'!$D$29 -> 0 | G104: ='8a. Assumptions-Baseline'!$E$29 -> kg | H104: ='8a. Assumptions-Baseline'!$D$73 -> 0 | I104: ='8a. Assumptions-Baseline'!$E$73 -> kg | J104: ='8a. Assumptions-Baseline'!$D$118 -> 0 | K104: ='8a. Assumptions-Baseline'!$E$118 -> kg | L104: ='8a. Assumptions-Baseline'!$D$163 -> 0 | M104: ='8a. Assumptions-Baseline'!$E$163 -> kg | N104: n/a | R104: Other | S104: =IF(C80="CPU",F106,IF(C80="CRT",H106,IF(C80="LCD",J106,IF(C80="Notebook",L106,"no input")))) -> no input | T104: =IF('3c.Alt user input-Purchasing'!$I$78="Bronze",IF(C80="CPU",'8b2.Assumption-EPEAT tiers'!$C$25*C105, IF(C80="LCD",'8b2.Assumption-EPEAT tiers'!$E$25*C105, IF(C80="Notebook",'8b2.Assumption-EPEAT tiers'!$F$25*C105))),"n/a") -> n/a | U104: =IF('3c.Alt user input-Purchasing'!$I$78="Silver",IF(C80="CPU",'8b2.Assumption-EPEAT tiers'!$G$25*C105, IF(C80="LCD",'8b2.Assumption-EPEAT tiers'!$I$25*C105, IF(C80="Notebook",'8b2.Assumption-EPEAT tiers'!$J$25*C105))),"n/a") -> n/a | V104: =IF('3c.Alt user input-Purchasing'!$I$78="Gold",IF(C80="CPU",'8b2.Assumption-EPEAT tiers'!$K$25*C105, IF(C80="LCD",'8b2.Assumption-EPEAT tiers'!$M$25*C105, IF(C80="Notebook",'8b2.Assumption-EPEAT tiers'!$N$25*C105))),"n/a") -> n/a | W104: =IF(AND(T104="n/a",U104="n/a",V104="n/a"),S104,MAX(S104:V104)) -> no input
A105: E 4.8.3.1 | B105: Avg. mass of other packaging | C105: =IF(C80="CPU",F105,IF(C80="CRT",H105,IF(C80="LCD",J105,IF(C80="Notebook",L105,"no input")))) -> no input | F105: ='8a. Assumptions-Baseline'!$D$31 -> 0 | G105: ='8a. Assumptions-Baseline'!$E$31 -> kg | H105: ='8a. Assumptions-Baseline'!$D$75 -> 0.03 | I105: ='8a. Assumptions-Baseline'!$E$75 -> kg | J105: ='8a. Assumptions-Baseline'!$D$120 -> 0 | K105: ='8a. Assumptions-Baseline'!$E$120 -> kg | L105: ='8a. Assumptions-Baseline'!$D$165 -> 0.038 | M105: ='8a. Assumptions-Baseline'!$E$165 -> kg | N105: n/a | R105: CPG | S105: =IF(C80="CPU",F107,IF(C80="CRT",H107,IF(C80="LCD",J107,IF(C80="Notebook",L107,"no input")))) -> no input | T105: =IF('3c.Alt user input-Purchasing'!$I$78="Bronze",IF(OR(AND(C80="CPU",'8b2.Assumption-EPEAT tiers'!$C$26="yes"),AND(C80="LCD",'8b2.Assumption-EPEAT tiers'!$E$26="yes"),AND(C80="Notebook",'8b2.Assumption-EPEAT tiers'!$F$26="yes")),'8b1.Assumptions-EPEATFECdefault'!$C$31*C101,0),"n/a") -> n/a | U105: =IF('3c.Alt user input-Purchasing'!$I$78="Silver",IF(OR(AND(C80="CPU",'8b2.Assumption-EPEAT tiers'!$G$26="yes"),AND(C80="LCD",'8b2.Assumption-EPEAT tiers'!$I$26="yes"),AND(C80="Notebook",'8b2.Assumption-EPEAT tiers'!$J$26="yes")),'8b1.Assumptions-EPEATFECdefault'!$C$31*C101,0),"n/a") -> n/a | V105: =IF('3c.Alt user input-Purchasing'!$I$78="Gold",IF(OR(AND(C80="CPU",'8b2.Assumption-EPEAT tiers'!$K$26="yes"),AND(C80="LCD",'8b2.Assumption-EPEAT tiers'!$M$26="yes"),AND(C80="Notebook",'8b2.Assumption-EPEAT tiers'!$N$26="yes")),'8b1.Assumptions-EPEATFECdefault'!$C$31*C101,0),"n/a") -> n/a | W105: =IF(AND(T105="n/a",U105="n/a",V105="n/a"),S105,MAX(S105:V105)) -> no input
A106: E 4.8.3.1 | B106: Avg. mass of recycled content in other packaging | C106: =IF(C80="Please provide in Sheet 3a","no input",IF(ISNUMBER('3c.Alt user input-Purchasing'!$I$102),'3c.Alt user input-Purchasing'!$I$102*C105,W104)) -> no input | F106: ='8a. Assumptions-Baseline'!$D$32 -> 0 | G106: ='8a. Assumptions-Baseline'!$E$32 -> kg | H106: ='8a. Assumptions-Baseline'!$D$76 -> 0 | I106: ='8a. Assumptions-Baseline'!$E$76 -> kg | J106: ='8a. Assumptions-Baseline'!$D$121 -> 0 | K106: ='8a. Assumptions-Baseline'!$E$121 -> kg | L106: ='8a. Assumptions-Baseline'!$D$166 -> 0 | M106: ='8a. Assumptions-Baseline'!$E$166 -> kg | N106: n/a | R106: Packaging Reuse | S106: =IF(C80="CPU",F109,IF(C80="CRT",H109,IF(C80="LCD",J109,IF(C80="Notebook",L109,"no input")))) -> no input | T106: =IF('3c.Alt user input-Purchasing'!$I$78="Bronze",IF(OR(AND(C80="CPU",'8b2.Assumption-EPEAT tiers'!$C$27="yes"),AND(C80="LCD",'8b2.Assumption-EPEAT tiers'!$E$27="yes"),AND(C80="Notebook",'8b2.Assumption-EPEAT tiers'!$F$27="yes")),'8b1.Assumptions-EPEATFECdefault'!$C$33*C108,0),"n/a") -> n/a | U106: =IF('3c.Alt user input-Purchasing'!$I$78="Silver",IF(OR(AND(C80="CPU",'8b2.Assumption-EPEAT tiers'!$G$27="yes"),AND(C80="LCD",'8b2.Assumption-EPEAT tiers'!$I$27="yes"),AND(C80="Notebook",'8b2.Assumption-EPEAT tiers'!$J$27="yes")),'8b1.Assumptions-EPEATFECdefault'!$C$33*C108,0),"n/a") -> n/a | V106: =IF('3c.Alt user input-Purchasing'!$I$78="Gold",IF(OR(AND(C80="CPU",'8b2.Assumption-EPEAT tiers'!$K$27="yes"),AND(C80="LCD",'8b2.Assumption-EPEAT tiers'!$M$27="yes"),AND(C80="Notebook",'8b2.Assumption-EPEAT tiers'!$N$27="yes")),'8b1.Assumptions-EPEATFECdefault'!$C$33*C108,0),"n/a") -> n/a | W106: =IF(AND(T106="n/a",U106="n/a",V106="n/a"),S106,MAX(S106:V106)) -> no input
A107: E 4.8.3.2 | B107: Avg. mass of corrugated packaging meeting CPG recycled content requirements | C107: =IF(C80="Please provide in Sheet 3a","no input",IF(ISNUMBER('3c.Alt user input-Purchasing'!$I$103),'3c.Alt user input-Purchasing'!$I$103*C101,W105)) -> no input | F107: ='8a. Assumptions-Baseline'!$D$26 -> 0 | G107: ='8a. Assumptions-Baseline'!$E$26 -> kg | H107: ='8a. Assumptions-Baseline'!$D$70 -> 0 | I107: ='8a. Assumptions-Baseline'!$E$70 -> kg | J107: ='8a. Assumptions-Baseline'!$D$115 -> 0 | K107: ='8a. Assumptions-Baseline'!$E$115 -> kg | L107: ='8a. Assumptions-Baseline'!$D$160 -> 0 | M107: ='8a. Assumptions-Baseline'!$E$160 -> kg | N107: n/a
A108: E 4.8.5.1 | B108: Avg. total mass of packaging per product | C108: =IF(C80="CPU",F108,IF(C80="CRT",H108,IF(C80="LCD",J108,IF(C80="Notebook",L108,"no input")))) -> no input | F108: ='8a. Assumptions-Baseline'!$D$34 -> 1.844 | G108: ='8a. Assumptions-Baseline'!$E$34 -> kg | H108: ='8a. Assumptions-Baseline'!$D$78 -> 2.78 | I108: ='8a. Assumptions-Baseline'!$E$78 -> kg | J108: ='8a. Assumptions-Baseline'!$D$123 -> 1.397 | K108: ='8a. Assumptions-Baseline'!$E$123 -> kg | L108: ='8a. Assumptions-Baseline'!$D$168 -> 0.774 | M108: ='8a. Assumptions-Baseline'!$E$168 -> kg | N108: n/a
A109: E 4.8.5.1 | B109: Packaging avoided by packaging reuse | C109: =IF(C80="Please provide in Sheet 3a","no input",IF('3c.Alt user input-Purchasing'!$I$104="reusable",'8b1.Assumptions-EPEATFECdefault'!$C$33*C108,W106)) -> no input | F109: ='8a. Assumptions-Baseline'!$D$33 -> 0 | G109: ='8a. Assumptions-Baseline'!$E$33 -> kg | H109: ='8a. Assumptions-Baseline'!$D$77 -> 0 | I109: ='8a. Assumptions-Baseline'!$E$77 -> kg | J109: ='8a. Assumptions-Baseline'!$D$122 -> 0 | K109: ='8a. Assumptions-Baseline'!$E$122 -> kg | L109: ='8a. Assumptions-Baseline'!$D$167 -> 0 | M109: ='8a. Assumptions-Baseline'!$E$167 -> kg | N109: n/a
B110: Energy | E110: =IF($C$80="Please provide in Sheet 3a","no input",$C$80) -> no input | F110: CPU | H110: CRT | J110: LCD | L110: Notebook | N110: Mobile phone
A111: E 4.5.1.1 | B111: Unit energy consumption (UEC) | C111: =IF(C80="Please provide in Sheet 3a","no input",IF(OR('3c.Alt user input-Purchasing'!$I$78="Bronze",'3c.Alt user input-Purchasing'!$I$78="Silver",'3c.Alt user input-Purchasing'!$I$78="Gold",'3c.Alt user input-Purchasing'!$I$95=5),S112,IF(C80="CPU",F111,IF(C80="CRT",H111,IF(C80="LCD",J111,IF(C80="Notebook",L111,"error")))))) -> no input | D111: =IF(ISNUMBER(C111),"kWh/y","") ->  | F111: ='8d.EnergyStar CPU-Calcs'!$B$76 -> no input | G111: ='8d.EnergyStar CPU-Calcs'!$E$76 -> kWh/y | H111: NA | J111: ='8e.EnergyStar monitor-Calcs'!$B$90 -> no input | K111: ='8e.EnergyStar monitor-Calcs'!$E$90 -> kWh/y | L111: =IF(ISNUMBER('8f.EnergyStar notebook-Calcs'!$B$139),'8f.EnergyStar notebook-Calcs'!$B$139+'8f.EnergyStar notebook-Calcs'!$B$148,'8f.EnergyStar notebook-Calcs'!$B$139) -> no input | M111: ='8f.EnergyStar notebook-Calcs'!$E$139 -> kWh/y | N111: n/a | R111: Energy: | S111: UEC (kWh/y)
A112: E 4.5.1.2 | B112: ENERGY STAR early adopter | C112: no functionality in v.2.0 | F112: ='8d.EnergyStar CPU-Calcs'!$B$76 -> no input | G112: ='8d.EnergyStar CPU-Calcs'!$E$76 -> kWh/y | H112: NA | J112: ='8e.EnergyStar monitor-Calcs'!$B$90 -> no input | K112: ='8e.EnergyStar monitor-Calcs'!$E$90 -> kWh/y | L112: =IF(ISNUMBER('8f.EnergyStar notebook-Calcs'!$B$139),'8f.EnergyStar notebook-Calcs'!$B$139+'8f.EnergyStar notebook-Calcs'!$B$148,'8f.EnergyStar notebook-Calcs'!$B$139) -> no input | M112: ='8f.EnergyStar notebook-Calcs'!$E$139 -> kWh/y | N112: n/a | R112: ENERGY STAR 5.* UEC | S112: =IF(C80="CPU",'8d.EnergyStar CPU-Calcs'!$C$76,IF(C80="LCD",'8e.EnergyStar monitor-Calcs'!$C$90,IF(C80="Notebook",'8f.EnergyStar notebook-Calcs'!$C$139+'8f.EnergyStar notebook-Calcs'!$C$148,"no input"))) -> no input
B113: Cost Data | E113: =IF($C$80="Please provide in Sheet 3a","no input",$C$80) -> no input | F113: CPU | H113: CRT | J113: LCD | L113: Notebook | N113: Mobile phone
B114: Unit product cost | C114: no functionality in v.2.0 | F114: ='8c.Assumptions-Calculations'!$B$7 -> 779 | G114: ='8c.Assumptions-Calculations'!$C$7 -> US$ | H114: ='8c.Assumptions-Calculations'!$B$8 -> 533 | I114: ='8c.Assumptions-Calculations'!$C$8 -> US$ | J114: ='8c.Assumptions-Calculations'!$B$9 -> 383 | K114: ='8c.Assumptions-Calculations'!$C$9 -> US$ | L114: ='8c.Assumptions-Calculations'!$B$10 -> 1335 | M114: ='8c.Assumptions-Calculations'!$C$10 -> US$ | N114: n/a
B115: Unit energy cost | C115: =IF(C80="Please provide in Sheet 3a","no input",IF(ISNUMBER('3c.Alt user input-Purchasing'!$I$76),'3c.Alt user input-Purchasing'!$I$76,'8c.Assumptions-Calculations'!$B$23)) -> no input | D115: =IF(ISNUMBER(C115),"$/kWh","") ->  | F115: ='8c.Assumptions-Calculations'!$B$23 -> 0.1019085986 | G115: ='8c.Assumptions-Calculations'!$C$23 -> $/kWh | H115: ='8c.Assumptions-Calculations'!$B$23 -> 0.1019085986 | I115: ='8c.Assumptions-Calculations'!$C$23 -> $/kWh | J115: ='8c.Assumptions-Calculations'!$B$23 -> 0.1019085986 | K115: ='8c.Assumptions-Calculations'!$C$23 -> $/kWh | L115: ='8c.Assumptions-Calculations'!$B$23 -> 0.1019085986 | M115: ='8c.Assumptions-Calculations'!$C$23 -> $/kWh | N115: n/a
B117: Use | F117: Quantity | G117: Units | H117: Quantity | I117: Units | J117: Quantity | K117: Units | L117: Quantity | M117: Units | N117: Quantity | O117: Units | Q117: INTERIM CALCULATIONS
A118: FEC | B118: % of units in service that are CPU | C118: =IF(ISNUMBER('3b.User Input-Use&EOL'!K9),'3b.User Input-Use&EOL'!K9,F118) -> 0.3222815124 | F118: ='8c.Assumptions-Calculations'!$B$14 -> 0.3222815124 | H118: n/a | J118: n/a | L118: n/a | N118: n/a
A119: FEC | B119: % of units in service that are CRT | C119: =IF(ISNUMBER('3b.User Input-Use&EOL'!K10),'3b.User Input-Use&EOL'!K10,H119) -> 0.004462523844 | F119: n/a | H119: ='8c.Assumptions-Calculations'!$B$15 -> 0.004462523844 | J119: n/a | L119: n/a | N119: n/a | R119: FEC Power Management: UECs for each in-use product type
A120: FEC | B120: % of units in service that are LCD | C120: =IF(ISNUMBER('3b.User Input-Use&EOL'!K11),'3b.User Input-Use&EOL'!K11,J120) -> 0.467705113 | F120: n/a | H120: n/a | J120: ='8c.Assumptions-Calculations'!$B$16 -> 0.467705113 | L120: n/a | N120: n/a | S120: CPU | U120: CRT | W120: LCD | Y120: Notebook
A121: FEC | B121: % of units in service that are notebooks | C121: =IF(ISNUMBER('3b.User Input-Use&EOL'!K12),'3b.User Input-Use&EOL'!K12,L121) -> 0.2055508507 | F121: n/a | H121: n/a | J121: n/a | L121: ='8c.Assumptions-Calculations'!$B$17 -> 0.2055508507 | N121: n/a | R121: ENERGY STAR 4.* | S121: =IF(AND(ISNUMBER('3b.User Input-Use&EOL'!$D$9),'3b.User Input-Use&EOL'!$F$9<=1),'8d.EnergyStar CPU-Calcs'!$B$21,'8c.Assumptions-Calculations'!$C$59) -> 360.5335368 | T121: ='8d.EnergyStar CPU-Calcs'!$D$21 -> kWh/y | U121: =IF(AND(ISNUMBER('3b.User Input-Use&EOL'!$D$10),'3b.User Input-Use&EOL'!$G$10<=1),'8e.EnergyStar monitor-Calcs'!$B$32,'8c.Assumptions-Calculations'!$D$59) -> 86.3177327 | V121: ='8e.EnergyStar monitor-Calcs'!$D$32 -> kWh/y | W121: =IF(AND(ISNUMBER('3b.User Input-Use&EOL'!$D$11),'3b.User Input-Use&EOL'!$G$11<=1),'8e.EnergyStar monitor-Calcs'!$B$23,'8c.Assumptions-Calculations'!$E$59) -> 64.59690505 | X121: ='8e.EnergyStar monitor-Calcs'!$D$23 -> kWh/y | Y121: =IF(AND(ISNUMBER('3b.User Input-Use&EOL'!$D$12),OR('3b.User Input-Use&EOL'!$F$12<=1,'3b.User Input-Use&EOL'!$G$12<=1)),'8f.EnergyStar notebook-Calcs'!$B$30+'8f.EnergyStar notebook-Calcs'!$B$39,'8c.Assumptions-Calculations'!$F$59+'8c.Assumptions-Calculations'!$G$59) -> 79.38965711 | Z121: ='8f.EnergyStar notebook-Calcs'!$D$30 -> kWh/y
B122: Power Management | F122: CPU | H122: CRT | J122: LCD | L122: Notebook | N122: Mobile phone | R122: ENERGY STAR 5.* | S122: =IF(AND(ISNUMBER('3b.User Input-Use&EOL'!$E$9),'3b.User Input-Use&EOL'!$F$9<=1),'8d.EnergyStar CPU-Calcs'!$C$21,'8c.Assumptions-Calculations'!$C$68) -> 276.4260085 | T122: ='8d.EnergyStar CPU-Calcs'!$D$21 -> kWh/y | U122: n/a | W122: =IF(AND(ISNUMBER('3b.User Input-Use&EOL'!$E$11),'3b.User Input-Use&EOL'!$G$11<=1),'8e.EnergyStar monitor-Calcs'!$C$23,'8c.Assumptions-Calculations'!$E$68) -> 58.01729085 | X122: ='8e.EnergyStar monitor-Calcs'!$D$23 -> kWh/y | Y122: =IF(AND(ISNUMBER('3b.User Input-Use&EOL'!$E$12),OR('3b.User Input-Use&EOL'!$F$12<=1,'3b.User Input-Use&EOL'!$G$12<=1)),'8f.EnergyStar notebook-Calcs'!$C$30+'8f.EnergyStar notebook-Calcs'!$C$39,'8c.Assumptions-Calculations'!$F$68+'8c.Assumptions-Calculations'!$G$68) -> 69.66904457 | Z122: ='8f.EnergyStar notebook-Calcs'!$D$30 -> kWh/y
A123: FEC | B123: ENERGY STAR 4.* Products: Lifetime savings | C123: =SUM(S129,U129,W129,Y129) -> 0 | D123: =IF(ISNUMBER(C123),"kWh","") -> kWh | R123: Lifetime FEC Power Management UEC savings: (Difference in UEC)*(number of units)*(avg lifetime)
A124: FEC | B124: ENERGY STAR 4.* Products: First year savings | C124: =SUM(S139,U139,W139,Y139) -> 0 | D124: =IF(ISNUMBER(C124),"kWh","") -> kWh | F124: ='8c.Assumptions-Calculations'!$C$59 -> 360.5335368 | G124: ='8c.Assumptions-Calculations'!$C$26 -> Units | H124: ='8c.Assumptions-Calculations'!$D$59 -> 86.3177327 | I124: ='8c.Assumptions-Calculations'!$C$26 -> Units | J124: ='8c.Assumptions-Calculations'!$E$59 -> 64.59690505 | K124: ='8c.Assumptions-Calculations'!$C$26 -> Units | L124: ='8c.Assumptions-Calculations'!$F$59+'8c.Assumptions-Calculations'!$G$59 -> 79.38965711 | M124: ='8c.Assumptions-Calculations'!$C$26 -> Units | N124: n/a | S124: CPU | U124: CRT | W124: LCD | Y124: Notebook
A125: FEC | B125: ENERGY STAR 5.* Products: Lifetime savings | C125: =SUM(S130,W130,Y130) -> 0 | D125: =IF(ISNUMBER(C125),"kWh","") -> kWh | R125: ENERGY STAR 4.* | S125: =IF(ISNUMBER('3b.User Input-Use&EOL'!$D$9),('4.Data comparisons'!$F$124-'4.Data comparisons'!$S$121)*'3b.User Input-Use&EOL'!$D$9*'3b.User Input-Use&EOL'!$O$9/12,0) -> 0 | T125: kWh/y | U125: =IF(ISNUMBER('3b.User Input-Use&EOL'!$D$10),('4.Data comparisons'!$H$124-'4.Data comparisons'!$U$121)*'3b.User Input-Use&EOL'!$D$10*'3b.User Input-Use&EOL'!$O$10/12,0) -> 0 | V125: kWh/y | W125: =IF(ISNUMBER('3b.User Input-Use&EOL'!$D$11),('4.Data comparisons'!$J$124-'4.Data comparisons'!$W$121)*'3b.User Input-Use&EOL'!$D$11*'3b.User Input-Use&EOL'!$O$11/12,0) -> 0 | X125: kWh/y | Y125: =IF(ISNUMBER('3b.User Input-Use&EOL'!$D$12),('4.Data comparisons'!$L$124-'4.Data comparisons'!$Y$121)*'3b.User Input-Use&EOL'!$D$12*'3b.User Input-Use&EOL'!$O$12/12,0) -> 0 | Z125: kWh/y
A126: FEC | B126: ENERGY STAR 5.* Products: First year savings | C126: =SUM(S140,W140,Y140) -> 0 | D126: =IF(ISNUMBER(C126),"kWh","") -> kWh | F126: ='8c.Assumptions-Calculations'!$C$68 -> 276.4260085 | G126: ='8c.Assumptions-Calculations'!$C$26 -> Units | H126: n/a | J126: ='8c.Assumptions-Calculations'!$E$68 -> 58.01729085 | K126: ='8c.Assumptions-Calculations'!$C$26 -> Units | L126: ='8c.Assumptions-Calculations'!$F$68+'8c.Assumptions-Calculations'!$G$68 -> 69.66904457 | M126: ='8c.Assumptions-Calculations'!$C$26 -> Units | N126: n/a | R126: ENERGY STAR 5.* | S126: =IF(ISNUMBER('3b.User Input-Use&EOL'!$E$9),('4.Data comparisons'!$F$126-'4.Data comparisons'!$S$122)*'3b.User Input-Use&EOL'!$E$9*'3b.User Input-Use&EOL'!$O$9/12,0) -> 0 | T126: kWh/y | U126: n/a | W126: =IF(ISNUMBER('3b.User Input-Use&EOL'!$E$11),('4.Data comparisons'!$J$126-'4.Data comparisons'!$W$122)*'3b.User Input-Use&EOL'!$E$11*'3b.User Input-Use&EOL'!$O$11/12,0) -> 0 | X126: kWh/y | Y126: =IF(ISNUMBER('3b.User Input-Use&EOL'!$E$12),('4.Data comparisons'!$L$126-'4.Data comparisons'!$Y$122)*'3b.User Input-Use&EOL'!$E$12*'3b.User Input-Use&EOL'!$O$12/12,0) -> 0 | Z126: kWh/y
B127: Extend Life | F127: CPU | H127: CRT | J127: LCD | L127: Notebook | N127: Mobile phone | R127: UEC savings >0
A128: FEC | B128: Avg. lifespan of computer systems | C128: ='3b.User Input-Use&EOL'!$O$13 -> 48.32783894 | D128: =IF(ISNUMBER(C128),"months","") -> months | F128: ='8a. Assumptions-Baseline'!$D$39 -> 51 | G128: ='8a. Assumptions-Baseline'!$E$39 -> months | H128: ='8a. Assumptions-Baseline'!D$83 -> 51 | I128: ='8a. Assumptions-Baseline'!$E$83 -> months | J128: ='8a. Assumptions-Baseline'!D$128 -> 51 | K128: ='8a. Assumptions-Baseline'!$E$128 -> months | L128: ='8a. Assumptions-Baseline'!D$174 -> 38 | M128: ='8a. Assumptions-Baseline'!E$174 -> months | N128: n/a | S128: CPU | U128: CRT | W128: LCD | Y128: Notebook
A129: FEC | B129: Avg. mass of computer systems, weighed by distribution of products | C129: =C118*F129+C119*H129+C120*J129+C121*L129 -> 7.690821309 | D129: =IF(ISNONTEXT(C129),"kg"," ") -> kg | F129: ='8a. Assumptions-Baseline'!$D$40 -> 12.26 | G129: ='8a. Assumptions-Baseline'!$E$40 -> kg | H129: ='8a. Assumptions-Baseline'!$D$84 -> 18.4 | I129: ='8a. Assumptions-Baseline'!$E$84 -> kg | J129: ='8a. Assumptions-Baseline'!$D$129 -> 6.26 | K129: ='8a. Assumptions-Baseline'!$E$129 -> kg | L129: ='8a. Assumptions-Baseline'!$D$175 -> 3.55 | M129: ='8a. Assumptions-Baseline'!$E$175 -> kg | N129: n/a | R129: ENERGY STAR 4.* | S129: =IF(S125>0,S125,0) -> 0 | T129: kWh/y | U129: =IF(U125>0,U125,0) -> 0 | V129: kWh/y | W129: =IF(W125>0,W125,0) -> 0 | X129: kWh/y | Y129: =IF(Y125>0,Y125,0) -> 0 | Z129: kWh/y
A130: FEC | B130: Avg. mass of hazardous materials in computer systems | C130: =C118*F130+C119*H130+C120*J130+C121*L130 -> 0.02964817358 | D130: =IF(ISNONTEXT(C130),"kg"," ") -> kg | F130: =SUM('8a. Assumptions-Baseline'!$D$8:$D$9,'8a. Assumptions-Baseline'!$D$12:$D$15)/1000 -> 0.0486 | G130: ='8a. Assumptions-Baseline'!$E$41 -> kg | H130: =SUM('8a. Assumptions-Baseline'!$D$52:$D$53,'8a. Assumptions-Baseline'!$D$56:$D$59)/1000 -> 0.03089776 | I130: ='8a. Assumptions-Baseline'!$E$85 -> kg | J130: =SUM('8a. Assumptions-Baseline'!$D$96:$D$98,'8a. Assumptions-Baseline'!$D$101:$D$104)/1000 -> 0.02577271 | K130: ='8a. Assumptions-Baseline'!$E$130 -> kg | L130: =SUM('8a. Assumptions-Baseline'!$D$141:$D$143,'8a. Assumptions-Baseline'!$D$146:$D$149)/1000 -> 0.00872476 | M130: ='8a. Assumptions-Baseline'!$E$176 -> kg | N130: n/a | R130: ENERGY STAR 5.* | S130: =IF(S126>0,S126,0) -> 0 | T130: kWh/y | U130: n/a | W130: =IF(W126>0,W126,0) -> 0 | X130: kWh/y | Y130: =IF(Y126>0,Y126,0) -> 0 | Z130: kWh/y
A131: FEC | B131: Avg. mass of hazardous waste avoided for computer systems | C131: =C118*F131+C119*H131+C120*J131+C121*L131 -> 0.8237024314 | D131: =IF(ISNONTEXT(C131),"kg"," ") -> kg | F131: ='8a. Assumptions-Baseline'!$D$41 -> 1.39764 | G131: ='8a. Assumptions-Baseline'!$E$41 -> kg | H131: ='8a. Assumptions-Baseline'!$D$85 -> 10.202248 | I131: ='8a. Assumptions-Baseline'!$E$85 -> kg | J131: ='8a. Assumptions-Baseline'!$D$130 -> 0.46298 | K131: ='8a. Assumptions-Baseline'!$E$130 -> kg | L131: ='8a. Assumptions-Baseline'!$D$176 -> 0.541 | M131: ='8a. Assumptions-Baseline'!$E$176 -> kg | N131: n/a
B133: End-of-Life | F133: Quantity | G133: Units | H133: Quantity | I133: Units | J133: Quantity | K133: Units | L133: Quantity | M133: Units | N133: Quantity | O133: Units | R133: First Year FEC Power Management UEC savings: (Difference in UEC)*(number of units)*(1 year or lifetime, whichever is less)
B134: CPU | F134: CPU | H134: CRT | J134: LCD | L134: Notebook | N134: Mobile phone | S134: CPU | U134: CRT | W134: LCD | Y134: Notebook
A135: FEC | B135: Mass of product | C135: =IF(OR(ISNUMBER('3b.User Input-Use&EOL'!$D$17),ISNUMBER('3b.User Input-Use&EOL'!$D$24)),F135,"n/a") -> n/a | D135: =IF(ISNONTEXT(C135),"kg"," ") ->  | F135: ='8a. Assumptions-Baseline'!$D$40 -> 12.26 | G135: ='8a. Assumptions-Baseline'!$E$40 -> kg | H135: n/a | J135: n/a | L135: n/a | N135: n/a | R135: ENERGY STAR 4.* | S135: =IF(ISNUMBER('3b.User Input-Use&EOL'!$D$9),IF('3b.User Input-Use&EOL'!O9>12,('4.Data comparisons'!$F$124-'4.Data comparisons'!$S$121)*'3b.User Input-Use&EOL'!D9,('4.Data comparisons'!$F$124-'4.Data comparisons'!$S$121)*'3b.User Input-Use&EOL'!D9*'3b.User Input-Use&EOL'!$O$9/12),0) -> 0 | T135: kWh/y | U135: =IF(ISNUMBER('3b.User Input-Use&EOL'!$D$10),IF('3b.User Input-Use&EOL'!O10>12,('4.Data comparisons'!$H$124-'4.Data comparisons'!$U$121)*'3b.User Input-Use&EOL'!D10,('4.Data comparisons'!$H$124-'4.Data comparisons'!$U$121)*'3b.User Input-Use&EOL'!D10*'3b.User Input-Use&EOL'!$O$10/12),0) -> 0 | V135: kWh/y | W135: =IF(ISNUMBER('3b.User Input-Use&EOL'!$D$11),IF('3b.User Input-Use&EOL'!O11>12,('4.Data comparisons'!$J$124-'4.Data comparisons'!$W$121)*'3b.User Input-Use&EOL'!D11,('4.Data comparisons'!$J$124-'4.Data comparisons'!$W$121)*'3b.User Input-Use&EOL'!D11*'3b.User Input-Use&EOL'!$O$11/12),0) -> 0 | X135: kWh/y | Y135: =IF(ISNUMBER('3b.User Input-Use&EOL'!$D$12),IF('3b.User Input-Use&EOL'!O12>12,('4.Data comparisons'!$L$124-'4.Data comparisons'!$Y$121)*'3b.User Input-Use&EOL'!D12,('4.Data comparisons'!$L$124-'4.Data comparisons'!$Y$121)*'3b.User Input-Use&EOL'!D12*'3b.User Input-Use&EOL'!$O$12/12),0) -> 0 | Z135: kWh/y
A136: FEC | B136: Mass of PWB | C136: =IF(OR(ISNUMBER('3b.User Input-Use&EOL'!$D$17),ISNUMBER('3b.User Input-Use&EOL'!$D$24)),F136,"n/a") -> n/a | D136: =IF(ISNONTEXT(C136),"kg"," ") ->  | F136: ='8a. Assumptions-Baseline'!$D$42 -> 1.01758 | G136: ='8a. Assumptions-Baseline'!$E$177 -> kg | H136: n/a | J136: n/a | L136: n/a | N136: n/a | R136: ENERGY STAR 5.* | S136: =IF(ISNUMBER('3b.User Input-Use&EOL'!$E$9),IF('3b.User Input-Use&EOL'!O9>12,('4.Data comparisons'!$F$126-'4.Data comparisons'!$S$122)*'3b.User Input-Use&EOL'!E9,('4.Data comparisons'!$F$126-'4.Data comparisons'!$S$122)*'3b.User Input-Use&EOL'!E9*'3b.User Input-Use&EOL'!$O$9/12),0) -> 0 | T136: kWh/y | U136: n/a | W136: =IF(ISNUMBER('3b.User Input-Use&EOL'!$E$11),IF('3b.User Input-Use&EOL'!O11>12,('4.Data comparisons'!$J$126-'4.Data comparisons'!$W$122)*'3b.User Input-Use&EOL'!E11,('4.Data comparisons'!$J$126-'4.Data comparisons'!$W$122)*'3b.User Input-Use&EOL'!E11*'3b.User Input-Use&EOL'!$O$11/12),0) -> 0 | X136: kWh/y | Y136: =IF(ISNUMBER('3b.User Input-Use&EOL'!$E$12),IF('3b.User Input-Use&EOL'!O12>12,('4.Data comparisons'!$L$126-'4.Data comparisons'!$Y$122)*'3b.User Input-Use&EOL'!E12,('4.Data comparisons'!$L$126-'4.Data comparisons'!$Y$122)*'3b.User Input-Use&EOL'!E12*'3b.User Input-Use&EOL'!$O$12/12),0) -> 0 | Z136: kWh/y
A137: FEC | B137: Mass of resin in wire and cable | C137: =IF(OR(ISNUMBER('3b.User Input-Use&EOL'!$D$17),ISNUMBER('3b.User Input-Use&EOL'!$D$24)),F137,"n/a") -> n/a | F137: ='8a. Assumptions-Baseline'!$D$45 -> 0.38006 | G137: ='8a. Assumptions-Baseline'!$E$45 -> kg | H137: n/a | J137: n/a | L137: n/a | N137: n/a | R137: UEC savings >0
A138: FEC | B138: Total mass of hazardous waste | C138: =IF(OR(ISNUMBER('3b.User Input-Use&EOL'!$D$17),ISNUMBER('3b.User Input-Use&EOL'!$D$24)),F138,"n/a") -> n/a | F138: =SUM(F136:F137) -> 1.39764 | G138: =G136 -> kg | H138: n/a | J138: n/a | L138: n/a | N138: n/a | S138: CPU | U138: CRT | W138: LCD | Y138: Notebook
B139: CRT | F139: CPU | H139: CRT | J139: LCD | L139: Notebook | N139: Mobile phone | R139: ENERGY STAR 4.* | S139: =IF(S135>0,S135,0) -> 0 | T139: kWh/y | U139: =IF(U135>0,U135,0) -> 0 | V139: kWh/y | W139: =IF(W135>0,W135,0) -> 0 | X139: kWh/y | Y139: =IF(Y135>0,Y135,0) -> 0 | Z139: kWh/y
A140: FEC | B140: Mass of product | C140: =IF(OR(ISNUMBER('3b.User Input-Use&EOL'!$D$18),ISNUMBER('3b.User Input-Use&EOL'!$D$25)),H140,"n/a") -> n/a | F140: n/a | H140: ='8a. Assumptions-Baseline'!$D$84 -> 18.4 | I140: ='8a. Assumptions-Baseline'!$E$84 -> kg | J140: n/a | L140: n/a | N140: n/a | R140: ENERGY STAR 5.* | S140: =IF(S136>0,S136,0) -> 0 | T140: kWh/y | U140: n/a | W140: =IF(W136>0,W136,0) -> 0 | X140: kWh/y | Y140: =IF(Y136>0,Y136,0) -> 0 | Z140: kWh/y
A141: FEC | B141: Mass of PWB | C141: =IF(OR(ISNUMBER('3b.User Input-Use&EOL'!$D$18),ISNUMBER('3b.User Input-Use&EOL'!$D$25)),H141,"n/a") -> n/a | F141: n/a | H141: ='8a. Assumptions-Baseline'!$D$86 -> 1.6744 | I141: ='8a. Assumptions-Baseline'!$E$86 -> kg | J141: n/a | L141: n/a | N141: n/a
A142: FEC | B142: Mass of leaded glass | C142: =IF(OR(ISNUMBER('3b.User Input-Use&EOL'!$D$18),ISNUMBER('3b.User Input-Use&EOL'!$D$25)),H142,"n/a") -> n/a | F142: n/a | H142: ='8a. Assumptions-Baseline'!$D$87 -> 8.049448 | I142: ='8a. Assumptions-Baseline'!$E$87 -> kg | J142: n/a | L142: n/a | N142: n/a
A143: FEC | B143: Mass of resin in wire and cable | C143: =IF(OR(ISNUMBER('3b.User Input-Use&EOL'!$D$18),ISNUMBER('3b.User Input-Use&EOL'!$D$25)),H143,"n/a") -> n/a | F143: n/a | H143: ='8a. Assumptions-Baseline'!$D$89 -> 0.4784 | I143: ='8a. Assumptions-Baseline'!$E$89 -> kg | J143: n/a | L143: n/a | N143: n/a
A144: FEC | B144: Total mass of hazardous waste | C144: =IF(OR(ISNUMBER('3b.User Input-Use&EOL'!$D$18),ISNUMBER('3b.User Input-Use&EOL'!$D$25)),H144,"n/a") -> n/a | F144: n/a | H144: =SUM(H141:H143) -> 10.202248 | I144: =I141 -> kg | J144: n/a | L144: n/a | N144: n/a
B145: LCD | F145: CPU | H145: CRT | J145: LCD | L145: Notebook | N145: Mobile phone
A146: FEC | B146: Mass of product | C146: =IF(OR(ISNUMBER('3b.User Input-Use&EOL'!$D$19),ISNUMBER('3b.User Input-Use&EOL'!$D$26)),J146,"n/a") -> n/a | F146: n/a | H146: n/a | J146: ='8a. Assumptions-Baseline'!$D$129 -> 6.26 | K146: ='8a. Assumptions-Baseline'!$E$129 -> kg | L146: n/a | N146: n/a
A147: FEC | B147: Mass of PWB | C147: =IF(OR(ISNUMBER('3b.User Input-Use&EOL'!$D$19),ISNUMBER('3b.User Input-Use&EOL'!$D$26)),J147,"n/a") -> n/a | F147: n/a | H147: n/a | J147: ='8a. Assumptions-Baseline'!$D$131 -> 0.43194 | K147: ='8a. Assumptions-Baseline'!$E$131 -> kg | L147: n/a | N147: n/a
A148: FEC | B148: Mass of CCFL | C148: =IF(OR(ISNUMBER('3b.User Input-Use&EOL'!$D$19),ISNUMBER('3b.User Input-Use&EOL'!$D$26)),J148,"n/a") -> n/a | F148: n/a | H148: n/a | J148: ='8a. Assumptions-Baseline'!$D$133 -> 0.006 | K148: ='8a. Assumptions-Baseline'!$E$133 -> kg | L148: n/a | N148: n/a
A149: FEC | B149: Mass of resin in wire and cable | C149: =IF(OR(ISNUMBER('3b.User Input-Use&EOL'!$D$19),ISNUMBER('3b.User Input-Use&EOL'!$D$26)),J149,"n/a") -> n/a | F149: n/a | H149: n/a | J149: ='8a. Assumptions-Baseline'!$D$134 -> 0.02504 | K149: ='8a. Assumptions-Baseline'!$E$134 -> kg | L149: n/a | N149: n/a
A150: FEC | B150: Total mass of hazardous waste | C150: =IF(OR(ISNUMBER('3b.User Input-Use&EOL'!$D$19),ISNUMBER('3b.User Input-Use&EOL'!$D$26)),J150,"n/a") -> n/a | F150: n/a | H150: n/a | J150: =SUM(J147:J149) -> 0.46298 | K150: =K147 -> kg | L150: n/a | N150: n/a
B151: Notebook | F151: CPU | H151: CRT | J151: LCD | L151: Notebook | N151: Mobile phone
A152: FEC | B152: Mass of product | C152: =IF(OR(ISNUMBER('3b.User Input-Use&EOL'!$D$20),ISNUMBER('3b.User Input-Use&EOL'!$D$27)),L152,"n/a") -> n/a | F152: n/a | H152: n/a | J152: n/a | L152: ='8a. Assumptions-Baseline'!$D$175 -> 3.55 | M152: ='8a. Assumptions-Baseline'!$E$175 -> kg | N152: n/a
A153: FEC | B153: Mass of PWB | C153: =IF(OR(ISNUMBER('3b.User Input-Use&EOL'!$D$20),ISNUMBER('3b.User Input-Use&EOL'!$D$27)),L153,"n/a") -> n/a | F153: n/a | H153: n/a | J153: n/a | L153: ='8a. Assumptions-Baseline'!$D$177 -> 0.5183 | M153: ='8a. Assumptions-Baseline'!$E$177 -> kg | N153: n/a
A154: FEC | B154: Mass of CCFL | C154: =IF(OR(ISNUMBER('3b.User Input-Use&EOL'!$D$20),ISNUMBER('3b.User Input-Use&EOL'!$D$27)),L154,"n/a") -> n/a | F154: n/a | H154: n/a | J154: n/a | L154: ='8a. Assumptions-Baseline'!$D$179 -> 0.0014 | M154: ='8a. Assumptions-Baseline'!$E$179 -> kg | N154: n/a
A155: FEC | B155: Mass of resin in wire and cable | C155: =IF(OR(ISNUMBER('3b.User Input-Use&EOL'!$D$20),ISNUMBER('3b.User Input-Use&EOL'!$D$27)),L155,"n/a") -> n/a | F155: n/a | H155: n/a | J155: n/a | L155: ='8a. Assumptions-Baseline'!$D$180 -> 0.0213 | M155: ='8a. Assumptions-Baseline'!$E$180 -> kg | N155: n/a
A156: FEC | B156: Total mass of hazardous waste | C156: =IF(OR(ISNUMBER('3b.User Input-Use&EOL'!$D$20),ISNUMBER('3b.User Input-Use&EOL'!$D$27)),L156,"n/a") -> n/a | F156: n/a | H156: n/a | J156: n/a | L156: =SUM(L153:L155) -> 0.541 | M156: =M153 -> kg | N156: n/a
B157: Mobile Phone | F157: CPU | H157: CRT | J157: LCD | L157: Notebook | N157: Mobile phone
A158: FEC | B158: Mass of product (with battery) | C158: =IF(OR(ISNUMBER('3b.User Input-Use&EOL'!$D$21),ISNUMBER('3b.User Input-Use&EOL'!$D$28)),N158,"n/a") -> n/a | F158: n/a | H158: n/a | J158: n/a | L158: n/a | N158: ='8a. Assumptions-Baseline'!$D$186 -> 0.133 | O158: ='8a. Assumptions-Baseline'!$E$186 -> kg
A159: FEC | B159: Mass of product (without battery) | C159: =IF(OR(ISNUMBER('3b.User Input-Use&EOL'!$D$21),ISNUMBER('3b.User Input-Use&EOL'!$D$28)),N159,"n/a") -> n/a | F159: n/a | H159: n/a | J159: n/a | L159: n/a | N159: ='8a. Assumptions-Baseline'!$D$186-'8a. Assumptions-Baseline'!$D$187 -> 0.08866666667 | O159: ='8a. Assumptions-Baseline'!$E$186 -> kg
A160: FEC | B160: Mass of PWB | C160: =IF(OR(ISNUMBER('3b.User Input-Use&EOL'!$D$21),ISNUMBER('3b.User Input-Use&EOL'!$D$28)),N160,"n/a") -> n/a | F160: n/a | H160: n/a | J160: n/a | L160: n/a | N160: ='8a. Assumptions-Baseline'!$D$195 -> 0.027398 | O160: ='8a. Assumptions-Baseline'!$E$195 -> kg
A161: FEC | B161: Total mass of hazardous waste | C161: =IF(OR(ISNUMBER('3b.User Input-Use&EOL'!$D$21),ISNUMBER('3b.User Input-Use&EOL'!$D$28)),N161,"n/a") -> n/a | F161: n/a | H161: n/a | J161: n/a | L161: n/a | N161: =SUM(N160) -> 0.027398 | O161: =O160 -> kg

Sheet 5a. RESULTS-savings
A1: RESULTS - TABLES
E3: Results represent the following user selections:
E4: Purchasing (Sheets 3a and 3c): | H4: ID:
E5: =IF('4.Data comparisons'!$C$6="","",'3c.Alt user input-Purchasing'!$I$8) -> 1 | F5: =IF('3c.Alt user input-Purchasing'!$I$12="Please provide in Sheet 3a","no input",IF('3c.Alt user input-Purchasing'!$I$12="n/a","non EPEAT",'3c.Alt user input-Purchasing'!$I$12)) -> no input | G5: =IF('4.Data comparisons'!$C$6="Please provide in Sheet 3a","",'4.Data comparisons'!$C$6) ->  | H5: =IF(ISBLANK('3a.User input-Purchasing'!$D$10),"no user ID given",'3a.User input-Purchasing'!$D$10) -> no user ID given
E6: =IF('4.Data comparisons'!$C$43="","",'3c.Alt user input-Purchasing'!$I$41) -> 1 | F6: =IF('3c.Alt user input-Purchasing'!$I$45="Please provide in Sheet 3a","no input",IF('3c.Alt user input-Purchasing'!$I$45="n/a","non EPEAT",'3c.Alt user input-Purchasing'!$I$45)) -> no input | G6: =IF('4.Data comparisons'!$C$43="Please provide in Sheet 3a","",'4.Data comparisons'!$C$43) ->  | H6: =IF(ISBLANK('3a.User input-Purchasing'!$D$16),"no user ID given",'3a.User input-Purchasing'!$D$16) -> no user ID given
E7: =IF('4.Data comparisons'!$C$80="","",'3c.Alt user input-Purchasing'!$I$74) -> 1 | F7: =IF('3c.Alt user input-Purchasing'!$I$78="Please provide in Sheet 3a","no input",IF('3c.Alt user input-Purchasing'!$I$78="n/a","non EPEAT",'3c.Alt user input-Purchasing'!$I$78)) -> no input | G7: =IF('4.Data comparisons'!$C$80="Please provide in Sheet 3a","",'4.Data comparisons'!$C$80) ->  | H7: =IF(ISBLANK('3a.User input-Purchasing'!$D$22),"no user ID given",'3a.User input-Purchasing'!$D$22) -> no user ID given
E8: Use (Sheet 3b):
E9: =IF(AND('3b.User Input-Use&EOL'!$D$9="",'3b.User Input-Use&EOL'!$E$9=""),"no input",SUM('3b.User Input-Use&EOL'!$D$9,'3b.User Input-Use&EOL'!$E$9)) -> no input | F9: CPUs | G9: =IF(AND('3b.User Input-Use&EOL'!$D$11="",'3b.User Input-Use&EOL'!$E$11=""),"no input",SUM('3b.User Input-Use&EOL'!$D$11,'3b.User Input-Use&EOL'!$E$11)) -> no input | H9: LCDs
E10: =IF(AND('3b.User Input-Use&EOL'!$D$10="",'3b.User Input-Use&EOL'!$E$10=""),"no input",SUM('3b.User Input-Use&EOL'!$D$10,'3b.User Input-Use&EOL'!$E$10)) -> no input | F10: CRTs | G10: =IF(AND('3b.User Input-Use&EOL'!$D$12="",'3b.User Input-Use&EOL'!$E$12=""),"no input",SUM('3b.User Input-Use&EOL'!$D$12,'3b.User Input-Use&EOL'!$E$12)) -> no input | H10: Notebooks
E11: End-of-life (Sheet 3b):
E12: =IF('3b.User Input-Use&EOL'!$D$17="","no input",'3b.User Input-Use&EOL'!$D$17) -> no input | F12: Reused CPUs | H12: =IF('3b.User Input-Use&EOL'!$D$24="","no input",'3b.User Input-Use&EOL'!$D$24) -> no input | I12: Recycled CPUs
E13: =IF('3b.User Input-Use&EOL'!$D$18="","no input",'3b.User Input-Use&EOL'!$D$18) -> no input | F13: Reused CRTs | H13: =IF('3b.User Input-Use&EOL'!$D$25="","no input",'3b.User Input-Use&EOL'!$D$25) -> no input | I13: Recycled CRTs
E14: =IF('3b.User Input-Use&EOL'!$D$19="","no input",'3b.User Input-Use&EOL'!$D$19) -> no input | F14: Reused LCDs | H14: =IF('3b.User Input-Use&EOL'!$D$26="","no input",'3b.User Input-Use&EOL'!$D$26) -> no input | I14: Recycled LCDs
E15: =IF('3b.User Input-Use&EOL'!$D$20="","no input",'3b.User Input-Use&EOL'!$D$20) -> no input | F15: Reused Notebooks | H15: =IF('3b.User Input-Use&EOL'!$D$27="","no input",'3b.User Input-Use&EOL'!$D$27) -> no input | I15: Recycled Notebooks
E16: =IF('3b.User Input-Use&EOL'!$D$21="","no input",'3b.User Input-Use&EOL'!$D$21) -> no input | F16: Reused Mobile Phones | H16: =IF('3b.User Input-Use&EOL'!$D$28="","no input",'3b.User Input-Use&EOL'!$D$28) -> no input | I16: Recycled Mobile Phones
H17: =IF('3b.User Input-Use&EOL'!$D$29="","no input",'3b.User Input-Use&EOL'!$D$29) -> no input | I17: Recycled Mixed Electronics (kg)
B19: CRITERIA/ATTRIBUTES/ACTIONS | E19: SAVINGS (difference from baseline) (kWh, kg, or $) (savings are presented in scientific notation, e.g., 1.23E+06 = 1,230,000; and 1.23E-02 = 0.0123)
A21: Criteria reference (E=EPEAT) | B21: For explanations of calculations see Sheet 5b. | C21: Graph Labels | D21: Alternatives/ Affected processes considered | E21: Energy savings | F21: Primary material savings | G21: Greenhouse gas emission savings | H21: Air emission savings | I21: Water emission savings | J21: Toxic material savings | K21: Pb | L21: Hg | M21: Cd | N21: Cr6+ | O21: PBB | P21: PBDE | Q21: Municipal solid waste savings | R21: Hazardous waste savings | S21: Cost savings
E22: (kWh) | F22: (kg) | G22: (kg of CE) | H22: (kg) | I22: (kg) | J22: (kg) | K22: (kg) | L22: (kg) | M22: (kg) | N22: (kg) | O22: (kg) | P22: (kg) | Q22: (kg) | R22: (kg) | S22: ($)
A23: Grand Total: Lifetime of products, all life-cycle phases | E23: =E24+E28+E29 -> 0 | F23: 0 | G23: 0 | H23: 0 | I23: 0 | J23: =J24+J28+J29 -> 0 | K23: =K24 -> 0 | L23: 0 | M23: 0 | N23: 0 | O23: 0 | P23: 0 | Q23: 0 | R23: 0 | S23: 0
A24: Total: Purchasing, all products | E24: =SUM(E25:E27) -> 0 | F24: =SUM(F25:F27) -> 0 | G24: 0 | H24: 0 | I24: 0 | J24: 0 | K24: 0 | L24: 0 | M24: 0 | N24: 0 | O24: 0 | P24: 0 | Q24: 0 | R24: 0 | S24: 0
A25: Subtotal: Product 1 purchase | E25: =E112 -> 0 | F25: =F112 -> 0 | G25: =G112 -> 0 | H25: 0 | I25: 0 | J25: 0 | K25: 0 | L25: 0 | M25: 0 | N25: 0 | O25: 0 | P25: 0 | Q25: 0 | R25: =R112 -> 0 | S25: =S112 -> 0
A26: Subtotal: Product 2 purchase | E26: =E146 -> 0 | F26: =F146 -> 0 | G26: 0 | H26: 0 | I26: 0 | J26: =J146 -> 0 | K26: 0 | L26: =L146 -> 0 | M26: 0 | N26: 0 | O26: 0 | P26: 0 | Q26: 0 | R26: 0 | S26: 0
A27: Subtotal: Product 3 purchase | E27: =E180 -> 0 | F27: =F180 -> 0 | G27: 0 | H27: 0 | I27: 0 | J27: 0 | K27: 0 | L27: =L180 -> 0 | M27: 0 | N27: 0 | O27: 0 | P27: 0 | Q27: 0 | R27: 0 | S27: 0
A28: Total: Use | E28: =E187 -> 0 | F28: =F187 -> 0 | G28: 0 | H28: 0 | I28: 0 | J28: 0 | K28: Combined into preceding column | Q28: 0 | R28: 0 | S28: 0
A29: Total: End-of-life management | E29: =SUM(E30:E32) -> 0 | F29: =SUM(F30:F32) -> 0 | G29: 0 | H29: 0 | I29: 0 | J29: 0 | K29: Combined into preceding column | Q29: 0 | R29: 0 | S29: 0
A30: Subtotal: Computers and monitors | E30: =E191+E194 -> 0 | F30: =F191+F194 -> 0 | G30: 0 | H30: 0 | I30: 0 | J30: 0 | K30: =K191 -> Combined into preceding column | Q30: =Q191+Q194 -> 0 | R30: 0 | S30: 0
A31: Subtotal: Mobile phones | E31: =E192+E195 -> 0 | F31: =F192+F195 -> 0 | G31: 0 | H31: 0 | I31: 0 | J31: 0 | K31: =K192 -> Combined into preceding column | Q31: =Q192+Q195 -> 0 | R31: 0 | S31: 0
A32: Subtotal: Mixed electronics | E32: =E196 -> 0 | F32: =F196 -> 0 | G32: 0 | H32: 0 | I32: 0 | J32: 0 | K32: =K196 -> Combined into preceding column | Q32: =Q196 -> 0 | R32: 0 | S32: 0
A34: Grand Total: First Year, all life-cycle phases | E34: =E35+E39+E40 -> 0 | F34: 0 | G34: 0 | H34: 0 | I34: 0 | J34: 0 | K34: =K35 -> 0 | L34: 0 | M34: 0 | N34: 0 | O34: 0 | P34: 0 | Q34: 0 | S34: 0
A35: Total: Purchasing, all products | E35: =SUM(E36:E38) -> 0 | F35: =SUM(F36:F38) -> 0 | G35: 0 | H35: 0 | I35: 0 | J35: 0 | K35: 0 | L35: 0 | M35: 0 | N35: 0 | O35: 0 | P35: 0 | Q35: 0 | S35: 0
A36: Subtotal: Product 1 purchase | E36: =E113 -> 0 | F36: =F113 -> 0 | G36: 0 | H36: 0 | I36: 0 | J36: 0 | K36: 0 | L36: 0 | M36: 0 | N36: 0 | O36: 0 | P36: 0 | Q36: 0 | S36: 0
A37: Subtotal: Product 2 purchase | E37: =E147 -> 0 | F37: =F147 -> 0 | G37: 0 | H37: 0 | I37: 0 | J37: 0 | K37: 0 | L37: 0 | M37: 0 | N37: 0 | O37: 0 | P37: 0 | Q37: 0 | S37: =S147 -> 0
A38: Subtotal: Product 3 purchase | E38: =E181 -> 0 | F38: =F181 -> 0 | G38: 0 | H38: 0 | I38: 0 | J38: 0 | K38: 0 | L38: 0 | M38: 0 | N38: 0 | O38: 0 | P38: 0 | Q38: 0 | S38: =S181 -> 0
A39: Total: Use | E39: =E189 -> 0 | F39: =F189 -> 0 | G39: 0 | H39: 0 | I39: 0 | J39: 0 | K39: Combined into preceding column | Q39: 0 | R39: 0 | S39: 0
A40: Total: End-of-life management | E40: =SUM(E41:E43) -> 0 | F40: 0 | G40: 0 | H40: 0 | I40: 0 | J40: 0 | K40: Combined into preceding column | Q40: 0 | R40: 0 | S40: 0
A41: Subtotal: Computers and monitors | E41: =E191+E194 -> 0 | F41: =F191+F194 -> 0 | G41: 0 | H41: 0 | I41: 0 | J41: 0 | K41: =K191 -> Combined into preceding column | Q41: =Q191+Q194 -> 0 | R41: 0 | S41: 0
A42: Subtotal: Mobile phones | E42: =E192+E195 -> 0 | F42: =F192+F195 -> 0 | G42: 0 | H42: 0 | I42: 0 | J42: 0 | K42: =K192 -> Combined into preceding column | Q42: =Q192+Q195 -> 0 | R42: 0 | S42: 0
A43: Subtotal: Mixed electronics | E43: =E196 -> 0 | F43: =F196 -> 0 | G43: 0 | H43: 0 | I43: 0 | J43: 0 | K43: Combined into preceding column | Q43: =Q196 -> 0 | R43: 0 | S43: 0
A45: Breakdown of purchases by criteria: All products
A46: PURCHASING:
B47: Reduced Toxicity
A48: E 4.1.1.1 | B48: RoHS compliance-Pb | C48: Pb (P) | D48: solder | J48: =SUM(J84,J118,J152) -> 0 | K48: =SUM(K84,K118,K152) -> 0 | R48: =SUM(R84,R118,R152) -> 0
A49: E 4.1.1.1 | B49: RoHS compliance-Hg (excludes lamps) | C49: Hg (P) | D49: none now | J49: =SUM(J85,J119,J153) -> 0 | L49: =SUM(L85,L119,L153) -> 0
A50: E 4.1.3.1-2 | B50: Hg in light source; max avg of 3 mg Hg/lamp | C50: Hg in light (P) | D50: LCD backlight | J50: 0 | L50: =SUM(L86,L120,L154) -> 0
A51: E 4.1.3.3 | B51: Hg-free lamps | C51: Hg-free lamp (P) | D51: LCD backlight | J51: 0 | L51: =SUM(L87,L121,L155) -> 0 | R51: =SUM(R87,R121,R155) -> 0
A52: E 4.1.1.1 | B52: RoHS compliance-Cd | C52: Cd (P) | D52: none now | J52: 0 | M52: =SUM(M88,M122,M156) -> 0 | R52: incorporated above
A53: E4.1.1.1 | B53: RoHS compliance-Cr6+ | C53: Cr6+ (P) | D53: none now | J53: 0 | N53: =SUM(N89,N123,N157) -> 0 | R53: incorporated above
A54: E 4.1.1.1 | B54: RoHS compliance-PBB | C54: PBB (P) | D54: none now | J54: 0 | O54: =SUM(O90,O124,O158) -> 0 | R54: incorporated above
A55: E 4.1.1.1 | B55: RoHS compliance-PBDE | C55: PBDE (P) | D55: none now | J55: 0 | P55: =SUM(P91,P125,P159) -> 0 | R55: incorporated above
B56: SUBTOTAL | C56: Toxicity (P) | J56: =SUM(J48:J55) -> 0 | K56: 0 | L56: 0 | M56: 0 | N56: 0 | O56: 0 | P56: 0 | R56: =SUM(R48:R55) -> 0
B57: Material Use
A58: E 4.2.1.1-3 | B58: Recycled content in product | C58: RC-prod (P) | D58: energy prod. | E58: =SUM(E94,E128,E162) -> 0 | F58: =SUM(F94,F128,F162) -> 0 | G58: =SUM(G94,G128,G162) -> 0 | H58: =SUM(H94,H128,H162) -> 0 | I58: =SUM(I94,I128,I162) -> 0 | Q58: =SUM(Q94,Q128,Q162) -> 0 | S58: =SUM(S94,S128,S162) -> 0
A59: E 4.2.2.1-2 | B59: Renewable/biobased content in product | C59: Renew/bio-prod (P) | D59: energy prod. | E59: * * This criterion is not calculated in this verstion of this calculator.* *
B60: SUBTOTAL | C60: Material Use (P) | E60: =SUM(E58:E59) -> 0 | F60: =SUM(F58:F59) -> 0 | G60: =SUM(G58:G59) -> 0 | H60: =SUM(H58:H59) -> 0 | I60: =SUM(I58:I59) -> 0 | Q60: =SUM(Q58:Q59) -> 0 | S60: =SUM(S58:S59) -> 0
B61: Packaging
A62: E 4.8.3.1-2 | B62: Average recycled content in corrugated packaging | C62: RC-pkg-corr (P) | D62: energy prod. | E62: =SUM(E98,E132,E166) -> 0 | F62: 0 | G62: 0 | H62: 0 | I62: 0 | Q62: =SUM(Q98,Q132,Q166) -> 0 | S62: =SUM(S98,S132,S166) -> 0
A63: E 4.8.3.1-2 | B63: Average recycled content in plastic/foam packaging | C63: RC-pkg-plastic (P) | D63: energy prod. | E63: 0 | F63: 0 | G63: 0 | H63: 0 | I63: 0 | Q63: 0 | S63: 0
A64: E 4.8.3.1-2 | B64: Average recycled content in other packaging | C64: RC-pkg-other (P) | E64: 0 | F64: 0 | G64: 0 | H64: 0 | I64: 0 | Q64: 0 | S64: 0
A65: E 4.8.3.1-2 | B65: Minimum 25% for recycled content in corrugated packaging (CPG) | C65: RC-pkg-CPG (P) | E65: 0 | F65: 0 | G65: 0 | H65: 0 | I65: 0 | Q65: 0 | S65: 0
A66: E 5.8.5.1 | B66: Packaging avoided per unit by packaging reuse | C66: Reuse-pkg (P) | E66: =SUM(E102,E136,E170) -> 0 | F66: 0 | G66: 0 | H66: 0 | I66: 0 | Q66: 0 | S66: 0
B67: SUBTOTAL | C67: Packaging (P) | E67: =SUM(E103,E137,E171) -> 0 | F67: 0 | G67: 0 | H67: 0 | I67: 0 | Q67: 0 | S67: 0
B68: Energy (Product Lifetime)
A69: E 4.5.1.1 | B69: ENERGY STAR 5.* | C69: EnStar4.0 (P) | D69: energy prod. | E69: =SUM(E105,E139,E173) -> 0 | F69: =SUM(F105,F139,F173) -> 0 | G69: =SUM(G105,G139,G173) -> 0 | H69: =SUM(H105,H139,H173) -> 0 | I69: =SUM(I105,I139,I173) -> 0 | S69: =SUM(S105,S139,S173) -> 0
A70: E 4.5.1.2 | B70: ENERGY STAR early adopter | E70: * * This criterion is not calculated in this verstion of this calculator.* *
B71: SUBTOTAL | C71: Energy Star® (P) | E71: =SUM(E105,E139,E173) -> 0 | F71: =SUM(F105,F139,F173) -> 0 | G71: =SUM(G105,G139,G173) -> 0 | H71: =SUM(H105,H139,H173) -> 0 | I71: =SUM(I105,I139,I173) -> 0 | S71: =SUM(S105,S139,S173) -> 0
B72: Energy (First Year)
A73: E 4.5.1.1 | B73: ENERGY STAR 5.* | C73: EnStar4.0 (P) | D73: energy prod. | E73: =SUM(E108,E142,E176) -> 0 | F73: =SUM(F108,F142,F176) -> 0 | G73: =SUM(G108,G142,G176) -> 0 | H73: =SUM(H108,H142,H176) -> 0 | I73: =SUM(I108,I142,I176) -> 0 | S73: =SUM(S108,S142,S176) -> 0
A74: E 4.5.1.2 | B74: ENERGY STAR early adopter | E74: * * This criterion is not calculated in this verstion of this calculator.* *
B75: SUBTOTAL | C75: Energy Star® (P) | E75: =SUM(E108,E142,E176) -> 0 | F75: =SUM(F108,F142,F176) -> 0 | G75: =SUM(G108,G142,G176) -> 0 | H75: =SUM(H108,H142,H176) -> 0 | I75: =SUM(I108,I142,I176) -> 0 | S75: =SUM(S108,S142,S176) -> 0
B76: Product Cost
B77: Cost | C77: Cost-prod | E77: * * This criterion is not calculated in this verstion of this calculator.* *
B78: Lifetime PURCHASING SUBTOTAL (All products) | C78: PURCHASING | E78: =SUM(E56,E60,E67,E71) -> 0 | F78: =SUM(F56,F60,F67,F71) -> 0 | G78: 0 | H78: 0 | I78: 0 | J78: 0 | K78: 0 | L78: 0 | M78: 0 | N78: 0 | O78: 0 | P78: 0 | Q78: 0 | R78: 0 | S78: 0
B79: First Year PURCHASING SUBTOTAL (All products) | E79: =SUM(E56,E60,E67,E75) -> 0 | F79: =SUM(F56,F60,F67,F75) -> 0 | G79: 0 | H79: 0 | I79: 0 | J79: 0 | K79: 0 | L79: 0 | M79: 0 | N79: 0 | O79: 0 | P79: 0 | Q79: 0 | S79: 0
A81: Breakdown of purchases by criteria: Product 1 | U81: INTERIM CALCULATIONS
A82: PURCHASING: | F82: Product 1: | G82: ='3c.Alt user input-Purchasing'!$I$8 -> 1 | H82: =IF('3c.Alt user input-Purchasing'!$I$12="Please provide in Sheet 3a","no input",IF('3c.Alt user input-Purchasing'!$I$12="n/a","non EPEAT",'3c.Alt user input-Purchasing'!$I$12)) -> no input | I82: =IF('4.Data comparisons'!$C$6="Please provide in Sheet 3a","",'4.Data comparisons'!$C$6) ->  | U82: Product 1:
B83: Reduced Toxicity
A84: E 4.1.1.1 | B84: RoHS compliance-Pb | C84: Pb | D84: solder | J84: =SUM(K84:P84) -> 0 | K84: =V89 -> 0 | R84: =V94 -> 0 | U84: Toxic material savings from RoHS (kg) | V84: Pb | W84: Hg | X84: Cd | Y84: Cr+ | Z84: PBB | AA84: PBDE
A85: E 4.1.1.1 | B85: RoHS compliance-Hg (excludes lamps) | C85: Hg | D85: none now | J85: =SUM(K85:P85) -> 0 | L85: =W89 -> 0 | U85: CPU | V85: =IF('4.Data comparisons'!$C$6="CPU",('4.Data comparisons'!$F$8-'4.Data comparisons'!$C$8)/'8c.Assumptions-Calculations'!$A$198*'3c.Alt user input-Purchasing'!$I$8,"n/a") -> n/a | W85: =IF('4.Data comparisons'!$C$6="CPU",('4.Data comparisons'!F$9-'4.Data comparisons'!C$9)/'8c.Assumptions-Calculations'!$A$198*'3c.Alt user input-Purchasing'!$I$8,"n/a") -> n/a | X85: =IF('4.Data comparisons'!$C$6="CPU",('4.Data comparisons'!F$13-'4.Data comparisons'!C$13)/'8c.Assumptions-Calculations'!$A$198*'3c.Alt user input-Purchasing'!$I$8,"n/a") -> n/a | Y85: =IF('4.Data comparisons'!$C$6="CPU",('4.Data comparisons'!F$14-'4.Data comparisons'!C$14)/'8c.Assumptions-Calculations'!$A$198*'3c.Alt user input-Purchasing'!$I$8,"n/a") -> n/a | Z85: =IF('4.Data comparisons'!$C$6="CPU",('4.Data comparisons'!F$15-'4.Data comparisons'!C$15)/'8c.Assumptions-Calculations'!$A$198*'3c.Alt user input-Purchasing'!$I$8,"n/a") -> n/a | AA85: =IF('4.Data comparisons'!$C$6="CPU",('4.Data comparisons'!F$16-'4.Data comparisons'!C$16)/'8c.Assumptions-Calculations'!$A$198*'3c.Alt user input-Purchasing'!$I$8,"n/a") -> n/a
A86: E 4.1.3.1-2 | B86: Hg in light source; max avg of 3 mgHg/lamp | C86: Hg in light | D86: LCD backlight | J86: 0 | L86: =IF('4.Data comparisons'!$C$12=0,0,(IF('4.Data comparisons'!$C$6="LCD",('4.Data comparisons'!$J$12-'4.Data comparisons'!$C$12)/1000*'3c.Alt user input-Purchasing'!$I$8,IF('4.Data comparisons'!$C$6="Notebook",('4.Data comparisons'!$L$12-'4.Data comparisons'!$C$12)/1000*'3c.Alt user input-Purchasing'!$I$8,0)))) -> 0 | U86: CRT | V86: =IF('4.Data comparisons'!$C$6="CRT",('4.Data comparisons'!H$8-'4.Data comparisons'!C$8)/'8c.Assumptions-Calculations'!$A$198*'3c.Alt user input-Purchasing'!$I$8,"n/a") -> n/a | W86: =IF('4.Data comparisons'!$C$6="CRT",('4.Data comparisons'!H$9-'4.Data comparisons'!C$9)/'8c.Assumptions-Calculations'!$A$198*'3c.Alt user input-Purchasing'!$I$8,"n/a") -> n/a | X86: =IF('4.Data comparisons'!$C$6="CRT",('4.Data comparisons'!H$13-'4.Data comparisons'!C$13)/'8c.Assumptions-Calculations'!$A$198*'3c.Alt user input-Purchasing'!$I$8,"n/a") -> n/a | Y86: =IF('4.Data comparisons'!$C$6="CRT",('4.Data comparisons'!H$14-'4.Data comparisons'!C$14)/'8c.Assumptions-Calculations'!$A$198*'3c.Alt user input-Purchasing'!$I$8,"n/a") -> n/a | Z86: =IF('4.Data comparisons'!$C$6="CRT",('4.Data comparisons'!H$15-'4.Data comparisons'!C$15)/'8c.Assumptions-Calculations'!$A$198*'3c.Alt user input-Purchasing'!$I$8,"n/a") -> n/a | AA86: =IF('4.Data comparisons'!$C$6="CRT",('4.Data comparisons'!H$16-'4.Data comparisons'!C$16)/'8c.Assumptions-Calculations'!$A$198*'3c.Alt user input-Purchasing'!$I$8,"n/a") -> n/a
A87: E 4.1.3.3 | B87: Hg-free lamps | C87: Hg-free lamp | D87: LCD backlight | J87: 0 | L87: =IF('4.Data comparisons'!$C$12=0,IF('4.Data comparisons'!$C$6="LCD",('4.Data comparisons'!$J$12-'4.Data comparisons'!$C$12)/1000*'3c.Alt user input-Purchasing'!$I$8,IF('4.Data comparisons'!$C$6="Notebook",('4.Data comparisons'!$L$12-'4.Data comparisons'!$C$12)/1000*'3c.Alt user input-Purchasing'!$I$8,0)),0) -> 0 | R87: =IF('4.Data comparisons'!$C$6="LCD",('4.Data comparisons'!$J$19-'4.Data comparisons'!$C$19)*'3c.Alt user input-Purchasing'!I8,IF('4.Data comparisons'!$C$6="Notebook",('4.Data comparisons'!$L$19-'4.Data comparisons'!$C$19)*'3c.Alt user input-Purchasing'!I8,0)) -> 0 | U87: LCD | V87: =IF('4.Data comparisons'!$C$6="LCD",('4.Data comparisons'!J$8-'4.Data comparisons'!C$8)/'8c.Assumptions-Calculations'!$A$198*'3c.Alt user input-Purchasing'!$I$8,"n/a") -> n/a | W87: =IF('4.Data comparisons'!$C$6="LCD",('4.Data comparisons'!J$9-'4.Data comparisons'!C$9)/'8c.Assumptions-Calculations'!$A$198*'3c.Alt user input-Purchasing'!$I$8,"n/a") -> n/a | X87: =IF('4.Data comparisons'!$C$6="LCD",('4.Data comparisons'!J$13-'4.Data comparisons'!C$13)/'8c.Assumptions-Calculations'!$A$198*'3c.Alt user input-Purchasing'!$I$8,"n/a") -> n/a | Y87: =IF('4.Data comparisons'!$C$6="LCD",('4.Data comparisons'!J$14-'4.Data comparisons'!C$14)/'8c.Assumptions-Calculations'!$A$198*'3c.Alt user input-Purchasing'!$I$8,"n/a") -> n/a | Z87: =IF('4.Data comparisons'!$C$6="LCD",('4.Data comparisons'!J$15-'4.Data comparisons'!C$15)/'8c.Assumptions-Calculations'!$A$198*'3c.Alt user input-Purchasing'!$I$8,"n/a") -> n/a | AA87: =IF('4.Data comparisons'!$C$6="LCD",('4.Data comparisons'!J$16-'4.Data comparisons'!C$16)/'8c.Assumptions-Calculations'!$A$198*'3c.Alt user input-Purchasing'!$I$8,"n/a") -> n/a
A88: E 4.1.1.1 | B88: RoHS compliance-Cd | C88: Cd | D88: none now | J88: 0 | M88: =X89 -> 0 | R88: incorporated above | U88: Notebook | V88: =IF('4.Data comparisons'!$C$6="Notebook",('4.Data comparisons'!L$8-'4.Data comparisons'!C$8)/'8c.Assumptions-Calculations'!$A$198*'3c.Alt user input-Purchasing'!$I$8, "n/a") -> n/a | W88: =IF('4.Data comparisons'!$C$6="Notebook",('4.Data comparisons'!L$9-'4.Data comparisons'!C$9)/'8c.Assumptions-Calculations'!$A$198*'3c.Alt user input-Purchasing'!$I$8, "n/a") -> n/a | X88: =IF('4.Data comparisons'!$C$6="Notebook",('4.Data comparisons'!L$13-'4.Data comparisons'!C$13)/'8c.Assumptions-Calculations'!$A$198*'3c.Alt user input-Purchasing'!$I$8, "n/a") -> n/a | Y88: =IF('4.Data comparisons'!$C$6="Notebook",('4.Data comparisons'!L$14-'4.Data comparisons'!C$14)/'8c.Assumptions-Calculations'!$A$198*'3c.Alt user input-Purchasing'!$I$8, "n/a") -> n/a | Z88: =IF('4.Data comparisons'!$C$6="Notebook",('4.Data comparisons'!L$15-'4.Data comparisons'!C$15)/'8c.Assumptions-Calculations'!$A$198*'3c.Alt user input-Purchasing'!$I$8, "n/a") -> n/a | AA88: =IF('4.Data comparisons'!$C$6="Notebook",('4.Data comparisons'!L$16-'4.Data comparisons'!C$16)/'8c.Assumptions-Calculations'!$A$198*'3c.Alt user input-Purchasing'!$I$8, "n/a") -> n/a
A89: E4.1.1.1 | B89: RoHS compliance-Cr6+ | C89: Cr6+ | D89: none now | J89: 0 | N89: =Y89 -> 0 | R89: incorporated above | U89: VALUE | V89: =SUM(V85:V88) -> 0 | W89: 0 | X89: 0 | Y89: 0 | Z89: 0 | AA89: 0
A90: E 4.1.1.1 | B90: RoHS compliance-PBB | C90: PBB | D90: none now | J90: 0 | O90: =Z89 -> 0 | R90: incorporated above
A91: E 4.1.1.1 | B91: RoHS compliance-PBDE | C91: PBDE | D91: none now | J91: 0 | P91: =AA89 -> 0 | R91: incorporated above | U91: HW saved from Pb reduced (kg)
B92: SUBTOTAL | C92: Toxicity (P) | J92: =SUM(J84:J91) -> 0 | K92: =SUM(K84:K91) -> 0 | L92: 0 | M92: 0 | N92: 0 | O92: 0 | P92: 0 | R92: 0 | U92: Pb-PWB | V92: =IF('4.Data comparisons'!$C$6="CPU",('4.Data comparisons'!$F$17-'4.Data comparisons'!$C$17)*'3c.Alt user input-Purchasing'!I8,IF('4.Data comparisons'!$C$6="CRT",('4.Data comparisons'!$H$17-'4.Data comparisons'!$C$17)*'3c.Alt user input-Purchasing'!I8,IF('4.Data comparisons'!$C$6="LCD",('4.Data comparisons'!$J$17-'4.Data comparisons'!$C$17)*'3c.Alt user input-Purchasing'!I8,IF('4.Data comparisons'!$C$6="Notebook",('4.Data comparisons'!$L$17-'4.Data comparisons'!$C$17)*'3c.Alt user input-Purchasing'!I8,"n/a")))) -> n/a
B93: Material Use | U93: Pb-W&C | V93: =IF('4.Data comparisons'!$C$6="CPU",('4.Data comparisons'!$F$20-'4.Data comparisons'!$C$20)*'3c.Alt user input-Purchasing'!I8,IF('4.Data comparisons'!$C$6="CRT",('4.Data comparisons'!$H$20-'4.Data comparisons'!$C$20)*'3c.Alt user input-Purchasing'!I8,IF('4.Data comparisons'!$C$6="LCD",('4.Data comparisons'!$J$20-'4.Data comparisons'!$C$20)*'3c.Alt user input-Purchasing'!I8,IF('4.Data comparisons'!$C$6="Notebook",('4.Data comparisons'!$L$20-'4.Data comparisons'!$C$20)*'3c.Alt user input-Purchasing'!I8,"n/a")))) -> n/a
A94: E 4.2.1.1-3 | B94: Recycled content in product | C94: RC-prod | D94: energy prod. | E94: =IF('4.Data comparisons'!$C$6="CPU",('4.Data comparisons'!$C$23-'4.Data comparisons'!$F$23)*'8c.Assumptions-Calculations'!$D$101/'8c.Assumptions-Calculations'!$B$128*'3c.Alt user input-Purchasing'!I8, IF('4.Data comparisons'!$C$6="CRT",('4.Data comparisons'!$C$23-'4.Data comparisons'!$H$23)*'8c.Assumptions-Calculations'!$D$101/'8c.Assumptions-Calculations'!$B$128*'3c.Alt user input-Purchasing'!I8,IF('4.Data comparisons'!$C$6="LCD",('4.Data comparisons'!$C$23-'4.Data comparisons'!$J$23)*'8c.Assumptions-Calculations'!$D$101/'8c.Assumptions-Calculations'!$B$128*'3c.Alt user input-Purchasing'!I8, IF('4.Data comparisons'!$C$6="Notebook",('4.Data comparisons'!$C$23-'4.Data comparisons'!$L$23)*'8c.Assumptions-Calculations'!$D$101/'8c.Assumptions-Calculations'!$B$128*'3c.Alt user input-Purchasing'!I8, 0)))) -> 0 | F94: =IF('4.Data comparisons'!$C$6="CPU",('4.Data comparisons'!$C$23-'4.Data comparisons'!$F$23)*'8c.Assumptions-Calculations'!$E$101*'3c.Alt user input-Purchasing'!I8, IF('4.Data comparisons'!$C$6="CRT",('4.Data comparisons'!$C$23-'4.Data comparisons'!$H$23)*'8c.Assumptions-Calculations'!$E$101*'3c.Alt user input-Purchasing'!I8,IF('4.Data comparisons'!$C$6="LCD",('4.Data comparisons'!$C$23-'4.Data comparisons'!$J$23)*'8c.Assumptions-Calculations'!$E$101*'3c.Alt user input-Purchasing'!I8, IF('4.Data comparisons'!$C$6="Notebook",('4.Data comparisons'!$C$23-'4.Data comparisons'!$L$23)*'8c.Assumptions-Calculations'!$E$101*'3c.Alt user input-Purchasing'!I8, 0)))) -> 0 | G94: =IF('4.Data comparisons'!$C$6="CPU",('4.Data comparisons'!$C$23-'4.Data comparisons'!$F$23)*'8c.Assumptions-Calculations'!$B$160*'3c.Alt user input-Purchasing'!I8, IF('4.Data comparisons'!$C$6="CRT",('4.Data comparisons'!$C$23-'4.Data comparisons'!$H$23)*'8c.Assumptions-Calculations'!$B$160*'3c.Alt user input-Purchasing'!I8,IF('4.Data comparisons'!$C$6="LCD",('4.Data comparisons'!$C$23-'4.Data comparisons'!$J$23)*'8c.Assumptions-Calculations'!$B$160*'3c.Alt user input-Purchasing'!I8, IF('4.Data comparisons'!$C$6="Notebook",('4.Data comparisons'!$C$23-'4.Data comparisons'!$L$23)*'8c.Assumptions-Calculations'!$B$160*'3c.Alt user input-Purchasing'!I8, 0)))) -> 0 | H94: =IF('4.Data comparisons'!$C$6="CPU",('4.Data comparisons'!$C$23-'4.Data comparisons'!$F$23)*'8c.Assumptions-Calculations'!$B$101*'3c.Alt user input-Purchasing'!I8, IF('4.Data comparisons'!$C$6="CRT",('4.Data comparisons'!$C$23-'4.Data comparisons'!$H$23)*'8c.Assumptions-Calculations'!$B$101*'3c.Alt user input-Purchasing'!I8,IF('4.Data comparisons'!$C$6="LCD",('4.Data comparisons'!$C$23-'4.Data comparisons'!$J$23)*'8c.Assumptions-Calculations'!$B$101*'3c.Alt user input-Purchasing'!I8, IF('4.Data comparisons'!$C$6="Notebook",('4.Data comparisons'!$C$23-'4.Data comparisons'!$L$23)*'8c.Assumptions-Calculations'!$B$101*'3c.Alt user input-Purchasing'!I8, 0)))) -> 0 | I94: =IF('4.Data comparisons'!$C$6="CPU",('4.Data comparisons'!$C$23-'4.Data comparisons'!$F$23)*'8c.Assumptions-Calculations'!$C$101*'3c.Alt user input-Purchasing'!I8, IF('4.Data comparisons'!$C$6="CRT",('4.Data comparisons'!$C$23-'4.Data comparisons'!$H$23)*'8c.Assumptions-Calculations'!$C$101*'3c.Alt user input-Purchasing'!I8,IF('4.Data comparisons'!$C$6="LCD",('4.Data comparisons'!$C$23-'4.Data comparisons'!$J$23)*'8c.Assumptions-Calculations'!$C$101*'3c.Alt user input-Purchasing'!I8, IF('4.Data comparisons'!$C$6="Notebook",('4.Data comparisons'!$C$23-'4.Data comparisons'!$L$23)*'8c.Assumptions-Calculations'!$C$101*'3c.Alt user input-Purchasing'!I8, 0)))) -> 0 | Q94: =IF('4.Data comparisons'!$C$6="CPU",('4.Data comparisons'!$C$23-'4.Data comparisons'!$F$23)*'3c.Alt user input-Purchasing'!I8, IF('4.Data comparisons'!$C$6="CRT",('4.Data comparisons'!$C$23-'4.Data comparisons'!$H$23)*'3c.Alt user input-Purchasing'!I8,IF('4.Data comparisons'!$C$6="LCD",('4.Data comparisons'!$C$23-'4.Data comparisons'!$J$23)*'3c.Alt user input-Purchasing'!I8, IF('4.Data comparisons'!$C$6="Notebook",('4.Data comparisons'!$C$23-'4.Data comparisons'!$L$23)*'3c.Alt user input-Purchasing'!I8,0)))) -> 0 | S94: =E94*'8c.Assumptions-Calculations'!$B$23 -> 0 | U94: TOTAL | V94: =SUM(V92:V93) -> 0
A95: E 4.2.2.1-2 | B95: Renewable/biobased content in product | C95: Renew/bio-prod | D95: energy prod. | E95: * * This criterion is not Calculated in Version 3.0 of this Calculator * *
B96: SUBTOTAL | C96: Material Use (P) | E96: =SUM(E94:E95) -> 0 | F96: =SUM(F94:F95) -> 0 | G96: =SUM(G94:G95) -> 0 | H96: =SUM(H94:H95) -> 0 | I96: =SUM(I94:I95) -> 0 | Q96: =SUM(Q94:Q95) -> 0 | S96: =SUM(S94:S95) -> 0 | U96: Packaging reuse | V96: Energy(kWh) | W96: PM (kg) | X96: GHG (kg) | Y96: Air (kg) | Z96: Water (kg)
B97: Packaging | U97: CPU | V97: =IF('4.Data comparisons'!$C$6="CPU",('4.Data comparisons'!$C$27*'8c.Assumptions-Calculations'!$D$123/'8c.Assumptions-Calculations'!$B$128)+(('4.Data comparisons'!$C$29+'4.Data comparisons'!$C$31)*'8c.Assumptions-Calculations'!$D$121/'8c.Assumptions-Calculations'!$B$128),"n/a") -> n/a | W97: =IF('4.Data comparisons'!$C$6="CPU",(('4.Data comparisons'!$C$27)*'8c.Assumptions-Calculations'!$E$123+('4.Data comparisons'!$C$29+'4.Data comparisons'!$C$31)*'8c.Assumptions-Calculations'!$E$121),"n/a") -> n/a | X97: =IF('4.Data comparisons'!$C$6="CPU",((('4.Data comparisons'!$C$27)*'8c.Assumptions-Calculations'!$B$171+('4.Data comparisons'!$C$29+'4.Data comparisons'!$C$31)*'8c.Assumptions-Calculations'!$B$167)),"n/a") -> n/a | Y97: =IF('4.Data comparisons'!$C$6="CPU",(('4.Data comparisons'!$C$27)*'8c.Assumptions-Calculations'!$B$123+('4.Data comparisons'!$C$29+'4.Data comparisons'!$C$31)*'8c.Assumptions-Calculations'!$B$121),"n/a") -> n/a | Z97: =IF('4.Data comparisons'!$C$6="CPU",(('4.Data comparisons'!$C$27)*'8c.Assumptions-Calculations'!$C$123+('4.Data comparisons'!$C$29+'4.Data comparisons'!$C$31)*'8c.Assumptions-Calculations'!$C$121),"n/a") -> n/a
A98: E 4.8.3.1-2 | B98: Average recycled content in corrugated packaging | C98: RC-pkg-corr | D98: energy prod. | E98: =IF('4.Data comparisons'!$C$6="CPU",('4.Data comparisons'!$C$28-'4.Data comparisons'!$F$28)*'8c.Assumptions-Calculations'!$D$123/'8c.Assumptions-Calculations'!$B$128*'3c.Alt user input-Purchasing'!I8, IF('4.Data comparisons'!$C$6="CRT",('4.Data comparisons'!$C$28-'4.Data comparisons'!$H$28)*'8c.Assumptions-Calculations'!$D$123/'8c.Assumptions-Calculations'!$B$128*'3c.Alt user input-Purchasing'!I8,IF('4.Data comparisons'!$C$6="LCD",('4.Data comparisons'!$C$28-'4.Data comparisons'!$J$28)*'8c.Assumptions-Calculations'!$D$123/'8c.Assumptions-Calculations'!$B$128*'3c.Alt user input-Purchasing'!I8, IF('4.Data comparisons'!$C$6="Notebook",('4.Data comparisons'!$C$28-'4.Data comparisons'!$L$28)*'8c.Assumptions-Calculations'!$D$123/'8c.Assumptions-Calculations'!$B$128*'3c.Alt user input-Purchasing'!I8, 0)))) -> 0 | F98: =IF('4.Data comparisons'!$C$6="CPU",('4.Data comparisons'!$C$28-'4.Data comparisons'!$F$28)*'8c.Assumptions-Calculations'!$E$123*'3c.Alt user input-Purchasing'!I8, IF('4.Data comparisons'!$C$6="CRT",('4.Data comparisons'!$C$28-'4.Data comparisons'!$H$28)*'8c.Assumptions-Calculations'!$E$123*'3c.Alt user input-Purchasing'!I8,IF('4.Data comparisons'!$C$6="LCD",('4.Data comparisons'!$C$28-'4.Data comparisons'!$J$28)*'8c.Assumptions-Calculations'!$E$123*'3c.Alt user input-Purchasing'!I8, IF('4.Data comparisons'!$C$6="Notebook",('4.Data comparisons'!$C$28-'4.Data comparisons'!$L$28)*'8c.Assumptions-Calculations'!$E$123*'3c.Alt user input-Purchasing'!I8, 0)))) -> 0 | G98: =IF('4.Data comparisons'!$C$6="CPU",('4.Data comparisons'!$C$28-'4.Data comparisons'!$F$28)*'8c.Assumptions-Calculations'!$B$172*'3c.Alt user input-Purchasing'!I8, IF('4.Data comparisons'!$C$6="CRT",('4.Data comparisons'!$C$28-'4.Data comparisons'!$H$28)*'8c.Assumptions-Calculations'!$B$172*'3c.Alt user input-Purchasing'!I8,IF('4.Data comparisons'!$C$6="LCD",('4.Data comparisons'!$C$28-'4.Data comparisons'!$J$28)*'8c.Assumptions-Calculations'!$B$172*'3c.Alt user input-Purchasing'!I8, IF('4.Data comparisons'!$C$6="Notebook",('4.Data comparisons'!$C$28-'4.Data comparisons'!$L$28)*'8c.Assumptions-Calculations'!$B$172*'3c.Alt user input-Purchasing'!I8, 0)))) -> 0 | H98: =IF('4.Data comparisons'!$C$6="CPU",('4.Data comparisons'!$C$28-'4.Data comparisons'!$F$28)*'8c.Assumptions-Calculations'!$B$123*'3c.Alt user input-Purchasing'!I8, IF('4.Data comparisons'!$C$6="CRT",('4.Data comparisons'!$C$28-'4.Data comparisons'!$H$28)*'8c.Assumptions-Calculations'!$B$123*'3c.Alt user input-Purchasing'!I8,IF('4.Data comparisons'!$C$6="LCD",('4.Data comparisons'!$C$28-'4.Data comparisons'!$J$28)*'8c.Assumptions-Calculations'!$B$123*'3c.Alt user input-Purchasing'!I8, IF('4.Data comparisons'!$C$6="Notebook",('4.Data comparisons'!$C$28-'4.Data comparisons'!$L$28)*'8c.Assumptions-Calculations'!$B$123*'3c.Alt user input-Purchasing'!I8, 0)))) -> 0 | I98: =IF('4.Data comparisons'!$C$6="CPU",('4.Data comparisons'!$C$28-'4.Data comparisons'!$F$28)*'8c.Assumptions-Calculations'!$C$123*'3c.Alt user input-Purchasing'!I8, IF('4.Data comparisons'!$C$6="CRT",('4.Data comparisons'!$C$28-'4.Data comparisons'!$H$28)*'8c.Assumptions-Calculations'!$C$123*'3c.Alt user input-Purchasing'!I8,IF('4.Data comparisons'!$C$6="LCD",('4.Data comparisons'!$C$28-'4.Data comparisons'!$J$28)*'8c.Assumptions-Calculations'!$C$123*'3c.Alt user input-Purchasing'!I8, IF('4.Data comparisons'!$C$6="Notebook",('4.Data comparisons'!$C$28-'4.Data comparisons'!$L$28)*'8c.Assumptions-Calculations'!$C$123*'3c.Alt user input-Purchasing'!I8, 0)))) -> 0 | Q98: =IF('4.Data comparisons'!$C$6="CPU",('4.Data comparisons'!$C$28-'4.Data comparisons'!$F$28)*'3c.Alt user input-Purchasing'!I8, IF('4.Data comparisons'!$C$6="CRT",('4.Data comparisons'!$C$28-'4.Data comparisons'!$H$28)*'3c.Alt user input-Purchasing'!I8,IF('4.Data comparisons'!$C$6="LCD",('4.Data comparisons'!$C$28-'4.Data comparisons'!$J$28)*'3c.Alt user input-Purchasing'!I8, IF('4.Data comparisons'!$C$6="Notebook",('4.Data comparisons'!$C$28-'4.Data comparisons'!$L$28)*'3c.Alt user input-Purchasing'!I8,0)))) -> 0 | S98: =E98*'8c.Assumptions-Calculations'!$B$23 -> 0 | U98: CRT | V98: =IF('4.Data comparisons'!$C$6="CRT",('4.Data comparisons'!$C$27*'8c.Assumptions-Calculations'!$D$123/'8c.Assumptions-Calculations'!$B$128)+(('4.Data comparisons'!$C$29+'4.Data comparisons'!$C$31)*'8c.Assumptions-Calculations'!$D$121/'8c.Assumptions-Calculations'!$B$128),"n/a") -> n/a | W98: =IF('4.Data comparisons'!$C$6="CRT",(('4.Data comparisons'!$C$27)*'8c.Assumptions-Calculations'!$E$123+('4.Data comparisons'!$C$29+'4.Data comparisons'!$C$31)*'8c.Assumptions-Calculations'!$E$121),"n/a") -> n/a | X98: =IF('4.Data comparisons'!$C$6="CRT",((('4.Data comparisons'!$C$27)*'8c.Assumptions-Calculations'!$B$171+('4.Data comparisons'!$C$29+'4.Data comparisons'!$C$31)*'8c.Assumptions-Calculations'!$B$167)),"n/a") -> n/a | Y98: =IF('4.Data comparisons'!$C$6="CRT",(('4.Data comparisons'!$C$27)*'8c.Assumptions-Calculations'!$B$123+('4.Data comparisons'!$C$29+'4.Data comparisons'!$C$31)*'8c.Assumptions-Calculations'!$B$121),"n/a") -> n/a | Z98: =IF('4.Data comparisons'!$C$6="CRT",(('4.Data comparisons'!$C$27)*'8c.Assumptions-Calculations'!$C$123+('4.Data comparisons'!$C$29+'4.Data comparisons'!$C$31)*'8c.Assumptions-Calculations'!$C$121),"n/a") -> n/a
A99: E 4.8.3.1-2 | B99: Average recycled content in plastic/foam packaging | C99: RC-pkg-plastic | D99: energy prod. | E99: =IF('4.Data comparisons'!$C$6="CPU",('4.Data comparisons'!$C$30-'4.Data comparisons'!$F$30)*'8c.Assumptions-Calculations'!$D$121/'8c.Assumptions-Calculations'!$B$128*'3c.Alt user input-Purchasing'!I8, IF('4.Data comparisons'!$C$6="CRT",('4.Data comparisons'!$C$30-'4.Data comparisons'!$H$30)*'8c.Assumptions-Calculations'!$D$121/'8c.Assumptions-Calculations'!$B$128*'3c.Alt user input-Purchasing'!I8,IF('4.Data comparisons'!$C$6="LCD",('4.Data comparisons'!$C$30-'4.Data comparisons'!$J$30)*'8c.Assumptions-Calculations'!$D$121/'8c.Assumptions-Calculations'!$B$128*'3c.Alt user input-Purchasing'!I8, IF('4.Data comparisons'!$C$6="Notebook",('4.Data comparisons'!$C$30-'4.Data comparisons'!$L$30)*'8c.Assumptions-Calculations'!$D$121/'8c.Assumptions-Calculations'!$B$128*'3c.Alt user input-Purchasing'!I8, 0)))) -> 0 | F99: =IF('4.Data comparisons'!$C$6="CPU",('4.Data comparisons'!$C$30-'4.Data comparisons'!$F$30)*'8c.Assumptions-Calculations'!$E$121*'3c.Alt user input-Purchasing'!I8, IF('4.Data comparisons'!$C$6="CRT",('4.Data comparisons'!$C$30-'4.Data comparisons'!$H$30)*'8c.Assumptions-Calculations'!$E$121*'3c.Alt user input-Purchasing'!I8,IF('4.Data comparisons'!$C$6="LCD",('4.Data comparisons'!$C$30-'4.Data comparisons'!$J$30)*'8c.Assumptions-Calculations'!$E$121*'3c.Alt user input-Purchasing'!I8, IF('4.Data comparisons'!$C$6="Notebook",('4.Data comparisons'!$C$30-'4.Data comparisons'!$L$30)*'8c.Assumptions-Calculations'!$E$121*'3c.Alt user input-Purchasing'!I8, 0)))) -> 0 | G99: =IF('4.Data comparisons'!$C$6="CPU",('4.Data comparisons'!$C$30-'4.Data comparisons'!$F$30)*'8c.Assumptions-Calculations'!$B$168*'3c.Alt user input-Purchasing'!I8, IF('4.Data comparisons'!$C$6="CRT",('4.Data comparisons'!$C$30-'4.Data comparisons'!$H$30)*'8c.Assumptions-Calculations'!$B$168*'3c.Alt user input-Purchasing'!I8,IF('4.Data comparisons'!$C$6="LCD",('4.Data comparisons'!$C$30-'4.Data comparisons'!$J$30)*'8c.Assumptions-Calculations'!$B$168*'3c.Alt user input-Purchasing'!I8, IF('4.Data comparisons'!$C$6="Notebook",('4.Data comparisons'!$C$30-'4.Data comparisons'!$L$30)*'8c.Assumptions-Calculations'!$B$168*'3c.Alt user input-Purchasing'!I8, 0)))) -> 0 | H99: =IF('4.Data comparisons'!$C$6="CPU",('4.Data comparisons'!$C$30-'4.Data comparisons'!$F$30)*'8c.Assumptions-Calculations'!$B$121*'3c.Alt user input-Purchasing'!I8, IF('4.Data comparisons'!$C$6="CRT",('4.Data comparisons'!$C$30-'4.Data comparisons'!$H$30)*'8c.Assumptions-Calculations'!$B$121*'3c.Alt user input-Purchasing'!I8,IF('4.Data comparisons'!$C$6="LCD",('4.Data comparisons'!$C$30-'4.Data comparisons'!$J$30)*'8c.Assumptions-Calculations'!$B$121*'3c.Alt user input-Purchasing'!I8, IF('4.Data comparisons'!$C$6="Notebook",('4.Data comparisons'!$C$30-'4.Data comparisons'!$L$30)*'8c.Assumptions-Calculations'!$B$121*'3c.Alt user input-Purchasing'!I8, 0)))) -> 0 | I99: =IF('4.Data comparisons'!$C$6="CPU",('4.Data comparisons'!$C$30-'4.Data comparisons'!$F$30)*'8c.Assumptions-Calculations'!$C$121*'3c.Alt user input-Purchasing'!I8, IF('4.Data comparisons'!$C$6="CRT",('4.Data comparisons'!$C$30-'4.Data comparisons'!$H$30)*'8c.Assumptions-Calculations'!$C$121*'3c.Alt user input-Purchasing'!I8,IF('4.Data comparisons'!$C$6="LCD",('4.Data comparisons'!$C$30-'4.Data comparisons'!$J$30)*'8c.Assumptions-Calculations'!$C$121*'3c.Alt user input-Purchasing'!I8, IF('4.Data comparisons'!$C$6="Notebook",('4.Data comparisons'!$C$30-'4.Data comparisons'!$L$30)*'8c.Assumptions-Calculations'!$C$121*'3c.Alt user input-Purchasing'!I8, 0)))) -> 0 | Q99: =IF('4.Data comparisons'!$C$6="CPU",('4.Data comparisons'!$C$30-'4.Data comparisons'!$F$30)*'3c.Alt user input-Purchasing'!I8, IF('4.Data comparisons'!$C$6="CRT",('4.Data comparisons'!$C$30-'4.Data comparisons'!$H$30)*'3c.Alt user input-Purchasing'!I8,IF('4.Data comparisons'!$C$6="LCD",('4.Data comparisons'!$C$30-'4.Data comparisons'!$J$30)*'3c.Alt user input-Purchasing'!I8, IF('4.Data comparisons'!$C$6="Notebook",('4.Data comparisons'!$C$30-'4.Data comparisons'!$L$30)*'3c.Alt user input-Purchasing'!I8, 0)))) -> 0 | S99: =E99*'8c.Assumptions-Calculations'!$B$23 -> 0 | U99: LCD | V99: =IF('4.Data comparisons'!$C$6="LCD",('4.Data comparisons'!$C$27*'8c.Assumptions-Calculations'!$D$123/'8c.Assumptions-Calculations'!$B$128)+(('4.Data comparisons'!$C$29+'4.Data comparisons'!$C$31)*'8c.Assumptions-Calculations'!$D$121/'8c.Assumptions-Calculations'!$B$128),"n/a") -> n/a | W99: =IF('4.Data comparisons'!$C$6="LCD",(('4.Data comparisons'!$C$27)*'8c.Assumptions-Calculations'!$E$123+('4.Data comparisons'!$C$29+'4.Data comparisons'!$C$31)*'8c.Assumptions-Calculations'!$E$121),"n/a") -> n/a | X99: =IF('4.Data comparisons'!$C$6="LCD",((('4.Data comparisons'!$C$27)*'8c.Assumptions-Calculations'!$B$171+('4.Data comparisons'!$C$29+'4.Data comparisons'!$C$31)*'8c.Assumptions-Calculations'!$B$167)),"n/a") -> n/a | Y99: =IF('4.Data comparisons'!$C$6="LCD",(('4.Data comparisons'!$C$27)*'8c.Assumptions-Calculations'!$B$123+('4.Data comparisons'!$C$29+'4.Data comparisons'!$C$31)*'8c.Assumptions-Calculations'!$B$121),"n/a") -> n/a | Z99: =IF('4.Data comparisons'!$C$6="LCD",(('4.Data comparisons'!$C$27)*'8c.Assumptions-Calculations'!$C$123+('4.Data comparisons'!$C$29+'4.Data comparisons'!$C$31)*'8c.Assumptions-Calculations'!$C$121),"n/a") -> n/a
A100: E 4.8.3.1-2 | B100: Average recycled content in other packaging | C100: RC-pkg-other | E100: =IF('4.Data comparisons'!$C$6="CPU",('4.Data comparisons'!$C$32-'4.Data comparisons'!$F$32)*'8c.Assumptions-Calculations'!$D$121/'8c.Assumptions-Calculations'!$B$128*'3c.Alt user input-Purchasing'!I8, IF('4.Data comparisons'!$C$6="CRT",('4.Data comparisons'!$C$32-'4.Data comparisons'!$H$32)*'8c.Assumptions-Calculations'!$D$121/'8c.Assumptions-Calculations'!$B$128*'3c.Alt user input-Purchasing'!I8,IF('4.Data comparisons'!$C$6="LCD",('4.Data comparisons'!$C$32-'4.Data comparisons'!$J$32)*'8c.Assumptions-Calculations'!$D$121/'8c.Assumptions-Calculations'!$B$128*'3c.Alt user input-Purchasing'!I8, IF('4.Data comparisons'!$C$6="Notebook",('4.Data comparisons'!$C$32-'4.Data comparisons'!$L$32)*'8c.Assumptions-Calculations'!$D$121/'8c.Assumptions-Calculations'!$B$128*'3c.Alt user input-Purchasing'!I8, 0)))) -> 0 | F100: =IF('4.Data comparisons'!$C$6="CPU",('4.Data comparisons'!$C$32-'4.Data comparisons'!$F$32)*'8c.Assumptions-Calculations'!$E$121*'3c.Alt user input-Purchasing'!I8, IF('4.Data comparisons'!$C$6="CRT",('4.Data comparisons'!$C$32-'4.Data comparisons'!$H$32)*'8c.Assumptions-Calculations'!$E$121*'3c.Alt user input-Purchasing'!I8,IF('4.Data comparisons'!$C$6="LCD",('4.Data comparisons'!$C$32-'4.Data comparisons'!$J$32)*'8c.Assumptions-Calculations'!$E$121*'3c.Alt user input-Purchasing'!I8, IF('4.Data comparisons'!$C$6="Notebook",('4.Data comparisons'!$C$32-'4.Data comparisons'!$L$32)*'8c.Assumptions-Calculations'!$E$121*'3c.Alt user input-Purchasing'!I8, 0)))) -> 0 | G100: =IF('4.Data comparisons'!$C$6="CPU",('4.Data comparisons'!$C$32-'4.Data comparisons'!$F$32)*'8c.Assumptions-Calculations'!$B$168*'3c.Alt user input-Purchasing'!I8, IF('4.Data comparisons'!$C$6="CRT",('4.Data comparisons'!$C$32-'4.Data comparisons'!$H$32)*'8c.Assumptions-Calculations'!$B$168*'3c.Alt user input-Purchasing'!I8,IF('4.Data comparisons'!$C$6="LCD",('4.Data comparisons'!$C$32-'4.Data comparisons'!$J$32)*'8c.Assumptions-Calculations'!$B$168*'3c.Alt user input-Purchasing'!I8, IF('4.Data comparisons'!$C$6="Notebook",('4.Data comparisons'!$C$32-'4.Data comparisons'!$L$32)*'8c.Assumptions-Calculations'!$B$168*'3c.Alt user input-Purchasing'!I8, 0)))) -> 0 | H100: =IF('4.Data comparisons'!$C$6="CPU",('4.Data comparisons'!$C$32-'4.Data comparisons'!$F$32)*'8c.Assumptions-Calculations'!$B$121*'3c.Alt user input-Purchasing'!I8, IF('4.Data comparisons'!$C$6="CRT",('4.Data comparisons'!$C$32-'4.Data comparisons'!$H$32)*'8c.Assumptions-Calculations'!$B$121*'3c.Alt user input-Purchasing'!I8,IF('4.Data comparisons'!$C$6="LCD",('4.Data comparisons'!$C$32-'4.Data comparisons'!$J$32)*'8c.Assumptions-Calculations'!$B$121*'3c.Alt user input-Purchasing'!I8, IF('4.Data comparisons'!$C$6="Notebook",('4.Data comparisons'!$C$32-'4.Data comparisons'!$L$32)*'8c.Assumptions-Calculations'!$B$121*'3c.Alt user input-Purchasing'!I8, 0)))) -> 0 | I100: =IF('4.Data comparisons'!$C$6="CPU",('4.Data comparisons'!$C$32-'4.Data comparisons'!$F$32)*'8c.Assumptions-Calculations'!$C$121*'3c.Alt user input-Purchasing'!I8, IF('4.Data comparisons'!$C$6="CRT",('4.Data comparisons'!$C$32-'4.Data comparisons'!$H$32)*'8c.Assumptions-Calculations'!$C$121*'3c.Alt user input-Purchasing'!I8,IF('4.Data comparisons'!$C$6="LCD",('4.Data comparisons'!$C$32-'4.Data comparisons'!$J$32)*'8c.Assumptions-Calculations'!$C$121*'3c.Alt user input-Purchasing'!I8, IF('4.Data comparisons'!$C$6="Notebook",('4.Data comparisons'!$C$32-'4.Data comparisons'!$L$32)*'8c.Assumptions-Calculations'!$C$121*'3c.Alt user input-Purchasing'!I8, 0)))) -> 0 | Q100: =IF('4.Data comparisons'!$C$6="CPU",('4.Data comparisons'!$C$32-'4.Data comparisons'!$F$32)*'3c.Alt user input-Purchasing'!I8, IF('4.Data comparisons'!$C$6="CRT",('4.Data comparisons'!$C$32-'4.Data comparisons'!$H$32)*'3c.Alt user input-Purchasing'!I8,IF('4.Data comparisons'!$C$6="LCD",('4.Data comparisons'!$C$32-'4.Data comparisons'!$J$32)*'3c.Alt user input-Purchasing'!I8, IF('4.Data comparisons'!$C$6="Notebook",('4.Data comparisons'!$C$32-'4.Data comparisons'!$L$32)*'3c.Alt user input-Purchasing'!I8, 0)))) -> 0 | S100: =E100*'8c.Assumptions-Calculations'!$B$23 -> 0 | U100: Notebook | V100: =IF('4.Data comparisons'!$C$6="Notebook",('4.Data comparisons'!$C$27*'8c.Assumptions-Calculations'!$D$123/'8c.Assumptions-Calculations'!$B$128)+(('4.Data comparisons'!$C$29+'4.Data comparisons'!$C$31)*'8c.Assumptions-Calculations'!$D$121/'8c.Assumptions-Calculations'!$B$128),"n/a") -> n/a | W100: =IF('4.Data comparisons'!$C$6="Notebook",(('4.Data comparisons'!$C$27)*'8c.Assumptions-Calculations'!$E$123+('4.Data comparisons'!$C$29+'4.Data comparisons'!$C$31)*'8c.Assumptions-Calculations'!$E$121),"n/a") -> n/a | X100: =IF('4.Data comparisons'!$C$6="Notebook",((('4.Data comparisons'!$C$27)*'8c.Assumptions-Calculations'!$B$171+('4.Data comparisons'!$C$29+'4.Data comparisons'!$C$31)*'8c.Assumptions-Calculations'!$B$167)),"n/a") -> n/a | Y100: =IF('4.Data comparisons'!$C$6="Notebook",(('4.Data comparisons'!$C$27)*'8c.Assumptions-Calculations'!$B$123+('4.Data comparisons'!$C$29+'4.Data comparisons'!$C$31)*'8c.Assumptions-Calculations'!$B$121),"n/a") -> n/a | Z100: =IF('4.Data comparisons'!$C$6="Notebook",(('4.Data comparisons'!$C$27)*'8c.Assumptions-Calculations'!$C$123+('4.Data comparisons'!$C$29+'4.Data comparisons'!$C$31)*'8c.Assumptions-Calculations'!$C$121),"n/a") -> n/a
A101: E 4.8.3.1-2 | B101: Minimum 25% for recycled content in corrugated packaging (CPG) | C101: RC-pkg-CPG | E101: =IF('4.Data comparisons'!$C$6="CPU",('4.Data comparisons'!$C$33-'4.Data comparisons'!$F$33)*'8c.Assumptions-Calculations'!$D$123/'8c.Assumptions-Calculations'!$B$128*'3c.Alt user input-Purchasing'!I8, IF('4.Data comparisons'!$C$6="CRT",('4.Data comparisons'!$C$33-'4.Data comparisons'!$H$33)*'8c.Assumptions-Calculations'!$D$123/'8c.Assumptions-Calculations'!$B$128*'3c.Alt user input-Purchasing'!I8,IF('4.Data comparisons'!$C$6="LCD",('4.Data comparisons'!$C$33-'4.Data comparisons'!$J$33)*'8c.Assumptions-Calculations'!$D$123/'8c.Assumptions-Calculations'!$B$128*'3c.Alt user input-Purchasing'!I8, IF('4.Data comparisons'!$C$6="Notebook",('4.Data comparisons'!$C$33-'4.Data comparisons'!$L$33)*'8c.Assumptions-Calculations'!$D$123/'8c.Assumptions-Calculations'!$B$128*'3c.Alt user input-Purchasing'!I8, 0)))) -> 0 | F101: =IF('4.Data comparisons'!$C$6="CPU",('4.Data comparisons'!$C$33-'4.Data comparisons'!$F$33)*'8c.Assumptions-Calculations'!$E$123*'3c.Alt user input-Purchasing'!I8, IF('4.Data comparisons'!$C$6="CRT",('4.Data comparisons'!$C$33-'4.Data comparisons'!$H$33)*'8c.Assumptions-Calculations'!$E$123*'3c.Alt user input-Purchasing'!I8,IF('4.Data comparisons'!$C$6="LCD",('4.Data comparisons'!$C$33-'4.Data comparisons'!$J$33)*'8c.Assumptions-Calculations'!$E$123*'3c.Alt user input-Purchasing'!I8, IF('4.Data comparisons'!$C$6="Notebook",('4.Data comparisons'!$C$33-'4.Data comparisons'!$L$33)*'8c.Assumptions-Calculations'!$E$123*'3c.Alt user input-Purchasing'!I8, 0)))) -> 0 | G101: =IF('4.Data comparisons'!$C$6="CPU",('4.Data comparisons'!$C$33-'4.Data comparisons'!$F$33)*'8c.Assumptions-Calculations'!$B$172*'3c.Alt user input-Purchasing'!I8, IF('4.Data comparisons'!$C$6="CRT",('4.Data comparisons'!$C$33-'4.Data comparisons'!$H$33)*'8c.Assumptions-Calculations'!$B$172*'3c.Alt user input-Purchasing'!I8,IF('4.Data comparisons'!$C$6="LCD",('4.Data comparisons'!$C$33-'4.Data comparisons'!$J$33)*'8c.Assumptions-Calculations'!$B$172*'3c.Alt user input-Purchasing'!I8, IF('4.Data comparisons'!$C$6="Notebook",('4.Data comparisons'!$C$33-'4.Data comparisons'!$L$33)*'8c.Assumptions-Calculations'!$B$172*'3c.Alt user input-Purchasing'!I8, 0)))) -> 0 | H101: =IF('4.Data comparisons'!$C$6="CPU",('4.Data comparisons'!$C$33-'4.Data comparisons'!$F$33)*'8c.Assumptions-Calculations'!$B$123*'3c.Alt user input-Purchasing'!I8, IF('4.Data comparisons'!$C$6="CRT",('4.Data comparisons'!$C$33-'4.Data comparisons'!$H$33)*'8c.Assumptions-Calculations'!$B$123*'3c.Alt user input-Purchasing'!I8,IF('4.Data comparisons'!$C$6="LCD",('4.Data comparisons'!$C$33-'4.Data comparisons'!$J$33)*'8c.Assumptions-Calculations'!$B$123*'3c.Alt user input-Purchasing'!I8, IF('4.Data comparisons'!$C$6="Notebook",('4.Data comparisons'!$C$33-'4.Data comparisons'!$L$33)*'8c.Assumptions-Calculations'!$B$123*'3c.Alt user input-Purchasing'!I8, 0)))) -> 0 | I101: =IF('4.Data comparisons'!$C$6="CPU",('4.Data comparisons'!$C$33-'4.Data comparisons'!$F$33)*'8c.Assumptions-Calculations'!$C$123*'3c.Alt user input-Purchasing'!I8, IF('4.Data comparisons'!$C$6="CRT",('4.Data comparisons'!$C$33-'4.Data comparisons'!$H$33)*'8c.Assumptions-Calculations'!$C$123*'3c.Alt user input-Purchasing'!I8,IF('4.Data comparisons'!$C$6="LCD",('4.Data comparisons'!$C$33-'4.Data comparisons'!$J$33)*'8c.Assumptions-Calculations'!$C$123*'3c.Alt user input-Purchasing'!I8, IF('4.Data comparisons'!$C$6="Notebook",('4.Data comparisons'!$C$33-'4.Data comparisons'!$L$33)*'8c.Assumptions-Calculations'!$C$123*'3c.Alt user input-Purchasing'!I8, 0)))) -> 0 | Q101: =IF('4.Data comparisons'!$C$6="CPU",('4.Data comparisons'!$C$33-'4.Data comparisons'!$F$33)*'3c.Alt user input-Purchasing'!I8, IF('4.Data comparisons'!$C$6="CRT",('4.Data comparisons'!$C$33-'4.Data comparisons'!$H$33)*'3c.Alt user input-Purchasing'!I8,IF('4.Data comparisons'!$C$6="LCD",('4.Data comparisons'!$C$33-'4.Data comparisons'!$J$33)*'3c.Alt user input-Purchasing'!I8, IF('4.Data comparisons'!$C$6="Notebook",('4.Data comparisons'!$C$33-'4.Data comparisons'!$L$33)*'3c.Alt user input-Purchasing'!I8, 0)))) -> 0 | S101: =E101*'8c.Assumptions-Calculations'!$B$23 -> 0 | U101: VALUE | V101: =SUM(V97:V100) -> 0 | W101: =SUM(W97:W100) -> 0 | X101: =SUM(X97:X100) -> 0 | Y101: =SUM(Y97:Y100) -> 0 | Z101: =SUM(Z97:Z100) -> 0
A102: E 5.8.5.1 | B102: Packaging avoided per unit by packaging reuse | C102: Reuse-pkg | E102: =IF(OR('4.Data comparisons'!$C$35=0,'4.Data comparisons'!$C$35="no input"),0,(V101*'8b1.Assumptions-EPEATFECdefault'!$C$33*'3c.Alt user input-Purchasing'!$I$8)) -> 0 | F102: =IF(OR('4.Data comparisons'!$C$35=0,'4.Data comparisons'!$C$35="no input"),0,(W101*'8b1.Assumptions-EPEATFECdefault'!$C$33*'3c.Alt user input-Purchasing'!$I$8)) -> 0 | G102: =IF(OR('4.Data comparisons'!$C$35=0,'4.Data comparisons'!$C$35="no input"),0,(X101*'8b1.Assumptions-EPEATFECdefault'!$C$33*'3c.Alt user input-Purchasing'!$I$8)) -> 0 | H102: =IF(OR('4.Data comparisons'!$C$35=0,'4.Data comparisons'!$C$35="no input"),0,(Y101*'8b1.Assumptions-EPEATFECdefault'!$C$33*'3c.Alt user input-Purchasing'!$I$8)) -> 0 | I102: =IF(OR('4.Data comparisons'!$C$35=0,'4.Data comparisons'!$C$35="no input"),0,(Z101*'8b1.Assumptions-EPEATFECdefault'!$C$33*'3c.Alt user input-Purchasing'!$I$8)) -> 0 | Q102: =IF('4.Data comparisons'!$C$6="CPU",('4.Data comparisons'!$C$35-'4.Data comparisons'!$F$35)*'3c.Alt user input-Purchasing'!I8, IF('4.Data comparisons'!$C$6="CRT",('4.Data comparisons'!$C$35-'4.Data comparisons'!$H$35)*'3c.Alt user input-Purchasing'!I8,IF('4.Data comparisons'!$C$6="LCD",('4.Data comparisons'!$C$35-'4.Data comparisons'!$J$35)*'3c.Alt user input-Purchasing'!I8, IF('4.Data comparisons'!$C$6="Notebook",('4.Data comparisons'!$C$35-'4.Data comparisons'!$L$35)*'3c.Alt user input-Purchasing'!I8, 0)))) -> 0 | S102: =E102*'8c.Assumptions-Calculations'!$B$23 -> 0
B103: SUBTOTAL | C103: Packaging (P) | E103: =IF(E98>E101,SUM(E98:E100,E102),SUM(E99:E102)) -> 0 | F103: =IF(F98>F101,SUM(F98:F100,F102),SUM(F99:F102)) -> 0 | G103: =IF(G98>G101,SUM(G98:G100,G102),SUM(G99:G102)) -> 0 | H103: =IF(H98>H101,SUM(H98:H100,H102),SUM(H99:H102)) -> 0 | I103: =IF(I98>I101,SUM(I98:I100,I102),SUM(I99:I102)) -> 0 | Q103: =IF(Q98>Q101,SUM(Q98:Q100,Q102),SUM(Q99:Q102)) -> 0 | S103: =IF(S98>S101,SUM(S98:S100,S102),SUM(S99:S102)) -> 0 | U103: Energy (kWh) | V103: Lifetime | W103: First Year
B104: Energy (Product Lifetime) | U104: CPU | V104: =IF('4.Data comparisons'!$C$6="CPU",('8a. Assumptions-Baseline'!$D$39/12)*('4.Data comparisons'!$F$37-'4.Data comparisons'!$C$37)*'3c.Alt user input-Purchasing'!$I$8,"n/a") -> n/a | W104: =IF('4.Data comparisons'!$C$6="CPU",IF('8a. Assumptions-Baseline'!$D$39>12,('4.Data comparisons'!$F$37-'4.Data comparisons'!$C$37)*'3c.Alt user input-Purchasing'!$I$8,('8a. Assumptions-Baseline'!$D$39/12)*('4.Data comparisons'!$F$37-'4.Data comparisons'!$C$37)*'3c.Alt user input-Purchasing'!$I$8),"n/a") -> n/a
A105: E 4.5.1.1 | B105: ENERGY STAR 5.* | C105: EnStar4.0 | D105: energy prod. | E105: =$V$108 -> 0 | F105: =E105*'8c.Assumptions-Calculations'!$E$126 -> 0 | G105: =E105*'8c.Assumptions-Calculations'!$B$155 -> 0 | H105: =E105*'8c.Assumptions-Calculations'!$B$126 -> 0 | I105: =E105*'8c.Assumptions-Calculations'!$C$126 -> 0 | S105: =E105*'8c.Assumptions-Calculations'!$B$23 -> 0 | U105: CRT | V105: =IF('4.Data comparisons'!$C$6="CRT",('8a. Assumptions-Baseline'!$D$83/12)*('4.Data comparisons'!$H$37-'4.Data comparisons'!$C$37)*'3c.Alt user input-Purchasing'!$I$8,"n/a") -> n/a | W105: =IF('4.Data comparisons'!$C$6="CRT",IF('8a. Assumptions-Baseline'!$D$83>12,('4.Data comparisons'!$H$37-'4.Data comparisons'!$C$37)*'3c.Alt user input-Purchasing'!$I$8,('8a. Assumptions-Baseline'!$D$83/12)*('4.Data comparisons'!$H$37-'4.Data comparisons'!$C$37)*'3c.Alt user input-Purchasing'!$I$8),"n/a") -> n/a
A106: E 4.5.1.2 | B106: ENERGY STAR early adopter | E106: * * This criterion is not Calculated in Version 3.0 of this Calculator * * | U106: LCD | V106: =IF('4.Data comparisons'!$C$6="LCD",('8a. Assumptions-Baseline'!$D$128/12)*('4.Data comparisons'!$J$37-'4.Data comparisons'!$C$37)*'3c.Alt user input-Purchasing'!$I$8,"n/a") -> n/a | W106: =IF('4.Data comparisons'!$C$6="LCD",IF('8a. Assumptions-Baseline'!$D$128>12,('4.Data comparisons'!$J$37-'4.Data comparisons'!$C$37)*'3c.Alt user input-Purchasing'!$I$8,('8a. Assumptions-Baseline'!$D$128/12)*('4.Data comparisons'!$J$37-'4.Data comparisons'!$C$37)*'3c.Alt user input-Purchasing'!$I$8),"n/a") -> n/a
B107: Energy (First Year) | U107: Notebook | V107: =IF('4.Data comparisons'!$C$6="Notebook",('8a. Assumptions-Baseline'!$D$174/12)*('4.Data comparisons'!$L$37-'4.Data comparisons'!$C$37)*'3c.Alt user input-Purchasing'!$I$8,"n/a") -> n/a | W107: =IF('4.Data comparisons'!$C$6="Notebook",IF('8a. Assumptions-Baseline'!$D$174>12,('4.Data comparisons'!$L$37-'4.Data comparisons'!$C$37)*'3c.Alt user input-Purchasing'!$I$8,('8a. Assumptions-Baseline'!$D$174/12)*('4.Data comparisons'!$L$37-'4.Data comparisons'!$C$37)*'3c.Alt user input-Purchasing'!$I$8),"n/a") -> n/a
A108: E 4.5.1.1 | B108: ENERGY STAR 5.* | C108: EnStar4.0 | D108: energy prod. | E108: =$W$108 -> 0 | F108: =E108*'8c.Assumptions-Calculations'!$E$126 -> 0 | G108: =E108*'8c.Assumptions-Calculations'!$B$155 -> 0 | H108: =E108*'8c.Assumptions-Calculations'!$B$126 -> 0 | I108: =E108*'8c.Assumptions-Calculations'!$C$126 -> 0 | S108: =E108*'8c.Assumptions-Calculations'!$B$23 -> 0 | U108: VALUE | V108: =IF(SUM(V104:V107)>0,SUM(V104:V107),0) -> 0 | W108: =IF(SUM(W104:W107)>0,SUM(W104:W107),0) -> 0
A109: E 4.5.1.2 | B109: ENERGY STAR early adopter | E109: * * This criterion is not Calculated in Version 3.0 of this Calculator * *
B110: Product Cost
B111: Cost | C111: Cost-prod | E111: * * This criterion is not Calculated in Version 3.0 of this Calculator * *
B112: Lifetime PURCHASING SUBTOTAL (Product 1) | C112: PURCHASING | E112: =SUM(E92,E96,E103,E105) -> 0 | F112: =SUM(F92,F96,F103,F105) -> 0 | G112: 0 | H112: 0 | I112: 0 | J112: 0 | K112: 0 | L112: 0 | M112: 0 | N112: 0 | O112: 0 | P112: 0 | Q112: 0 | R112: 0 | S112: 0
B113: First Year PURCHASING SUBTOTAL (Product 1) | E113: =SUM(E92,E96,E103,E108) -> 0 | F113: =SUM(F92,F96,F103,F108) -> 0 | G113: 0 | H113: 0 | I113: 0 | J113: 0 | K113: 0 | L113: 0 | M113: 0 | N113: 0 | O113: 0 | P113: 0 | Q113: 0 | S113: 0
A115: Breakdown of purchases by criteria: Product 2 | U115: INTERIM CALCULATIONS
A116: PURCHASING: | F116: Product 2: | G116: ='3c.Alt user input-Purchasing'!$I$41 -> 1 | H116: =IF('3c.Alt user input-Purchasing'!$I$45="Please provide in Sheet 3a","no input",IF('3c.Alt user input-Purchasing'!$I$45="n/a","non EPEAT",'3c.Alt user input-Purchasing'!$I$45)) -> no input | I116: =IF('4.Data comparisons'!$C$43="Please provide in Sheet 3a","",'4.Data comparisons'!$C$43) ->  | U116: Product 2:
B117: Reduced Toxicity
A118: E 4.1.1.1 | B118: RoHS compliance-Pb | C118: Pb | D118: solder | J118: =SUM(K118:P118) -> 0 | K118: =V123 -> 0 | R118: =V128 -> 0 | U118: Toxic material savings from RoHS (kg) | V118: Pb | W118: Hg | X118: Cd | Y118: Cr+ | Z118: PBB | AA118: PBDE
A119: E 4.1.1.1 | B119: RoHS compliance-Hg (excludes lamps) | C119: Hg | D119: none now | J119: =SUM(K119:P119) -> 0 | L119: =W123 -> 0 | U119: CPU | V119: =IF('4.Data comparisons'!$C$43="CPU",('4.Data comparisons'!$F$45-'4.Data comparisons'!$C$45)/'8c.Assumptions-Calculations'!$A$198*'3c.Alt user input-Purchasing'!$I$41,"n/a") -> n/a | W119: =IF('4.Data comparisons'!$C$43="CPU",('4.Data comparisons'!F$46-'4.Data comparisons'!C$46)/'8c.Assumptions-Calculations'!$A$198*'3c.Alt user input-Purchasing'!$I$41,"n/a") -> n/a | X119: =IF('4.Data comparisons'!$C$43="CPU",('4.Data comparisons'!F$50-'4.Data comparisons'!C$50)/'8c.Assumptions-Calculations'!$A$198*'3c.Alt user input-Purchasing'!$I$41,"n/a") -> n/a | Y119: =IF('4.Data comparisons'!$C$43="CPU",('4.Data comparisons'!F$51-'4.Data comparisons'!C$51)/'8c.Assumptions-Calculations'!$A$198*'3c.Alt user input-Purchasing'!$I$41,"n/a") -> n/a | Z119: =IF('4.Data comparisons'!$C$43="CPU",('4.Data comparisons'!F$52-'4.Data comparisons'!C$52)/'8c.Assumptions-Calculations'!$A$198*'3c.Alt user input-Purchasing'!$I$41,"n/a") -> n/a | AA119: =IF('4.Data comparisons'!$C$43="CPU",('4.Data comparisons'!F$53-'4.Data comparisons'!C$53)/'8c.Assumptions-Calculations'!$A$198*'3c.Alt user input-Purchasing'!$I$41,"n/a") -> n/a
A120: E 4.1.3.1-2 | B120: Hg in light source; max avg of 3 mgHg/lamp | C120: Hg in light | D120: LCD backlight | J120: 0 | L120: =IF('4.Data comparisons'!$C$49=0,0,(IF('4.Data comparisons'!$C$43="LCD",('4.Data comparisons'!$J$49-'4.Data comparisons'!$C$49)/1000*'3c.Alt user input-Purchasing'!$I$41,IF('4.Data comparisons'!$C$43="Notebook",('4.Data comparisons'!$L$49-'4.Data comparisons'!$C$49)/1000*'3c.Alt user input-Purchasing'!$I$41,0)))) -> 0 | U120: CRT | V120: =IF('4.Data comparisons'!$C$43="CRT",('4.Data comparisons'!H$45-'4.Data comparisons'!C$45)/'8c.Assumptions-Calculations'!$A$198*'3c.Alt user input-Purchasing'!$I$41,"n/a") -> n/a | W120: =IF('4.Data comparisons'!$C$43="CRT",('4.Data comparisons'!H$46-'4.Data comparisons'!C$46)/'8c.Assumptions-Calculations'!$A$198*'3c.Alt user input-Purchasing'!$I$41,"n/a") -> n/a | X120: =IF('4.Data comparisons'!$C$43="CRT",('4.Data comparisons'!H$50-'4.Data comparisons'!C$50)/'8c.Assumptions-Calculations'!$A$198*'3c.Alt user input-Purchasing'!$I$41,"n/a") -> n/a | Y120: =IF('4.Data comparisons'!$C$43="CRT",('4.Data comparisons'!H$51-'4.Data comparisons'!C$51)/'8c.Assumptions-Calculations'!$A$198*'3c.Alt user input-Purchasing'!$I$41,"n/a") -> n/a | Z120: =IF('4.Data comparisons'!$C$43="CRT",('4.Data comparisons'!H$52-'4.Data comparisons'!C$52)/'8c.Assumptions-Calculations'!$A$198*'3c.Alt user input-Purchasing'!$I$41,"n/a") -> n/a | AA120: =IF('4.Data comparisons'!$C$43="CRT",('4.Data comparisons'!H$53-'4.Data comparisons'!C$53)/'8c.Assumptions-Calculations'!$A$198*'3c.Alt user input-Purchasing'!$I$41,"n/a") -> n/a
A121: E 4.1.3.3 | B121: Hg-free lamps | C121: Hg-free lamp | D121: LCD backlight | J121: 0 | L121: =IF('4.Data comparisons'!$C$49=0,IF('4.Data comparisons'!$C$43="LCD",('4.Data comparisons'!$J$49-'4.Data comparisons'!$C$49)/1000*'3c.Alt user input-Purchasing'!$I$41,IF('4.Data comparisons'!$C$43="Notebook",('4.Data comparisons'!$L$49-'4.Data comparisons'!$C$49)/1000*'3c.Alt user input-Purchasing'!$I$41,0)),0) -> 0 | R121: =IF('4.Data comparisons'!$C$43="LCD",('4.Data comparisons'!$J$56-'4.Data comparisons'!$C$56)*'3c.Alt user input-Purchasing'!I41,IF('4.Data comparisons'!$C$43="Notebook",('4.Data comparisons'!$L$56-'4.Data comparisons'!$C$56)*'3c.Alt user input-Purchasing'!I41,0)) -> 0 | U121: LCD | V121: =IF('4.Data comparisons'!$C$43="LCD",('4.Data comparisons'!J$45-'4.Data comparisons'!C$45)/'8c.Assumptions-Calculations'!$A$198*'3c.Alt user input-Purchasing'!$I$41,"n/a") -> n/a | W121: =IF('4.Data comparisons'!$C$43="LCD",('4.Data comparisons'!J$46-'4.Data comparisons'!C$46)/'8c.Assumptions-Calculations'!$A$198*'3c.Alt user input-Purchasing'!$I$41,"n/a") -> n/a | X121: =IF('4.Data comparisons'!$C$43="LCD",('4.Data comparisons'!J$50-'4.Data comparisons'!C$50)/'8c.Assumptions-Calculations'!$A$198*'3c.Alt user input-Purchasing'!$I$41,"n/a") -> n/a | Y121: =IF('4.Data comparisons'!$C$43="LCD",('4.Data comparisons'!J$51-'4.Data comparisons'!C$51)/'8c.Assumptions-Calculations'!$A$198*'3c.Alt user input-Purchasing'!$I$41,"n/a") -> n/a | Z121: =IF('4.Data comparisons'!$C$43="LCD",('4.Data comparisons'!J$52-'4.Data comparisons'!C$52)/'8c.Assumptions-Calculations'!$A$198*'3c.Alt user input-Purchasing'!$I$41,"n/a") -> n/a | AA121: =IF('4.Data comparisons'!$C$43="LCD",('4.Data comparisons'!J$53-'4.Data comparisons'!C$53)/'8c.Assumptions-Calculations'!$A$198*'3c.Alt user input-Purchasing'!$I$41,"n/a") -> n/a
A122: E 4.1.1.1 | B122: RoHS compliance-Cd | C122: Cd | D122: none now | J122: 0 | M122: =X123 -> 0 | R122: incorporated above | U122: Notebook | V122: =IF('4.Data comparisons'!$C$43="Notebook",('4.Data comparisons'!L$45-'4.Data comparisons'!C$45)/'8c.Assumptions-Calculations'!$A$198*'3c.Alt user input-Purchasing'!$I$41, "n/a") -> n/a | W122: =IF('4.Data comparisons'!$C$43="Notebook",('4.Data comparisons'!L$46-'4.Data comparisons'!C$46)/'8c.Assumptions-Calculations'!$A$198*'3c.Alt user input-Purchasing'!$I$41, "n/a") -> n/a | X122: =IF('4.Data comparisons'!$C$43="Notebook",('4.Data comparisons'!L$50-'4.Data comparisons'!C$50)/'8c.Assumptions-Calculations'!$A$198*'3c.Alt user input-Purchasing'!$I$41, "n/a") -> n/a | Y122: =IF('4.Data comparisons'!$C$43="Notebook",('4.Data comparisons'!L$51-'4.Data comparisons'!C$51)/'8c.Assumptions-Calculations'!$A$198*'3c.Alt user input-Purchasing'!$I$41, "n/a") -> n/a | Z122: =IF('4.Data comparisons'!$C$43="Notebook",('4.Data comparisons'!L$52-'4.Data comparisons'!C$52)/'8c.Assumptions-Calculations'!$A$198*'3c.Alt user input-Purchasing'!$I$41, "n/a") -> n/a | AA122: =IF('4.Data comparisons'!$C$43="Notebook",('4.Data comparisons'!L$53-'4.Data comparisons'!C$53)/'8c.Assumptions-Calculations'!$A$198*'3c.Alt user input-Purchasing'!$I$41, "n/a") -> n/a
A123: E4.1.1.1 | B123: RoHS compliance-Cr6+ | C123: Cr6+ | D123: none now | J123: 0 | N123: =Y123 -> 0 | R123: incorporated above | U123: VALUE | V123: =SUM(V119:V122) -> 0 | W123: 0 | X123: 0 | Y123: 0 | Z123: 0 | AA123: 0
A124: E 4.1.1.1 | B124: RoHS compliance-PBB | C124: PBB | D124: none now | J124: 0 | O124: =Z123 -> 0 | R124: incorporated above
A125: E 4.1.1.1 | B125: RoHS compliance-PBDE | C125: PBDE | D125: none now | J125: 0 | P125: =AA123 -> 0 | R125: incorporated above | U125: HW saved from Pb reduced (kg)
B126: SUBTOTAL | C126: Toxicity (P) | J126: =SUM(J118:J125) -> 0 | K126: =SUM(K118:K125) -> 0 | L126: 0 | M126: 0 | N126: 0 | O126: 0 | P126: 0 | R126: 0 | U126: Pb-PWB | V126: =IF('4.Data comparisons'!$C$43="CPU",('4.Data comparisons'!$F$54-'4.Data comparisons'!$C$54)*'3c.Alt user input-Purchasing'!I41,IF('4.Data comparisons'!$C$43="CRT",('4.Data comparisons'!$H$54-'4.Data comparisons'!$C$54)*'3c.Alt user input-Purchasing'!I41,IF('4.Data comparisons'!$C$43="LCD",('4.Data comparisons'!$J$54-'4.Data comparisons'!$C$54)*'3c.Alt user input-Purchasing'!I41,IF('4.Data comparisons'!$C$43="Notebook",('4.Data comparisons'!$L$54-'4.Data comparisons'!$C$54)*'3c.Alt user input-Purchasing'!I41,"n/a")))) -> n/a
B127: Material Use | U127: Pb-W&C | V127: =IF('4.Data comparisons'!$C$43="CPU",('4.Data comparisons'!$F$57-'4.Data comparisons'!$C$57)*'3c.Alt user input-Purchasing'!I41,IF('4.Data comparisons'!$C$43="CRT",('4.Data comparisons'!$H$57-'4.Data comparisons'!$C$57)*'3c.Alt user input-Purchasing'!I41,IF('4.Data comparisons'!$C$43="LCD",('4.Data comparisons'!$J$57-'4.Data comparisons'!$C$57)*'3c.Alt user input-Purchasing'!I41,IF('4.Data comparisons'!$C$43="Notebook",('4.Data comparisons'!$L$57-'4.Data comparisons'!$C$57)*'3c.Alt user input-Purchasing'!I41,"n/a")))) -> n/a
A128: E 4.2.1.1-3 | B128: Recycled content in product | C128: RC-prod | D128: energy prod. | E128: =IF('4.Data comparisons'!$C$43="CPU",('4.Data comparisons'!$C$60-'4.Data comparisons'!$F$60)*'8c.Assumptions-Calculations'!$D$101/'8c.Assumptions-Calculations'!$B$128*'3c.Alt user input-Purchasing'!I41, IF('4.Data comparisons'!$C$43="CRT",('4.Data comparisons'!$C$60-'4.Data comparisons'!$H$60)*'8c.Assumptions-Calculations'!$D$101/'8c.Assumptions-Calculations'!$B$128*'3c.Alt user input-Purchasing'!I41,IF('4.Data comparisons'!$C$43="LCD",('4.Data comparisons'!$C$60-'4.Data comparisons'!$J$60)*'8c.Assumptions-Calculations'!$D$101/'8c.Assumptions-Calculations'!$B$128*'3c.Alt user input-Purchasing'!I41, IF('4.Data comparisons'!$C$43="Notebook",('4.Data comparisons'!$C$60-'4.Data comparisons'!$L$60)*'8c.Assumptions-Calculations'!$D$101/'8c.Assumptions-Calculations'!$B$128*'3c.Alt user input-Purchasing'!I41, 0)))) -> 0 | F128: =IF('4.Data comparisons'!$C$43="CPU",('4.Data comparisons'!$C$60-'4.Data comparisons'!$F$60)*'8c.Assumptions-Calculations'!$E$101*'3c.Alt user input-Purchasing'!I41, IF('4.Data comparisons'!$C$43="CRT",('4.Data comparisons'!$C$60-'4.Data comparisons'!$H$60)*'8c.Assumptions-Calculations'!$E$101*'3c.Alt user input-Purchasing'!I41,IF('4.Data comparisons'!$C$43="LCD",('4.Data comparisons'!$C$60-'4.Data comparisons'!$J$60)*'8c.Assumptions-Calculations'!$E$101*'3c.Alt user input-Purchasing'!I41, IF('4.Data comparisons'!$C$43="Notebook",('4.Data comparisons'!$C$60-'4.Data comparisons'!$L$60)*'8c.Assumptions-Calculations'!$E$101*'3c.Alt user input-Purchasing'!I41, 0)))) -> 0 | G128: =IF('4.Data comparisons'!$C$43="CPU",('4.Data comparisons'!$C$60-'4.Data comparisons'!$F$60)*'8c.Assumptions-Calculations'!$B$160*'3c.Alt user input-Purchasing'!I41, IF('4.Data comparisons'!$C$43="CRT",('4.Data comparisons'!$C$60-'4.Data comparisons'!$H$60)*'8c.Assumptions-Calculations'!$B$160*'3c.Alt user input-Purchasing'!I41,IF('4.Data comparisons'!$C$43="LCD",('4.Data comparisons'!$C$60-'4.Data comparisons'!$J$60)*'8c.Assumptions-Calculations'!$B$160*'3c.Alt user input-Purchasing'!I41, IF('4.Data comparisons'!$C$43="Notebook",('4.Data comparisons'!$C$60-'4.Data comparisons'!$L$60)*'8c.Assumptions-Calculations'!$B$160*'3c.Alt user input-Purchasing'!I41, 0)))) -> 0 | H128: =IF('4.Data comparisons'!$C$43="CPU",('4.Data comparisons'!$C$60-'4.Data comparisons'!$F$60)*'8c.Assumptions-Calculations'!$B$101*'3c.Alt user input-Purchasing'!I41, IF('4.Data comparisons'!$C$43="CRT",('4.Data comparisons'!$C$60-'4.Data comparisons'!$H$60)*'8c.Assumptions-Calculations'!$B$101*'3c.Alt user input-Purchasing'!I41,IF('4.Data comparisons'!$C$43="LCD",('4.Data comparisons'!$C$60-'4.Data comparisons'!$J$60)*'8c.Assumptions-Calculations'!$B$101*'3c.Alt user input-Purchasing'!I41, IF('4.Data comparisons'!$C$43="Notebook",('4.Data comparisons'!$C$60-'4.Data comparisons'!$L$60)*'8c.Assumptions-Calculations'!$B$101*'3c.Alt user input-Purchasing'!I41, 0)))) -> 0 | I128: =IF('4.Data comparisons'!$C$43="CPU",('4.Data comparisons'!$C$60-'4.Data comparisons'!$F$60)*'8c.Assumptions-Calculations'!$C$101*'3c.Alt user input-Purchasing'!I41, IF('4.Data comparisons'!$C$43="CRT",('4.Data comparisons'!$C$60-'4.Data comparisons'!$H$60)*'8c.Assumptions-Calculations'!$C$101*'3c.Alt user input-Purchasing'!I41,IF('4.Data comparisons'!$C$43="LCD",('4.Data comparisons'!$C$60-'4.Data comparisons'!$J$60)*'8c.Assumptions-Calculations'!$C$101*'3c.Alt user input-Purchasing'!I41, IF('4.Data comparisons'!$C$43="Notebook",('4.Data comparisons'!$C$60-'4.Data comparisons'!$L$60)*'8c.Assumptions-Calculations'!$C$101*'3c.Alt user input-Purchasing'!I41, 0)))) -> 0 | Q128: =IF('4.Data comparisons'!$C$43="CPU",('4.Data comparisons'!$C$60-'4.Data comparisons'!$F$60)*'3c.Alt user input-Purchasing'!I41, IF('4.Data comparisons'!$C$43="CRT",('4.Data comparisons'!$C$60-'4.Data comparisons'!$H$60)*'3c.Alt user input-Purchasing'!I41,IF('4.Data comparisons'!$C$43="LCD",('4.Data comparisons'!$C$60-'4.Data comparisons'!$J$60)*'3c.Alt user input-Purchasing'!I41, IF('4.Data comparisons'!$C$43="Notebook",('4.Data comparisons'!$C$60-'4.Data comparisons'!$L$60)*'3c.Alt user input-Purchasing'!I41, 0)))) -> 0 | S128: =E128*'8c.Assumptions-Calculations'!$B$23 -> 0 | U128: TOTAL | V128: =SUM(V126:V127) -> 0
A129: E 4.2.2.1-2 | B129: Renewable/biobased content in product | C129: Renew/bio-prod | D129: energy prod. | E129: * * This criterion is not Calculated in Version 3.0 of this Calculator * *
B130: SUBTOTAL | C130: Material Use (P) | E130: =SUM(E128:E129) -> 0 | F130: =SUM(F128:F129) -> 0 | G130: =SUM(G128:G129) -> 0 | H130: =SUM(H128:H129) -> 0 | I130: =SUM(I128:I129) -> 0 | Q130: =SUM(Q128:Q129) -> 0 | S130: =SUM(S128:S129) -> 0 | U130: Packaging reuse | V130: Energy(kWh) | W130: PM (kg) | X130: GHG (kg) | Y130: Air (kg) | Z130: Water (kg)
B131: Packaging | U131: CPU | V131: =IF('4.Data comparisons'!$C$43="CPU",(('4.Data comparisons'!$C$64)*'8c.Assumptions-Calculations'!$D$123/'8c.Assumptions-Calculations'!$B$128+('4.Data comparisons'!$C$66+'4.Data comparisons'!$C$68)*'8c.Assumptions-Calculations'!$D$121/'8c.Assumptions-Calculations'!$B$128),"n/a") -> n/a | W131: =IF('4.Data comparisons'!$C$43="CPU",(('4.Data comparisons'!$C$64)*'8c.Assumptions-Calculations'!$E$123+('4.Data comparisons'!$C$66+'4.Data comparisons'!$C$68)*'8c.Assumptions-Calculations'!$E$121),"n/a") -> n/a | X131: =IF('4.Data comparisons'!$C$43="CPU",((('4.Data comparisons'!$C$64)*'8c.Assumptions-Calculations'!$B$171+('4.Data comparisons'!$C$66+'4.Data comparisons'!$C$68)*'8c.Assumptions-Calculations'!$B$167)),"n/a") -> n/a | Y131: =IF('4.Data comparisons'!$C$43="CPU",(('4.Data comparisons'!$C$64)*'8c.Assumptions-Calculations'!$B$123+('4.Data comparisons'!$C$66+'4.Data comparisons'!$C$68)*'8c.Assumptions-Calculations'!$B$121),"n/a") -> n/a | Z131: =IF('4.Data comparisons'!$C$43="CPU",(('4.Data comparisons'!$C$64)*'8c.Assumptions-Calculations'!$C$123+('4.Data comparisons'!$C$66+'4.Data comparisons'!$C$68)*'8c.Assumptions-Calculations'!$C$121),"n/a") -> n/a
A132: E 4.8.3.1-2 | B132: Average recycled content in corrugated packaging | C132: RC-pkg-corr | D132: energy prod. | E132: =IF('4.Data comparisons'!$C$43="CPU",('4.Data comparisons'!$C$65-'4.Data comparisons'!$F$65)*'8c.Assumptions-Calculations'!$D$123/'8c.Assumptions-Calculations'!$B$128*'3c.Alt user input-Purchasing'!I41, IF('4.Data comparisons'!$C$43="CRT",('4.Data comparisons'!$C$65-'4.Data comparisons'!$H$65)*'8c.Assumptions-Calculations'!$D$123/'8c.Assumptions-Calculations'!$B$128*'3c.Alt user input-Purchasing'!I41,IF('4.Data comparisons'!$C$43="LCD",('4.Data comparisons'!$C$65-'4.Data comparisons'!$J$65)*'8c.Assumptions-Calculations'!$D$123/'8c.Assumptions-Calculations'!$B$128*'3c.Alt user input-Purchasing'!I41, IF('4.Data comparisons'!$C$43="Notebook",('4.Data comparisons'!$C$65-'4.Data comparisons'!$L$65)*'8c.Assumptions-Calculations'!$D$123/'8c.Assumptions-Calculations'!$B$128*'3c.Alt user input-Purchasing'!I41, 0)))) -> 0 | F132: =IF('4.Data comparisons'!$C$43="CPU",('4.Data comparisons'!$C$65-'4.Data comparisons'!$F$65)*'8c.Assumptions-Calculations'!$E$123*'3c.Alt user input-Purchasing'!I41, IF('4.Data comparisons'!$C$43="CRT",('4.Data comparisons'!$C$65-'4.Data comparisons'!$H$65)*'8c.Assumptions-Calculations'!$E$123*'3c.Alt user input-Purchasing'!I41,IF('4.Data comparisons'!$C$43="LCD",('4.Data comparisons'!$C$65-'4.Data comparisons'!$J$65)*'8c.Assumptions-Calculations'!$E$123*'3c.Alt user input-Purchasing'!I41, IF('4.Data comparisons'!$C$43="Notebook",('4.Data comparisons'!$C$65-'4.Data comparisons'!$L$65)*'8c.Assumptions-Calculations'!$E$123*'3c.Alt user input-Purchasing'!I41, 0)))) -> 0 | G132: =IF('4.Data comparisons'!$C$43="CPU",('4.Data comparisons'!$C$65-'4.Data comparisons'!$F$65)*'8c.Assumptions-Calculations'!$B$172*'3c.Alt user input-Purchasing'!I41, IF('4.Data comparisons'!$C$43="CRT",('4.Data comparisons'!$C$65-'4.Data comparisons'!$H$65)*'8c.Assumptions-Calculations'!$B$172*'3c.Alt user input-Purchasing'!I41,IF('4.Data comparisons'!$C$43="LCD",('4.Data comparisons'!$C$65-'4.Data comparisons'!$J$65)*'8c.Assumptions-Calculations'!$B$172*'3c.Alt user input-Purchasing'!I41, IF('4.Data comparisons'!$C$43="Notebook",('4.Data comparisons'!$C$65-'4.Data comparisons'!$L$65)*'8c.Assumptions-Calculations'!$B$172*'3c.Alt user input-Purchasing'!I41, 0)))) -> 0 | H132: =IF('4.Data comparisons'!$C$43="CPU",('4.Data comparisons'!$C$65-'4.Data comparisons'!$F$65)*'8c.Assumptions-Calculations'!$B$123*'3c.Alt user input-Purchasing'!I41, IF('4.Data comparisons'!$C$43="CRT",('4.Data comparisons'!$C$65-'4.Data comparisons'!$H$65)*'8c.Assumptions-Calculations'!$B$123*'3c.Alt user input-Purchasing'!I41,IF('4.Data comparisons'!$C$43="LCD",('4.Data comparisons'!$C$65-'4.Data comparisons'!$J$65)*'8c.Assumptions-Calculations'!$B$123*'3c.Alt user input-Purchasing'!I41, IF('4.Data comparisons'!$C$43="Notebook",('4.Data comparisons'!$C$65-'4.Data comparisons'!$L$65)*'8c.Assumptions-Calculations'!$B$123*'3c.Alt user input-Purchasing'!I41, 0)))) -> 0 | I132: =IF('4.Data comparisons'!$C$43="CPU",('4.Data comparisons'!$C$65-'4.Data comparisons'!$F$65)*'8c.Assumptions-Calculations'!$C$123*'3c.Alt user input-Purchasing'!I41, IF('4.Data comparisons'!$C$43="CRT",('4.Data comparisons'!$C$65-'4.Data comparisons'!$H$65)*'8c.Assumptions-Calculations'!$C$123*'3c.Alt user input-Purchasing'!I41,IF('4.Data comparisons'!$C$43="LCD",('4.Data comparisons'!$C$65-'4.Data comparisons'!$J$65)*'8c.Assumptions-Calculations'!$C$123*'3c.Alt user input-Purchasing'!I41, IF('4.Data comparisons'!$C$43="Notebook",('4.Data comparisons'!$C$65-'4.Data comparisons'!$L$65)*'8c.Assumptions-Calculations'!$C$123*'3c.Alt user input-Purchasing'!I41, 0)))) -> 0 | Q132: =IF('4.Data comparisons'!$C$43="CPU",('4.Data comparisons'!$C$65-'4.Data comparisons'!$F$65)*'3c.Alt user input-Purchasing'!I41, IF('4.Data comparisons'!$C$43="CRT",('4.Data comparisons'!$C$65-'4.Data comparisons'!$H$65)*'3c.Alt user input-Purchasing'!I41,IF('4.Data comparisons'!$C$43="LCD",('4.Data comparisons'!$C$65-'4.Data comparisons'!$J$65)*'3c.Alt user input-Purchasing'!I41, IF('4.Data comparisons'!$C$43="Notebook",('4.Data comparisons'!$C$65-'4.Data comparisons'!$L$65)*'3c.Alt user input-Purchasing'!I41, 0)))) -> 0 | S132: =E132*'8c.Assumptions-Calculations'!$B$23 -> 0 | U132: CRT | V132: =IF('4.Data comparisons'!$C$43="CRT",(('4.Data comparisons'!$C$64)*'8c.Assumptions-Calculations'!$D$123/'8c.Assumptions-Calculations'!$B$128+('4.Data comparisons'!$C$66+'4.Data comparisons'!$C$68)*'8c.Assumptions-Calculations'!$D$121/'8c.Assumptions-Calculations'!$B$128),"n/a") -> n/a | W132: =IF('4.Data comparisons'!$C$43="CRT",(('4.Data comparisons'!$C$64)*'8c.Assumptions-Calculations'!$E$123+('4.Data comparisons'!$C$66+'4.Data comparisons'!$C$68)*'8c.Assumptions-Calculations'!$E$121),"n/a") -> n/a | X132: =IF('4.Data comparisons'!$C$43="CRT",((('4.Data comparisons'!$C$64)*'8c.Assumptions-Calculations'!$B$171+('4.Data comparisons'!$C$66+'4.Data comparisons'!$C$68)*'8c.Assumptions-Calculations'!$B$167)),"n/a") -> n/a | Y132: =IF('4.Data comparisons'!$C$43="CRT",(('4.Data comparisons'!$C$64)*'8c.Assumptions-Calculations'!$B$123+('4.Data comparisons'!$C$66+'4.Data comparisons'!$C$68)*'8c.Assumptions-Calculations'!$B$121),"n/a") -> n/a | Z132: =IF('4.Data comparisons'!$C$43="CRT",(('4.Data comparisons'!$C$64)*'8c.Assumptions-Calculations'!$C$123+('4.Data comparisons'!$C$66+'4.Data comparisons'!$C$68)*'8c.Assumptions-Calculations'!$C$121),"n/a") -> n/a
A133: E 4.8.3.1-2 | B133: Average recycled content in plastic/foam packaging | C133: RC-pkg-plastic | D133: energy prod. | E133: =IF('4.Data comparisons'!$C$43="CPU",('4.Data comparisons'!$C$67-'4.Data comparisons'!$F$67)*'8c.Assumptions-Calculations'!$D$121/'8c.Assumptions-Calculations'!$B$128*'3c.Alt user input-Purchasing'!I41, IF('4.Data comparisons'!$C$43="CRT",('4.Data comparisons'!$C$67-'4.Data comparisons'!$H$67)*'8c.Assumptions-Calculations'!$D$121/'8c.Assumptions-Calculations'!$B$128*'3c.Alt user input-Purchasing'!I41,IF('4.Data comparisons'!$C$43="LCD",('4.Data comparisons'!$C$67-'4.Data comparisons'!$J$67)*'8c.Assumptions-Calculations'!$D$121/'8c.Assumptions-Calculations'!$B$128*'3c.Alt user input-Purchasing'!I41, IF('4.Data comparisons'!$C$43="Notebook",('4.Data comparisons'!$C$67-'4.Data comparisons'!$L$67)*'8c.Assumptions-Calculations'!$D$121/'8c.Assumptions-Calculations'!$B$128*'3c.Alt user input-Purchasing'!I41, 0)))) -> 0 | F133: =IF('4.Data comparisons'!$C$43="CPU",('4.Data comparisons'!$C$67-'4.Data comparisons'!$F$67)*'8c.Assumptions-Calculations'!$E$121*'3c.Alt user input-Purchasing'!I41, IF('4.Data comparisons'!$C$43="CRT",('4.Data comparisons'!$C$67-'4.Data comparisons'!$H$67)*'8c.Assumptions-Calculations'!$E$121*'3c.Alt user input-Purchasing'!I41,IF('4.Data comparisons'!$C$43="LCD",('4.Data comparisons'!$C$67-'4.Data comparisons'!$J$67)*'8c.Assumptions-Calculations'!$E$121*'3c.Alt user input-Purchasing'!I41, IF('4.Data comparisons'!$C$43="Notebook",('4.Data comparisons'!$C$67-'4.Data comparisons'!$L$67)*'8c.Assumptions-Calculations'!$E$121*'3c.Alt user input-Purchasing'!I41, 0)))) -> 0 | G133: =IF('4.Data comparisons'!$C$43="CPU",('4.Data comparisons'!$C$67-'4.Data comparisons'!$F$67)*'8c.Assumptions-Calculations'!$B$168*'3c.Alt user input-Purchasing'!I41, IF('4.Data comparisons'!$C$43="CRT",('4.Data comparisons'!$C$67-'4.Data comparisons'!$H$67)*'8c.Assumptions-Calculations'!$B$168*'3c.Alt user input-Purchasing'!I41,IF('4.Data comparisons'!$C$43="LCD",('4.Data comparisons'!$C$67-'4.Data comparisons'!$J$67)*'8c.Assumptions-Calculations'!$B$168*'3c.Alt user input-Purchasing'!I41, IF('4.Data comparisons'!$C$43="Notebook",('4.Data comparisons'!$C$67-'4.Data comparisons'!$L$67)*'8c.Assumptions-Calculations'!$B$168*'3c.Alt user input-Purchasing'!I41, 0)))) -> 0 | H133: =IF('4.Data comparisons'!$C$43="CPU",('4.Data comparisons'!$C$67-'4.Data comparisons'!$F$67)*'8c.Assumptions-Calculations'!$B$121*'3c.Alt user input-Purchasing'!I41, IF('4.Data comparisons'!$C$43="CRT",('4.Data comparisons'!$C$67-'4.Data comparisons'!$H$67)*'8c.Assumptions-Calculations'!$B$121*'3c.Alt user input-Purchasing'!I41,IF('4.Data comparisons'!$C$43="LCD",('4.Data comparisons'!$C$67-'4.Data comparisons'!$J$67)*'8c.Assumptions-Calculations'!$B$121*'3c.Alt user input-Purchasing'!I41, IF('4.Data comparisons'!$C$43="Notebook",('4.Data comparisons'!$C$67-'4.Data comparisons'!$L$67)*'8c.Assumptions-Calculations'!$B$121*'3c.Alt user input-Purchasing'!I41, 0)))) -> 0 | I133: =IF('4.Data comparisons'!$C$43="CPU",('4.Data comparisons'!$C$67-'4.Data comparisons'!$F$67)*'8c.Assumptions-Calculations'!$C$121*'3c.Alt user input-Purchasing'!I41, IF('4.Data comparisons'!$C$43="CRT",('4.Data comparisons'!$C$67-'4.Data comparisons'!$H$67)*'8c.Assumptions-Calculations'!$C$121*'3c.Alt user input-Purchasing'!I41,IF('4.Data comparisons'!$C$43="LCD",('4.Data comparisons'!$C$67-'4.Data comparisons'!$J$67)*'8c.Assumptions-Calculations'!$C$121*'3c.Alt user input-Purchasing'!I41, IF('4.Data comparisons'!$C$43="Notebook",('4.Data comparisons'!$C$67-'4.Data comparisons'!$L$67)*'8c.Assumptions-Calculations'!$C$121*'3c.Alt user input-Purchasing'!I41, 0)))) -> 0 | Q133: =IF('4.Data comparisons'!$C$43="CPU",('4.Data comparisons'!$C$67-'4.Data comparisons'!$F$67)*'3c.Alt user input-Purchasing'!I41, IF('4.Data comparisons'!$C$43="CRT",('4.Data comparisons'!$C$67-'4.Data comparisons'!$H$67)*'3c.Alt user input-Purchasing'!I41,IF('4.Data comparisons'!$C$43="LCD",('4.Data comparisons'!$C$67-'4.Data comparisons'!$J$67)*'3c.Alt user input-Purchasing'!I41, IF('4.Data comparisons'!$C$43="Notebook",('4.Data comparisons'!$C$67-'4.Data comparisons'!$L$67)*'3c.Alt user input-Purchasing'!I41, 0)))) -> 0 | S133: =E133*'8c.Assumptions-Calculations'!$B$23 -> 0 | U133: LCD | V133: =IF('4.Data comparisons'!$C$43="LCD",(('4.Data comparisons'!$C$64)*'8c.Assumptions-Calculations'!$D$123/'8c.Assumptions-Calculations'!$B$128+('4.Data comparisons'!$C$66+'4.Data comparisons'!$C$68)*'8c.Assumptions-Calculations'!$D$121/'8c.Assumptions-Calculations'!$B$128),"n/a") -> n/a | W133: =IF('4.Data comparisons'!$C$43="LCD",(('4.Data comparisons'!$C$64)*'8c.Assumptions-Calculations'!$E$123+('4.Data comparisons'!$C$66+'4.Data comparisons'!$C$68)*'8c.Assumptions-Calculations'!$E$121),"n/a") -> n/a | X133: =IF('4.Data comparisons'!$C$43="LCD",((('4.Data comparisons'!$C$64)*'8c.Assumptions-Calculations'!$B$171+('4.Data comparisons'!$C$66+'4.Data comparisons'!$C$68)*'8c.Assumptions-Calculations'!$B$167)),"n/a") -> n/a | Y133: =IF('4.Data comparisons'!$C$43="LCD",(('4.Data comparisons'!$C$64)*'8c.Assumptions-Calculations'!$B$123+('4.Data comparisons'!$C$66+'4.Data comparisons'!$C$68)*'8c.Assumptions-Calculations'!$B$121),"n/a") -> n/a | Z133: =IF('4.Data comparisons'!$C$43="LCD",(('4.Data comparisons'!$C$64)*'8c.Assumptions-Calculations'!$C$123+('4.Data comparisons'!$C$66+'4.Data comparisons'!$C$68)*'8c.Assumptions-Calculations'!$C$121),"n/a") -> n/a
A134: E 4.8.3.1-2 | B134: Average recycled content in other packaging | C134: RC-pkg-other | E134: =IF('4.Data comparisons'!$C$43="CPU",('4.Data comparisons'!$C$69-'4.Data comparisons'!$F$69)*'8c.Assumptions-Calculations'!$D$121/'8c.Assumptions-Calculations'!$B$128*'3c.Alt user input-Purchasing'!I41, IF('4.Data comparisons'!$C$43="CRT",('4.Data comparisons'!$C$69-'4.Data comparisons'!$H$69)*'8c.Assumptions-Calculations'!$D$121/'8c.Assumptions-Calculations'!$B$128*'3c.Alt user input-Purchasing'!I41,IF('4.Data comparisons'!$C$43="LCD",('4.Data comparisons'!$C$69-'4.Data comparisons'!$J$69)*'8c.Assumptions-Calculations'!$D$121/'8c.Assumptions-Calculations'!$B$128*'3c.Alt user input-Purchasing'!I41, IF('4.Data comparisons'!$C$43="Notebook",('4.Data comparisons'!$C$69-'4.Data comparisons'!$L$69)*'8c.Assumptions-Calculations'!$D$121/'8c.Assumptions-Calculations'!$B$128*'3c.Alt user input-Purchasing'!I41, 0)))) -> 0 | F134: =IF('4.Data comparisons'!$C$43="CPU",('4.Data comparisons'!$C$69-'4.Data comparisons'!$F$69)*'8c.Assumptions-Calculations'!$E$121*'3c.Alt user input-Purchasing'!I41, IF('4.Data comparisons'!$C$43="CRT",('4.Data comparisons'!$C$69-'4.Data comparisons'!$H$69)*'8c.Assumptions-Calculations'!$E$121*'3c.Alt user input-Purchasing'!I41,IF('4.Data comparisons'!$C$43="LCD",('4.Data comparisons'!$C$69-'4.Data comparisons'!$J$69)*'8c.Assumptions-Calculations'!$E$121*'3c.Alt user input-Purchasing'!I41, IF('4.Data comparisons'!$C$43="Notebook",('4.Data comparisons'!$C$69-'4.Data comparisons'!$L$69)*'8c.Assumptions-Calculations'!$E$121*'3c.Alt user input-Purchasing'!I41, 0)))) -> 0 | G134: =IF('4.Data comparisons'!$C$43="CPU",('4.Data comparisons'!$C$69-'4.Data comparisons'!$F$69)*'8c.Assumptions-Calculations'!$B$168*'3c.Alt user input-Purchasing'!I41, IF('4.Data comparisons'!$C$43="CRT",('4.Data comparisons'!$C$69-'4.Data comparisons'!$H$69)*'8c.Assumptions-Calculations'!$B$168*'3c.Alt user input-Purchasing'!I41,IF('4.Data comparisons'!$C$43="LCD",('4.Data comparisons'!$C$69-'4.Data comparisons'!$J$69)*'8c.Assumptions-Calculations'!$B$168*'3c.Alt user input-Purchasing'!I41, IF('4.Data comparisons'!$C$43="Notebook",('4.Data comparisons'!$C$69-'4.Data comparisons'!$L$69)*'8c.Assumptions-Calculations'!$B$168*'3c.Alt user input-Purchasing'!I41, 0)))) -> 0 | H134: =IF('4.Data comparisons'!$C$43="CPU",('4.Data comparisons'!$C$69-'4.Data comparisons'!$F$69)*'8c.Assumptions-Calculations'!$B$121*'3c.Alt user input-Purchasing'!I41, IF('4.Data comparisons'!$C$43="CRT",('4.Data comparisons'!$C$69-'4.Data comparisons'!$H$69)*'8c.Assumptions-Calculations'!$B$121*'3c.Alt user input-Purchasing'!I41,IF('4.Data comparisons'!$C$43="LCD",('4.Data comparisons'!$C$69-'4.Data comparisons'!$J$69)*'8c.Assumptions-Calculations'!$B$121*'3c.Alt user input-Purchasing'!I41, IF('4.Data comparisons'!$C$43="Notebook",('4.Data comparisons'!$C$69-'4.Data comparisons'!$L$69)*'8c.Assumptions-Calculations'!$B$121*'3c.Alt user input-Purchasing'!I41, 0)))) -> 0 | I134: =IF('4.Data comparisons'!$C$43="CPU",('4.Data comparisons'!$C$69-'4.Data comparisons'!$F$69)*'8c.Assumptions-Calculations'!$C$121*'3c.Alt user input-Purchasing'!I41, IF('4.Data comparisons'!$C$43="CRT",('4.Data comparisons'!$C$69-'4.Data comparisons'!$H$69)*'8c.Assumptions-Calculations'!$C$121*'3c.Alt user input-Purchasing'!I41,IF('4.Data comparisons'!$C$43="LCD",('4.Data comparisons'!$C$69-'4.Data comparisons'!$J$69)*'8c.Assumptions-Calculations'!$C$121*'3c.Alt user input-Purchasing'!I41, IF('4.Data comparisons'!$C$43="Notebook",('4.Data comparisons'!$C$69-'4.Data comparisons'!$L$69)*'8c.Assumptions-Calculations'!$C$121*'3c.Alt user input-Purchasing'!I41, 0)))) -> 0 | Q134: =IF('4.Data comparisons'!$C$43="CPU",('4.Data comparisons'!$C$69-'4.Data comparisons'!$F$69)*'3c.Alt user input-Purchasing'!I41, IF('4.Data comparisons'!$C$43="CRT",('4.Data comparisons'!$C$69-'4.Data comparisons'!$H$69)*'3c.Alt user input-Purchasing'!I41,IF('4.Data comparisons'!$C$43="LCD",('4.Data comparisons'!$C$69-'4.Data comparisons'!$J$69)*'3c.Alt user input-Purchasing'!I41, IF('4.Data comparisons'!$C$43="Notebook",('4.Data comparisons'!$C$69-'4.Data comparisons'!$L$69)*'3c.Alt user input-Purchasing'!I41, 0)))) -> 0 | S134: =E134*'8c.Assumptions-Calculations'!$B$23 -> 0 | U134: Notebook | V134: =IF('4.Data comparisons'!$C$43="Notebook",(('4.Data comparisons'!$C$64)*'8c.Assumptions-Calculations'!$D$123/'8c.Assumptions-Calculations'!$B$128+('4.Data comparisons'!$C$66+'4.Data comparisons'!$C$68)*'8c.Assumptions-Calculations'!$D$121/'8c.Assumptions-Calculations'!$B$128),"n/a") -> n/a | W134: =IF('4.Data comparisons'!$C$43="Notebook",(('4.Data comparisons'!$C$64)*'8c.Assumptions-Calculations'!$E$123+('4.Data comparisons'!$C$66+'4.Data comparisons'!$C$68)*'8c.Assumptions-Calculations'!$E$121),"n/a") -> n/a | X134: =IF('4.Data comparisons'!$C$43="Notebook",((('4.Data comparisons'!$C$64)*'8c.Assumptions-Calculations'!$B$171+('4.Data comparisons'!$C$66+'4.Data comparisons'!$C$68)*'8c.Assumptions-Calculations'!$B$167)),"n/a") -> n/a | Y134: =IF('4.Data comparisons'!$C$43="Notebook",(('4.Data comparisons'!$C$64)*'8c.Assumptions-Calculations'!$B$123+('4.Data comparisons'!$C$66+'4.Data comparisons'!$C$68)*'8c.Assumptions-Calculations'!$B$121),"n/a") -> n/a | Z134: =IF('4.Data comparisons'!$C$43="Notebook",(('4.Data comparisons'!$C$64)*'8c.Assumptions-Calculations'!$C$123+('4.Data comparisons'!$C$66+'4.Data comparisons'!$C$68)*'8c.Assumptions-Calculations'!$C$121),"n/a") -> n/a
A135: E 4.8.3.1-2 | B135: Minimum 25% for recycled content in corrugated packaging (CPG) | C135: RC-pkg-CPG | E135: =IF('4.Data comparisons'!$C$43="CPU",('4.Data comparisons'!$C$70-'4.Data comparisons'!$F$70)*'8c.Assumptions-Calculations'!$D$123/'8c.Assumptions-Calculations'!$B$128*'3c.Alt user input-Purchasing'!I41, IF('4.Data comparisons'!$C$43="CRT",('4.Data comparisons'!$C$70-'4.Data comparisons'!$H$70)*'8c.Assumptions-Calculations'!$D$123/'8c.Assumptions-Calculations'!$B$128*'3c.Alt user input-Purchasing'!I41,IF('4.Data comparisons'!$C$43="LCD",('4.Data comparisons'!$C$70-'4.Data comparisons'!$J$70)*'8c.Assumptions-Calculations'!$D$123/'8c.Assumptions-Calculations'!$B$128*'3c.Alt user input-Purchasing'!I41, IF('4.Data comparisons'!$C$43="Notebook",('4.Data comparisons'!$C$70-'4.Data comparisons'!$L$70)*'8c.Assumptions-Calculations'!$D$123/'8c.Assumptions-Calculations'!$B$128*'3c.Alt user input-Purchasing'!I41, 0)))) -> 0 | F135: =IF('4.Data comparisons'!$C$43="CPU",('4.Data comparisons'!$C$70-'4.Data comparisons'!$F$70)*'8c.Assumptions-Calculations'!$E$123*'3c.Alt user input-Purchasing'!I41, IF('4.Data comparisons'!$C$43="CRT",('4.Data comparisons'!$C$70-'4.Data comparisons'!$H$70)*'8c.Assumptions-Calculations'!$E$123*'3c.Alt user input-Purchasing'!I41,IF('4.Data comparisons'!$C$43="LCD",('4.Data comparisons'!$C$70-'4.Data comparisons'!$J$70)*'8c.Assumptions-Calculations'!$E$123*'3c.Alt user input-Purchasing'!I41, IF('4.Data comparisons'!$C$43="Notebook",('4.Data comparisons'!$C$70-'4.Data comparisons'!$L$70)*'8c.Assumptions-Calculations'!$E$123*'3c.Alt user input-Purchasing'!I41, 0)))) -> 0 | G135: =IF('4.Data comparisons'!$C$43="CPU",('4.Data comparisons'!$C$70-'4.Data comparisons'!$F$70)*'8c.Assumptions-Calculations'!$B$172*'3c.Alt user input-Purchasing'!I41, IF('4.Data comparisons'!$C$43="CRT",('4.Data comparisons'!$C$70-'4.Data comparisons'!$H$70)*'8c.Assumptions-Calculations'!$B$172*'3c.Alt user input-Purchasing'!I41,IF('4.Data comparisons'!$C$43="LCD",('4.Data comparisons'!$C$70-'4.Data comparisons'!$J$70)*'8c.Assumptions-Calculations'!$B$172*'3c.Alt user input-Purchasing'!I41, IF('4.Data comparisons'!$C$43="Notebook",('4.Data comparisons'!$C$70-'4.Data comparisons'!$L$70)*'8c.Assumptions-Calculations'!$B$172*'3c.Alt user input-Purchasing'!I41, 0)))) -> 0 | H135: =IF('4.Data comparisons'!$C$43="CPU",('4.Data comparisons'!$C$70-'4.Data comparisons'!$F$70)*'8c.Assumptions-Calculations'!$B$123*'3c.Alt user input-Purchasing'!I41, IF('4.Data comparisons'!$C$43="CRT",('4.Data comparisons'!$C$70-'4.Data comparisons'!$H$70)*'8c.Assumptions-Calculations'!$B$123*'3c.Alt user input-Purchasing'!I41,IF('4.Data comparisons'!$C$43="LCD",('4.Data comparisons'!$C$70-'4.Data comparisons'!$J$70)*'8c.Assumptions-Calculations'!$B$123*'3c.Alt user input-Purchasing'!I41, IF('4.Data comparisons'!$C$43="Notebook",('4.Data comparisons'!$C$70-'4.Data comparisons'!$L$70)*'8c.Assumptions-Calculations'!$B$123*'3c.Alt user input-Purchasing'!I41, 0)))) -> 0 | I135: =IF('4.Data comparisons'!$C$43="CPU",('4.Data comparisons'!$C$70-'4.Data comparisons'!$F$70)*'8c.Assumptions-Calculations'!$C$123*'3c.Alt user input-Purchasing'!I41, IF('4.Data comparisons'!$C$43="CRT",('4.Data comparisons'!$C$70-'4.Data comparisons'!$H$70)*'8c.Assumptions-Calculations'!$C$123*'3c.Alt user input-Purchasing'!I41,IF('4.Data comparisons'!$C$43="LCD",('4.Data comparisons'!$C$70-'4.Data comparisons'!$J$70)*'8c.Assumptions-Calculations'!$C$123*'3c.Alt user input-Purchasing'!I41, IF('4.Data comparisons'!$C$43="Notebook",('4.Data comparisons'!$C$70-'4.Data comparisons'!$L$70)*'8c.Assumptions-Calculations'!$C$123*'3c.Alt user input-Purchasing'!I41, 0)))) -> 0 | Q135: =IF('4.Data comparisons'!$C$43="CPU",('4.Data comparisons'!$C$70-'4.Data comparisons'!$F$70)*'3c.Alt user input-Purchasing'!I41, IF('4.Data comparisons'!$C$43="CRT",('4.Data comparisons'!$C$70-'4.Data comparisons'!$H$70)*'3c.Alt user input-Purchasing'!I41,IF('4.Data comparisons'!$C$43="LCD",('4.Data comparisons'!$C$70-'4.Data comparisons'!$J$70)*'3c.Alt user input-Purchasing'!I41, IF('4.Data comparisons'!$C$43="Notebook",('4.Data comparisons'!$C$70-'4.Data comparisons'!$L$70)*'3c.Alt user input-Purchasing'!I41, 0)))) -> 0 | S135: =E135*'8c.Assumptions-Calculations'!$B$23 -> 0 | U135: VALUE | V135: =SUM(V131:V134) -> 0 | W135: =SUM(W131:W134) -> 0 | X135: =SUM(X131:X134) -> 0 | Y135: =SUM(Y131:Y134) -> 0 | Z135: =SUM(Z131:Z134) -> 0
A136: E 5.8.5.1 | B136: Packaging avoided per unit by packaging reuse | C136: Reuse-pkg | E136: =IF(OR('4.Data comparisons'!$C$72=0,'4.Data comparisons'!$C$72="no input"),0,(V135*'8b1.Assumptions-EPEATFECdefault'!$C$33*'3c.Alt user input-Purchasing'!$I$41)) -> 0 | F136: =IF(OR('4.Data comparisons'!$C$72=0,'4.Data comparisons'!$C$72="no input"),0,(W135*'8b1.Assumptions-EPEATFECdefault'!$C$33*'3c.Alt user input-Purchasing'!$I$41)) -> 0 | G136: =IF(OR('4.Data comparisons'!$C$72=0,'4.Data comparisons'!$C$72="no input"),0,(X135*'8b1.Assumptions-EPEATFECdefault'!$C$33*'3c.Alt user input-Purchasing'!$I$41)) -> 0 | H136: =IF(OR('4.Data comparisons'!$C$72=0,'4.Data comparisons'!$C$72="no input"),0,(Y135*'8b1.Assumptions-EPEATFECdefault'!$C$33*'3c.Alt user input-Purchasing'!$I$41)) -> 0 | I136: =IF(OR('4.Data comparisons'!$C$72=0,'4.Data comparisons'!$C$72="no input"),0,(Z135*'8b1.Assumptions-EPEATFECdefault'!$C$33*'3c.Alt user input-Purchasing'!$I$41)) -> 0 | Q136: =IF('4.Data comparisons'!$C$43="CPU",('4.Data comparisons'!$C$72-'4.Data comparisons'!$F$72)*'3c.Alt user input-Purchasing'!I41, IF('4.Data comparisons'!$C$43="CRT",('4.Data comparisons'!$C$72-'4.Data comparisons'!$H$72)*'3c.Alt user input-Purchasing'!I41,IF('4.Data comparisons'!$C$43="LCD",('4.Data comparisons'!$C$72-'4.Data comparisons'!$J$72)*'3c.Alt user input-Purchasing'!I41, IF('4.Data comparisons'!$C$43="Notebook",('4.Data comparisons'!$C$72-'4.Data comparisons'!$L$72)*'3c.Alt user input-Purchasing'!I41, 0)))) -> 0 | S136: =E136*'8c.Assumptions-Calculations'!$B$23 -> 0
B137: SUBTOTAL | C137: Packaging (P) | E137: =IF(E132>E135,SUM(E132:E134,E136),SUM(E133:E136)) -> 0 | F137: =IF(F132>F135,SUM(F132:F134,F136),SUM(F133:F136)) -> 0 | G137: =IF(G132>G135,SUM(G132:G134,G136),SUM(G133:G136)) -> 0 | H137: =IF(H132>H135,SUM(H132:H134,H136),SUM(H133:H136)) -> 0 | I137: =IF(I132>I135,SUM(I132:I134,I136),SUM(I133:I136)) -> 0 | Q137: =IF(Q132>Q135,SUM(Q132:Q134,Q136),SUM(Q133:Q136)) -> 0 | S137: =IF(S132>S135,SUM(S132:S134,S136),SUM(S133:S136)) -> 0 | U137: Energy (kWh) | V137: Lifetime | W137: First Year
B138: Energy (Product Lifetime) | U138: CPU | V138: =IF('4.Data comparisons'!$C$43="CPU",('8a. Assumptions-Baseline'!$D$39/12)*('4.Data comparisons'!$F$74-'4.Data comparisons'!$C$74)*'3c.Alt user input-Purchasing'!$I$41,"n/a") -> n/a | W138: =IF('4.Data comparisons'!$C$43="CPU",IF('8a. Assumptions-Baseline'!$D$39>12,('4.Data comparisons'!$F$74-'4.Data comparisons'!$C$74)*'3c.Alt user input-Purchasing'!$I$41,('8a. Assumptions-Baseline'!$D$39/12)*('4.Data comparisons'!$F$74-'4.Data comparisons'!$C$74)*'3c.Alt user input-Purchasing'!$I$41),"n/a") -> n/a
A139: E 4.5.1.1 | B139: ENERGY STAR 5.* | C139: EnStar4.0 | D139: energy prod. | E139: =$V$142 -> 0 | F139: =E139*'8c.Assumptions-Calculations'!$E$126 -> 0 | G139: =E139*'8c.Assumptions-Calculations'!$B$155 -> 0 | H139: =E139*'8c.Assumptions-Calculations'!$B$126 -> 0 | I139: =E139*'8c.Assumptions-Calculations'!$C$126 -> 0 | S139: =E139*'8c.Assumptions-Calculations'!$B$23 -> 0 | U139: CRT | V139: =IF('4.Data comparisons'!$C$43="CRT",('8a. Assumptions-Baseline'!$D$83/12)*('4.Data comparisons'!$H$74-'4.Data comparisons'!$C$74)*'3c.Alt user input-Purchasing'!$I$41,"n/a") -> n/a | W139: =IF('4.Data comparisons'!$C$43="CRT",IF('8a. Assumptions-Baseline'!$D$83>12,('4.Data comparisons'!$H$74-'4.Data comparisons'!$C$74)*'3c.Alt user input-Purchasing'!$I$41,('8a. Assumptions-Baseline'!$D$83/12)*('4.Data comparisons'!$H$74-'4.Data comparisons'!$C$74)*'3c.Alt user input-Purchasing'!$I$41),"n/a") -> n/a
A140: E 4.5.1.2 | B140: ENERGY STAR early adopter | E140: * * This criterion is not Calculated in Version 3.0 of this Calculator * * | U140: LCD | V140: =IF('4.Data comparisons'!$C$43="LCD",('8a. Assumptions-Baseline'!$D$128/12)*('4.Data comparisons'!$J$74-'4.Data comparisons'!$C$74)*'3c.Alt user input-Purchasing'!$I$41,"n/a") -> n/a | W140: =IF('4.Data comparisons'!$C$43="LCD",IF('8a. Assumptions-Baseline'!$D$128>12,('4.Data comparisons'!$J$74-'4.Data comparisons'!$C$74)*'3c.Alt user input-Purchasing'!$I$41,('8a. Assumptions-Baseline'!$D$128/12)*('4.Data comparisons'!$J$74-'4.Data comparisons'!$C$74)*'3c.Alt user input-Purchasing'!$I$41),"n/a") -> n/a
B141: Energy (First Year) | U141: Notebook | V141: =IF('4.Data comparisons'!$C$43="Notebook",('8a. Assumptions-Baseline'!$D$174/12)*('4.Data comparisons'!$L$74-'4.Data comparisons'!$C$74)*'3c.Alt user input-Purchasing'!$I$41,"n/a") -> n/a | W141: =IF('4.Data comparisons'!$C$43="Notebook",IF('8a. Assumptions-Baseline'!$D$174>12,('4.Data comparisons'!$L$74-'4.Data comparisons'!$C$74)*'3c.Alt user input-Purchasing'!$I$41,('8a. Assumptions-Baseline'!$D$174/12)*('4.Data comparisons'!$L$74-'4.Data comparisons'!$C$74)*'3c.Alt user input-Purchasing'!$I$41),"n/a") -> n/a
A142: E 4.5.1.1 | B142: ENERGY STAR 5.* | C142: EnStar4.0 | D142: energy prod. | E142: =$W$142 -> 0 | F142: =E142*'8c.Assumptions-Calculations'!$E$126 -> 0 | G142: =E142*'8c.Assumptions-Calculations'!$B$155 -> 0 | H142: =E142*'8c.Assumptions-Calculations'!$B$126 -> 0 | I142: =E142*'8c.Assumptions-Calculations'!$C$126 -> 0 | S142: =E142*'8c.Assumptions-Calculations'!$B$23 -> 0 | U142: VALUE | V142: =IF(SUM(V138:V141)>0,SUM(V138:V141),0) -> 0 | W142: =IF(SUM(W138:W141)>0,SUM(W138:W141),0) -> 0
A143: E 4.5.1.2 | B143: ENERGY STAR early adopter | E143: * * This criterion is not Calculated in Version 3.0 of this Calculator * *
B144: Product Cost
B145: Cost | C145: Cost-prod | E145: * * This criterion is not Calculated in Version 3.0 of this Calculator * *
B146: Lifetime PURCHASING SUBTOTAL (Product 2) | C146: PURCHASING | E146: =SUM(E126,E130,E137,E139) -> 0 | F146: =SUM(F126,F130,F137,F139) -> 0 | G146: 0 | H146: 0 | I146: 0 | J146: 0 | K146: 0 | L146: 0 | M146: 0 | N146: 0 | O146: 0 | P146: 0 | Q146: 0 | R146: 0 | S146: 0
B147: First Year PURCHASING SUBTOTAL (Product 2) | E147: =SUM(E126,E130,E137,E142) -> 0 | F147: =SUM(F126,F130,F137,F142) -> 0 | G147: 0 | H147: 0 | I147: 0 | J147: 0 | K147: 0 | L147: 0 | M147: 0 | N147: 0 | O147: 0 | P147: 0 | Q147: 0 | S147: 0
A149: Breakdown of purchases by criteria: Product 3 | U149: INTERIM CALCULATIONS
A150: PURCHASING: | F150: Product 3: | G150: ='3c.Alt user input-Purchasing'!$I$74 -> 1 | H150: =IF('3c.Alt user input-Purchasing'!$I$78="Please provide in Sheet 3a","no input",IF('3c.Alt user input-Purchasing'!$I$78="n/a","non EPEAT",'3c.Alt user input-Purchasing'!$I$78)) -> no input | I150: =IF('4.Data comparisons'!$C$80="Please provide in Sheet 3a","",'4.Data comparisons'!$C$80) ->  | U150: Product 3:
B151: Reduced Toxicity
A152: E 4.1.1.1 | B152: RoHS compliance-Pb | C152: Pb | D152: solder | J152: =SUM(K152:P152) -> 0 | K152: =V157 -> 0 | R152: =V162 -> 0 | U152: Toxic material savings from RoHS (kg) | V152: Pb | W152: Hg | X152: Cd | Y152: Cr+ | Z152: PBB | AA152: PBDE
A153: E 4.1.1.1 | B153: RoHS compliance-Hg (excludes lamps) | C153: Hg | D153: none now | J153: =SUM(K153:P153) -> 0 | L153: =W157 -> 0 | U153: CPU | V153: =IF('4.Data comparisons'!$C$80="CPU",('4.Data comparisons'!$F$82-'4.Data comparisons'!$C$82)/'8c.Assumptions-Calculations'!$A$198*'3c.Alt user input-Purchasing'!$I$74,"n/a") -> n/a | W153: =IF('4.Data comparisons'!$C$80="CPU",('4.Data comparisons'!F$83-'4.Data comparisons'!C$83)/'8c.Assumptions-Calculations'!$A$198*'3c.Alt user input-Purchasing'!$I$74,"n/a") -> n/a | X153: =IF('4.Data comparisons'!$C$80="CPU",('4.Data comparisons'!F$87-'4.Data comparisons'!C$87)/'8c.Assumptions-Calculations'!$A$198*'3c.Alt user input-Purchasing'!$I$74,"n/a") -> n/a | Y153: =IF('4.Data comparisons'!$C$80="CPU",('4.Data comparisons'!F$88-'4.Data comparisons'!C$88)/'8c.Assumptions-Calculations'!$A$198*'3c.Alt user input-Purchasing'!$I$74,"n/a") -> n/a | Z153: =IF('4.Data comparisons'!$C$80="CPU",('4.Data comparisons'!F$89-'4.Data comparisons'!C$89)/'8c.Assumptions-Calculations'!$A$198*'3c.Alt user input-Purchasing'!$I$74,"n/a") -> n/a | AA153: =IF('4.Data comparisons'!$C$80="CPU",('4.Data comparisons'!F$90-'4.Data comparisons'!C$90)/'8c.Assumptions-Calculations'!$A$198*'3c.Alt user input-Purchasing'!$I$74,"n/a") -> n/a
A154: E 4.1.3.1-2 | B154: Hg in light source; max avg of 3 mgHg/lamp | C154: Hg in light | D154: LCD backlight | J154: 0 | L154: =IF('4.Data comparisons'!$C$86=0,0,(IF('4.Data comparisons'!$C$80="LCD",('4.Data comparisons'!$J$86-'4.Data comparisons'!$C$86)/1000*'3c.Alt user input-Purchasing'!$I$74,IF('4.Data comparisons'!$C$80="Notebook",('4.Data comparisons'!$L$86-'4.Data comparisons'!$C$86)/1000*'3c.Alt user input-Purchasing'!$I$74,0)))) -> 0 | U154: CRT | V154: =IF('4.Data comparisons'!$C$80="CRT",('4.Data comparisons'!H$82-'4.Data comparisons'!C$82)/'8c.Assumptions-Calculations'!$A$198*'3c.Alt user input-Purchasing'!$I$74,"n/a") -> n/a | W154: =IF('4.Data comparisons'!$C$80="CRT",('4.Data comparisons'!H$83-'4.Data comparisons'!C$83)/'8c.Assumptions-Calculations'!$A$198*'3c.Alt user input-Purchasing'!$I$74,"n/a") -> n/a | X154: =IF('4.Data comparisons'!$C$80="CRT",('4.Data comparisons'!H$87-'4.Data comparisons'!C$87)/'8c.Assumptions-Calculations'!$A$198*'3c.Alt user input-Purchasing'!$I$74,"n/a") -> n/a | Y154: =IF('4.Data comparisons'!$C$80="CRT",('4.Data comparisons'!H$88-'4.Data comparisons'!C$88)/'8c.Assumptions-Calculations'!$A$198*'3c.Alt user input-Purchasing'!$I$74,"n/a") -> n/a | Z154: =IF('4.Data comparisons'!$C$80="CRT",('4.Data comparisons'!H$89-'4.Data comparisons'!C$89)/'8c.Assumptions-Calculations'!$A$198*'3c.Alt user input-Purchasing'!$I$74,"n/a") -> n/a | AA154: =IF('4.Data comparisons'!$C$80="CRT",('4.Data comparisons'!H$90-'4.Data comparisons'!C$90)/'8c.Assumptions-Calculations'!$A$198*'3c.Alt user input-Purchasing'!$I$74,"n/a") -> n/a
A155: E 4.1.3.3 | B155: Hg-free lamps | C155: Hg-free lamp | D155: LCD backlight | J155: 0 | L155: =IF('4.Data comparisons'!$C$86=0,IF('4.Data comparisons'!$C$80="LCD",('4.Data comparisons'!$J$86-'4.Data comparisons'!$C$86)/1000*'3c.Alt user input-Purchasing'!$I$74,IF('4.Data comparisons'!$C$80="Notebook",('4.Data comparisons'!$L$86-'4.Data comparisons'!$C$86)/1000*'3c.Alt user input-Purchasing'!$I$74,0)),0) -> 0 | R155: =IF('4.Data comparisons'!$C$80="LCD",('4.Data comparisons'!$J$93-'4.Data comparisons'!$C$93)*'3c.Alt user input-Purchasing'!I74,IF('4.Data comparisons'!$C$80="Notebook",('4.Data comparisons'!$L$93-'4.Data comparisons'!$C$93)*'3c.Alt user input-Purchasing'!I74,0)) -> 0 | U155: LCD | V155: =IF('4.Data comparisons'!$C$80="LCD",('4.Data comparisons'!J$82-'4.Data comparisons'!C$82)/'8c.Assumptions-Calculations'!$A$198*'3c.Alt user input-Purchasing'!$I$74,"n/a") -> n/a | W155: =IF('4.Data comparisons'!$C$80="LCD",('4.Data comparisons'!J$83-'4.Data comparisons'!C$83)/'8c.Assumptions-Calculations'!$A$198*'3c.Alt user input-Purchasing'!$I$74,"n/a") -> n/a | X155: =IF('4.Data comparisons'!$C$80="LCD",('4.Data comparisons'!J$87-'4.Data comparisons'!C$87)/'8c.Assumptions-Calculations'!$A$198*'3c.Alt user input-Purchasing'!$I$74,"n/a") -> n/a | Y155: =IF('4.Data comparisons'!$C$80="LCD",('4.Data comparisons'!J$88-'4.Data comparisons'!C$88)/'8c.Assumptions-Calculations'!$A$198*'3c.Alt user input-Purchasing'!$I$74,"n/a") -> n/a | Z155: =IF('4.Data comparisons'!$C$80="LCD",('4.Data comparisons'!J$89-'4.Data comparisons'!C$89)/'8c.Assumptions-Calculations'!$A$198*'3c.Alt user input-Purchasing'!$I$74,"n/a") -> n/a | AA155: =IF('4.Data comparisons'!$C$80="LCD",('4.Data comparisons'!J$90-'4.Data comparisons'!C$90)/'8c.Assumptions-Calculations'!$A$198*'3c.Alt user input-Purchasing'!$I$74,"n/a") -> n/a
A156: E 4.1.1.1 | B156: RoHS compliance-Cd | C156: Cd | D156: none now | J156: 0 | M156: =X157 -> 0 | R156: incorporated above | U156: Notebook | V156: =IF('4.Data comparisons'!$C$80="Notebook",('4.Data comparisons'!L$82-'4.Data comparisons'!C$82)/'8c.Assumptions-Calculations'!$A$198*'3c.Alt user input-Purchasing'!$I$74, "n/a") -> n/a | W156: =IF('4.Data comparisons'!$C$80="Notebook",('4.Data comparisons'!L$83-'4.Data comparisons'!C$83)/'8c.Assumptions-Calculations'!$A$198*'3c.Alt user input-Purchasing'!$I$74, "n/a") -> n/a | X156: =IF('4.Data comparisons'!$C$80="Notebook",('4.Data comparisons'!L$87-'4.Data comparisons'!C$87)/'8c.Assumptions-Calculations'!$A$198*'3c.Alt user input-Purchasing'!$I$74, "n/a") -> n/a | Y156: =IF('4.Data comparisons'!$C$80="Notebook",('4.Data comparisons'!L$88-'4.Data comparisons'!C$88)/'8c.Assumptions-Calculations'!$A$198*'3c.Alt user input-Purchasing'!$I$74, "n/a") -> n/a | Z156: =IF('4.Data comparisons'!$C$80="Notebook",('4.Data comparisons'!L$89-'4.Data comparisons'!C$89)/'8c.Assumptions-Calculations'!$A$198*'3c.Alt user input-Purchasing'!$I$74,"n/a") -> n/a | AA156: =IF('4.Data comparisons'!$C$80="Notebook",('4.Data comparisons'!L$90-'4.Data comparisons'!C$90)/'8c.Assumptions-Calculations'!$A$198*'3c.Alt user input-Purchasing'!$I$74, "n/a") -> n/a
A157: E4.1.1.1 | B157: RoHS compliance-Cr6+ | C157: Cr6+ | D157: none now | J157: 0 | N157: =Y157 -> 0 | R157: incorporated above | U157: VALUE | V157: =SUM(V153:V156) -> 0 | W157: 0 | X157: 0 | Y157: 0 | Z157: 0 | AA157: 0
A158: E 4.1.1.1 | B158: RoHS compliance-PBB | C158: PBB | D158: none now | J158: 0 | O158: =Z157 -> 0 | R158: incorporated above
A159: E 4.1.1.1 | B159: RoHS compliance-PBDE | C159: PBDE | D159: none now | J159: 0 | P159: =AA157 -> 0 | R159: incorporated above | U159: HW saved from Pb reduced (kg)
B160: SUBTOTAL | C160: Toxicity (P) | J160: =SUM(J152:J159) -> 0 | K160: =SUM(K152:K159) -> 0 | L160: 0 | M160: 0 | N160: 0 | O160: 0 | P160: 0 | R160: 0 | U160: Pb-PWB | V160: =IF('4.Data comparisons'!$C$80="CPU",('4.Data comparisons'!$F$91-'4.Data comparisons'!$C$91)*'3c.Alt user input-Purchasing'!I74,IF('4.Data comparisons'!$C$80="CRT",('4.Data comparisons'!$H$91-'4.Data comparisons'!$C$91)*'3c.Alt user input-Purchasing'!I74,IF('4.Data comparisons'!$C$80="LCD",('4.Data comparisons'!$J$91-'4.Data comparisons'!$C$91)*'3c.Alt user input-Purchasing'!I74,IF('4.Data comparisons'!$C$80="Notebook",('4.Data comparisons'!$L$91-'4.Data comparisons'!$C$91)*'3c.Alt user input-Purchasing'!I74,"n/a")))) -> n/a
B161: Material Use | U161: Pb-W&C | V161: =IF('4.Data comparisons'!$C$80="CPU",('4.Data comparisons'!$F$94-'4.Data comparisons'!$C$94)*'3c.Alt user input-Purchasing'!I74,IF('4.Data comparisons'!$C$80="CRT",('4.Data comparisons'!$H$94-'4.Data comparisons'!$C$94)*'3c.Alt user input-Purchasing'!I74,IF('4.Data comparisons'!$C$80="LCD",('4.Data comparisons'!$J$94-'4.Data comparisons'!$C$94)*'3c.Alt user input-Purchasing'!I74,IF('4.Data comparisons'!$C$80="Notebook",('4.Data comparisons'!$L$94-'4.Data comparisons'!$C$94)*'3c.Alt user input-Purchasing'!I74,"n/a")))) -> n/a
A162: E 4.2.1.1-3 | B162: Recycled content in product | C162: RC-prod | D162: energy prod. | E162: =IF('4.Data comparisons'!$C$80="CPU",('4.Data comparisons'!$C$97-'4.Data comparisons'!$F$97)*'8c.Assumptions-Calculations'!$D$101/'8c.Assumptions-Calculations'!$B$128*'3c.Alt user input-Purchasing'!I74, IF('4.Data comparisons'!$C$80="CRT",('4.Data comparisons'!$C$97-'4.Data comparisons'!$H$97)*'8c.Assumptions-Calculations'!$D$101/'8c.Assumptions-Calculations'!$B$128*'3c.Alt user input-Purchasing'!I74,IF('4.Data comparisons'!$C$80="LCD",('4.Data comparisons'!$C$97-'4.Data comparisons'!$J$97)*'8c.Assumptions-Calculations'!$D$101/'8c.Assumptions-Calculations'!$B$128*'3c.Alt user input-Purchasing'!I74, IF('4.Data comparisons'!$C$80="Notebook",('4.Data comparisons'!$C$97-'4.Data comparisons'!$L$97)*'8c.Assumptions-Calculations'!$D$101/'8c.Assumptions-Calculations'!$B$128*'3c.Alt user input-Purchasing'!I74, 0)))) -> 0 | F162: =IF('4.Data comparisons'!$C$80="CPU",('4.Data comparisons'!$C$97-'4.Data comparisons'!$F$97)*'8c.Assumptions-Calculations'!$E$101*'3c.Alt user input-Purchasing'!I74, IF('4.Data comparisons'!$C$80="CRT",('4.Data comparisons'!$C$97-'4.Data comparisons'!$H$97)*'8c.Assumptions-Calculations'!$E$101*'3c.Alt user input-Purchasing'!I74,IF('4.Data comparisons'!$C$80="LCD",('4.Data comparisons'!$C$97-'4.Data comparisons'!$J$97)*'8c.Assumptions-Calculations'!$E$101*'3c.Alt user input-Purchasing'!I74, IF('4.Data comparisons'!$C$80="Notebook",('4.Data comparisons'!$C$97-'4.Data comparisons'!$L$97)*'8c.Assumptions-Calculations'!$E$101*'3c.Alt user input-Purchasing'!I74, 0)))) -> 0 | G162: =IF('4.Data comparisons'!$C$80="CPU",('4.Data comparisons'!$C$97-'4.Data comparisons'!$F$97)*'8c.Assumptions-Calculations'!$B$160*'3c.Alt user input-Purchasing'!I74, IF('4.Data comparisons'!$C$80="CRT",('4.Data comparisons'!$C$97-'4.Data comparisons'!$H$97)*'8c.Assumptions-Calculations'!$B$160*'3c.Alt user input-Purchasing'!I74,IF('4.Data comparisons'!$C$80="LCD",('4.Data comparisons'!$C$97-'4.Data comparisons'!$J$97)*'8c.Assumptions-Calculations'!$B$160*'3c.Alt user input-Purchasing'!I74, IF('4.Data comparisons'!$C$80="Notebook",('4.Data comparisons'!$C$97-'4.Data comparisons'!$L$97)*'8c.Assumptions-Calculations'!$B$160*'3c.Alt user input-Purchasing'!I74, 0)))) -> 0 | H162: =IF('4.Data comparisons'!$C$80="CPU",('4.Data comparisons'!$C$97-'4.Data comparisons'!$F$97)*'8c.Assumptions-Calculations'!$B$101*'3c.Alt user input-Purchasing'!I74, IF('4.Data comparisons'!$C$80="CRT",('4.Data comparisons'!$C$97-'4.Data comparisons'!$H$97)*'8c.Assumptions-Calculations'!$B$101*'3c.Alt user input-Purchasing'!I74,IF('4.Data comparisons'!$C$80="LCD",('4.Data comparisons'!$C$97-'4.Data comparisons'!$J$97)*'8c.Assumptions-Calculations'!$B$101*'3c.Alt user input-Purchasing'!I74, IF('4.Data comparisons'!$C$80="Notebook",('4.Data comparisons'!$C$97-'4.Data comparisons'!$L$97)*'8c.Assumptions-Calculations'!$B$101*'3c.Alt user input-Purchasing'!I74, 0)))) -> 0 | I162: =IF('4.Data comparisons'!$C$80="CPU",('4.Data comparisons'!$C$97-'4.Data comparisons'!$F$97)*'8c.Assumptions-Calculations'!$C$101*'3c.Alt user input-Purchasing'!I74, IF('4.Data comparisons'!$C$80="CRT",('4.Data comparisons'!$C$97-'4.Data comparisons'!$H$97)*'8c.Assumptions-Calculations'!$C$101*'3c.Alt user input-Purchasing'!I74,IF('4.Data comparisons'!$C$80="LCD",('4.Data comparisons'!$C$97-'4.Data comparisons'!$J$97)*'8c.Assumptions-Calculations'!$C$101*'3c.Alt user input-Purchasing'!I74, IF('4.Data comparisons'!$C$80="Notebook",('4.Data comparisons'!$C$97-'4.Data comparisons'!$L$97)*'8c.Assumptions-Calculations'!$C$101*'3c.Alt user input-Purchasing'!I74, 0)))) -> 0 | Q162: =IF('4.Data comparisons'!$C$80="CPU",('4.Data comparisons'!$C$97-'4.Data comparisons'!$F$97)*'3c.Alt user input-Purchasing'!I74, IF('4.Data comparisons'!$C$80="CRT",('4.Data comparisons'!$C$97-'4.Data comparisons'!$H$97)*'3c.Alt user input-Purchasing'!I74,IF('4.Data comparisons'!$C$80="LCD",('4.Data comparisons'!$C$97-'4.Data comparisons'!$J$97)*'3c.Alt user input-Purchasing'!I74, IF('4.Data comparisons'!$C$80="Notebook",('4.Data comparisons'!$C$97-'4.Data comparisons'!$L$97)*'3c.Alt user input-Purchasing'!I74, 0)))) -> 0 | S162: =E162*'8c.Assumptions-Calculations'!$B$23 -> 0 | U162: TOTAL | V162: =SUM(V160:V161) -> 0
A163: E 4.2.2.1-2 | B163: Renewable/biobased content in product | C163: Renew/bio-prod | D163: energy prod. | E163: * * This criterion is not Calculated in Version 3.0 of this Calculator * *
B164: SUBTOTAL | C164: Material Use (P) | E164: =SUM(E162:E163) -> 0 | F164: =SUM(F162:F163) -> 0 | G164: =SUM(G162:G163) -> 0 | H164: =SUM(H162:H163) -> 0 | I164: =SUM(I162:I163) -> 0 | Q164: =SUM(Q162:Q163) -> 0 | S164: =SUM(S162:S163) -> 0 | U164: Packaging reuse | V164: Energy(kWh) | W164: PM (kg) | X164: GHG (kg) | Y164: Air (kg) | Z164: Water (kg)
B165: Packaging | U165: CPU | V165: =IF('4.Data comparisons'!$C$80="CPU",(('4.Data comparisons'!$C$101)*'8c.Assumptions-Calculations'!$D$123/'8c.Assumptions-Calculations'!$B$128+('4.Data comparisons'!$C$103+'4.Data comparisons'!$C$105)*'8c.Assumptions-Calculations'!$D$121/'8c.Assumptions-Calculations'!$B$128),"n/a") -> n/a | W165: =IF('4.Data comparisons'!$C$80="CPU",(('4.Data comparisons'!$C$101)*'8c.Assumptions-Calculations'!$E$123+('4.Data comparisons'!$C$103+'4.Data comparisons'!$C$105)*'8c.Assumptions-Calculations'!$E$121),"n/a") -> n/a | X165: =IF('4.Data comparisons'!$C$80="CPU",((('4.Data comparisons'!$C$101)*'8c.Assumptions-Calculations'!$B$171+('4.Data comparisons'!$C$103+'4.Data comparisons'!$C$105)*'8c.Assumptions-Calculations'!$B$167)),"n/a") -> n/a | Y165: =IF('4.Data comparisons'!$C$80="CPU",(('4.Data comparisons'!$C$101)*'8c.Assumptions-Calculations'!$B$123+('4.Data comparisons'!$C$103+'4.Data comparisons'!$C$105)*'8c.Assumptions-Calculations'!$B$121),"n/a") -> n/a | Z165: =IF('4.Data comparisons'!$C$80="CPU",(('4.Data comparisons'!$C$101)*'8c.Assumptions-Calculations'!$C$123+('4.Data comparisons'!$C$103+'4.Data comparisons'!$C$105)*'8c.Assumptions-Calculations'!$C$121),"n/a") -> n/a
A166: E 4.8.3.1-2 | B166: Average recycled content in corrugated packaging | C166: RC-pkg-corr | D166: energy prod. | E166: =IF('4.Data comparisons'!$C$80="CPU",('4.Data comparisons'!$C$102-'4.Data comparisons'!$F$102)*'8c.Assumptions-Calculations'!$D$123/'8c.Assumptions-Calculations'!$B$128*'3c.Alt user input-Purchasing'!I74, IF('4.Data comparisons'!$C$80="CRT",('4.Data comparisons'!$C$102-'4.Data comparisons'!$H$102)*'8c.Assumptions-Calculations'!$D$123/'8c.Assumptions-Calculations'!$B$128*'3c.Alt user input-Purchasing'!I74,IF('4.Data comparisons'!$C$80="LCD",('4.Data comparisons'!$C$102-'4.Data comparisons'!$J$102)*'8c.Assumptions-Calculations'!$D$123/'8c.Assumptions-Calculations'!$B$128*'3c.Alt user input-Purchasing'!I74, IF('4.Data comparisons'!$C$80="Notebook",('4.Data comparisons'!$C$102-'4.Data comparisons'!$L$102)*'8c.Assumptions-Calculations'!$D$123/'8c.Assumptions-Calculations'!$B$128*'3c.Alt user input-Purchasing'!I74, 0)))) -> 0 | F166: =IF('4.Data comparisons'!$C$80="CPU",('4.Data comparisons'!$C$102-'4.Data comparisons'!$F$102)*'8c.Assumptions-Calculations'!$E$123*'3c.Alt user input-Purchasing'!I74, IF('4.Data comparisons'!$C$80="CRT",('4.Data comparisons'!$C$102-'4.Data comparisons'!$H$102)*'8c.Assumptions-Calculations'!$E$123*'3c.Alt user input-Purchasing'!I74,IF('4.Data comparisons'!$C$80="LCD",('4.Data comparisons'!$C$102-'4.Data comparisons'!$J$102)*'8c.Assumptions-Calculations'!$E$123*'3c.Alt user input-Purchasing'!I74, IF('4.Data comparisons'!$C$80="Notebook",('4.Data comparisons'!$C$102-'4.Data comparisons'!$L$102)*'8c.Assumptions-Calculations'!$E$123*'3c.Alt user input-Purchasing'!I74, 0)))) -> 0 | G166: =IF('4.Data comparisons'!$C$80="CPU",('4.Data comparisons'!$C$102-'4.Data comparisons'!$F$102)*'8c.Assumptions-Calculations'!$B$172*'3c.Alt user input-Purchasing'!I74, IF('4.Data comparisons'!$C$80="CRT",('4.Data comparisons'!$C$102-'4.Data comparisons'!$H$102)*'8c.Assumptions-Calculations'!$B$172*'3c.Alt user input-Purchasing'!I74,IF('4.Data comparisons'!$C$80="LCD",('4.Data comparisons'!$C$102-'4.Data comparisons'!$J$102)*'8c.Assumptions-Calculations'!$B$172*'3c.Alt user input-Purchasing'!I74, IF('4.Data comparisons'!$C$80="Notebook",('4.Data comparisons'!$C$102-'4.Data comparisons'!$L$102)*'8c.Assumptions-Calculations'!$B$172*'3c.Alt user input-Purchasing'!I74, 0)))) -> 0 | H166: =IF('4.Data comparisons'!$C$80="CPU",('4.Data comparisons'!$C$102-'4.Data comparisons'!$F$102)*'8c.Assumptions-Calculations'!$B$123*'3c.Alt user input-Purchasing'!I74, IF('4.Data comparisons'!$C$80="CRT",('4.Data comparisons'!$C$102-'4.Data comparisons'!$H$102)*'8c.Assumptions-Calculations'!$B$123*'3c.Alt user input-Purchasing'!I74,IF('4.Data comparisons'!$C$80="LCD",('4.Data comparisons'!$C$102-'4.Data comparisons'!$J$102)*'8c.Assumptions-Calculations'!$B$123*'3c.Alt user input-Purchasing'!I74, IF('4.Data comparisons'!$C$80="Notebook",('4.Data comparisons'!$C$102-'4.Data comparisons'!$L$102)*'8c.Assumptions-Calculations'!$B$123*'3c.Alt user input-Purchasing'!I74, 0)))) -> 0 | I166: =IF('4.Data comparisons'!$C$80="CPU",('4.Data comparisons'!$C$102-'4.Data comparisons'!$F$102)*'8c.Assumptions-Calculations'!$C$123*'3c.Alt user input-Purchasing'!I74, IF('4.Data comparisons'!$C$80="CRT",('4.Data comparisons'!$C$102-'4.Data comparisons'!$H$102)*'8c.Assumptions-Calculations'!$C$123*'3c.Alt user input-Purchasing'!I74,IF('4.Data comparisons'!$C$80="LCD",('4.Data comparisons'!$C$102-'4.Data comparisons'!$J$102)*'8c.Assumptions-Calculations'!$C$123*'3c.Alt user input-Purchasing'!I74, IF('4.Data comparisons'!$C$80="Notebook",('4.Data comparisons'!$C$102-'4.Data comparisons'!$L$102)*'8c.Assumptions-Calculations'!$C$123*'3c.Alt user input-Purchasing'!I74, 0)))) -> 0 | Q166: =IF('4.Data comparisons'!$C$80="CPU",('4.Data comparisons'!$C$102-'4.Data comparisons'!$F$102)*'3c.Alt user input-Purchasing'!I74, IF('4.Data comparisons'!$C$80="CRT",('4.Data comparisons'!$C$102-'4.Data comparisons'!$H$102)*'3c.Alt user input-Purchasing'!I74,IF('4.Data comparisons'!$C$80="LCD",('4.Data comparisons'!$C$102-'4.Data comparisons'!$J$102)*'3c.Alt user input-Purchasing'!I74, IF('4.Data comparisons'!$C$80="Notebook",('4.Data comparisons'!$C$102-'4.Data comparisons'!$L$102)*'3c.Alt user input-Purchasing'!I74, 0)))) -> 0 | S166: =E166*'8c.Assumptions-Calculations'!$B$23 -> 0 | U166: CRT | V166: =IF('4.Data comparisons'!$C$80="CRT",(('4.Data comparisons'!$C$101)*'8c.Assumptions-Calculations'!$D$123/'8c.Assumptions-Calculations'!$B$128+('4.Data comparisons'!$C$103+'4.Data comparisons'!$C$105)*'8c.Assumptions-Calculations'!$D$121/'8c.Assumptions-Calculations'!$B$128),"n/a") -> n/a | W166: =IF('4.Data comparisons'!$C$80="CRT",(('4.Data comparisons'!$C$101)*'8c.Assumptions-Calculations'!$E$123+('4.Data comparisons'!$C$103+'4.Data comparisons'!$C$105)*'8c.Assumptions-Calculations'!$E$121),"n/a") -> n/a | X166: =IF('4.Data comparisons'!$C$80="CRT",((('4.Data comparisons'!$C$101)*'8c.Assumptions-Calculations'!$B$171+('4.Data comparisons'!$C$103+'4.Data comparisons'!$C$105)*'8c.Assumptions-Calculations'!$B$167)),"n/a") -> n/a | Y166: =IF('4.Data comparisons'!$C$80="CRT",(('4.Data comparisons'!$C$101)*'8c.Assumptions-Calculations'!$B$123+('4.Data comparisons'!$C$103+'4.Data comparisons'!$C$105)*'8c.Assumptions-Calculations'!$B$121),"n/a") -> n/a | Z166: =IF('4.Data comparisons'!$C$80="CRT",(('4.Data comparisons'!$C$101)*'8c.Assumptions-Calculations'!$C$123+('4.Data comparisons'!$C$103+'4.Data comparisons'!$C$105)*'8c.Assumptions-Calculations'!$C$121),"n/a") -> n/a
A167: E 4.8.3.1-2 | B167: Average recycled content in plastic/foam packaging | C167: RC-pkg-plastic | D167: energy prod. | E167: =IF('4.Data comparisons'!$C$80="CPU",('4.Data comparisons'!$C$104-'4.Data comparisons'!$F$104)*'8c.Assumptions-Calculations'!$D$121/'8c.Assumptions-Calculations'!$B$128*'3c.Alt user input-Purchasing'!I74, IF('4.Data comparisons'!$C$80="CRT",('4.Data comparisons'!$C$104-'4.Data comparisons'!$H$104)*'8c.Assumptions-Calculations'!$D$121/'8c.Assumptions-Calculations'!$B$128*'3c.Alt user input-Purchasing'!I74,IF('4.Data comparisons'!$C$80="LCD",('4.Data comparisons'!$C$104-'4.Data comparisons'!$J$104)*'8c.Assumptions-Calculations'!$D$121/'8c.Assumptions-Calculations'!$B$128*'3c.Alt user input-Purchasing'!I74, IF('4.Data comparisons'!$C$80="Notebook",('4.Data comparisons'!$C$104-'4.Data comparisons'!$L$104)*'8c.Assumptions-Calculations'!$D$121/'8c.Assumptions-Calculations'!$B$128*'3c.Alt user input-Purchasing'!I74, 0)))) -> 0 | F167: =IF('4.Data comparisons'!$C$80="CPU",('4.Data comparisons'!$C$104-'4.Data comparisons'!$F$104)*'8c.Assumptions-Calculations'!$E$121*'3c.Alt user input-Purchasing'!I74, IF('4.Data comparisons'!$C$80="CRT",('4.Data comparisons'!$C$104-'4.Data comparisons'!$H$104)*'8c.Assumptions-Calculations'!$E$121*'3c.Alt user input-Purchasing'!I74,IF('4.Data comparisons'!$C$80="LCD",('4.Data comparisons'!$C$104-'4.Data comparisons'!$J$104)*'8c.Assumptions-Calculations'!$E$121*'3c.Alt user input-Purchasing'!I74, IF('4.Data comparisons'!$C$80="Notebook",('4.Data comparisons'!$C$104-'4.Data comparisons'!$L$104)*'8c.Assumptions-Calculations'!$E$121*'3c.Alt user input-Purchasing'!I74, 0)))) -> 0 | G167: =IF('4.Data comparisons'!$C$80="CPU",('4.Data comparisons'!$C$104-'4.Data comparisons'!$F$104)*'8c.Assumptions-Calculations'!$B$168*'3c.Alt user input-Purchasing'!I74, IF('4.Data comparisons'!$C$80="CRT",('4.Data comparisons'!$C$104-'4.Data comparisons'!$H$104)*'8c.Assumptions-Calculations'!$B$168*'3c.Alt user input-Purchasing'!I74,IF('4.Data comparisons'!$C$80="LCD",('4.Data comparisons'!$C$104-'4.Data comparisons'!$J$104)*'8c.Assumptions-Calculations'!$B$168*'3c.Alt user input-Purchasing'!I74, IF('4.Data comparisons'!$C$80="Notebook",('4.Data comparisons'!$C$104-'4.Data comparisons'!$L$104)*'8c.Assumptions-Calculations'!$B$168*'3c.Alt user input-Purchasing'!I74, 0)))) -> 0 | H167: =IF('4.Data comparisons'!$C$80="CPU",('4.Data comparisons'!$C$104-'4.Data comparisons'!$F$104)*'8c.Assumptions-Calculations'!$B$121*'3c.Alt user input-Purchasing'!I74, IF('4.Data comparisons'!$C$80="CRT",('4.Data comparisons'!$C$104-'4.Data comparisons'!$H$104)*'8c.Assumptions-Calculations'!$B$121*'3c.Alt user input-Purchasing'!I74,IF('4.Data comparisons'!$C$80="LCD",('4.Data comparisons'!$C$104-'4.Data comparisons'!$J$104)*'8c.Assumptions-Calculations'!$B$121*'3c.Alt user input-Purchasing'!I74, IF('4.Data comparisons'!$C$80="Notebook",('4.Data comparisons'!$C$104-'4.Data comparisons'!$L$104)*'8c.Assumptions-Calculations'!$B$121*'3c.Alt user input-Purchasing'!I74, 0)))) -> 0 | I167: =IF('4.Data comparisons'!$C$80="CPU",('4.Data comparisons'!$C$104-'4.Data comparisons'!$F$104)*'8c.Assumptions-Calculations'!$C$121*'3c.Alt user input-Purchasing'!I74, IF('4.Data comparisons'!$C$80="CRT",('4.Data comparisons'!$C$104-'4.Data comparisons'!$H$104)*'8c.Assumptions-Calculations'!$C$121*'3c.Alt user input-Purchasing'!I74,IF('4.Data comparisons'!$C$80="LCD",('4.Data comparisons'!$C$104-'4.Data comparisons'!$J$104)*'8c.Assumptions-Calculations'!$C$121*'3c.Alt user input-Purchasing'!I74, IF('4.Data comparisons'!$C$80="Notebook",('4.Data comparisons'!$C$104-'4.Data comparisons'!$L$104)*'8c.Assumptions-Calculations'!$C$121*'3c.Alt user input-Purchasing'!I74, 0)))) -> 0 | Q167: =IF('4.Data comparisons'!$C$80="CPU",('4.Data comparisons'!$C$104-'4.Data comparisons'!$F$104)*'3c.Alt user input-Purchasing'!I74, IF('4.Data comparisons'!$C$80="CRT",('4.Data comparisons'!$C$104-'4.Data comparisons'!$H$104)*'3c.Alt user input-Purchasing'!I74,IF('4.Data comparisons'!$C$80="LCD",('4.Data comparisons'!$C$104-'4.Data comparisons'!$J$104)*'3c.Alt user input-Purchasing'!I74, IF('4.Data comparisons'!$C$80="Notebook",('4.Data comparisons'!$C$104-'4.Data comparisons'!$L$104)*'3c.Alt user input-Purchasing'!I74, 0)))) -> 0 | S167: =E167*'8c.Assumptions-Calculations'!$B$23 -> 0 | U167: LCD | V167: =IF('4.Data comparisons'!$C$80="LCD",(('4.Data comparisons'!$C$101)*'8c.Assumptions-Calculations'!$D$123/'8c.Assumptions-Calculations'!$B$128+('4.Data comparisons'!$C$103+'4.Data comparisons'!$C$105)*'8c.Assumptions-Calculations'!$D$121/'8c.Assumptions-Calculations'!$B$128),"n/a") -> n/a | W167: =IF('4.Data comparisons'!$C$80="LCD",(('4.Data comparisons'!$C$101)*'8c.Assumptions-Calculations'!$E$123+('4.Data comparisons'!$C$103+'4.Data comparisons'!$C$105)*'8c.Assumptions-Calculations'!$E$121),"n/a") -> n/a | X167: =IF('4.Data comparisons'!$C$80="LCD",((('4.Data comparisons'!$C$101)*'8c.Assumptions-Calculations'!$B$171+('4.Data comparisons'!$C$103+'4.Data comparisons'!$C$105)*'8c.Assumptions-Calculations'!$B$167)),"n/a") -> n/a | Y167: =IF('4.Data comparisons'!$C$80="LCD",(('4.Data comparisons'!$C$101)*'8c.Assumptions-Calculations'!$B$123+('4.Data comparisons'!$C$103+'4.Data comparisons'!$C$105)*'8c.Assumptions-Calculations'!$B$121),"n/a") -> n/a | Z167: =IF('4.Data comparisons'!$C$80="LCD",(('4.Data comparisons'!$C$101)*'8c.Assumptions-Calculations'!$C$123+('4.Data comparisons'!$C$103+'4.Data comparisons'!$C$105)*'8c.Assumptions-Calculations'!$C$121),"n/a") -> n/a
A168: E 4.8.3.1-2 | B168: Average recycled content in other packaging | C168: RC-pkg-other | E168: =IF('4.Data comparisons'!$C$80="CPU",('4.Data comparisons'!$C$106-'4.Data comparisons'!$F$106)*'8c.Assumptions-Calculations'!$D$121/'8c.Assumptions-Calculations'!$B$128*'3c.Alt user input-Purchasing'!I74, IF('4.Data comparisons'!$C$80="CRT",('4.Data comparisons'!$C$106-'4.Data comparisons'!$H$106)*'8c.Assumptions-Calculations'!$D$121/'8c.Assumptions-Calculations'!$B$128*'3c.Alt user input-Purchasing'!I74,IF('4.Data comparisons'!$C$80="LCD",('4.Data comparisons'!$C$106-'4.Data comparisons'!$J$106)*'8c.Assumptions-Calculations'!$D$121/'8c.Assumptions-Calculations'!$B$128*'3c.Alt user input-Purchasing'!I74, IF('4.Data comparisons'!$C$80="Notebook",('4.Data comparisons'!$C$106-'4.Data comparisons'!$L$106)*'8c.Assumptions-Calculations'!$D$121/'8c.Assumptions-Calculations'!$B$128*'3c.Alt user input-Purchasing'!I74, 0)))) -> 0 | F168: =IF('4.Data comparisons'!$C$80="CPU",('4.Data comparisons'!$C$106-'4.Data comparisons'!$F$106)*'8c.Assumptions-Calculations'!$E$121*'3c.Alt user input-Purchasing'!I74, IF('4.Data comparisons'!$C$80="CRT",('4.Data comparisons'!$C$106-'4.Data comparisons'!$H$106)*'8c.Assumptions-Calculations'!$E$121*'3c.Alt user input-Purchasing'!I74,IF('4.Data comparisons'!$C$80="LCD",('4.Data comparisons'!$C$106-'4.Data comparisons'!$J$106)*'8c.Assumptions-Calculations'!$E$121*'3c.Alt user input-Purchasing'!I74, IF('4.Data comparisons'!$C$80="Notebook",('4.Data comparisons'!$C$106-'4.Data comparisons'!$L$106)*'8c.Assumptions-Calculations'!$E$121*'3c.Alt user input-Purchasing'!I74, 0)))) -> 0 | G168: =IF('4.Data comparisons'!$C$80="CPU",('4.Data comparisons'!$C$106-'4.Data comparisons'!$F$106)*'8c.Assumptions-Calculations'!$B$168*'3c.Alt user input-Purchasing'!I74, IF('4.Data comparisons'!$C$80="CRT",('4.Data comparisons'!$C$106-'4.Data comparisons'!$H$106)*'8c.Assumptions-Calculations'!$B$168*'3c.Alt user input-Purchasing'!I74,IF('4.Data comparisons'!$C$80="LCD",('4.Data comparisons'!$C$106-'4.Data comparisons'!$J$106)*'8c.Assumptions-Calculations'!$B$168*'3c.Alt user input-Purchasing'!I74, IF('4.Data comparisons'!$C$80="Notebook",('4.Data comparisons'!$C$106-'4.Data comparisons'!$L$106)*'8c.Assumptions-Calculations'!$B$168*'3c.Alt user input-Purchasing'!I74, 0)))) -> 0 | H168: =IF('4.Data comparisons'!$C$80="CPU",('4.Data comparisons'!$C$106-'4.Data comparisons'!$F$106)*'8c.Assumptions-Calculations'!$B$121*'3c.Alt user input-Purchasing'!I74, IF('4.Data comparisons'!$C$80="CRT",('4.Data comparisons'!$C$106-'4.Data comparisons'!$H$106)*'8c.Assumptions-Calculations'!$B$121*'3c.Alt user input-Purchasing'!I74,IF('4.Data comparisons'!$C$80="LCD",('4.Data comparisons'!$C$106-'4.Data comparisons'!$J$106)*'8c.Assumptions-Calculations'!$B$121*'3c.Alt user input-Purchasing'!I74, IF('4.Data comparisons'!$C$80="Notebook",('4.Data comparisons'!$C$106-'4.Data comparisons'!$L$106)*'8c.Assumptions-Calculations'!$B$121*'3c.Alt user input-Purchasing'!I74, 0)))) -> 0 | I168: =IF('4.Data comparisons'!$C$80="CPU",('4.Data comparisons'!$C$106-'4.Data comparisons'!$F$106)*'8c.Assumptions-Calculations'!$C$121*'3c.Alt user input-Purchasing'!I74, IF('4.Data comparisons'!$C$80="CRT",('4.Data comparisons'!$C$106-'4.Data comparisons'!$H$106)*'8c.Assumptions-Calculations'!$C$121*'3c.Alt user input-Purchasing'!I74,IF('4.Data comparisons'!$C$80="LCD",('4.Data comparisons'!$C$106-'4.Data comparisons'!$J$106)*'8c.Assumptions-Calculations'!$C$121*'3c.Alt user input-Purchasing'!I74, IF('4.Data comparisons'!$C$80="Notebook",('4.Data comparisons'!$C$106-'4.Data comparisons'!$L$106)*'8c.Assumptions-Calculations'!$C$121*'3c.Alt user input-Purchasing'!I74, 0)))) -> 0 | Q168: =IF('4.Data comparisons'!$C$80="CPU",('4.Data comparisons'!$C$106-'4.Data comparisons'!$F$106)*'3c.Alt user input-Purchasing'!I74, IF('4.Data comparisons'!$C$80="CRT",('4.Data comparisons'!$C$106-'4.Data comparisons'!$H$106)*'3c.Alt user input-Purchasing'!I74,IF('4.Data comparisons'!$C$80="LCD",('4.Data comparisons'!$C$106-'4.Data comparisons'!$J$106)*'3c.Alt user input-Purchasing'!I74, IF('4.Data comparisons'!$C$80="Notebook",('4.Data comparisons'!$C$106-'4.Data comparisons'!$L$106)*'3c.Alt user input-Purchasing'!I74, 0)))) -> 0 | S168: =E168*'8c.Assumptions-Calculations'!$B$23 -> 0 | U168: Notebook | V168: =IF('4.Data comparisons'!$C$80="Notebook",(('4.Data comparisons'!$C$101)*'8c.Assumptions-Calculations'!$D$123/'8c.Assumptions-Calculations'!$B$128+('4.Data comparisons'!$C$103+'4.Data comparisons'!$C$105)*'8c.Assumptions-Calculations'!$D$121/'8c.Assumptions-Calculations'!$B$128),"n/a") -> n/a | W168: =IF('4.Data comparisons'!$C$80="Notebook",(('4.Data comparisons'!$C$101)*'8c.Assumptions-Calculations'!$E$123+('4.Data comparisons'!$C$103+'4.Data comparisons'!$C$105)*'8c.Assumptions-Calculations'!$E$121),"n/a") -> n/a | X168: =IF('4.Data comparisons'!$C$80="Notebook",((('4.Data comparisons'!$C$101)*'8c.Assumptions-Calculations'!$B$171+('4.Data comparisons'!$C$103+'4.Data comparisons'!$C$105)*'8c.Assumptions-Calculations'!$B$167)),"n/a") -> n/a | Y168: =IF('4.Data comparisons'!$C$80="Notebook",(('4.Data comparisons'!$C$101)*'8c.Assumptions-Calculations'!$B$123+('4.Data comparisons'!$C$103+'4.Data comparisons'!$C$105)*'8c.Assumptions-Calculations'!$B$121),"n/a") -> n/a | Z168: =IF('4.Data comparisons'!$C$80="Notebook",(('4.Data comparisons'!$C$101)*'8c.Assumptions-Calculations'!$C$123+('4.Data comparisons'!$C$103+'4.Data comparisons'!$C$105)*'8c.Assumptions-Calculations'!$C$121),"n/a") -> n/a
A169: E 4.8.3.1-2 | B169: Minimum 25% for recycled content in corrugated packaging (CPG) | C169: RC-pkg-CPG | E169: =IF('4.Data comparisons'!$C$80="CPU",('4.Data comparisons'!$C$107-'4.Data comparisons'!$F$107)*'8c.Assumptions-Calculations'!$D$123/'8c.Assumptions-Calculations'!$B$128*'3c.Alt user input-Purchasing'!I74, IF('4.Data comparisons'!$C$80="CRT",('4.Data comparisons'!$C$107-'4.Data comparisons'!$H$107)*'8c.Assumptions-Calculations'!$D$123/'8c.Assumptions-Calculations'!$B$128*'3c.Alt user input-Purchasing'!I74,IF('4.Data comparisons'!$C$80="LCD",('4.Data comparisons'!$C$107-'4.Data comparisons'!$J$107)*'8c.Assumptions-Calculations'!$D$123/'8c.Assumptions-Calculations'!$B$128*'3c.Alt user input-Purchasing'!I74, IF('4.Data comparisons'!$C$80="Notebook",('4.Data comparisons'!$C$107-'4.Data comparisons'!$L$107)*'8c.Assumptions-Calculations'!$D$123/'8c.Assumptions-Calculations'!$B$128*'3c.Alt user input-Purchasing'!I74, 0)))) -> 0 | F169: =IF('4.Data comparisons'!$C$80="CPU",('4.Data comparisons'!$C$107-'4.Data comparisons'!$F$107)*'8c.Assumptions-Calculations'!$E$123*'3c.Alt user input-Purchasing'!I74, IF('4.Data comparisons'!$C$80="CRT",('4.Data comparisons'!$C$107-'4.Data comparisons'!$H$107)*'8c.Assumptions-Calculations'!$E$123*'3c.Alt user input-Purchasing'!I74,IF('4.Data comparisons'!$C$80="LCD",('4.Data comparisons'!$C$107-'4.Data comparisons'!$J$107)*'8c.Assumptions-Calculations'!$E$123*'3c.Alt user input-Purchasing'!I74, IF('4.Data comparisons'!$C$80="Notebook",('4.Data comparisons'!$C$107-'4.Data comparisons'!$L$107)*'8c.Assumptions-Calculations'!$E$123*'3c.Alt user input-Purchasing'!I74, 0)))) -> 0 | G169: =IF('4.Data comparisons'!$C$80="CPU",('4.Data comparisons'!$C$107-'4.Data comparisons'!$F$107)*'8c.Assumptions-Calculations'!$B$172*'3c.Alt user input-Purchasing'!I74, IF('4.Data comparisons'!$C$80="CRT",('4.Data comparisons'!$C$107-'4.Data comparisons'!$H$107)*'8c.Assumptions-Calculations'!$B$172*'3c.Alt user input-Purchasing'!I74,IF('4.Data comparisons'!$C$80="LCD",('4.Data comparisons'!$C$107-'4.Data comparisons'!$J$107)*'8c.Assumptions-Calculations'!$B$172*'3c.Alt user input-Purchasing'!I74, IF('4.Data comparisons'!$C$80="Notebook",('4.Data comparisons'!$C$107-'4.Data comparisons'!$L$107)*'8c.Assumptions-Calculations'!$B$172*'3c.Alt user input-Purchasing'!I74, 0)))) -> 0 | H169: =IF('4.Data comparisons'!$C$80="CPU",('4.Data comparisons'!$C$107-'4.Data comparisons'!$F$107)*'8c.Assumptions-Calculations'!$B$123*'3c.Alt user input-Purchasing'!I74, IF('4.Data comparisons'!$C$80="CRT",('4.Data comparisons'!$C$107-'4.Data comparisons'!$H$107)*'8c.Assumptions-Calculations'!$B$123*'3c.Alt user input-Purchasing'!I74,IF('4.Data comparisons'!$C$80="LCD",('4.Data comparisons'!$C$107-'4.Data comparisons'!$J$107)*'8c.Assumptions-Calculations'!$B$123*'3c.Alt user input-Purchasing'!I74, IF('4.Data comparisons'!$C$80="Notebook",('4.Data comparisons'!$C$107-'4.Data comparisons'!$L$107)*'8c.Assumptions-Calculations'!$B$123*'3c.Alt user input-Purchasing'!I74, 0)))) -> 0 | I169: =IF('4.Data comparisons'!$C$80="CPU",('4.Data comparisons'!$C$107-'4.Data comparisons'!$F$107)*'8c.Assumptions-Calculations'!$C$123*'3c.Alt user input-Purchasing'!I74, IF('4.Data comparisons'!$C$80="CRT",('4.Data comparisons'!$C$107-'4.Data comparisons'!$H$107)*'8c.Assumptions-Calculations'!$C$123*'3c.Alt user input-Purchasing'!I74,IF('4.Data comparisons'!$C$80="LCD",('4.Data comparisons'!$C$107-'4.Data comparisons'!$J$107)*'8c.Assumptions-Calculations'!$C$123*'3c.Alt user input-Purchasing'!I74, IF('4.Data comparisons'!$C$80="Notebook",('4.Data comparisons'!$C$107-'4.Data comparisons'!$L$107)*'8c.Assumptions-Calculations'!$C$123*'3c.Alt user input-Purchasing'!I74, 0)))) -> 0 | Q169: =IF('4.Data comparisons'!$C$80="CPU",('4.Data comparisons'!$C$107-'4.Data comparisons'!$F$107)*'3c.Alt user input-Purchasing'!I74, IF('4.Data comparisons'!$C$80="CRT",('4.Data comparisons'!$C$107-'4.Data comparisons'!$H$107)*'3c.Alt user input-Purchasing'!I74,IF('4.Data comparisons'!$C$80="LCD",('4.Data comparisons'!$C$107-'4.Data comparisons'!$J$107)*'3c.Alt user input-Purchasing'!I74, IF('4.Data comparisons'!$C$80="Notebook",('4.Data comparisons'!$C$107-'4.Data comparisons'!$L$107)*'3c.Alt user input-Purchasing'!I74, 0)))) -> 0 | S169: =E169*'8c.Assumptions-Calculations'!$B$23 -> 0 | U169: VALUE | V169: =SUM(V165:V168) -> 0 | W169: =SUM(W165:W168) -> 0 | X169: =SUM(X165:X168) -> 0 | Y169: =SUM(Y165:Y168) -> 0 | Z169: =SUM(Z165:Z168) -> 0
A170: E 5.8.5.1 | B170: Packaging avoided per unit by packaging reuse | C170: Reuse-pkg | E170: =IF(OR('4.Data comparisons'!$C$109=0,'4.Data comparisons'!$C$109="no input"),0,(V169*'8b1.Assumptions-EPEATFECdefault'!$C$33*'3c.Alt user input-Purchasing'!$I$74)) -> 0 | F170: =IF(OR('4.Data comparisons'!$C$109=0,'4.Data comparisons'!$C$109="no input"),0,(W169*'8b1.Assumptions-EPEATFECdefault'!$C$33*'3c.Alt user input-Purchasing'!$I$74)) -> 0 | G170: =IF(OR('4.Data comparisons'!$C$109=0,'4.Data comparisons'!$C$109="no input"),0,(X169*'8b1.Assumptions-EPEATFECdefault'!$C$33*'3c.Alt user input-Purchasing'!$I$74)) -> 0 | H170: =IF(OR('4.Data comparisons'!$C$109=0,'4.Data comparisons'!$C$109="no input"),0,(Y169*'8b1.Assumptions-EPEATFECdefault'!$C$33*'3c.Alt user input-Purchasing'!$I$74)) -> 0 | I170: =IF(OR('4.Data comparisons'!$C$109=0,'4.Data comparisons'!$C$109="no input"),0,(Z169*'8b1.Assumptions-EPEATFECdefault'!$C$33*'3c.Alt user input-Purchasing'!$I$74)) -> 0 | Q170: =IF('4.Data comparisons'!$C$80="CPU",('4.Data comparisons'!$C$109-'4.Data comparisons'!$F$109)*'3c.Alt user input-Purchasing'!I74, IF('4.Data comparisons'!$C$80="CRT",('4.Data comparisons'!$C$109-'4.Data comparisons'!$H$109)*'3c.Alt user input-Purchasing'!I74,IF('4.Data comparisons'!$C$80="LCD",('4.Data comparisons'!$C$109-'4.Data comparisons'!$J$109)*'3c.Alt user input-Purchasing'!I74, IF('4.Data comparisons'!$C$80="Notebook",('4.Data comparisons'!$C$109-'4.Data comparisons'!$L$109)*'3c.Alt user input-Purchasing'!I74, 0)))) -> 0 | S170: =E170*'8c.Assumptions-Calculations'!$B$23 -> 0
B171: SUBTOTAL | C171: Packaging (P) | E171: =IF(E166>E169,SUM(E166:E168,E170),SUM(E167:E170)) -> 0 | F171: =IF(F166>F169,SUM(F166:F168,F170),SUM(F167:F170)) -> 0 | G171: =IF(G166>G169,SUM(G166:G168,G170),SUM(G167:G170)) -> 0 | H171: =IF(H166>H169,SUM(H166:H168,H170),SUM(H167:H170)) -> 0 | I171: =IF(I166>I169,SUM(I166:I168,I170),SUM(I167:I170)) -> 0 | Q171: =IF(Q166>Q169,SUM(Q166:Q168,Q170),SUM(Q167:Q170)) -> 0 | S171: =IF(S166>S169,SUM(S166:S168,S170),SUM(S167:S170)) -> 0 | U171: Energy (kWh) | V171: Lifetime | W171: First Year
B172: Energy (Product Lifetime) | U172: CPU | V172: =IF('4.Data comparisons'!$C$80="CPU",('8a. Assumptions-Baseline'!$D$39/12)*('4.Data comparisons'!$F$111-'4.Data comparisons'!$C$111)*'3c.Alt user input-Purchasing'!$I$74,"n/a") -> n/a | W172: =IF('4.Data comparisons'!$C$80="CPU",IF('8a. Assumptions-Baseline'!$D$39>12,('4.Data comparisons'!$F$111-'4.Data comparisons'!$C$111)*'3c.Alt user input-Purchasing'!$I$74,('8a. Assumptions-Baseline'!$D$39/12)*('4.Data comparisons'!$F$111-'4.Data comparisons'!$C$111)*'3c.Alt user input-Purchasing'!$I$74),"n/a") -> n/a
A173: E 4.5.1.1 | B173: ENERGY STAR 5.* | C173: EnStar4.0 | D173: energy prod. | E173: =$V$176 -> 0 | F173: =E173*'8c.Assumptions-Calculations'!$E$126 -> 0 | G173: =E173*'8c.Assumptions-Calculations'!$B$155 -> 0 | H173: =E173*'8c.Assumptions-Calculations'!$B$126 -> 0 | I173: =E173*'8c.Assumptions-Calculations'!$C$126 -> 0 | S173: =E173*'8c.Assumptions-Calculations'!$B$23 -> 0 | U173: CRT | V173: =IF('4.Data comparisons'!$C$80="CRT",('8a. Assumptions-Baseline'!$D$83/12)*('4.Data comparisons'!$H$111-'4.Data comparisons'!$C$111)*'3c.Alt user input-Purchasing'!$I$74,"n/a") -> n/a | W173: =IF('4.Data comparisons'!$C$80="CRT",IF('8a. Assumptions-Baseline'!$D$83>12,('4.Data comparisons'!$H$111-'4.Data comparisons'!$C$111)*'3c.Alt user input-Purchasing'!$I$74,('8a. Assumptions-Baseline'!$D$83/12)*('4.Data comparisons'!$H$111-'4.Data comparisons'!$C$111)*'3c.Alt user input-Purchasing'!$I$74),"n/a") -> n/a
A174: E 4.5.1.2 | B174: ENERGY STAR early adopter | E174: * * This criterion is not Calculated in Version 3.0 of this Calculator * * | U174: LCD | V174: =IF('4.Data comparisons'!$C$80="LCD",('8a. Assumptions-Baseline'!$D$128/12)*('4.Data comparisons'!$J$111-'4.Data comparisons'!$C$111)*'3c.Alt user input-Purchasing'!$I$74,"n/a") -> n/a | W174: =IF('4.Data comparisons'!$C$80="LCD",IF('8a. Assumptions-Baseline'!$D$128>12,('4.Data comparisons'!$J$111-'4.Data comparisons'!$C$111)*'3c.Alt user input-Purchasing'!$I$74,('8a. Assumptions-Baseline'!$D$128/12)*('4.Data comparisons'!$J$111-'4.Data comparisons'!$C$111)*'3c.Alt user input-Purchasing'!$I$74),"n/a") -> n/a
B175: Energy (First Year) | U175: Notebook | V175: =IF('4.Data comparisons'!$C$80="Notebook",('8a. Assumptions-Baseline'!$D$174/12)*('4.Data comparisons'!$L$111-'4.Data comparisons'!$C$111)*'3c.Alt user input-Purchasing'!$I$74,"n/a") -> n/a | W175: =IF('4.Data comparisons'!$C$80="Notebook",IF('8a. Assumptions-Baseline'!$D$174>12,('4.Data comparisons'!$L$111-'4.Data comparisons'!$C$111)*'3c.Alt user input-Purchasing'!$I$74,('8a. Assumptions-Baseline'!$D$174/12)*('4.Data comparisons'!$L$111-'4.Data comparisons'!$C$111)*'3c.Alt user input-Purchasing'!$I$74),"n/a") -> n/a
A176: E 4.5.1.1 | B176: ENERGY STAR 5.* | C176: EnStar4.0 | D176: energy prod. | E176: =$W$176 -> 0 | F176: =E176*'8c.Assumptions-Calculations'!$E$126 -> 0 | G176: =E176*'8c.Assumptions-Calculations'!$B$155 -> 0 | H176: =E176*'8c.Assumptions-Calculations'!$B$126 -> 0 | I176: =E176*'8c.Assumptions-Calculations'!$C$126 -> 0 | S176: =E176*'8c.Assumptions-Calculations'!$B$23 -> 0 | U176: VALUE | V176: =IF(SUM(V172:V175)>0,SUM(V172:V175),0) -> 0 | W176: =IF(SUM(W172:W175)>0,SUM(W172:W175),0) -> 0
A177: E 4.5.1.2 | B177: ENERGY STAR early adopter | E177: * * This criterion is not Calculated in Version 3.0 of this Calculator * *
B178: Product Cost
B179: Cost | C179: Cost-prod | E179: * * This criterion is not Calculated in Version 3.0 of this Calculator * *
B180: Lifetime PURCHASING SUBTOTAL (Product 3) | C180: PURCHASING | E180: =SUM(E160,E164,E171,E173) -> 0 | F180: =SUM(F160,F164,F171,F173) -> 0 | G180: 0 | H180: 0 | I180: 0 | J180: 0 | K180: 0 | L180: 0 | M180: 0 | N180: 0 | O180: 0 | P180: 0 | Q180: 0 | R180: 0 | S180: 0
B181: First Year PURCHASING SUBTOTAL (Product 3) | E181: =SUM(E160,E164,E171,E176) -> 0 | F181: =SUM(F160,F164,F171,F176) -> 0 | G181: 0 | H181: 0 | I181: 0 | J181: 0 | K181: 0 | L181: 0 | M181: 0 | N181: 0 | O181: 0 | P181: 0 | Q181: 0 | S181: 0
A183: USE AND END OF LIFE: | U183: INTERIM CALCULATIONS
B184: Use (Lifetime) | U184: End-of-Life:
A185: FEC | B185: Power management features enabled | C185: Power mgmt (U) | E185: =IF(ISNUMBER('3b.User Input-Use&EOL'!$D$13),('4.Data comparisons'!$C$123+'4.Data comparisons'!$C$125),0) -> 0 | F185: =E185*'8c.Assumptions-Calculations'!$E$126 -> 0 | G185: =E185*'8c.Assumptions-Calculations'!$B$155 -> 0 | H185: =E185*'8c.Assumptions-Calculations'!$B$126 -> 0 | I185: =E185*'8c.Assumptions-Calculations'!$C$126 -> 0 | S185: =E185*'8c.Assumptions-Calculations'!$B$23 -> 0
A186: FEC | B186: Extend product life | C186: Extend life (U) | E186: =IF(ISNUMBER('3b.User Input-Use&EOL'!$D$13),IF((('4.Data comparisons'!$C$128-'8b1.Assumptions-EPEATFECdefault'!$C$47)/'8b1.Assumptions-EPEATFECdefault'!$C$47*'8c.Assumptions-Calculations'!$B$86*'4.Data comparisons'!$C$129*'3b.User Input-Use&EOL'!$D$13)>0,('4.Data comparisons'!$C$128-'8b1.Assumptions-EPEATFECdefault'!$C$47)/'8b1.Assumptions-EPEATFECdefault'!$C$47*'8c.Assumptions-Calculations'!$B$86*'4.Data comparisons'!$C$129*'3b.User Input-Use&EOL'!$D$13,0),0) -> 0 | F186: =IF(ISNUMBER('3b.User Input-Use&EOL'!$D$13),IF((('4.Data comparisons'!$C$128-'8b1.Assumptions-EPEATFECdefault'!$C$47)/'8b1.Assumptions-EPEATFECdefault'!$C$47*'4.Data comparisons'!$C$129*'3b.User Input-Use&EOL'!$D$13)>0,('4.Data comparisons'!$C$128-'8b1.Assumptions-EPEATFECdefault'!$C$47)/'8b1.Assumptions-EPEATFECdefault'!$C$47*'4.Data comparisons'!$C$129*'3b.User Input-Use&EOL'!$D$13,0),0) -> 0 | G186: =$E$186*'8c.Assumptions-Calculations'!$B$155 -> 0 | H186: =$E$186*'8c.Assumptions-Calculations'!$B$126 -> 0 | I186: =$E$186*'8c.Assumptions-Calculations'!$C$126 -> 0 | J186: =IF(ISNUMBER('3b.User Input-Use&EOL'!$D$13),IF((('4.Data comparisons'!$C$128-'8b1.Assumptions-EPEATFECdefault'!$C$47)/'8b1.Assumptions-EPEATFECdefault'!$C$47*'4.Data comparisons'!$C$130*'3b.User Input-Use&EOL'!$D$13)>0,('4.Data comparisons'!$C$128-'8b1.Assumptions-EPEATFECdefault'!$C$47)/'8b1.Assumptions-EPEATFECdefault'!$C$47*'4.Data comparisons'!$C$130*'3b.User Input-Use&EOL'!$D$13,0),0) -> 0 | K186: Combined into preceding column | Q186: =F186 -> 0 | R186: =IF(ISNUMBER('3b.User Input-Use&EOL'!$D$13),IF((('4.Data comparisons'!$C$128-'8b1.Assumptions-EPEATFECdefault'!$C$47)/'8b1.Assumptions-EPEATFECdefault'!$C$47*'4.Data comparisons'!$C$131*'3b.User Input-Use&EOL'!$D$13)>0,('4.Data comparisons'!$C$128-'8b1.Assumptions-EPEATFECdefault'!$C$47)/'8b1.Assumptions-EPEATFECdefault'!$C$47*'4.Data comparisons'!$C$131*'3b.User Input-Use&EOL'!$D$13,0),0) -> 0 | S186: =E186*'8c.Assumptions-Calculations'!$B$23 -> 0 | V186: Energy | X186: Primary Materials | Z186: Municipal Solid Waste | AB186: Hazardous Waste | AD186: Greenhouse Gas Emissions | AF186: Toxics | AH186: Emissions to Air | AJ186: Emissions to Fresh Water
B187: Lifetime USE SUBTOTAL | C187: USE | E187: =SUM(E185:E186) -> 0 | F187: =SUM(F185:F186) -> 0 | G187: 0 | H187: 0 | I187: 0 | J187: 0 | K187: Combined into preceding column | Q187: 0 | R187: 0 | S187: 0 | U187: Product | V187: Reuse | W187: Recycle | X187: Reuse | Y187: Recycle | Z187: Reuse | AA187: Recycle | AB187: Reuse | AC187: Recycle | AD187: Reuse | AE187: Recycle | AF187: Reuse | AG187: Recycle | AH187: Reuse | AI187: Recycle | AJ187: Reuse | AK187: Recycle
B188: Use (First Year) | U188: CPU | V188: =IF(ISNUMBER('3b.User Input-Use&EOL'!$K$17),'3b.User Input-Use&EOL'!$K$17*'4.Data comparisons'!$F$135*'8c.Assumptions-Calculations'!$B$195,0) -> 0 | W188: =IF(ISNUMBER('3b.User Input-Use&EOL'!$K$24),'3b.User Input-Use&EOL'!$K$24*'4.Data comparisons'!$F$135*'8c.Assumptions-Calculations'!B196,0) -> 0 | X188: =IF(ISNUMBER('3b.User Input-Use&EOL'!$K$17),'3b.User Input-Use&EOL'!$K$17*'4.Data comparisons'!$F$135,0) -> 0 | Y188: =IF(ISNUMBER('3b.User Input-Use&EOL'!$K$24),'3b.User Input-Use&EOL'!$K$24*'4.Data comparisons'!$F$135,0) -> 0 | Z188: =IF(ISNUMBER('3b.User Input-Use&EOL'!$K$17),'3b.User Input-Use&EOL'!$K$17*'4.Data comparisons'!$F$135,0) -> 0 | AA188: =IF(ISNUMBER('3b.User Input-Use&EOL'!$K$24),'3b.User Input-Use&EOL'!$K$24*'4.Data comparisons'!$F$135,0) -> 0 | AB188: =IF(ISNUMBER('3b.User Input-Use&EOL'!$K$17),'3b.User Input-Use&EOL'!$K$17*'4.Data comparisons'!$F$138,0) -> 0 | AC188: =IF(ISNUMBER('3b.User Input-Use&EOL'!$K$24),'3b.User Input-Use&EOL'!$K$24*'4.Data comparisons'!$F$138,0) -> 0 | AD188: =IF(ISNUMBER('3b.User Input-Use&EOL'!$K$17),('3b.User Input-Use&EOL'!$K$17)*'4.Data comparisons'!$F$135*'8c.Assumptions-Calculations'!$B$186,0) -> 0 | AE188: =IF(ISNUMBER('3b.User Input-Use&EOL'!$K$24),('3b.User Input-Use&EOL'!$K$24)*'4.Data comparisons'!$F$135*'8c.Assumptions-Calculations'!$B$187,0) -> 0 | AF188: =IF(ISNUMBER('3b.User Input-Use&EOL'!$K$17),'3b.User Input-Use&EOL'!$K$17*SUM('8a. Assumptions-Baseline'!$D$8:$D$9,'8a. Assumptions-Baseline'!$D$12:$D$15)/1000,0) -> 0
A189: FEC | B189: Power management features enabled | C189: Power mgmt (U) | E189: =IF(ISNUMBER('3b.User Input-Use&EOL'!$D$13),('4.Data comparisons'!$C$124+'4.Data comparisons'!$C$126),0) -> 0 | F189: =E189*'8c.Assumptions-Calculations'!$E$126 -> 0 | G189: =E189*'8c.Assumptions-Calculations'!$B$155 -> 0 | H189: =E189*'8c.Assumptions-Calculations'!$B$126 -> 0 | I189: =E189*'8c.Assumptions-Calculations'!$C$126 -> 0 | S189: =E189*'8c.Assumptions-Calculations'!$B$23 -> 0 | U189: CRT | V189: =IF(ISNUMBER('3b.User Input-Use&EOL'!$K$18),'3b.User Input-Use&EOL'!$K$18*'4.Data comparisons'!$H$140*'8c.Assumptions-Calculations'!$B$195,0) -> 0 | W189: =IF(ISNUMBER('3b.User Input-Use&EOL'!$K$25),'3b.User Input-Use&EOL'!$K$25*'4.Data comparisons'!$H$140*'8c.Assumptions-Calculations'!B196,0) -> 0 | X189: =IF(ISNUMBER('3b.User Input-Use&EOL'!$K$18),'3b.User Input-Use&EOL'!$K$18*'4.Data comparisons'!$H$140,0) -> 0 | Y189: =IF(ISNUMBER('3b.User Input-Use&EOL'!$K$25),'3b.User Input-Use&EOL'!$K$25*'4.Data comparisons'!$H$140,0) -> 0 | Z189: =IF(ISNUMBER('3b.User Input-Use&EOL'!$K$18),'3b.User Input-Use&EOL'!$K$18*'4.Data comparisons'!$H$140,0) -> 0 | AA189: =IF(ISNUMBER('3b.User Input-Use&EOL'!$K$25),'3b.User Input-Use&EOL'!$K$25*'4.Data comparisons'!$H$140,0) -> 0 | AB189: =IF(ISNUMBER('3b.User Input-Use&EOL'!$K$18),'3b.User Input-Use&EOL'!$K$18*'4.Data comparisons'!$H$144,0) -> 0 | AC189: =IF(ISNUMBER('3b.User Input-Use&EOL'!$K$25),'3b.User Input-Use&EOL'!$K$25*'4.Data comparisons'!$H$144,0) -> 0 | AD189: =IF(ISNUMBER('3b.User Input-Use&EOL'!$K$18),('3b.User Input-Use&EOL'!$K$18)*'4.Data comparisons'!$H$140*'8c.Assumptions-Calculations'!$B$186,0) -> 0 | AE189: =IF(ISNUMBER('3b.User Input-Use&EOL'!$K$25),('3b.User Input-Use&EOL'!$K$25)*'4.Data comparisons'!$H$140*'8c.Assumptions-Calculations'!$B$187,0) -> 0 | AF189: =IF(ISNUMBER('3b.User Input-Use&EOL'!$K$18),'3b.User Input-Use&EOL'!$K$18*SUM('8a. Assumptions-Baseline'!$D$52:$D$53,'8a. Assumptions-Baseline'!$D$56:$D$59)/1000,0) -> 0
B190: End-of-Life Management | U190: LCD | V190: =IF(ISNUMBER('3b.User Input-Use&EOL'!$K$19),'3b.User Input-Use&EOL'!$K$19*'4.Data comparisons'!$J$146*'8c.Assumptions-Calculations'!$B$195,0) -> 0 | W190: =IF(ISNUMBER('3b.User Input-Use&EOL'!$K$26),'3b.User Input-Use&EOL'!$K$26*'4.Data comparisons'!$J$146*'8c.Assumptions-Calculations'!B196,0) -> 0 | X190: =IF(ISNUMBER('3b.User Input-Use&EOL'!$K$19),'3b.User Input-Use&EOL'!$K$19*'4.Data comparisons'!$J$146,0) -> 0 | Y190: =IF(ISNUMBER('3b.User Input-Use&EOL'!$K$26),'3b.User Input-Use&EOL'!$K$26*'4.Data comparisons'!$J$146,0) -> 0 | Z190: =IF(ISNUMBER('3b.User Input-Use&EOL'!$K$19),'3b.User Input-Use&EOL'!$K$19*'4.Data comparisons'!$J$146,0) -> 0 | AA190: =IF(ISNUMBER('3b.User Input-Use&EOL'!$K$26),'3b.User Input-Use&EOL'!$K$26*'4.Data comparisons'!$J$146,0) -> 0 | AB190: =IF(ISNUMBER('3b.User Input-Use&EOL'!$K$19),'3b.User Input-Use&EOL'!$K$19*'4.Data comparisons'!$J$150,0) -> 0 | AC190: =IF(ISNUMBER('3b.User Input-Use&EOL'!$K$26),'3b.User Input-Use&EOL'!$K$26*'4.Data comparisons'!$J$150,0) -> 0 | AD190: =IF(ISNUMBER('3b.User Input-Use&EOL'!$K$19),('3b.User Input-Use&EOL'!$K$19)*'4.Data comparisons'!$J$146*'8c.Assumptions-Calculations'!$B$186,0) -> 0 | AE190: =IF(ISNUMBER('3b.User Input-Use&EOL'!$K$26),('3b.User Input-Use&EOL'!$K$26)*'4.Data comparisons'!$J$146*'8c.Assumptions-Calculations'!$B$187,0) -> 0 | AF190: =IF(ISNUMBER('3b.User Input-Use&EOL'!$K$19),'3b.User Input-Use&EOL'!$K$19*SUM('8a. Assumptions-Baseline'!$D$96:$D$98,'8a. Assumptions-Baseline'!$D$101:$D$104)/1000,0) -> 0
A191: FEC | B191: Computer and monitor reuse | C191: Reused comp (E) | E191: =$V$192 -> 0 | F191: =$X$192 -> 0 | G191: =$AD$192 -> 0 | H191: =$E$191*'8c.Assumptions-Calculations'!$B$126 -> 0 | I191: =$E$191*'8c.Assumptions-Calculations'!$C$126 -> 0 | J191: =$AF$192 -> 0 | K191: Combined into preceding column | Q191: =$Z$192 -> 0 | R191: =$AB$192 -> 0 | S191: =E191*'8c.Assumptions-Calculations'!$B$23 -> 0 | U191: Notebook | V191: =IF(ISNUMBER('3b.User Input-Use&EOL'!$K$20),'3b.User Input-Use&EOL'!$K$20*'4.Data comparisons'!$L$152*'8c.Assumptions-Calculations'!$B$195,0) -> 0 | W191: =IF(ISNUMBER('3b.User Input-Use&EOL'!$K$27),'3b.User Input-Use&EOL'!$K$27*'4.Data comparisons'!$L$152*'8c.Assumptions-Calculations'!B196,0) -> 0 | X191: =IF(ISNUMBER('3b.User Input-Use&EOL'!$K$20),'3b.User Input-Use&EOL'!$K$20*'4.Data comparisons'!$L$152,0) -> 0 | Y191: =IF(ISNUMBER('3b.User Input-Use&EOL'!$K$27),'3b.User Input-Use&EOL'!$K$27*'4.Data comparisons'!$L$152,0) -> 0 | Z191: =IF(ISNUMBER('3b.User Input-Use&EOL'!$K$20),'3b.User Input-Use&EOL'!$K$20*'4.Data comparisons'!$L$152,0) -> 0 | AA191: =IF(ISNUMBER('3b.User Input-Use&EOL'!$K$27),'3b.User Input-Use&EOL'!$K$27*'4.Data comparisons'!$L$152,0) -> 0 | AB191: =IF(ISNUMBER('3b.User Input-Use&EOL'!$K$20),'3b.User Input-Use&EOL'!$K$20*'4.Data comparisons'!$L$156,0) -> 0 | AC191: =IF(ISNUMBER('3b.User Input-Use&EOL'!$K$27),'3b.User Input-Use&EOL'!$K$27*'4.Data comparisons'!$L$156,0) -> 0 | AD191: =IF(ISNUMBER('3b.User Input-Use&EOL'!$K$20),('3b.User Input-Use&EOL'!$K$20)*'4.Data comparisons'!$L$152*'8c.Assumptions-Calculations'!$B$186,0) -> 0 | AE191: =IF(ISNUMBER('3b.User Input-Use&EOL'!$K$27),('3b.User Input-Use&EOL'!$K$27)*'4.Data comparisons'!$L$152*'8c.Assumptions-Calculations'!$B$187,0) -> 0 | AF191: =IF(ISNUMBER('3b.User Input-Use&EOL'!$K$20),'3b.User Input-Use&EOL'!$K$20*SUM('8a. Assumptions-Baseline'!$D$141:$D$143,'8a. Assumptions-Baseline'!$D$146:$D$149)/1000,0) -> 0
A192: FEC | B192: Mobile phone reuse | C192: Reused phones (E) | E192: =$V$193 -> 0 | F192: =$X$193 -> 0 | G192: =AD193 -> 0 | H192: =AH193 -> 0 | I192: =AJ193 -> 0 | J192: =$AF$193 -> 0 | K192: Combined into preceding column | Q192: =$Z$193 -> 0 | R192: =$AB$193 -> 0 | S192: =E192*'8c.Assumptions-Calculations'!$B$23 -> 0 | U192: SUM of computer products | V192: =SUM(V188:V191) -> 0 | W192: 0 | X192: 0 | Y192: 0 | Z192: 0 | AA192: 0 | AB192: 0 | AC192: 0 | AD192: =SUM(AD188:AD191) -> 0 | AE192: =SUM(AE188:AE191) -> 0 | AF192: =SUM(AF188:AF191) -> 0
